Workbook

Sheet Inddata
B2: Opgave: | C2: BEF's prøvehus, ULS lastkomb. 6.10b | N2: Bruger: | O2: =HD9 -> Bruger skal registreres | S2: sag nr.: | T2: 21-101 | W2: init: | X2: NNN
BC3: 6 | BD3: 2 | BE3: =IF(SUM(BE27:BE30)>0,5,IF(SUM(BE21:BE26)>0,4,IF(SUM(BE15:BE20)>0,3,IF(SUM(BE9:BE14)>0,2,1)))) -> 1
B4: Væg | C4: 1. endepunkt | E4: 2. endepunkt | G4: dim. | J4: væghøjde | K4: rel. stivh. | N4: Etage | O4: Højde | P4: Laste på dækskiver over etager | BC4: Etage 6 | BD4: 1 | BE4: =IF(INDEX(vægstabilitet,11+12*(BD4-1),2)=0,0,1) -> 1
C5: x1 | D5: y1 | E5: x2 | F5: y2 | G5: t | J5: etager | K5: a0 | L5: Ankre | O5: h_etg | P5: y_Wx | Q5: W_x | R5: x_Wy | S5: W_y | BC5: Etage 5 | BD5: 2 | BE5: 1 | BF5: Væg | BJ5: Etage | BK5: h | BL5: t | BM5: r_1 | BN5: r_2 | BO5: L_eff | BP5: V_i | BQ5: Q | BR5: G | BS5: p | BT5: P1 | BU5: P2 | BV5: T | BW5: N | BX5: b_1 | BY5: b_2 | BZ5: n | CA5: n_max | CE5: Etager: | CF5: 6 | CT5: Hjørnepunkter i vægopstalt | DZ5: vægcheck
B6: nr. | C6: (m) | D6: (m) | E6: (m) | F6: (m) | G6: (m) | J6: (antal) | L6: til basis | O6: (m) | P6: (m) | Q6: (KN) | R6: (m) | S6: (KN) | BC6: Etage 4 | BD6: 3 | BE6: 1 | BF6: =gv -> 2 | BK6: (m) | BL6: (m) | BM6: (m) | BN6: (m) | BO6: (m) | BP6: (kN) | BQ6: (kN) | BR6: (kN) | BS6: (kN/m) | BT6: (kN) | BU6: (kN) | BV6: (kN) | BW6: (kN) | BX6: (m) | BY6: (m) | BZ6: (kN/m) | CA6: (kN/m)
B7: 1 | C7: 10 | D7: 10 | E7: 15 | F7: 10 | G7: 0.2 | J7: 6 | K7: 1 | L7: =IF(B7=gv,$V$43,INDEX(ankre,11+12*(B7-1),1)) -> 58.27893168 | M7: =IF(OR(INDEX(vægstabilitet,11+12*(B7-1),19)="!",INDEX(vægstabilitet,10+12*(B7-1),19)="!",INDEX(vægstabilitet,9+12*(B7-1),19)="!",INDEX(vægstabilitet,8+12*(B7-1),19)="!",INDEX(vægstabilitet,7+12*(B7-1),19)="!",INDEX(vægstabilitet,6+12*(B7-1),19)="!"),1,0) -> 0 | N7: 6 | O7: 3 | P7: =INDEX(Resultlast,(LT-1)*6+(7-N7),1) -> 16 | Q7: =INDEX(Resultlast,(LT-1)*6+(7-N7),2) -> 23.5872 | R7: =INDEX(Resultlast,(LT-1)*6+(7-N7),3) -> 20 | S7: =INDEX(Resultlast,(LT-1)*6+(7-N7),4) -> 62.622 | BC7: Etage 3 | BD7: 4 | BE7: 1 | CE7: s_1 | CF7: s_2 | CG7: x_1 | CH7: y_1 | CI7: x_2 | CJ7: y_2 | CK7: cos(a) | CL7: sin(a) | CM7: s_1_e | CN7: s_2_e | CO7: s_N | CP7: N_0 | CQ7: n | CR7: T_1 | CS7: T_2 | CT7: 0 | CU7: 0 | CV7: =CF14 -> 5.0001 | CW7: =CF14 -> 5.0001 | CX7: =CT7 -> 0 | CY7: =CE13 -> 0 | CZ7: =CE13 -> 0 | DA7: =CF13 -> 5.0001 | DB7: =CF13 -> 5.0001 | DC7: =CY7 -> 0 | DD7: =CE12 -> 0 | DE7: =CE12 -> 0 | DF7: =CF12 -> 5.0001 | DG7: =CF12 -> 5.0001 | DH7: =DD7 -> 0 | DI7: =CE11 -> 0 | DJ7: =CE11 -> 0 | DK7: =CF11 -> 5.0001 | DL7: =CF11 -> 5.0001 | DM7: =DI7 -> 0 | DN7: =CE10 -> 0 | DO7: =CE10 -> 0 | DP7: =CF10 -> 5.0001 | DQ7: =CF10 -> 5.0001 | DR7: =DN7 -> 0 | DS7: =CE9 -> 0 | DT7: =CE9 -> 0 | DU7: =CF9 -> 5.0001 | DV7: =CF9 -> 5.0001 | DW7: =DS7 -> 0 | DX7: =DX15 -> 20 | DZ7: =IF(AND(INDEX(vægstabilitet,11+12*(B7-1),14)<>0,K7*J7*G7*SQRT((E7-C7)^2+(F7-D7)^2)=0),0,B7) -> 1
B8: 2 | C8: 25 | D8: 10 | E8: 30 | F8: 10 | G8: 0.2 | J8: 6 | K8: 1 | L8: =IF(B8=gv,$V$43,INDEX(ankre,11+12*(B8-1),1)) -> 58.27893168 | M8: =IF(OR(INDEX(vægstabilitet,11+12*(B8-1),19)="!",INDEX(vægstabilitet,10+12*(B8-1),19)="!",INDEX(vægstabilitet,9+12*(B8-1),19)="!",INDEX(vægstabilitet,8+12*(B8-1),19)="!",INDEX(vægstabilitet,7+12*(B8-1),19)="!",INDEX(vægstabilitet,6+12*(B8-1),19)="!"),1,0) -> 0 | N8: 5 | O8: 3 | P8: 16 | Q8: 32.1048 | R8: 20 | S8: 82.278 | BC8: Etage 2 | BD8: 5 | BE8: 0 | DZ8: =IF(AND(INDEX(vægstabilitet,11+12*(B8-1),14)<>0,K8*J8*G8*SQRT((E8-C8)^2+(F8-D8)^2)=0),0,B8) -> 2
B9: 3 | C9: 10 | D9: 15 | E9: 10 | F9: 22 | G9: 0.2 | J9: 6 | K9: 1 | L9: 568.8661559 | M9: 1 | N9: 4 | O9: 3 | P9: 16 | Q9: 32.76 | R9: 20 | S9: 83.79 | BC9: Etage 1 | BD9: 6 | BE9: 0 | BJ9: 6 | BK9: =IF(INDEX(Hovedtal,BF6,9)<BJ9,0,INDEX(Etager,7-BJ9,2)) -> 3 | BL9: =IF(BJ9>INDEX(Hovedtal,BF6,9),0,INDEX(Hovedtal,BF6,6)) -> 0.2 | BM9: =O38 -> 0 | BN9: 0 | BO9: =CN9-CM9 -> 5.0001 | BP9: =INDEX(Hovedtal,BF6,9+BJ9) -> 11.79360014 | BQ9: =BP9 -> 11.79360014 | BR9: =(CF9-CE9)*BL9*BK9*g_g*$E$38 -> 64.801296 | BS9: =Q38 -> 0 | BT9: 0 | BU9: =S38 -> 0 | BV9: =IF(CO9>0.5*(CM9+CN9),CS9,CR9) -> 0 | BW9: =CP9+BV9 -> 64.801296 | BX9: =IF(CO9<=0.5*(CM9+CN9),IF(CO9>CM9+0.5*CP9/CQ9,2*(CO9-CM9),BW9/CQ9),0) -> 0 | BY9: =IF(CO9>0.5*(CM9+CN9),IF(CO9<CN9-0.5*CP9/CQ9,2*(CN9-CO9),BW9/CQ9),0) -> 3.908121827 | BZ9: =IF(CO9>0.5*(CM9+CN9),BW9/BY9,BW9/BX9) -> 16.58118628 | CA9: =INDEX(Hovedtal,BF6,8) -> 1200 | CB9: =IF(BZ9>CA9,"!","") ->  | CE9: =IF(BK9=0,CE10,IF(BM9=0,0,BM9)) -> 0 | CF9: =IF(BK9=0,CF10,IF(BN9=0,CF14,CF14-BN9)) -> 5.0001 | CG9: =IF(BK9=0,0,CG14+CE9*CK14) -> 25 | CH9: =IF(BK9=0,0,CH14+CE9*CL14) -> 10 | CI9: =IF(BK9=0,0,CG14+CF9*CK14) -> 30.0001 | CJ9: =IF(BK9=0,0,CH14+CF9*CL14) -> 10 | CM9: =MAX(CE9:CE10) -> 0 | CN9: =MIN(CF9:CF10) -> 5.0001 | CO9: =IF(BK9=0,0.5*(CM9+CN9),(BQ9*BK9+CE9*BT9+0.5*(CE9+CF9)*(BR9+(CF9-CE9)*BS9)+CF9*BU9)/CP9) -> 3.046039087 | CP9: =BR9+BS9*(CF9-CE9)+BT9+BU9 -> 64.801296 | CQ9: =IF(CO9<0.5*(CM9+CN9),MAX(CA9,8*CP9*(0.5*(CN9+CM9)-CO9)/(CN9-CM9)^2+0.1),MAX(CA9,-8*CP9*(0.5*(CN9+CM9)-CO9)/(CN9-CM9)^2+0.1)) -> 1200 | CR9: =IF(AND(CO9<0.5*(CM9+CN9),CP9/CQ9>2*(CO9-CM9)),CQ9*(-SQRT((CP9/CQ9+0.5*CM9-0.5*CN9)^2-2*(-CO9*CP9/CQ9+0.5*CP9^2/CQ9^2+CM9*CP9/CQ9))-(CP9/CQ9+0.5*CM9-0.5*CN9)),0) -> 0 | CS9: =IF(AND(CO9>=0.5*(CM9+CN9),CP9/CQ9>2*(CN9-CO9)),CQ9*(-SQRT((CP9/CQ9+0.5*CM9-0.5*CN9)^2-2*(CO9*CP9/CQ9+0.5*CP9^2/CQ9^2-CN9*CP9/CQ9))-(CP9/CQ9+0.5*CM9-0.5*CN9)),0) -> 0 | DS9: =DP10 -> 16.5 | DT9: =DV9+BK9 -> 19.5 | DU9: =DS9+BK9 -> 19.5 | DV9: =DO10 -> 16.5 | DW9: =DS9 -> 16.5 | DZ9: 3 | HA9: =IF(HE9=1,0,1000000) -> 0 | HB9: 1 | HD9: Bruger skal registreres | HE9: 1
B10: 4 | C10: 30 | D10: 15 | E10: 30 | F10: 22 | G10: 0.2 | J10: 6 | K10: 1 | L10: 85.14211957 | M10: 0 | N10: 3 | O10: 3 | P10: 16 | Q10: 32.76 | R10: 20 | S10: 83.79 | BD10: 7 | BE10: 0 | BJ10: 5 | BK10: =IF(INDEX(Hovedtal,BF6,9)<BJ10,0,INDEX(Etager,7-BJ10,2)) -> 3 | BL10: =IF(BJ10>INDEX(Hovedtal,BF6,9),0,INDEX(Hovedtal,BF6,6)) -> 0.2 | BM10: 0 | BN10: 0 | BO10: 5.0001 | BP10: =INDEX(Hovedtal,BF6,9+BJ10) -> 16.05240017 | BQ10: =BQ9+BP10 -> 27.84600031 | BR10: 64.801296 | BS10: 0 | BT10: 0 | BU10: 0 | BV10: 0 | BW10: 129.602592 | BX10: 0 | BY10: 3.164970015 | BZ10: 40.9490742 | CA10: =INDEX(Hovedtal,BF6,8) -> 1200 | CE10: =IF(BK10=0,CE11,IF(BM10=0,0,BM10)) -> 0 | CF10: =IF(BK10=0,CF11,IF(BN10=0,CF14,CF14-BN10)) -> 5.0001 | CG10: =IF(BK10=0,0,CG14+CE10*CK14) -> 25 | CH10: =IF(BK10=0,0,CH14+CE10*CL14) -> 10 | CI10: =IF(BK10=0,0,CG14+CF10*CK14) -> 30.0001 | CJ10: =IF(BK10=0,0,CH14+CF10*CL14) -> 10 | CM10: =MAX(CE10:CE11) -> 0 | CN10: =MIN(CF10:CF11) -> 5.0001 | CO10: =IF(BK10=0,0.5*(CM10+CN10),(BQ10*BK10+CE10*BT10+0.5*(CE10+CF10)*(BR10+(CF10-CE10)*BS10)+CF10*BU10+CO9*CP9)/CP10) -> 3.417614992 | CP10: =CP9+BR10+BS10*(CF10-CE10)+BT10+BU10 -> 129.602592 | CQ10: 1200 | CR10: 0 | CS10: 0 | DN10: =DK11 -> 13.5 | DO10: =DQ10+BK10 -> 16.5 | DP10: =DN10+BK10 -> 16.5 | DQ10: =DJ11 -> 13.5 | DR10: =DN10 -> 13.5 | DZ10: 4
B11: 5 | L11: 0 | M11: 0 | N11: 2 | O11: 4.5 | P11: 16 | Q11: 40.95 | R11: 20 | S11: 102.69 | BC11: =IF(O7>0,6,IF(O8>0,5,IF(O9>0,4,IF(O10>0,3,IF(O11>0,2,1))))) -> 6 | BD11: 8 | BE11: 0 | BJ11: 4 | BK11: =IF(INDEX(Hovedtal,BF6,9)<BJ11,0,INDEX(Etager,7-BJ11,2)) -> 3 | BL11: =IF(BJ11>INDEX(Hovedtal,BF6,9),0,INDEX(Hovedtal,BF6,6)) -> 0.2 | BM11: 0 | BN11: 0 | BO11: 5.0001 | BP11: =INDEX(Hovedtal,BF6,9+BJ11) -> 16.38000017 | BQ11: =BQ10+BP11 -> 44.22600048 | BR11: 64.801296 | BS11: 0 | BT11: 0 | BU11: 0 | BV11: 0 | BW11: 194.403888 | BX11: 0 | BY11: 2.411707295 | BZ11: 80.60840899 | CA11: =INDEX(Hovedtal,BF6,8) -> 1200 | CE11: =IF(BK11=0,CE12,IF(BM11=0,0,BM11)) -> 0 | CF11: =IF(BK11=0,CF12,IF(BN11=0,CF14,CF14-BN11)) -> 5.0001 | CG11: =IF(BK11=0,0,CG14+CE11*CK14) -> 25 | CH11: =IF(BK11=0,0,CH14+CE11*CL14) -> 10 | CI11: =IF(BK11=0,0,CG14+CF11*CK14) -> 30.0001 | CJ11: =IF(BK11=0,0,CH14+CF11*CL14) -> 10 | CM11: =MAX(CE11:CE12) -> 0 | CN11: =MIN(CF11:CF12) -> 5.0001 | CO11: =IF(BK11=0,0.5*(CM11+CN11),(BQ11*BK11+CE11*BT11+0.5*(CE11+CF11)*(BR11+(CF11-CE11)*BS11)+CF11*BU11+CO10*CP10)/CP11) -> 3.794246353 | CP11: =CP10+BR11+BS11*(CF11-CE11)+BT11+BU11 -> 194.403888 | CQ11: 1200 | CR11: 0 | CS11: 0 | DI11: =DF12 -> 10.5 | DJ11: =DL11+BK11 -> 13.5 | DK11: =DI11+BK11 -> 13.5 | DL11: =DE12 -> 10.5 | DM11: =DI11 -> 10.5 | DZ11: 5
B12: 6 | L12: 0 | M12: 0 | N12: 1 | O12: 3 | P12: 16 | Q12: 40.95 | R12: 20 | S12: 102.69 | BD12: 9 | BE12: 0 | BJ12: 3 | BK12: =IF(INDEX(Hovedtal,BF6,9)<BJ12,0,INDEX(Etager,7-BJ12,2)) -> 3 | BL12: =IF(BJ12>INDEX(Hovedtal,BF6,9),0,INDEX(Hovedtal,BF6,6)) -> 0.2 | BM12: 0 | BN12: 0 | BO12: 5.0001 | BP12: =INDEX(Hovedtal,BF6,9+BJ12) -> 16.38000017 | BQ12: =BQ11+BP12 -> 60.60600065 | BR12: 64.801296 | BS12: 0 | BT12: 0 | BU12: 0 | BV12: 0 | BW12: 259.205184 | BX12: 0 | BY12: 1.655916847 | BZ12: 156.5327296 | CA12: =INDEX(Hovedtal,BF6,8) -> 1200 | CE12: =IF(BK12=0,CE13,IF(BM12=0,0,BM12)) -> 0 | CF12: =IF(BK12=0,CF13,IF(BN12=0,CF14,CF14-BN12)) -> 5.0001 | CG12: =IF(BK13=0,0,CG14+CE12*CK14) -> 25 | CH12: =IF(BK12=0,0,CH14+CE12*CL14) -> 10 | CI12: =IF(BK12=0,0,CG14+CF12*CK14) -> 30.0001 | CJ12: =IF(BK12=0,0,CH14+CF12*CL14) -> 10 | CM12: =MAX(CE12:CE13) -> 0 | CN12: =MIN(CF12:CF13) -> 5.0001 | CO12: =IF(BK12=0,0.5*(CM12+CN12),(BQ12*BK12+CE12*BT12+0.5*(CE12+CF12)*(BR12+(CF12-CE12)*BS12)+CF12*BU12+CO11*CP11)/CP12) -> 4.172141576 | CP12: =CP11+BR12+BS12*(CF12-CE12)+BT12+BU12 -> 259.205184 | CQ12: 1200 | CR12: 0 | CS12: 0 | DD12: =DA13 -> 7.5 | DE12: =DG12+BK12 -> 10.5 | DF12: =DD12+BK12 -> 10.5 | DG12: =CZ13 -> 7.5 | DH12: =DD12 -> 7.5 | DZ12: 6
B13: 7 | L13: 0 | M13: 0 | N13: =System!B16 ->  | X13: =IF(SUM(M7:M33)>0," NB: se væg ved mrk. !","") -> NB: se væg ved mrk. ! | BD13: 10 | BE13: 0 | BJ13: 2 | BK13: =IF(INDEX(Hovedtal,BF6,9)<BJ13,0,INDEX(Etager,7-BJ13,2)) -> 4.5 | BL13: =IF(BJ13>INDEX(Hovedtal,BF6,9),0,INDEX(Hovedtal,BF6,6)) -> 0.2 | BM13: 0 | BN13: 0 | BO13: 5.0001 | BP13: =INDEX(Hovedtal,BF6,9+BJ13) -> 20.47500021 | BQ13: =BQ12+BP13 -> 81.08100086 | BR13: 97.201944 | BS13: 0 | BT13: 0 | BU13: 0 | BV13: 0 | BW13: 356.407128 | BX13: 0 | BY13: 0.5205077254 | BZ13: 684.7297564 | CA13: =INDEX(Hovedtal,BF6,8) -> 1200 | CE13: =IF(BK13=0,CE14,IF(BM13=0,0,BM13)) -> 0 | CF13: =IF(BK13=0,CF14,IF(BN13=0,CF14,CF14-BN13)) -> 5.0001 | CG13: =IF(BK13=0,0,CG14+CE13*CK14) -> 25 | CH13: =IF(BK13=0,0,CH14+CE13*CL14) -> 10 | CI13: =IF(BK13=0,0,CG14+CF13*CK14) -> 30.0001 | CJ13: =IF(BK13=0,0,CH14+CF13*CL14) -> 10 | CM13: =MAX(CE13:CE14) -> 0 | CN13: =MIN(CF13:CF14) -> 5.0001 | CO13: =IF(BK13=0,0.5*(CM13+CN13),(BQ13*BK13+CE13*BT13+0.5*(CE13+CF13)*(BR13+(CF13-CE13)*BS13)+CF13*BU13+CO12*CP12)/CP13) -> 4.739846137 | CP13: =CP12+BR13+BS13*(CF13-CE13)+BT13+BU13 -> 356.407128 | CQ13: 1200 | CR13: 0 | CS13: 0 | CY13: =CV14 -> 3 | CZ13: =DB13+BK13 -> 7.5 | DA13: =CY13+BK13 -> 7.5 | DB13: =CU14 -> 3 | DC13: =CY13 -> 3 | DZ13: 7
B14: 8 | L14: 0 | M14: 0 | BD14: 11 | BE14: 0 | BJ14: 1 | BK14: =IF(INDEX(Hovedtal,BF6,9)<BJ14,0,INDEX(Etager,7-BJ14,2)) -> 3 | BL14: =IF(BJ14>INDEX(Hovedtal,BF6,9),0,INDEX(Hovedtal,BF6,6)) -> 0.2 | BO14: 5.0001 | BP14: =INDEX(Hovedtal,BF6,9+BJ14) -> 20.47500021 | BQ14: =BQ13+BP14 -> 101.5560011 | BR14: 64.801296 | BS14: 0 | BT14: 0 | BU14: 0 | BV14: 58.27893168 | BW14: 479.4873557 | BX14: 0 | BY14: 0.3995727964 | BZ14: 1200 | CA14: =INDEX(Hovedtal,BF6,8) -> 1200 | CE14: 0 | CF14: =SQRT((CI14-CG14)^2+(CJ14-CH14)^2)+0.0001 -> 5.0001 | CG14: =INDEX(Hovedtal,BF6,2) -> 25 | CH14: =INDEX(Hovedtal,BF6,3) -> 10 | CI14: =INDEX(Hovedtal,BF6,4) -> 30 | CJ14: =INDEX(Hovedtal,BF6,5) -> 10 | CK14: =SQRT(1-CL14^2) -> 1 | CL14: =(CJ14-CH14)/CF14 -> 0 | CM14: =CE14 -> 0 | CN14: =CF14 -> 5.0001 | CO14: =IF(BK14=0,0.5*(CM14+CN14),(BQ14*BK14+CE14*BT14+0.5*(CE14+CF14)*(BR14+(CF14-CE14)*BS14)+CF14*BU14+CO13*CP13)/CP14) -> 5.118580991 | CP14: =CP13+BR14+BS14*(CF14-CE14)+BT14+BU14 -> 421.208424 | CQ14: 1200 | CR14: 0 | CS14: 58.27893168 | CT14: 0 | CU14: =BK14 -> 3 | CV14: =BK14 -> 3 | CW14: 0 | CX14: =CT14 -> 0 | DZ14: 8
B15: 9 | L15: 0 | M15: 0 | BD15: 12 | BE15: 0 | DX15: =MAX(CT7:DW14)+0.5 -> 20 | DZ15: 9
B16: 10 | L16: 0 | M16: 0 | BD16: 13 | BE16: 0 | DZ16: 10
B17: 11 | L17: 0 | M17: 0 | BD17: 14 | BE17: 0 | DZ17: 11
B18: 12 | L18: 0 | M18: 0 | BD18: 15 | BE18: 0 | DZ18: 12
B19: 13 | L19: 0 | M19: 0 | BD19: 16 | BE19: 0 | DZ19: 13
B20: 14 | L20: 0 | M20: 0 | BD20: 17 | BE20: 0 | DZ20: 14
B21: 15 | L21: 0 | M21: 0 | BD21: 18 | BE21: 0 | DZ21: 15
B22: 16 | L22: 0 | M22: 0 | BD22: 19 | BE22: 0 | DZ22: 16
B23: 17 | L23: 0 | M23: 0 | BD23: 20 | BE23: 0 | DZ23: 17
B24: 18 | L24: 0 | M24: 0 | BD24: 21 | BE24: 0 | DZ24: 18
B25: 19 | L25: 0 | M25: 0 | BD25: 22 | BE25: 0 | DZ25: 19
B26: 20 | L26: 0 | M26: 0 | BD26: 23 | BE26: 0 | DZ26: 20
B27: 21 | L27: 0 | M27: 0 | BD27: 24 | BE27: 0 | DZ27: 21
B28: 22 | L28: 0 | M28: 0 | BD28: 25 | BE28: 0 | DZ28: 22
B29: 23 | L29: 0 | M29: 0 | BD29: 26 | BE29: 0 | DZ29: 23
B30: 24 | L30: 0 | M30: 0 | BD30: 27 | BE30: =IF(INDEX(vægstabilitet,11+12*(BD30-1),2)=0,0,1) -> 0 | DZ30: 24
B31: 25 | L31: 0 | M31: 0 | BD31: 0 | BE31: 2 | DZ31: 25
B32: 26 | L32: 0 | M32: 0 | DZ32: 26
B33: 27 | L33: 0 | M33: 0 | DZ33: 27
B35: Generelle parametre for vægge | J35: =" Væg "&gv -> Væg 2 | N35: Rediger væg nr. : | W35: n_max = | X35: =INDEX(vægstabilitet,11+12*(gv-1),3)*E36*1000 -> 1200
B36: Maks. normaltryk | D36: s_max | E36: 6 | F36: Mpa | N36: Etage | O36: r_1 | P36: r_2 | Q36: p | R36: P1 | S36: P2 | U36: V | V36: T | W36: N | X36: n | BM36: r_1 | BN36: r_2 | BO36: p | BP36: P1 | BQ36: P2
B37: Egenvægtsfaktor | D37: g_g | E37: 0.9 | O37: (m) | P37: (m) | Q37: (kN/m) | R37: (kN) | S37: (kN) | U37: (kN) | V37: (kN) | W37: (kN) | X37: (kN/m) | BM37: (m) | BN37: (m) | BO37: (kN/m) | BP37: (kN) | BQ37: (kN)
B38: Egenvægt | D38: g | E38: 24 | F38: kN/m3 | N38: 6 | O38: 0 | P38: 0 | Q38: 0 | R38: 0 | S38: 0 | U38: =BP9 -> 11.79360014 | V38: =BV9 -> 0 | W38: =BW9 -> 64.801296 | X38: =BZ9 -> 16.58118628 | BM38: =INDEX(vægstabilitet,12-BJ9+12*(gv-1),4) -> 0 | BN38: =INDEX(vægstabilitet,12-BJ9+12*(gv-1),5) -> 0 | BO38: =INDEX(vægstabilitet,12-$BJ9+12*(gv-1),10) -> 0 | BP38: =INDEX(vægstabilitet,12-$BJ9+12*(gv-1),11) -> 0 | BQ38: =INDEX(vægstabilitet,12-$BJ9+12*(gv-1),12) -> 0
N39: 5 | O39: 0 | P39: 0 | Q39: 0 | R39: 0 | S39: 0 | U39: 16.05240017 | V39: 0 | W39: 129.602592 | X39: 40.9490742 | BM39: =INDEX(vægstabilitet,12-BJ10+12*(gv-1),4) -> 0 | BN39: =INDEX(vægstabilitet,12-BJ10+12*(gv-1),5) -> 0 | BO39: 0 | BP39: 0 | BQ39: 0
B40: Masselastprocenter | N40: 4 | O40: 0 | P40: 0 | Q40: 0 | R40: 0 | S40: 0 | U40: 16.38000017 | V40: 0 | W40: 194.403888 | X40: 80.60840899 | BM40: =INDEX(vægstabilitet,12-BJ11+12*(gv-1),4) -> 0 | BN40: =INDEX(vægstabilitet,12-BJ11+12*(gv-1),5) -> 0 | BO40: 0 | BP40: 0 | BQ40: 0
B41: v/ masselast alene: | E41: 1.75 | F41: % | N41: 3 | O41: 0 | P41: 0 | Q41: 0 | R41: 0 | S41: 0 | U41: 16.38000017 | V41: 0 | W41: 259.205184 | X41: 156.5327296 | BM41: =INDEX(vægstabilitet,12-BJ12+12*(gv-1),4) -> 0 | BN41: =INDEX(vægstabilitet,12-BJ12+12*(gv-1),5) -> 0 | BO41: 0 | BP41: 0 | BQ41: 0
B42: v/ masselast og vind: | E42: 0.25 | F42: % | N42: 2 | O42: 0 | P42: 0 | Q42: 0 | R42: 0 | S42: 0 | U42: 20.47500021 | V42: 0 | W42: 356.407128 | X42: 684.7297564 | BM42: =INDEX(vægstabilitet,12-BJ13+12*(gv-1),4) -> 0 | BN42: =INDEX(vægstabilitet,12-BJ13+12*(gv-1),5) -> 0 | BO42: 0 | BP42: 0 | BQ42: 0
B43: Tværvind, lastfaktor f_v | E43: 0.7 | N43: 1 | Q43: 0 | R43: 0 | S43: 0 | U43: 20.47500021 | V43: 58.27893168 | W43: 479.4873557 | X43: 1200 | BO43: 0 | BP43: 0 | BQ43: 0
BM46: r_1 | BN46: r_2 | BO46: p | BP46: P1 | BQ46: P2
BM47: (m) | BN47: (m) | BO47: (kN/m) | BP47: (kN) | BQ47: (kN)
BN56: 12 | BT56: =INDEX(BT57:BT72,LT,1) -> 7a
BM57: 1, Masselast: + W_x | BO57: 4 | BP57: 11 | BQ57: 1 | BR57: 1 | BT57: 1
BM58: 2, Masselast: - W_x | BO58: 4 | BP58: 11 | BQ58: -1 | BR58: 1 | BT58: 2
BM59: 3, Masselast: + W_y | BO59: 4 | BP59: 10 | BQ59: 1 | BT59: 3
BM60: 4, Masselast: - W_y | BO60: 4 | BP60: 10 | BQ60: -1 | BT60: 4
BM61: 5, Vind: + W_x | BO61: 12 | BP61: 21 | BQ61: 1 | BR61: 1 | BT61: 5
BM62: 5a, Vind: + W_x og + W_y* | BO62: 12 | BP62: 21 | BQ62: 1 | BR62: 1 | BT62: 5a
BM63: 5b, Vind: + W_x og - W_y* | BO63: 12 | BP63: 21 | BQ63: 1 | BR63: 1 | BT63: 5b
BM64: 6, Vind: - W_x | BO64: 12 | BP64: 21 | BQ64: -1 | BR64: 1 | BT64: 6
BM65: 6a, Vind: - W_x og + W_y* | BO65: 12 | BP65: 21 | BQ65: -1 | BR65: 1 | BT65: 6a
BM66: 6b, Vind: - W_x og - W_y* | BO66: 12 | BP66: 21 | BQ66: -1 | BR66: 1 | BT66: 6b
BM67: 7, Vind: + W_y | BO67: 13 | BP67: 20 | BQ67: 1 | BT67: 7
BM68: 7a, Vind: + W_y og + W_x* | BO68: 13 | BP68: 20 | BQ68: 1 | BT68: 7a
BM69: 7b, Vind: + W_y og - W_x* | BO69: 13 | BP69: 20 | BQ69: 1 | BT69: 7b
BM70: 8, Vind: - W_y | BO70: 13 | BP70: 20 | BQ70: -1 | BT70: 8
BM71: 8a, Vind: - W_y og + W_x* | BO71: 13 | BP71: 20 | BQ71: -1 | BT71: 8a
BM72: 8b, Vind: - W_y og - W_x* | BO72: 13 | BP72: 20 | BQ72: -1 | BT72: 8b
BM75: =INDEX(lasttilf,LT,1)&IF(LT>4," (+ imperfektionsbidrag / masselast i vindretning)","") -> 7a, Vind: + W_y og + W_x* (+ imperfektionsbidrag / masselast i vindretning)
BM77: =INDEX(grafetage,ge,1) -> Etage 1

Sheet System
B2: =Inddata!C2 -> BEF's prøvehus, ULS lastkomb. 6.10b | M2: sag nr.: | N2: =Inddata!T2 -> 21-101
B3: ="Lasttilfælde "&Inddata!BM75 -> Lasttilfælde 7a, Vind: + W_y og + W_x* (+ imperfektionsbidrag / masselast i vindretning) | M3: init: | N3: =Inddata!X2 -> NNN | O3: ref. nr.: | P3: =Inddata!BT56 -> 7a
B4: ="Bruger: "&Inddata!O2 -> Bruger: Bruger skal registreres
B6: ETAGEHØJDER | D6: RESULTERENDE LASTE PÅ DÆKSKIVER OVER ETAGER | K6: For hver væg defineres systemdata :
B7: Etage | C7: h_etg | D7: y_Wx | E7: W_x0 | F7: x_Wy | G7: W_y0 | K7: (x1 , y1) | M7: endepunkt 1
C8: (m) | D8: (m) | E8: (KN) | F8: (m) | G8: (KN) | K8: (x2 , y2) | M8: endepunkt 2
B9: 6 | C9: =MAX(0.001,Laste!C5) -> 3 | D9: =Inddata!P7 -> 16 | E9: =Inddata!Q7 -> 23.5872 | F9: =Inddata!R7 -> 20 | G9: =Inddata!S7 -> 62.622 | K9: t | M9: vægtykkelse
B10: 5 | C10: =MAX(0.001,Laste!C6) -> 3 | D10: =Inddata!P8 -> 16 | E10: =Inddata!Q8 -> 32.1048 | F10: =Inddata!R8 -> 20 | G10: =Inddata!S8 -> 82.278 | K10: a0 | M10: relativ styrke (skønnet)
B11: 4 | C11: =MAX(0.001,Laste!C7) -> 3 | D11: =Inddata!P9 -> 16 | E11: =Inddata!Q9 -> 32.76 | F11: =Inddata!R9 -> 20 | G11: =Inddata!S9 -> 83.79 | K11: n_max | M11: normalkraft-kapacitet
B12: 3 | C12: =MAX(0.001,Laste!C8) -> 3 | D12: =Inddata!P10 -> 16 | E12: =Inddata!Q10 -> 32.76 | F12: =Inddata!R10 -> 20 | G12: =Inddata!S10 -> 83.79 | K12: etager | M12: væggens højde i bygning
B13: 2 | C13: =MAX(0.001,Laste!C9) -> 4.5 | D13: =Inddata!P11 -> 16 | E13: =Inddata!Q11 -> 40.95 | F13: =Inddata!R11 -> 20 | G13: =Inddata!S11 -> 102.69 | K13: Vægges egenvægt | N13: g = | O13: =Inddata!$E$38 -> 24 | P13: kN/m3
B14: 1 | C14: =MAX(0.001,Laste!C10) -> 3 | D14: =Inddata!P12 -> 16 | E14: =Inddata!Q12 -> 40.95 | F14: =Inddata!R12 -> 20 | G14: =Inddata!S12 -> 102.69 | N14: g_g = | O14: =Inddata!$E$37 -> 0.9
B16: =IF(AND(K56="",L56="",M56="",N56="",O56="",P56=""),""," NB: System ustabilt i etage "&K56&L56&M56&N56&O56&P56&" !") ->  | K16: OBS: Se altid gældende dokumentationsark og vejledning på hjemmesiden www.bef.dk !
B18: VÆGGE | C18: 1. endepunkt | E18: 2. endepunkt | G18: tykkelse | H18: rel. stivh. | I18: till. n-kraft | J18: væghøjde | K18: Resultanter, V, på vægge fra dækskive over:
C19: x1 | D19: y1 | E19: x2 | F19: y2 | G19: t | H19: a0 | I19: n_max | J19: etager | K19: etage1 | L19: etage2 | M19: etage3 | N19: etage4 | O19: etage5 | P19: etage6
B20: nr. | C20: (m) | D20: (m) | E20: (m) | F20: (m) | G20: (m) | I20: (kN/m) | J20: (antal) | K20: (kN) | L20: (kN) | M20: (kN) | N20: (kN) | O20: (kN) | P20: (kN)
B22: =ROW()-ROW($B$21) -> 1 | C22: =Inddata!C7 -> 10 | D22: =Inddata!D7 -> 10 | E22: =Inddata!E7 -> 15 | F22: =Inddata!F7 -> 10 | G22: =Inddata!G7 -> 0.2 | H22: =Inddata!K7 -> 1 | I22: =G22*Inddata!$E$36*1000 -> 1200 | J22: =Inddata!J7 -> 6 | K22: ='E1'!$M15-L22-M22-N22-O22-P22+$K$57 -> 20.47500021 | L22: ='E2'!$M15-M22-N22-O22-P22+$L$57 -> 20.47500021 | M22: ='E3'!$M15-N22-O22-P22+$M$57 -> 16.38000017 | N22: ='E4'!$M15-O22-P22+$N$57 -> 16.38000017 | O22: ='E5'!$M15-P22+$O$57 -> 16.05240017 | P22: ='E6'!M15+$P$57 -> 11.79360014
B23: =ROW()-ROW($B$21) -> 2 | C23: =Inddata!C8 -> 25 | D23: =Inddata!D8 -> 10 | E23: =Inddata!E8 -> 30 | F23: =Inddata!F8 -> 10 | G23: =Inddata!G8 -> 0.2 | H23: =Inddata!K8 -> 1 | I23: =G23*Inddata!$E$36*1000 -> 1200 | J23: =Inddata!J8 -> 6 | K23: ='E1'!$M16-L23-M23-N23-O23-P23+$K$57 -> 20.47500021 | L23: ='E2'!$M16-M23-N23-O23-P23+$L$57 -> 20.47500021 | M23: ='E3'!$M16-N23-O23-P23+$M$57 -> 16.38000017 | N23: ='E4'!$M16-O23-P23+$N$57 -> 16.38000017 | O23: ='E5'!$M16-P23+$O$57 -> 16.05240017 | P23: ='E6'!M16+$P$57 -> 11.79360014
B24: 3 | C24: =Inddata!C9 -> 10 | D24: =Inddata!D9 -> 15 | E24: =Inddata!E9 -> 10 | F24: =Inddata!F9 -> 22 | G24: =Inddata!G9 -> 0.2 | H24: =Inddata!K9 -> 1 | I24: =G24*Inddata!$E$36*1000 -> 1200 | J24: =Inddata!J9 -> 6 | K24: ='E1'!$M17-L24-M24-N24-O24-P24+$K$57 -> 63.629996 | L24: ='E2'!$M17-M24-N24-O24-P24+$L$57 -> 63.629996 | M24: ='E3'!$M17-N24-O24-P24+$M$57 -> 51.72299674 | N24: ='E4'!$M17-O24-P24+$N$57 -> 51.72299674 | O24: ='E5'!$M17-P24+$O$57 -> 50.7704368 | P24: ='E6'!M17+$P$57 -> 38.38715757
B25: 4 | C25: =Inddata!C10 -> 30 | D25: =Inddata!D10 -> 15 | E25: =Inddata!E10 -> 30 | F25: =Inddata!F10 -> 22 | G25: =Inddata!G10 -> 0.2 | H25: =Inddata!K10 -> 1 | I25: =G25*Inddata!$E$36*1000 -> 1200 | J25: =Inddata!J10 -> 6 | K25: ='E1'!$M18-L25-M25-N25-O25-P25+$K$57 -> 39.06000147 | L25: ='E2'!$M18-M25-N25-O25-P25+$L$57 -> 39.06000147 | M25: ='E3'!$M18-N25-O25-P25+$M$57 -> 32.0670012 | N25: ='E4'!$M18-O25-P25+$N$57 -> 32.0670012 | O25: ='E5'!$M18-P25+$O$57 -> 31.50756118 | P25: ='E6'!M18+$P$57 -> 24.2348409
B26: 5 | C26: =Inddata!C11 -> 0 | D26: =Inddata!D11 -> 0 | E26: =Inddata!E11 -> 0 | F26: =Inddata!F11 -> 0 | G26: =Inddata!G11 -> 0 | H26: =Inddata!K11 -> 0 | I26: =G26*Inddata!$E$36*1000 -> 0 | J26: =Inddata!J11 -> 0 | K26: ='E1'!$M19-L26-M26-N26-O26-P26+$K$57 -> 0 | L26: ='E2'!$M19-M26-N26-O26-P26+$L$57 -> 0 | M26: ='E3'!$M19-N26-O26-P26+$M$57 -> 0 | N26: ='E4'!$M19-O26-P26+$N$57 -> 0 | O26: ='E5'!$M19-P26+$O$57 -> 0 | P26: ='E6'!M19+$P$57 -> 0
B27: 6 | C27: =Inddata!C12 -> 0 | D27: =Inddata!D12 -> 0 | E27: =Inddata!E12 -> 0 | F27: =Inddata!F12 -> 0 | G27: =Inddata!G12 -> 0 | H27: =Inddata!K12 -> 0 | I27: =G27*Inddata!$E$36*1000 -> 0 | J27: =Inddata!J12 -> 0 | K27: ='E1'!$M20-L27-M27-N27-O27-P27+$K$57 -> 0 | L27: ='E2'!$M20-M27-N27-O27-P27+$L$57 -> 0 | M27: ='E3'!$M20-N27-O27-P27+$M$57 -> 0 | N27: ='E4'!$M20-O27-P27+$N$57 -> 0 | O27: ='E5'!$M20-P27+$O$57 -> 0 | P27: ='E6'!M20+$P$57 -> 0
B28: 7 | C28: =Inddata!C13 -> 0 | D28: =Inddata!D13 -> 0 | E28: =Inddata!E13 -> 0 | F28: =Inddata!F13 -> 0 | G28: =Inddata!G13 -> 0 | H28: =Inddata!K13 -> 0 | I28: =G28*Inddata!$E$36*1000 -> 0 | J28: =Inddata!J13 -> 0 | K28: ='E1'!$M21-L28-M28-N28-O28-P28+$K$57 -> 0 | L28: ='E2'!$M21-M28-N28-O28-P28+$L$57 -> 0 | M28: ='E3'!$M21-N28-O28-P28+$M$57 -> 0 | N28: ='E4'!$M21-O28-P28+$N$57 -> 0 | O28: ='E5'!$M21-P28+$O$57 -> 0 | P28: ='E6'!M21+$P$57 -> 0
B29: 8 | C29: =Inddata!C14 -> 0 | D29: =Inddata!D14 -> 0 | E29: =Inddata!E14 -> 0 | F29: =Inddata!F14 -> 0 | G29: =Inddata!G14 -> 0 | H29: =Inddata!K14 -> 0 | I29: =G29*Inddata!$E$36*1000 -> 0 | J29: =Inddata!J14 -> 0 | K29: ='E1'!$M22-L29-M29-N29-O29-P29+$K$57 -> 0 | L29: ='E2'!$M22-M29-N29-O29-P29+$L$57 -> 0 | M29: ='E3'!$M22-N29-O29-P29+$M$57 -> 0 | N29: ='E4'!$M22-O29-P29+$N$57 -> 0 | O29: ='E5'!$M22-P29+$O$57 -> 0 | P29: ='E6'!M22+$P$57 -> 0
B30: 9 | C30: =Inddata!C15 -> 0 | D30: =Inddata!D15 -> 0 | E30: =Inddata!E15 -> 0 | F30: =Inddata!F15 -> 0 | G30: =Inddata!G15 -> 0 | H30: =Inddata!K15 -> 0 | I30: =G30*Inddata!$E$36*1000 -> 0 | J30: =Inddata!J15 -> 0 | K30: ='E1'!$M23-L30-M30-N30-O30-P30+$K$57 -> 0 | L30: ='E2'!$M23-M30-N30-O30-P30+$L$57 -> 0 | M30: ='E3'!$M23-N30-O30-P30+$M$57 -> 0 | N30: ='E4'!$M23-O30-P30+$N$57 -> 0 | O30: ='E5'!$M23-P30+$O$57 -> 0 | P30: ='E6'!M23+$P$57 -> 0
B31: 10 | C31: =Inddata!C16 -> 0 | D31: =Inddata!D16 -> 0 | E31: =Inddata!E16 -> 0 | F31: =Inddata!F16 -> 0 | G31: =Inddata!G16 -> 0 | H31: =Inddata!K16 -> 0 | I31: =G31*Inddata!$E$36*1000 -> 0 | J31: =Inddata!J16 -> 0 | K31: ='E1'!$M24-L31-M31-N31-O31-P31+$K$57 -> 0 | L31: ='E2'!$M24-M31-N31-O31-P31+$L$57 -> 0 | M31: ='E3'!$M24-N31-O31-P31+$M$57 -> 0 | N31: ='E4'!$M24-O31-P31+$N$57 -> 0 | O31: ='E5'!$M24-P31+$O$57 -> 0 | P31: ='E6'!M24+$P$57 -> 0
B32: 11 | C32: =Inddata!C17 -> 0 | D32: =Inddata!D17 -> 0 | E32: =Inddata!E17 -> 0 | F32: =Inddata!F17 -> 0 | G32: =Inddata!G17 -> 0 | H32: =Inddata!K17 -> 0 | I32: =G32*Inddata!$E$36*1000 -> 0 | J32: =Inddata!J17 -> 0 | K32: ='E1'!$M25-L32-M32-N32-O32-P32+$K$57 -> 0 | L32: ='E2'!$M25-M32-N32-O32-P32+$L$57 -> 0 | M32: ='E3'!$M25-N32-O32-P32+$M$57 -> 0 | N32: ='E4'!$M25-O32-P32+$N$57 -> 0 | O32: ='E5'!$M25-P32+$O$57 -> 0 | P32: ='E6'!M25+$P$57 -> 0
B33: 12 | C33: =Inddata!C18 -> 0 | D33: =Inddata!D18 -> 0 | E33: =Inddata!E18 -> 0 | F33: =Inddata!F18 -> 0 | G33: =Inddata!G18 -> 0 | H33: =Inddata!K18 -> 0 | I33: =G33*Inddata!$E$36*1000 -> 0 | J33: =Inddata!J18 -> 0 | K33: ='E1'!$M26-L33-M33-N33-O33-P33+$K$57 -> 0 | L33: ='E2'!$M26-M33-N33-O33-P33+$L$57 -> 0 | M33: ='E3'!$M26-N33-O33-P33+$M$57 -> 0 | N33: ='E4'!$M26-O33-P33+$N$57 -> 0 | O33: ='E5'!$M26-P33+$O$57 -> 0 | P33: ='E6'!M26+$P$57 -> 0
B34: 13 | C34: =Inddata!C19 -> 0 | D34: =Inddata!D19 -> 0 | E34: =Inddata!E19 -> 0 | F34: =Inddata!F19 -> 0 | G34: =Inddata!G19 -> 0 | H34: =Inddata!K19 -> 0 | I34: =G34*Inddata!$E$36*1000 -> 0 | J34: =Inddata!J19 -> 0 | K34: ='E1'!$M27-L34-M34-N34-O34-P34+$K$57 -> 0 | L34: ='E2'!$M27-M34-N34-O34-P34+$L$57 -> 0 | M34: ='E3'!$M27-N34-O34-P34+$M$57 -> 0 | N34: ='E4'!$M27-O34-P34+$N$57 -> 0 | O34: ='E5'!$M27-P34+$O$57 -> 0 | P34: ='E6'!M27+$P$57 -> 0
B35: 14 | C35: =Inddata!C20 -> 0 | D35: =Inddata!D20 -> 0 | E35: =Inddata!E20 -> 0 | F35: =Inddata!F20 -> 0 | G35: =Inddata!G20 -> 0 | H35: =Inddata!K20 -> 0 | I35: =G35*Inddata!$E$36*1000 -> 0 | J35: =Inddata!J20 -> 0 | K35: ='E1'!$M28-L35-M35-N35-O35-P35+$K$57 -> 0 | L35: ='E2'!$M28-M35-N35-O35-P35+$L$57 -> 0 | M35: ='E3'!$M28-N35-O35-P35+$M$57 -> 0 | N35: ='E4'!$M28-O35-P35+$N$57 -> 0 | O35: ='E5'!$M28-P35+$O$57 -> 0 | P35: ='E6'!M28+$P$57 -> 0
B36: 15 | C36: =Inddata!C21 -> 0 | D36: =Inddata!D21 -> 0 | E36: =Inddata!E21 -> 0 | F36: =Inddata!F21 -> 0 | G36: =Inddata!G21 -> 0 | H36: =Inddata!K21 -> 0 | I36: =G36*Inddata!$E$36*1000 -> 0 | J36: =Inddata!J21 -> 0 | K36: ='E1'!$M29-L36-M36-N36-O36-P36+$K$57 -> 0 | L36: ='E2'!$M29-M36-N36-O36-P36+$L$57 -> 0 | M36: ='E3'!$M29-N36-O36-P36+$M$57 -> 0 | N36: ='E4'!$M29-O36-P36+$N$57 -> 0 | O36: ='E5'!$M29-P36+$O$57 -> 0 | P36: ='E6'!M29+$P$57 -> 0
B37: 16 | C37: =Inddata!C22 -> 0 | D37: =Inddata!D22 -> 0 | E37: =Inddata!E22 -> 0 | F37: =Inddata!F22 -> 0 | G37: =Inddata!G22 -> 0 | H37: =Inddata!K22 -> 0 | I37: =G37*Inddata!$E$36*1000 -> 0 | J37: =Inddata!J22 -> 0 | K37: ='E1'!$M30-L37-M37-N37-O37-P37+$K$57 -> 0 | L37: ='E2'!$M30-M37-N37-O37-P37+$L$57 -> 0 | M37: ='E3'!$M30-N37-O37-P37+$M$57 -> 0 | N37: ='E4'!$M30-O37-P37+$N$57 -> 0 | O37: ='E5'!$M30-P37+$O$57 -> 0 | P37: ='E6'!M30+$P$57 -> 0
B38: 17 | C38: =Inddata!C23 -> 0 | D38: =Inddata!D23 -> 0 | E38: =Inddata!E23 -> 0 | F38: =Inddata!F23 -> 0 | G38: =Inddata!G23 -> 0 | H38: =Inddata!K23 -> 0 | I38: =G38*Inddata!$E$36*1000 -> 0 | J38: =Inddata!J23 -> 0 | K38: ='E1'!$M31-L38-M38-N38-O38-P38+$K$57 -> 0 | L38: ='E2'!$M31-M38-N38-O38-P38+$L$57 -> 0 | M38: ='E3'!$M31-N38-O38-P38+$M$57 -> 0 | N38: ='E4'!$M31-O38-P38+$N$57 -> 0 | O38: ='E5'!$M31-P38+$O$57 -> 0 | P38: ='E6'!M31+$P$57 -> 0
B39: 18 | C39: =Inddata!C24 -> 0 | D39: =Inddata!D24 -> 0 | E39: =Inddata!E24 -> 0 | F39: =Inddata!F24 -> 0 | G39: =Inddata!G24 -> 0 | H39: =Inddata!K24 -> 0 | I39: =G39*Inddata!$E$36*1000 -> 0 | J39: =Inddata!J24 -> 0 | K39: ='E1'!$M32-L39-M39-N39-O39-P39+$K$57 -> 0 | L39: ='E2'!$M32-M39-N39-O39-P39+$L$57 -> 0 | M39: ='E3'!$M32-N39-O39-P39+$M$57 -> 0 | N39: ='E4'!$M32-O39-P39+$N$57 -> 0 | O39: ='E5'!$M32-P39+$O$57 -> 0 | P39: ='E6'!M32+$P$57 -> 0
B40: 19 | C40: =Inddata!C25 -> 0 | D40: =Inddata!D25 -> 0 | E40: =Inddata!E25 -> 0 | F40: =Inddata!F25 -> 0 | G40: =Inddata!G25 -> 0 | H40: =Inddata!K25 -> 0 | I40: =G40*Inddata!$E$36*1000 -> 0 | J40: =Inddata!J25 -> 0 | K40: ='E1'!$M33-L40-M40-N40-O40-P40+$K$57 -> 0 | L40: ='E2'!$M33-M40-N40-O40-P40+$L$57 -> 0 | M40: ='E3'!$M33-N40-O40-P40+$M$57 -> 0 | N40: ='E4'!$M33-O40-P40+$N$57 -> 0 | O40: ='E5'!$M33-P40+$O$57 -> 0 | P40: ='E6'!M33+$P$57 -> 0
B41: 20 | C41: =Inddata!C26 -> 0 | D41: =Inddata!D26 -> 0 | E41: =Inddata!E26 -> 0 | F41: =Inddata!F26 -> 0 | G41: =Inddata!G26 -> 0 | H41: =Inddata!K26 -> 0 | I41: =G41*Inddata!$E$36*1000 -> 0 | J41: =Inddata!J26 -> 0 | K41: ='E1'!$M34-L41-M41-N41-O41-P41+$K$57 -> 0 | L41: ='E2'!$M34-M41-N41-O41-P41+$L$57 -> 0 | M41: ='E3'!$M34-N41-O41-P41+$M$57 -> 0 | N41: ='E4'!$M34-O41-P41+$N$57 -> 0 | O41: ='E5'!$M34-P41+$O$57 -> 0 | P41: ='E6'!M34+$P$57 -> 0
B42: 21 | C42: =Inddata!C27 -> 0 | D42: =Inddata!D27 -> 0 | E42: =Inddata!E27 -> 0 | F42: =Inddata!F27 -> 0 | G42: =Inddata!G27 -> 0 | H42: =Inddata!K27 -> 0 | I42: =G42*Inddata!$E$36*1000 -> 0 | J42: =Inddata!J27 -> 0 | K42: ='E1'!$M35-L42-M42-N42-O42-P42+$K$57 -> 0 | L42: ='E2'!$M35-M42-N42-O42-P42+$L$57 -> 0 | M42: ='E3'!$M35-N42-O42-P42+$M$57 -> 0 | N42: ='E4'!$M35-O42-P42+$N$57 -> 0 | O42: ='E5'!$M35-P42+$O$57 -> 0 | P42: ='E6'!M35+$P$57 -> 0
B43: 22 | C43: =Inddata!C28 -> 0 | D43: =Inddata!D28 -> 0 | E43: =Inddata!E28 -> 0 | F43: =Inddata!F28 -> 0 | G43: =Inddata!G28 -> 0 | H43: =Inddata!K28 -> 0 | I43: =G43*Inddata!$E$36*1000 -> 0 | J43: =Inddata!J28 -> 0 | K43: ='E1'!$M36-L43-M43-N43-O43-P43+$K$57 -> 0 | L43: ='E2'!$M36-M43-N43-O43-P43+$L$57 -> 0 | M43: ='E3'!$M36-N43-O43-P43+$M$57 -> 0 | N43: ='E4'!$M36-O43-P43+$N$57 -> 0 | O43: ='E5'!$M36-P43+$O$57 -> 0 | P43: ='E6'!M36+$P$57 -> 0
B44: 23 | C44: =Inddata!C29 -> 0 | D44: =Inddata!D29 -> 0 | E44: =Inddata!E29 -> 0 | F44: =Inddata!F29 -> 0 | G44: =Inddata!G29 -> 0 | H44: =Inddata!K29 -> 0 | I44: =G44*Inddata!$E$36*1000 -> 0 | J44: =Inddata!J29 -> 0 | K44: ='E1'!$M37-L44-M44-N44-O44-P44+$K$57 -> 0 | L44: ='E2'!$M37-M44-N44-O44-P44+$L$57 -> 0 | M44: ='E3'!$M37-N44-O44-P44+$M$57 -> 0 | N44: ='E4'!$M37-O44-P44+$N$57 -> 0 | O44: ='E5'!$M37-P44+$O$57 -> 0 | P44: ='E6'!M37+$P$57 -> 0
B45: 24 | C45: =Inddata!C30 -> 0 | D45: =Inddata!D30 -> 0 | E45: =Inddata!E30 -> 0 | F45: =Inddata!F30 -> 0 | G45: =Inddata!G30 -> 0 | H45: =Inddata!K30 -> 0 | I45: =G45*Inddata!$E$36*1000 -> 0 | J45: =Inddata!J30 -> 0 | K45: ='E1'!$M38-L45-M45-N45-O45-P45+$K$57 -> 0 | L45: ='E2'!$M38-M45-N45-O45-P45+$L$57 -> 0 | M45: ='E3'!$M38-N45-O45-P45+$M$57 -> 0 | N45: ='E4'!$M38-O45-P45+$N$57 -> 0 | O45: ='E5'!$M38-P45+$O$57 -> 0 | P45: ='E6'!M38+$P$57 -> 0
B46: 25 | C46: =Inddata!C31 -> 0 | D46: =Inddata!D31 -> 0 | E46: =Inddata!E31 -> 0 | F46: =Inddata!F31 -> 0 | G46: =Inddata!G31 -> 0 | H46: =Inddata!K31 -> 0 | I46: =G46*Inddata!$E$36*1000 -> 0 | J46: =Inddata!J31 -> 0 | K46: ='E1'!$M39-L46-M46-N46-O46-P46+$K$57 -> 0 | L46: ='E2'!$M39-M46-N46-O46-P46+$L$57 -> 0 | M46: ='E3'!$M39-N46-O46-P46+$M$57 -> 0 | N46: ='E4'!$M39-O46-P46+$N$57 -> 0 | O46: ='E5'!$M39-P46+$O$57 -> 0 | P46: ='E6'!M39+$P$57 -> 0
B47: 26 | C47: =Inddata!C32 -> 0 | D47: =Inddata!D32 -> 0 | E47: =Inddata!E32 -> 0 | F47: =Inddata!F32 -> 0 | G47: =Inddata!G32 -> 0 | H47: =Inddata!K32 -> 0 | I47: =G47*Inddata!$E$36*1000 -> 0 | J47: =Inddata!J32 -> 0 | K47: ='E1'!$M40-L47-M47-N47-O47-P47+$K$57 -> 0 | L47: ='E2'!$M40-M47-N47-O47-P47+$L$57 -> 0 | M47: ='E3'!$M40-N47-O47-P47+$M$57 -> 0 | N47: ='E4'!$M40-O47-P47+$N$57 -> 0 | O47: ='E5'!$M40-P47+$O$57 -> 0 | P47: ='E6'!M40+$P$57 -> 0
B48: 27 | C48: =Inddata!C33 -> 0 | D48: =Inddata!D33 -> 0 | E48: =Inddata!E33 -> 0 | F48: =Inddata!F33 -> 0 | G48: =Inddata!G33 -> 0 | H48: =Inddata!K33 -> 0 | I48: =G48*Inddata!$E$36*1000 -> 0 | J48: =Inddata!J33 -> 0 | K48: ='E1'!$M41-L48-M48-N48-O48-P48+$K$57 -> 0 | L48: ='E2'!$M41-M48-N48-O48-P48+$L$57 -> 0 | M48: ='E3'!$M41-N48-O48-P48+$M$57 -> 0 | N48: ='E4'!$M41-O48-P48+$N$57 -> 0 | O48: ='E5'!$M41-P48+$O$57 -> 0 | P48: ='E6'!M41+$P$57 -> 0
B49: 28 | C49: 0 | D49: 0 | E49: 0 | F49: 0.01 | G49: 0.2 | H49: 0.01 | I49: 20 | J49: 6 | K49: ='E1'!$M42-L49-M49-N49-O49-P49 -> 1.549285577e-06 | L49: ='E2'!$M42-M49-N49-O49-P49 -> 1.549285577e-06 | M49: ='E3'!$M42-N49-O49-P49 -> 1.256142745e-06 | N49: ='E4'!$M42-O49-P49 -> 1.256142745e-06 | O49: ='E5'!$M42-P49 -> 1.232691319e-06 | P49: ='E6'!M42 -> 9.278227736e-07 | Q49: =K49^2+L49^2+M49^2+N49^2+O49^2+P49^2 -> 1.033674378e-11
B50: 29 | C50: 0 | D50: 0 | E50: 0.01 | F50: 0 | G50: 0.2 | H50: 0.01 | I50: 20 | J50: 6 | K50: ='E1'!$M43-L50-M50-N50-O50-P50 -> 5.682857784e-07 | L50: ='E2'!$M43-M50-N50-O50-P50 -> 5.682857784e-07 | M50: ='E3'!$M43-N50-O50-P50 -> 4.546286239e-07 | N50: ='E4'!$M43-O50-P50 -> 4.546286239e-07 | O50: ='E5'!$M43-P50 -> 4.455360515e-07 | P50: ='E6'!M43 -> 3.273326109e-07 | Q50: =K50^2+L50^2+M50^2+N50^2+O50^2+P50^2 -> 1.364920834e-12
B51: 30 | C51: 0.01 | D51: 0 | E51: 0 | F51: 0.01 | G51: 0.2 | H51: 0.01 | I51: 20 | J51: 6 | K51: ='E1'!$M44-L51-M51-N51-O51-P51 -> 1.386988656e-06 | L51: ='E2'!$M44-M51-N51-O51-P51 -> 1.386988656e-06 | M51: ='E3'!$M44-N51-O51-P51 -> 1.13322849e-06 | N51: ='E4'!$M44-O51-P51 -> 1.13322849e-06 | O51: ='E5'!$M44-P51 -> 1.112927677e-06 | P51: ='E6'!M44 -> 8.490171037e-07 | Q51: =K51^2+L51^2+M51^2+N51^2+O51^2+P51^2 -> 8.375326741e-12
K55: =$E14^2+$G14^2+L55 -> 52910.49895 | L55: =$E13^2+$G13^2+M55 -> 40688.36035 | M55: =$E12^2+$G12^2+N55 -> 28466.22175 | N55: =$E11^2+$G11^2+O55 -> 20372.24005 | O55: =$E10^2+$G10^2+P55 -> 12278.25835 | P55: =$E9^2+$G9^2 -> 4477.870888
K56: =IF(AND(OR('E1'!Q11<0.075,'E1'!Q10<0.15,'E1'!Q9<0.15),OR(MAX(Inddata!J7:J33)>=1,System!K55<>0))," 1.","") ->  | L56: =IF(AND(OR('E2'!Q11<0.075,'E2'!Q10<0.15,'E2'!Q9<0.15),OR(MAX(Inddata!J7:J33)>=2,System!L55<>0))," 2.","") ->  | M56: =IF(AND(OR('E3'!Q11<0.075,'E3'!Q10<0.15,'E3'!Q9<0.15),OR(MAX(Inddata!J7:J33)>=3,System!M55<>0))," 3.","") ->  | N56: =IF(AND(OR('E4'!Q11<0.075,'E4'!Q10<0.15,'E4'!Q9<0.15),OR(MAX(Inddata!J7:J33)>=4,System!N55<>0))," 4.","") ->  | O56: =IF(AND(OR('E5'!Q11<0.075,'E5'!Q10<0.15,'E5'!Q9<0.15),OR(MAX(Inddata!J7:J33)>=5,System!O55<>0))," 5.","") ->  | P56: =IF(AND(OR('E6'!Q11<0.075,'E6'!Q10<0.15,'E6'!Q9<0.15),OR(MAX(Inddata!J7:J33)>=6,System!P55<>0))," 6.","") -> 
K57: =IF(K56="",0,10^10)+2*L57 -> 0 | L57: =IF(L56="",0,10^10)+2*M57 -> 0 | M57: =IF(M56="",0,10^10)+2*N57 -> 0 | N57: =IF(N56="",0,10^10)+2*O57 -> 0 | O57: =IF(O56="",0,10^10)+2*P57 -> 0 | P57: =IF(P56="",0,10^10) -> 0
S63: 1

Sheet Vægskiver
B2: =System!B2 -> BEF's prøvehus, ULS lastkomb. 6.10b | T2: sag nr. | U2: =System!$N$2 -> 21-101
B3: =System!B3 -> Lasttilfælde 7a, Vind: + W_y og + W_x* (+ imperfektionsbidrag / masselast i vindretning) | T3: =System!N3 -> NNN | U3: ="ref. nr.: "&System!$P$3&" - 1" -> ref. nr.: 7a - 1
B4: ="Bruger: "&Inddata!O2 -> Bruger: Bruger skal registreres
C7: V_i+1 | M7: Lastvirkningerne V_i regnes positive i retningen fra væggens endepunkt
M8: (x1, y1) mod endepunkt (x2, y2)
D10: P1 | F10: p | H10: P2 | M10: For hver etage skal defineres følgende
C11: V_i | M11: p: | N11: stabiliserende linielast på væg excl væggens egenlast
M12: P1: | N12: lodret, last ved endepunkt (x1, y1)
F13: G | M13: P2: | N13: lodret, last ved endepunkt (x2, y2)
D15: (x1,y1) | H15: (x2,y2) | M15: Ved V_i > 0 virker P1 stabiliserende og P2 destabiliserende
M16: Ved V_i < 0 virker P2 stabiliserende og P1 destabiliserende
G17: Q | M17: Ved V_i > 0 overføres trykresultanten N (normalt) over længden b_2
F18: T | G18: N | M18: Ved V_i < 0 overføres trykresultanten N (normalt) over længden b_1
E20: b_1 | G20: b_2 | M20: T er den samlede, nødvendige lodrette trækforbindelse - symmetrisk i kontaktflade
M21: ned mod underliggende væg. Længden af kontaktfladen betegnes L_eff.
A25: *
B26: Væg | F26: Etage | G26: h | H26: t | I26: r_1 | J26: r_2 | K26: L_eff | L26: V_i | M26: Q | N26: G | O26: p | P26: P1 | Q26: P2 | R26: T | S26: N | T26: b_1 | U26: b_2 | V26: n | W26: n_max | AA26: Etager: | AB26: 6 | AP26: Hjørnepunkter i vægopstalt | BZ26: r_1 | CA26: r_2 | CB26: L_eff | CC26: V_i | CD26: Q | CE26: G | CF26: p | CG26: P1 | CH26: P2
B27: 1 | G27: (m) | H27: (m) | I27: (m) | J27: (m) | K27: (m) | L27: (kN) | M27: (kN) | N27: (kN) | O27: (kN/m) | P27: (kN) | Q27: (kN) | R27: (kN) | S27: (kN) | T27: (m) | U27: (m) | V27: (kN/m) | W27: (kN/m) | BZ27: (m) | CA27: (m) | CB27: (m) | CC27: (kN) | CD27: (kN) | CE27: (kN) | CF27: (kN/m) | CG27: (kN) | CH27: (kN)
AA28: s_1 | AB28: s_2 | AC28: x_1 | AD28: y_1 | AE28: x_2 | AF28: y_2 | AG28: cos(a) | AH28: sin(a) | AI28: s_1_e | AJ28: s_2_e | AK28: s_N | AL28: N_0 | AM28: n | AN28: T_1 | AO28: T_2 | AP28: 0 | AQ28: 0 | AR28: =AB35 -> 5.0001 | AS28: =AB35 -> 5.0001 | AT28: =AP28 -> 0 | AU28: =AA34 -> 0 | AV28: =AA34 -> 0 | AW28: =AB34 -> 5.0001 | AX28: =AB34 -> 5.0001 | AY28: =AU28 -> 0 | AZ28: =AA33 -> 0 | BA28: =AA33 -> 0 | BB28: =AB33 -> 5.0001 | BC28: =AB33 -> 5.0001 | BD28: =AZ28 -> 0 | BE28: =AA32 -> 0 | BF28: =AA32 -> 0 | BG28: =AB32 -> 5.0001 | BH28: =AB32 -> 5.0001 | BI28: =BE28 -> 0 | BJ28: =AA31 -> 0 | BK28: =AA31 -> 0 | BL28: =AB31 -> 5.0001 | BM28: =AB31 -> 5.0001 | BN28: =BJ28 -> 0 | BO28: =AA30 -> 0 | BP28: =AA30 -> 0 | BQ28: =AB30 -> 5.0001 | BR28: =AB30 -> 5.0001 | BS28: =BO28 -> 0 | BT28: =BT36 -> 20
F30: 6 | G30: =IF(INDEX(Hovedtal,B27,9)<F30,0,INDEX(Etager,7-F30,2)) -> 3 | H30: =IF(F30>INDEX(Hovedtal,B27,9),0,INDEX(Hovedtal,B27,6)) -> 0.2 | I30: 0 | J30: 0 | K30: =AJ30-AI30 -> 5.0001 | L30: =INDEX(Hovedtal,B27,9+F30) -> 11.79360014 | M30: =L30 -> 11.79360014 | N30: =(AB30-AA30)*H30*G30*g_g*g_e -> 64.801296 | O30: 0 | P30: 0 | Q30: 0 | R30: =IF(AK30>0.5*(AI30+AJ30),AO30,AN30) -> 0 | S30: =AL30+R30 -> 64.801296 | T30: =IF(AK30<=0.5*(AI30+AJ30),IF(AK30>AI30+0.5*AL30/AM30,2*(AK30-AI30),S30/AM30),0) -> 0 | U30: =IF(AK30>0.5*(AI30+AJ30),IF(AK30<AJ30-0.5*AL30/AM30,2*(AJ30-AK30),S30/AM30),0) -> 3.908121827 | V30: =IF(AK30>0.5*(AI30+AJ30),S30/U30,S30/T30) -> 16.58118628 | W30: =INDEX(Hovedtal,B27,8) -> 1200 | X30: =IF(OR(V30>W30,ABS(M30)>0.5*S30),"!","") ->  | AA30: =IF(G30=0,AA31,IF(I30=0,0,I30)) -> 0 | AB30: =IF(G30=0,AB31,IF(J30=0,AB35,AB35-J30)) -> 5.0001 | AC30: =IF(G30=0,0,AC35+AA30*AG35) -> 10 | AD30: =IF(G30=0,0,AD35+AA30*AH35) -> 10 | AE30: =IF(G30=0,0,AC35+AB30*AG35) -> 15 | AF30: =IF(G30=0,0,AD35+AB30*AH35) -> 10 | AI30: =MAX(AA30:AA31) -> 0 | AJ30: =MIN(AB30:AB31) -> 5.0001 | AK30: =IF(G30=0,0.5*(AI30+AJ30),(M30*G30+AA30*P30+0.5*(AA30+AB30)*(N30+(AB30-AA30)*O30)+AB30*Q30)/AL30) -> 3.046039087 | AL30: =N30+O30*(AB30-AA30)+P30+Q30 -> 64.801296 | AM30: =IF(AK30<0.5*(AI30+AJ30),MAX(W30,8*AL30*(0.5*(AJ30+AI30)-AK30)/(AJ30-AI30)^2+0.1),MAX(W30,-8*AL30*(0.5*(AJ30+AI30)-AK30)/(AJ30-AI30)^2+0.1)) -> 1200 | AN30: =IF(AND(AK30<0.5*(AI30+AJ30),AL30/AM30>2*(AK30-AI30)),AM30*(-SQRT((AL30/AM30+0.5*AI30-0.5*AJ30)^2-2*(-AK30*AL30/AM30+0.5*AL30^2/AM30^2+AI30*AL30/AM30))-(AL30/AM30+0.5*AI30-0.5*AJ30)),0) -> 0 | AO30: =IF(AND(AK30>=0.5*(AI30+AJ30),AL30/AM30>2*(AJ30-AK30)),AM30*(-SQRT((AL30/AM30+0.5*AI30-0.5*AJ30)^2-2*(AK30*AL30/AM30+0.5*AL30^2/AM30^2-AJ30*AL30/AM30))-(AL30/AM30+0.5*AI30-0.5*AJ30)),0) -> 0 | BO30: =BL31 -> 16.5 | BP30: =BR30+G30 -> 19.5 | BQ30: =BO30+G30 -> 19.5 | BR30: =BK31 -> 16.5 | BS30: =BO30 -> 16.5 | BZ30: 0 | CA30: 0 | CB30: =DA30-CZ30 -> 0 | CC30: =INDEX(Hovedtal,BS27,9+BW30) -> 0 | CD30: =CC30 -> 0 | CE30: =(CS30-CR30)*BY30*BX30*g_g*g_e -> 0 | CF30: 0 | CG30: 0 | CH30: 0
F31: 5 | G31: =IF(INDEX(Hovedtal,B27,9)<F31,0,INDEX(Etager,7-F31,2)) -> 3 | H31: =IF(F31>INDEX(Hovedtal,B27,9),0,INDEX(Hovedtal,B27,6)) -> 0.2 | I31: 0 | J31: 0 | K31: 5.0001 | L31: =INDEX(Hovedtal,B27,9+F31) -> 16.05240017 | M31: =M30+L31 -> 27.84600031 | N31: 64.801296 | O31: 0 | P31: 0 | Q31: 0 | R31: 0 | S31: 129.602592 | T31: 0 | U31: 3.164970015 | V31: 40.9490742 | W31: =INDEX(Hovedtal,B27,8) -> 1200 | AA31: =IF(G31=0,AA32,IF(I31=0,0,I31)) -> 0 | AB31: =IF(G31=0,AB32,IF(J31=0,AB35,AB35-J31)) -> 5.0001 | AC31: =IF(G31=0,0,AC35+AA31*AG35) -> 10 | AD31: =IF(G31=0,0,AD35+AA31*AH35) -> 10 | AE31: =IF(G31=0,0,AC35+AB31*AG35) -> 15 | AF31: =IF(G31=0,0,AD35+AB31*AH35) -> 10 | AI31: =MAX(AA31:AA32) -> 0 | AJ31: =MIN(AB31:AB32) -> 5.0001 | AK31: =IF(G31=0,0.5*(AI31+AJ31),(M31*G31+AA31*P31+0.5*(AA31+AB31)*(N31+(AB31-AA31)*O31)+AB31*Q31+AK30*AL30)/AL31) -> 3.417614992 | AL31: =AL30+N31+O31*(AB31-AA31)+P31+Q31 -> 129.602592 | AM31: 1200 | AN31: 0 | AO31: 0 | BJ31: =BG32 -> 13.5 | BK31: =BM31+G31 -> 16.5 | BL31: =BJ31+G31 -> 16.5 | BM31: =BF32 -> 13.5 | BN31: =BJ31 -> 13.5 | BZ31: 0 | CA31: 0 | CB31: 0 | CC31: =INDEX(Hovedtal,BS27,9+BW31) -> 0 | CD31: =CD30+CC31 -> 0 | CE31: 0 | CF31: 0 | CG31: 0 | CH31: 0
F32: 4 | G32: =IF(INDEX(Hovedtal,B27,9)<F32,0,INDEX(Etager,7-F32,2)) -> 3 | H32: =IF(F32>INDEX(Hovedtal,B27,9),0,INDEX(Hovedtal,B27,6)) -> 0.2 | I32: 0 | J32: 0 | K32: 5.0001 | L32: =INDEX(Hovedtal,B27,9+F32) -> 16.38000017 | M32: =M31+L32 -> 44.22600048 | N32: 64.801296 | O32: 0 | P32: 0 | Q32: 0 | R32: 0 | S32: 194.403888 | T32: 0 | U32: 2.411707295 | V32: 80.60840899 | W32: =INDEX(Hovedtal,B27,8) -> 1200 | AA32: =IF(G32=0,AA33,IF(I32=0,0,I32)) -> 0 | AB32: =IF(G32=0,AB33,IF(J32=0,AB35,AB35-J32)) -> 5.0001 | AC32: =IF(G32=0,0,AC35+AA32*AG35) -> 10 | AD32: =IF(G32=0,0,AD35+AA32*AH35) -> 10 | AE32: =IF(G32=0,0,AC35+AB32*AG35) -> 15 | AF32: =IF(G32=0,0,AD35+AB32*AH35) -> 10 | AI32: =MAX(AA32:AA33) -> 0 | AJ32: =MIN(AB32:AB33) -> 5.0001 | AK32: =IF(G32=0,0.5*(AI32+AJ32),(M32*G32+AA32*P32+0.5*(AA32+AB32)*(N32+(AB32-AA32)*O32)+AB32*Q32+AK31*AL31)/AL32) -> 3.794246353 | AL32: =AL31+N32+O32*(AB32-AA32)+P32+Q32 -> 194.403888 | AM32: 1200 | AN32: 0 | AO32: 0 | BE32: =BB33 -> 10.5 | BF32: =BH32+G32 -> 13.5 | BG32: =BE32+G32 -> 13.5 | BH32: =BA33 -> 10.5 | BI32: =BE32 -> 10.5 | BZ32: 0 | CA32: 0 | CB32: 0 | CC32: =INDEX(Hovedtal,BS27,9+BW32) -> 0 | CD32: =CD31+CC32 -> 0 | CE32: 0 | CF32: 0 | CG32: 0 | CH32: 0
F33: 3 | G33: =IF(INDEX(Hovedtal,B27,9)<F33,0,INDEX(Etager,7-F33,2)) -> 3 | H33: =IF(F33>INDEX(Hovedtal,B27,9),0,INDEX(Hovedtal,B27,6)) -> 0.2 | I33: 0 | J33: 0 | K33: 5.0001 | L33: =INDEX(Hovedtal,B27,9+F33) -> 16.38000017 | M33: =M32+L33 -> 60.60600065 | N33: 64.801296 | O33: 0 | P33: 0 | Q33: 0 | R33: 0 | S33: 259.205184 | T33: 0 | U33: 1.655916847 | V33: 156.5327296 | W33: =INDEX(Hovedtal,B27,8) -> 1200 | AA33: =IF(G33=0,AA34,IF(I33=0,0,I33)) -> 0 | AB33: =IF(G33=0,AB34,IF(J33=0,AB35,AB35-J33)) -> 5.0001 | AC33: =IF(G33=0,0,AC35+AA33*AG35) -> 10 | AD33: =IF(G33=0,0,AD35+AA33*AH35) -> 10 | AE33: =IF(G33=0,0,AC35+AB33*AG35) -> 15 | AF33: =IF(G33=0,0,AD35+AB33*AH35) -> 10 | AI33: =MAX(AA33:AA34) -> 0 | AJ33: =MIN(AB33:AB34) -> 5.0001 | AK33: =IF(G33=0,0.5*(AI33+AJ33),(M33*G33+AA33*P33+0.5*(AA33+AB33)*(N33+(AB33-AA33)*O33)+AB33*Q33+AK32*AL32)/AL33) -> 4.172141576 | AL33: =AL32+N33+O33*(AB33-AA33)+P33+Q33 -> 259.205184 | AM33: 1200 | AN33: 0 | AO33: 0 | AZ33: =AW34 -> 7.5 | BA33: =BC33+G33 -> 10.5 | BB33: =AZ33+G33 -> 10.5 | BC33: =AV34 -> 7.5 | BD33: =AZ33 -> 7.5 | BZ33: 0 | CA33: 0 | CB33: 0 | CC33: =INDEX(Hovedtal,BS27,9+BW33) -> 0 | CD33: =CD32+CC33 -> 0 | CE33: 0 | CF33: 0 | CG33: 0 | CH33: 0
F34: 2 | G34: =IF(INDEX(Hovedtal,B27,9)<F34,0,INDEX(Etager,7-F34,2)) -> 4.5 | H34: =IF(F34>INDEX(Hovedtal,B27,9),0,INDEX(Hovedtal,B27,6)) -> 0.2 | I34: 0 | J34: 0 | K34: 5.0001 | L34: =INDEX(Hovedtal,B27,9+F34) -> 20.47500021 | M34: =M33+L34 -> 81.08100086 | N34: 97.201944 | O34: 0 | P34: 0 | Q34: 0 | R34: 0 | S34: 356.407128 | T34: 0 | U34: 0.5205077254 | V34: 684.7297564 | W34: =INDEX(Hovedtal,B27,8) -> 1200 | AA34: =IF(G34=0,AA35,IF(I34=0,0,I34)) -> 0 | AB34: =IF(G34=0,AB35,IF(J34=0,AB35,AB35-J34)) -> 5.0001 | AC34: =IF(G34=0,0,AC35+AA34*AG35) -> 10 | AD34: =IF(G34=0,0,AD35+AA34*AH35) -> 10 | AE34: =IF(G34=0,0,AC35+AB34*AG35) -> 15 | AF34: =IF(G34=0,0,AD35+AB34*AH35) -> 10 | AI34: =MAX(AA34:AA35) -> 0 | AJ34: =MIN(AB34:AB35) -> 5.0001 | AK34: =IF(G34=0,0.5*(AI34+AJ34),(M34*G34+AA34*P34+0.5*(AA34+AB34)*(N34+(AB34-AA34)*O34)+AB34*Q34+AK33*AL33)/AL34) -> 4.739846137 | AL34: =AL33+N34+O34*(AB34-AA34)+P34+Q34 -> 356.407128 | AM34: 1200 | AN34: 0 | AO34: 0 | AU34: =AR35 -> 3 | AV34: =AX34+G34 -> 7.5 | AW34: =AU34+G34 -> 7.5 | AX34: =AQ35 -> 3 | AY34: =AU34 -> 3 | BZ34: 0 | CA34: 0 | CB34: 0 | CC34: =INDEX(Hovedtal,BS27,9+BW34) -> 0 | CD34: =CD33+CC34 -> 0 | CE34: 0 | CF34: 0 | CG34: 0 | CH34: 0
F35: 1 | G35: =IF(INDEX(Hovedtal,B27,9)<F35,0,INDEX(Etager,7-F35,2)) -> 3 | H35: =IF(F35>INDEX(Hovedtal,B27,9),0,INDEX(Hovedtal,B27,6)) -> 0.2 | K35: 5.0001 | L35: =INDEX(Hovedtal,B27,9+F35) -> 20.47500021 | M35: =M34+L35 -> 101.5560011 | N35: 64.801296 | O35: 0 | P35: 0 | Q35: 0 | R35: 58.27893168 | S35: 479.4873557 | T35: 0 | U35: 0.3995727964 | V35: 1200 | W35: =INDEX(Hovedtal,B27,8) -> 1200 | AA35: 0 | AB35: =SQRT((AE35-AC35)^2+(AF35-AD35)^2)+0.0001 -> 5.0001 | AC35: =INDEX(Hovedtal,B27,2) -> 10 | AD35: =INDEX(Hovedtal,B27,3) -> 10 | AE35: =INDEX(Hovedtal,B27,4) -> 15 | AF35: =INDEX(Hovedtal,B27,5) -> 10 | AG35: =(AE35-AC35)/AB35 -> 0.9999800004 | AH35: =(AF35-AD35)/AB35 -> 0 | AI35: =AA35 -> 0 | AJ35: =AB35 -> 5.0001 | AK35: =IF(G35=0,0.5*(AI35+AJ35),(M35*G35+AA35*P35+0.5*(AA35+AB35)*(N35+(AB35-AA35)*O35)+AB35*Q35+AK34*AL34)/AL35) -> 5.118580991 | AL35: =AL34+N35+O35*(AB35-AA35)+P35+Q35 -> 421.208424 | AM35: 1200 | AN35: 0 | AO35: 58.27893168 | AP35: 0 | AQ35: =G35 -> 3 | AR35: =G35 -> 3 | AS35: 0 | AT35: =AP35 -> 0 | CB35: 0 | CC35: =INDEX(Hovedtal,BS27,9+BW35) -> 0 | CD35: =CD34+CC35 -> 0 | CE35: 0 | CF35: 0 | CG35: 0 | CH35: 0
A36: * | BT36: =MAX(AP28:BS35)+0.5 -> 20
B38: Væg | F38: Etage | G38: h | H38: t | I38: r_1 | J38: r_2 | K38: L_eff | L38: V_i | M38: Q | N38: G | O38: p | P38: P1 | Q38: P2 | R38: T | S38: N | T38: b_1 | U38: b_2 | V38: n | W38: n_max | AA38: Etager: | AB38: 6 | AP38: Hjørnepunkter i vægopstalt | BZ38: r_1 | CA38: r_2 | CB38: L_eff | CC38: V_i | CD38: Q | CE38: G | CF38: p | CG38: P1 | CH38: P2
B39: =B27+1 -> 2 | G39: (m) | H39: (m) | I39: (m) | J39: (m) | K39: (m) | L39: (kN) | M39: (kN) | N39: (kN) | O39: (kN/m) | P39: (kN) | Q39: (kN) | R39: (kN) | S39: (kN) | T39: (m) | U39: (m) | V39: (kN/m) | W39: (kN/m) | BZ39: (m) | CA39: (m) | CB39: (m) | CC39: (kN) | CD39: (kN) | CE39: (kN) | CF39: (kN/m) | CG39: (kN) | CH39: (kN)
AA40: s_1 | AB40: s_2 | AC40: x_1 | AD40: y_1 | AE40: x_2 | AF40: y_2 | AG40: cos(a) | AH40: sin(a) | AI40: s_1_e | AJ40: s_2_e | AK40: s_N | AL40: N_0 | AM40: n | AN40: T_1 | AO40: T_2 | AP40: 0 | AQ40: 0 | AR40: =AB47 -> 5.0001 | AS40: =AB47 -> 5.0001 | AT40: =AP40 -> 0 | AU40: =AA46 -> 0 | AV40: =AA46 -> 0 | AW40: =AB46 -> 5.0001 | AX40: =AB46 -> 5.0001 | AY40: =AU40 -> 0 | AZ40: =AA45 -> 0 | BA40: =AA45 -> 0 | BB40: =AB45 -> 5.0001 | BC40: =AB45 -> 5.0001 | BD40: =AZ40 -> 0 | BE40: =AA44 -> 0 | BF40: =AA44 -> 0 | BG40: =AB44 -> 5.0001 | BH40: =AB44 -> 5.0001 | BI40: =BE40 -> 0 | BJ40: =AA43 -> 0 | BK40: =AA43 -> 0 | BL40: =AB43 -> 5.0001 | BM40: =AB43 -> 5.0001 | BN40: =BJ40 -> 0 | BO40: =AA42 -> 0 | BP40: =AA42 -> 0 | BQ40: =AB42 -> 5.0001 | BR40: =AB42 -> 5.0001 | BS40: =BO40 -> 0 | BT40: =BT48 -> 20
F42: 6 | G42: =IF(INDEX(Hovedtal,B39,9)<F42,0,INDEX(Etager,7-F42,2)) -> 3 | H42: =IF(F42>INDEX(Hovedtal,B39,9),0,INDEX(Hovedtal,B39,6)) -> 0.2 | I42: 0 | J42: 0 | K42: =AJ42-AI42 -> 5.0001 | L42: =INDEX(Hovedtal,B39,9+F42) -> 11.79360014 | M42: =L42 -> 11.79360014 | N42: =(AB42-AA42)*H42*G42*g_g*g_e -> 64.801296 | O42: 0 | P42: 0 | Q42: 0 | R42: =IF(AK42>0.5*(AI42+AJ42),AO42,AN42) -> 0 | S42: =AL42+R42 -> 64.801296 | T42: =IF(AK42<=0.5*(AI42+AJ42),IF(AK42>AI42+0.5*AL42/AM42,2*(AK42-AI42),S42/AM42),0) -> 0 | U42: =IF(AK42>0.5*(AI42+AJ42),IF(AK42<AJ42-0.5*AL42/AM42,2*(AJ42-AK42),S42/AM42),0) -> 3.908121827 | V42: =IF(AK42>0.5*(AI42+AJ42),S42/U42,S42/T42) -> 16.58118628 | W42: =INDEX(Hovedtal,B39,8) -> 1200 | X42: =IF(OR(V42>W42,ABS(M42)>0.5*S42),"!","") ->  | AA42: =IF(G42=0,AA43,IF(I42=0,0,I42)) -> 0 | AB42: =IF(G42=0,AB43,IF(J42=0,AB47,AB47-J42)) -> 5.0001 | AC42: =IF(G42=0,0,AC47+AA42*AG47) -> 25 | AD42: =IF(G42=0,0,AD47+AA42*AH47) -> 10 | AE42: =IF(G42=0,0,AC47+AB42*AG47) -> 30 | AF42: =IF(G42=0,0,AD47+AB42*AH47) -> 10 | AI42: =MAX(AA42:AA43) -> 0 | AJ42: =MIN(AB42:AB43) -> 5.0001 | AK42: =IF(G42=0,0.5*(AI42+AJ42),(M42*G42+AA42*P42+0.5*(AA42+AB42)*(N42+(AB42-AA42)*O42)+AB42*Q42)/AL42) -> 3.046039087 | AL42: =N42+O42*(AB42-AA42)+P42+Q42 -> 64.801296 | AM42: =IF(AK42<0.5*(AI42+AJ42),MAX(W42,8*AL42*(0.5*(AJ42+AI42)-AK42)/(AJ42-AI42)^2+0.1),MAX(W42,-8*AL42*(0.5*(AJ42+AI42)-AK42)/(AJ42-AI42)^2+0.1)) -> 1200 | AN42: =IF(AND(AK42<0.5*(AI42+AJ42),AL42/AM42>2*(AK42-AI42)),AM42*(-SQRT((AL42/AM42+0.5*AI42-0.5*AJ42)^2-2*(-AK42*AL42/AM42+0.5*AL42^2/AM42^2+AI42*AL42/AM42))-(AL42/AM42+0.5*AI42-0.5*AJ42)),0) -> 0 | AO42: =IF(AND(AK42>=0.5*(AI42+AJ42),AL42/AM42>2*(AJ42-AK42)),AM42*(-SQRT((AL42/AM42+0.5*AI42-0.5*AJ42)^2-2*(AK42*AL42/AM42+0.5*AL42^2/AM42^2-AJ42*AL42/AM42))-(AL42/AM42+0.5*AI42-0.5*AJ42)),0) -> 0 | BO42: =BL43 -> 16.5 | BP42: =BR42+G42 -> 19.5 | BQ42: =BO42+G42 -> 19.5 | BR42: =BK43 -> 16.5 | BS42: =BO42 -> 16.5 | BZ42: 0 | CA42: 0 | CB42: =DA42-CZ42 -> 0 | CC42: =INDEX(Hovedtal,BS39,9+BW42) -> 0 | CD42: =CC42 -> 0 | CE42: =(CS42-CR42)*BY42*BX42*g_g*g_e -> 0 | CF42: 0 | CG42: 0 | CH42: 0
F43: 5 | G43: =IF(INDEX(Hovedtal,B39,9)<F43,0,INDEX(Etager,7-F43,2)) -> 3 | H43: =IF(F43>INDEX(Hovedtal,B39,9),0,INDEX(Hovedtal,B39,6)) -> 0.2 | I43: 0 | J43: 0 | K43: 5.0001 | L43: =INDEX(Hovedtal,B39,9+F43) -> 16.05240017 | M43: =M42+L43 -> 27.84600031 | N43: 64.801296 | O43: 0 | P43: 0 | Q43: 0 | R43: 0 | S43: 129.602592 | T43: 0 | U43: 3.164970015 | V43: 40.9490742 | W43: =INDEX(Hovedtal,B39,8) -> 1200 | AA43: =IF(G43=0,AA44,IF(I43=0,0,I43)) -> 0 | AB43: =IF(G43=0,AB44,IF(J43=0,AB47,AB47-J43)) -> 5.0001 | AC43: =IF(G43=0,0,AC47+AA43*AG47) -> 25 | AD43: =IF(G43=0,0,AD47+AA43*AH47) -> 10 | AE43: =IF(G43=0,0,AC47+AB43*AG47) -> 30 | AF43: =IF(G43=0,0,AD47+AB43*AH47) -> 10 | AI43: =MAX(AA43:AA44) -> 0 | AJ43: =MIN(AB43:AB44) -> 5.0001 | AK43: =IF(G43=0,0.5*(AI43+AJ43),(M43*G43+AA43*P43+0.5*(AA43+AB43)*(N43+(AB43-AA43)*O43)+AB43*Q43+AK42*AL42)/AL43) -> 3.417614992 | AL43: =AL42+N43+O43*(AB43-AA43)+P43+Q43 -> 129.602592 | AM43: 1200 | AN43: 0 | AO43: 0 | BJ43: =BG44 -> 13.5 | BK43: =BM43+G43 -> 16.5 | BL43: =BJ43+G43 -> 16.5 | BM43: =BF44 -> 13.5 | BN43: =BJ43 -> 13.5 | BZ43: 0 | CA43: 0 | CB43: 0 | CC43: =INDEX(Hovedtal,BS39,9+BW43) -> 0 | CD43: =CD42+CC43 -> 0 | CE43: 0 | CF43: 0 | CG43: 0 | CH43: 0
F44: 4 | G44: =IF(INDEX(Hovedtal,B39,9)<F44,0,INDEX(Etager,7-F44,2)) -> 3 | H44: =IF(F44>INDEX(Hovedtal,B39,9),0,INDEX(Hovedtal,B39,6)) -> 0.2 | I44: 0 | J44: 0 | K44: 5.0001 | L44: =INDEX(Hovedtal,B39,9+F44) -> 16.38000017 | M44: =M43+L44 -> 44.22600048 | N44: 64.801296 | O44: 0 | P44: 0 | Q44: 0 | R44: 0 | S44: 194.403888 | T44: 0 | U44: 2.411707295 | V44: 80.60840899 | W44: =INDEX(Hovedtal,B39,8) -> 1200 | AA44: =IF(G44=0,AA45,IF(I44=0,0,I44)) -> 0 | AB44: =IF(G44=0,AB45,IF(J44=0,AB47,AB47-J44)) -> 5.0001 | AC44: =IF(G44=0,0,AC47+AA44*AG47) -> 25 | AD44: =IF(G44=0,0,AD47+AA44*AH47) -> 10 | AE44: =IF(G44=0,0,AC47+AB44*AG47) -> 30 | AF44: =IF(G44=0,0,AD47+AB44*AH47) -> 10 | AI44: =MAX(AA44:AA45) -> 0 | AJ44: =MIN(AB44:AB45) -> 5.0001 | AK44: =IF(G44=0,0.5*(AI44+AJ44),(M44*G44+AA44*P44+0.5*(AA44+AB44)*(N44+(AB44-AA44)*O44)+AB44*Q44+AK43*AL43)/AL44) -> 3.794246353 | AL44: =AL43+N44+O44*(AB44-AA44)+P44+Q44 -> 194.403888 | AM44: 1200 | AN44: 0 | AO44: 0 | BE44: =BB45 -> 10.5 | BF44: =BH44+G44 -> 13.5 | BG44: =BE44+G44 -> 13.5 | BH44: =BA45 -> 10.5 | BI44: =BE44 -> 10.5 | BZ44: 0 | CA44: 0 | CB44: 0 | CC44: =INDEX(Hovedtal,BS39,9+BW44) -> 0 | CD44: =CD43+CC44 -> 0 | CE44: 0 | CF44: 0 | CG44: 0 | CH44: 0
F45: 3 | G45: =IF(INDEX(Hovedtal,B39,9)<F45,0,INDEX(Etager,7-F45,2)) -> 3 | H45: =IF(F45>INDEX(Hovedtal,B39,9),0,INDEX(Hovedtal,B39,6)) -> 0.2 | I45: 0 | J45: 0 | K45: 5.0001 | L45: =INDEX(Hovedtal,B39,9+F45) -> 16.38000017 | M45: =M44+L45 -> 60.60600065 | N45: 64.801296 | O45: 0 | P45: 0 | Q45: 0 | R45: 0 | S45: 259.205184 | T45: 0 | U45: 1.655916847 | V45: 156.5327296 | W45: =INDEX(Hovedtal,B39,8) -> 1200 | AA45: =IF(G45=0,AA46,IF(I45=0,0,I45)) -> 0 | AB45: =IF(G45=0,AB46,IF(J45=0,AB47,AB47-J45)) -> 5.0001 | AC45: =IF(G45=0,0,AC47+AA45*AG47) -> 25 | AD45: =IF(G45=0,0,AD47+AA45*AH47) -> 10 | AE45: =IF(G45=0,0,AC47+AB45*AG47) -> 30 | AF45: =IF(G45=0,0,AD47+AB45*AH47) -> 10 | AI45: =MAX(AA45:AA46) -> 0 | AJ45: =MIN(AB45:AB46) -> 5.0001 | AK45: =IF(G45=0,0.5*(AI45+AJ45),(M45*G45+AA45*P45+0.5*(AA45+AB45)*(N45+(AB45-AA45)*O45)+AB45*Q45+AK44*AL44)/AL45) -> 4.172141576 | AL45: =AL44+N45+O45*(AB45-AA45)+P45+Q45 -> 259.205184 | AM45: 1200 | AN45: 0 | AO45: 0 | AZ45: =AW46 -> 7.5 | BA45: =BC45+G45 -> 10.5 | BB45: =AZ45+G45 -> 10.5 | BC45: =AV46 -> 7.5 | BD45: =AZ45 -> 7.5 | BZ45: 0 | CA45: 0 | CB45: 0 | CC45: =INDEX(Hovedtal,BS39,9+BW45) -> 0 | CD45: =CD44+CC45 -> 0 | CE45: 0 | CF45: 0 | CG45: 0 | CH45: 0
F46: 2 | G46: =IF(INDEX(Hovedtal,B39,9)<F46,0,INDEX(Etager,7-F46,2)) -> 4.5 | H46: =IF(F46>INDEX(Hovedtal,B39,9),0,INDEX(Hovedtal,B39,6)) -> 0.2 | I46: 0 | J46: 0 | K46: 5.0001 | L46: =INDEX(Hovedtal,B39,9+F46) -> 20.47500021 | M46: =M45+L46 -> 81.08100086 | N46: 97.201944 | O46: 0 | P46: 0 | Q46: 0 | R46: 0 | S46: 356.407128 | T46: 0 | U46: 0.5205077254 | V46: 684.7297564 | W46: =INDEX(Hovedtal,B39,8) -> 1200 | AA46: =IF(G46=0,AA47,IF(I46=0,0,I46)) -> 0 | AB46: =IF(G46=0,AB47,IF(J46=0,AB47,AB47-J46)) -> 5.0001 | AC46: =IF(G46=0,0,AC47+AA46*AG47) -> 25 | AD46: =IF(G46=0,0,AD47+AA46*AH47) -> 10 | AE46: =IF(G46=0,0,AC47+AB46*AG47) -> 30 | AF46: =IF(G46=0,0,AD47+AB46*AH47) -> 10 | AI46: =MAX(AA46:AA47) -> 0 | AJ46: =MIN(AB46:AB47) -> 5.0001 | AK46: =IF(G46=0,0.5*(AI46+AJ46),(M46*G46+AA46*P46+0.5*(AA46+AB46)*(N46+(AB46-AA46)*O46)+AB46*Q46+AK45*AL45)/AL46) -> 4.739846137 | AL46: =AL45+N46+O46*(AB46-AA46)+P46+Q46 -> 356.407128 | AM46: 1200 | AN46: 0 | AO46: 0 | AU46: =AR47 -> 3 | AV46: =AX46+G46 -> 7.5 | AW46: =AU46+G46 -> 7.5 | AX46: =AQ47 -> 3 | AY46: =AU46 -> 3 | BZ46: 0 | CA46: 0 | CB46: 0 | CC46: =INDEX(Hovedtal,BS39,9+BW46) -> 0 | CD46: =CD45+CC46 -> 0 | CE46: 0 | CF46: 0 | CG46: 0 | CH46: 0
F47: 1 | G47: =IF(INDEX(Hovedtal,B39,9)<F47,0,INDEX(Etager,7-F47,2)) -> 3 | H47: =IF(F47>INDEX(Hovedtal,B39,9),0,INDEX(Hovedtal,B39,6)) -> 0.2 | K47: 5.0001 | L47: =INDEX(Hovedtal,B39,9+F47) -> 20.47500021 | M47: =M46+L47 -> 101.5560011 | N47: 64.801296 | O47: 0 | P47: 0 | Q47: 0 | R47: 58.27893168 | S47: 479.4873557 | T47: 0 | U47: 0.3995727964 | V47: 1200 | W47: =INDEX(Hovedtal,B39,8) -> 1200 | AA47: 0 | AB47: =SQRT((AE47-AC47)^2+(AF47-AD47)^2)+0.0001 -> 5.0001 | AC47: =INDEX(Hovedtal,B39,2) -> 25 | AD47: =INDEX(Hovedtal,B39,3) -> 10 | AE47: =INDEX(Hovedtal,B39,4) -> 30 | AF47: =INDEX(Hovedtal,B39,5) -> 10 | AG47: =(AE47-AC47)/AB47 -> 0.9999800004 | AH47: =(AF47-AD47)/AB47 -> 0 | AI47: =AA47 -> 0 | AJ47: =AB47 -> 5.0001 | AK47: =IF(G47=0,0.5*(AI47+AJ47),(M47*G47+AA47*P47+0.5*(AA47+AB47)*(N47+(AB47-AA47)*O47)+AB47*Q47+AK46*AL46)/AL47) -> 5.118580991 | AL47: =AL46+N47+O47*(AB47-AA47)+P47+Q47 -> 421.208424 | AM47: 1200 | AN47: 0 | AO47: 58.27893168 | AP47: 0 | AQ47: =G47 -> 3 | AR47: =G47 -> 3 | AS47: 0 | AT47: =AP47 -> 0 | CB47: 0 | CC47: =INDEX(Hovedtal,BS39,9+BW47) -> 0 | CD47: =CD46+CC47 -> 0 | CE47: 0 | CF47: 0 | CG47: 0 | CH47: 0
A48: * | BT48: =MAX(AP40:BS47)+0.5 -> 20
B50: Væg | F50: Etage | G50: h | H50: t | I50: r_1 | J50: r_2 | K50: L_eff | L50: V_i | M50: Q | N50: G | O50: p | P50: P1 | Q50: P2 | R50: T | S50: N | T50: b_1 | U50: b_2 | V50: n | W50: n_max | AA50: Etager: | AB50: 6 | AP50: Hjørnepunkter i vægopstalt | BZ50: r_1 | CA50: r_2 | CB50: L_eff | CC50: V_i | CD50: Q | CE50: G | CF50: p | CG50: P1 | CH50: P2
B51: =B39+1 -> 3 | G51: (m) | H51: (m) | I51: (m) | J51: (m) | K51: (m) | L51: (kN) | M51: (kN) | N51: (kN) | O51: (kN/m) | P51: (kN) | Q51: (kN) | R51: (kN) | S51: (kN) | T51: (m) | U51: (m) | V51: (kN/m) | W51: (kN/m) | BZ51: (m) | CA51: (m) | CB51: (m) | CC51: (kN) | CD51: (kN) | CE51: (kN) | CF51: (kN/m) | CG51: (kN) | CH51: (kN)
AA52: s_1 | AB52: s_2 | AC52: x_1 | AD52: y_1 | AE52: x_2 | AF52: y_2 | AG52: cos(a) | AH52: sin(a) | AI52: s_1_e | AJ52: s_2_e | AK52: s_N | AL52: N_0 | AM52: n | AN52: T_1 | AO52: T_2 | AP52: 0 | AQ52: 0 | AR52: =AB59 -> 7.0001 | AS52: =AB59 -> 7.0001 | AT52: =AP52 -> 0 | AU52: =AA58 -> 0 | AV52: =AA58 -> 0 | AW52: =AB58 -> 7.0001 | AX52: =AB58 -> 7.0001 | AY52: =AU52 -> 0 | AZ52: =AA57 -> 0 | BA52: =AA57 -> 0 | BB52: =AB57 -> 7.0001 | BC52: =AB57 -> 7.0001 | BD52: =AZ52 -> 0 | BE52: =AA56 -> 0 | BF52: =AA56 -> 0 | BG52: =AB56 -> 7.0001 | BH52: =AB56 -> 7.0001 | BI52: =BE52 -> 0 | BJ52: =AA55 -> 0 | BK52: =AA55 -> 0 | BL52: =AB55 -> 7.0001 | BM52: =AB55 -> 7.0001 | BN52: =BJ52 -> 0 | BO52: =AA54 -> 0 | BP52: =AA54 -> 0 | BQ52: =AB54 -> 7.0001 | BR52: =AB54 -> 7.0001 | BS52: =BO52 -> 0 | BT52: =BT60 -> 20
F54: 6 | G54: =IF(INDEX(Hovedtal,B51,9)<F54,0,INDEX(Etager,7-F54,2)) -> 3 | H54: =IF(F54>INDEX(Hovedtal,B51,9),0,INDEX(Hovedtal,B51,6)) -> 0.2 | I54: 0 | J54: 0 | K54: =AJ54-AI54 -> 7.0001 | L54: =INDEX(Hovedtal,B51,9+F54) -> 38.38715757 | M54: =L54 -> 38.38715757 | N54: =(AB54-AA54)*H54*G54*g_g*g_e -> 90.721296 | O54: 0 | P54: 0 | Q54: 0 | R54: =IF(AK54>0.5*(AI54+AJ54),AO54,AN54) -> 0 | S54: =AL54+R54 -> 90.721296 | T54: =IF(AK54<=0.5*(AI54+AJ54),IF(AK54>AI54+0.5*AL54/AM54,2*(AK54-AI54),S54/AM54),0) -> 0 | U54: =IF(AK54>0.5*(AI54+AJ54),IF(AK54<AJ54-0.5*AL54/AM54,2*(AJ54-AK54),S54/AM54),0) -> 4.461303096 | V54: =IF(AK54>0.5*(AI54+AJ54),S54/U54,S54/T54) -> 20.33515635 | W54: =INDEX(Hovedtal,B51,8) -> 1200 | X54: =IF(OR(V54>W54,ABS(M54)>0.5*S54),"!","") ->  | AA54: =IF(G54=0,AA55,IF(I54=0,0,I54)) -> 0 | AB54: =IF(G54=0,AB55,IF(J54=0,AB59,AB59-J54)) -> 7.0001 | AC54: =IF(G54=0,0,AC59+AA54*AG59) -> 10 | AD54: =IF(G54=0,0,AD59+AA54*AH59) -> 15 | AE54: =IF(G54=0,0,AC59+AB54*AG59) -> 10 | AF54: =IF(G54=0,0,AD59+AB54*AH59) -> 22 | AI54: =MAX(AA54:AA55) -> 0 | AJ54: =MIN(AB54:AB55) -> 7.0001 | AK54: =IF(G54=0,0.5*(AI54+AJ54),(M54*G54+AA54*P54+0.5*(AA54+AB54)*(N54+(AB54-AA54)*O54)+AB54*Q54)/AL54) -> 4.769448452 | AL54: =N54+O54*(AB54-AA54)+P54+Q54 -> 90.721296 | AM54: =IF(AK54<0.5*(AI54+AJ54),MAX(W54,8*AL54*(0.5*(AJ54+AI54)-AK54)/(AJ54-AI54)^2+0.1),MAX(W54,-8*AL54*(0.5*(AJ54+AI54)-AK54)/(AJ54-AI54)^2+0.1)) -> 1200 | AN54: =IF(AND(AK54<0.5*(AI54+AJ54),AL54/AM54>2*(AK54-AI54)),AM54*(-SQRT((AL54/AM54+0.5*AI54-0.5*AJ54)^2-2*(-AK54*AL54/AM54+0.5*AL54^2/AM54^2+AI54*AL54/AM54))-(AL54/AM54+0.5*AI54-0.5*AJ54)),0) -> 0 | AO54: =IF(AND(AK54>=0.5*(AI54+AJ54),AL54/AM54>2*(AJ54-AK54)),AM54*(-SQRT((AL54/AM54+0.5*AI54-0.5*AJ54)^2-2*(AK54*AL54/AM54+0.5*AL54^2/AM54^2-AJ54*AL54/AM54))-(AL54/AM54+0.5*AI54-0.5*AJ54)),0) -> 0 | BO54: =BL55 -> 16.5 | BP54: =BR54+G54 -> 19.5 | BQ54: =BO54+G54 -> 19.5 | BR54: =BK55 -> 16.5 | BS54: =BO54 -> 16.5 | BZ54: 0 | CA54: 0 | CB54: =DA54-CZ54 -> 0 | CC54: =INDEX(Hovedtal,BS51,9+BW54) ->  | CD54: =CC54 ->  | CE54: =(CS54-CR54)*BY54*BX54*g_g*g_e -> 0 | CF54: 0 | CG54: 0 | CH54: 0
F55: 5 | G55: =IF(INDEX(Hovedtal,B51,9)<F55,0,INDEX(Etager,7-F55,2)) -> 3 | H55: =IF(F55>INDEX(Hovedtal,B51,9),0,INDEX(Hovedtal,B51,6)) -> 0.2 | I55: 0 | J55: 0 | K55: 7.0001 | L55: =INDEX(Hovedtal,B51,9+F55) -> 50.7704368 | M55: =M54+L55 -> 89.15759437 | N55: 90.721296 | O55: 0 | P55: 0 | Q55: 0 | R55: 0 | S55: 181.442592 | T55: 0 | U55: 2.782410519 | V55: 65.21057578 | W55: =INDEX(Hovedtal,B51,8) -> 1200 | AA55: =IF(G55=0,AA56,IF(I55=0,0,I55)) -> 0 | AB55: =IF(G55=0,AB56,IF(J55=0,AB59,AB59-J55)) -> 7.0001 | AC55: =IF(G55=0,0,AC59+AA55*AG59) -> 10 | AD55: =IF(G55=0,0,AD59+AA55*AH59) -> 15 | AE55: =IF(G55=0,0,AC59+AB55*AG59) -> 10 | AF55: =IF(G55=0,0,AD59+AB55*AH59) -> 22 | AI55: =MAX(AA55:AA56) -> 0 | AJ55: =MIN(AB55:AB56) -> 7.0001 | AK55: =IF(G55=0,0.5*(AI55+AJ55),(M55*G55+AA55*P55+0.5*(AA55+AB55)*(N55+(AB55-AA55)*O55)+AB55*Q55+AK54*AL54)/AL55) -> 5.60889474 | AL55: =AL54+N55+O55*(AB55-AA55)+P55+Q55 -> 181.442592 | AM55: 1200 | AN55: 0 | AO55: 0 | BJ55: =BG56 -> 13.5 | BK55: =BM55+G55 -> 16.5 | BL55: =BJ55+G55 -> 16.5 | BM55: =BF56 -> 13.5 | BN55: =BJ55 -> 13.5 | BZ55: 0 | CA55: 0 | CB55: 0 | CC55: =INDEX(Hovedtal,BS51,9+BW55) ->  | CD55: =CD54+CC55 ->  | CE55: 0 | CF55: 0 | CG55: 0 | CH55: 0
F56: 4 | G56: =IF(INDEX(Hovedtal,B51,9)<F56,0,INDEX(Etager,7-F56,2)) -> 3 | H56: =IF(F56>INDEX(Hovedtal,B51,9),0,INDEX(Hovedtal,B51,6)) -> 0.2 | I56: 0 | J56: 0 | K56: 7.0001 | L56: =INDEX(Hovedtal,B51,9+F56) -> 51.72299674 | M56: =M55+L56 -> 140.8805911 | N56: 90.721296 | O56: 0 | P56: 0 | Q56: 0 | R56: 0 | S56: 272.163888 | T56: 0 | U56: 1.082518244 | V56: 251.4173683 | W56: =INDEX(Hovedtal,B51,8) -> 1200 | X56: ! | AA56: =IF(G56=0,AA57,IF(I56=0,0,I56)) -> 0 | AB56: =IF(G56=0,AB57,IF(J56=0,AB59,AB59-J56)) -> 7.0001 | AC56: =IF(G56=0,0,AC59+AA56*AG59) -> 10 | AD56: =IF(G56=0,0,AD59+AA56*AH59) -> 15 | AE56: =IF(G56=0,0,AC59+AB56*AG59) -> 10 | AF56: =IF(G56=0,0,AD59+AB56*AH59) -> 22 | AI56: =MAX(AA56:AA57) -> 0 | AJ56: =MIN(AB56:AB57) -> 7.0001 | AK56: =IF(G56=0,0.5*(AI56+AJ56),(M56*G56+AA56*P56+0.5*(AA56+AB56)*(N56+(AB56-AA56)*O56)+AB56*Q56+AK55*AL55)/AL56) -> 6.458840878 | AL56: =AL55+N56+O56*(AB56-AA56)+P56+Q56 -> 272.163888 | AM56: 1200 | AN56: 0 | AO56: 0 | BE56: =BB57 -> 10.5 | BF56: =BH56+G56 -> 13.5 | BG56: =BE56+G56 -> 13.5 | BH56: =BA57 -> 10.5 | BI56: =BE56 -> 10.5 | BZ56: 0 | CA56: 0 | CB56: 0 | CC56: =INDEX(Hovedtal,BS51,9+BW56) ->  | CD56: =CD55+CC56 ->  | CE56: 0 | CF56: 0 | CG56: 0 | CH56: 0
F57: 3 | G57: =IF(INDEX(Hovedtal,B51,9)<F57,0,INDEX(Etager,7-F57,2)) -> 3 | H57: =IF(F57>INDEX(Hovedtal,B51,9),0,INDEX(Hovedtal,B51,6)) -> 0.2 | I57: 0 | J57: 0 | K57: 7.0001 | L57: =INDEX(Hovedtal,B51,9+F57) -> 51.72299674 | M57: =M56+L57 -> 192.6035879 | N57: 90.721296 | O57: 0 | P57: 0 | Q57: 0 | R57: 52.85245908 | S57: 415.7376431 | T57: 0 | U57: 0.3464480359 | V57: 1200 | W57: =INDEX(Hovedtal,B51,8) -> 1200 | AA57: =IF(G57=0,AA58,IF(I57=0,0,I57)) -> 0 | AB57: =IF(G57=0,AB58,IF(J57=0,AB59,AB59-J57)) -> 7.0001 | AC57: =IF(G57=0,0,AC59+AA57*AG59) -> 10 | AD57: =IF(G57=0,0,AD59+AA57*AH59) -> 15 | AE57: =IF(G57=0,0,AC59+AB57*AG59) -> 10 | AF57: =IF(G57=0,0,AD59+AB57*AH59) -> 22 | AI57: =MAX(AA57:AA58) -> 0 | AJ57: =MIN(AB57:AB58) -> 7.0001 | AK57: =IF(G57=0,0.5*(AI57+AJ57),(M57*G57+AA57*P57+0.5*(AA57+AB57)*(N57+(AB57-AA57)*O57)+AB57*Q57+AK56*AL56)/AL57) -> 7.311411978 | AL57: =AL56+N57+O57*(AB57-AA57)+P57+Q57 -> 362.885184 | AM57: 1200 | AN57: 0 | AO57: 52.85245908 | AZ57: =AW58 -> 7.5 | BA57: =BC57+G57 -> 10.5 | BB57: =AZ57+G57 -> 10.5 | BC57: =AV58 -> 7.5 | BD57: =AZ57 -> 7.5 | BZ57: 0 | CA57: 0 | CB57: 0 | CC57: =INDEX(Hovedtal,BS51,9+BW57) ->  | CD57: =CD56+CC57 ->  | CE57: 0 | CF57: 0 | CG57: 0 | CH57: 0
F58: 2 | G58: =IF(INDEX(Hovedtal,B51,9)<F58,0,INDEX(Etager,7-F58,2)) -> 4.5 | H58: =IF(F58>INDEX(Hovedtal,B51,9),0,INDEX(Hovedtal,B51,6)) -> 0.2 | I58: 0 | J58: 0 | K58: 7.0001 | L58: =INDEX(Hovedtal,B51,9+F58) -> 63.629996 | M58: =M57+L58 -> 256.2335839 | N58: 136.081944 | O58: 0 | P58: 0 | Q58: 0 | R58: 302.0087313 | S58: 800.9758593 | T58: 0 | U58: 0.6674798828 | V58: 1200 | W58: =INDEX(Hovedtal,B51,8) -> 1200 | AA58: =IF(G58=0,AA59,IF(I58=0,0,I58)) -> 0 | AB58: =IF(G58=0,AB59,IF(J58=0,AB59,AB59-J58)) -> 7.0001 | AC58: =IF(G58=0,0,AC59+AA58*AG59) -> 10 | AD58: =IF(G58=0,0,AD59+AA58*AH59) -> 15 | AE58: =IF(G58=0,0,AC59+AB58*AG59) -> 10 | AF58: =IF(G58=0,0,AD59+AB58*AH59) -> 22 | AI58: =MAX(AA58:AA59) -> 0 | AJ58: =MIN(AB58:AB59) -> 7.0001 | AK58: =IF(G58=0,0.5*(AI58+AJ58),(M58*G58+AA58*P58+0.5*(AA58+AB58)*(N58+(AB58-AA58)*O58)+AB58*Q58+AK57*AL57)/AL58) -> 8.582825553 | AL58: =AL57+N58+O58*(AB58-AA58)+P58+Q58 -> 498.967128 | AM58: 1200 | AN58: 0 | AO58: 302.0087313 | AU58: =AR59 -> 3 | AV58: =AX58+G58 -> 7.5 | AW58: =AU58+G58 -> 7.5 | AX58: =AQ59 -> 3 | AY58: =AU58 -> 3 | BZ58: 0 | CA58: 0 | CB58: 0 | CC58: =INDEX(Hovedtal,BS51,9+BW58) ->  | CD58: =CD57+CC58 ->  | CE58: 0 | CF58: 0 | CG58: 0 | CH58: 0
F59: 1 | G59: =IF(INDEX(Hovedtal,B51,9)<F59,0,INDEX(Etager,7-F59,2)) -> 3 | H59: =IF(F59>INDEX(Hovedtal,B51,9),0,INDEX(Hovedtal,B51,6)) -> 0.2 | K59: 7.0001 | L59: =INDEX(Hovedtal,B51,9+F59) -> 63.629996 | M59: =M58+L59 -> 319.8635799 | N59: 90.721296 | O59: 0 | P59: 0 | Q59: 0 | R59: 568.8661559 | S59: 1158.55458 | T59: 0 | U59: 0.9654621499 | V59: 1200 | W59: =INDEX(Hovedtal,B51,8) -> 1200 | AA59: 0 | AB59: =SQRT((AE59-AC59)^2+(AF59-AD59)^2)+0.0001 -> 7.0001 | AC59: =INDEX(Hovedtal,B51,2) -> 10 | AD59: =INDEX(Hovedtal,B51,3) -> 15 | AE59: =INDEX(Hovedtal,B51,4) -> 10 | AF59: =INDEX(Hovedtal,B51,5) -> 22 | AG59: =(AE59-AC59)/AB59 -> 0 | AH59: =(AF59-AD59)/AB59 -> 0.9999857145 | AI59: =AA59 -> 0 | AJ59: =AB59 -> 7.0001 | AK59: =IF(G59=0,0.5*(AI59+AJ59),(M59*G59+AA59*P59+0.5*(AA59+AB59)*(N59+(AB59-AA59)*O59)+AB59*Q59+AK58*AL58)/AL59) -> 9.428144426 | AL59: =AL58+N59+O59*(AB59-AA59)+P59+Q59 -> 589.688424 | AM59: 1200 | AN59: 0 | AO59: 568.8661559 | AP59: 0 | AQ59: =G59 -> 3 | AR59: =G59 -> 3 | AS59: 0 | AT59: =AP59 -> 0 | CB59: 0 | CC59: =INDEX(Hovedtal,BS51,9+BW59) ->  | CD59: =CD58+CC59 ->  | CE59: 0 | CF59: 0 | CG59: 0 | CH59: 0
A60: * | BT60: =MAX(AP52:BS59)+0.5 -> 20
B62: Væg | F62: Etage | G62: h | H62: t | I62: r_1 | J62: r_2 | K62: L_eff | L62: V_i | M62: Q | N62: G | O62: p | P62: P1 | Q62: P2 | R62: T | S62: N | T62: b_1 | U62: b_2 | V62: n | W62: n_max | AA62: Etager: | AB62: 6 | AP62: Hjørnepunkter i vægopstalt | BZ62: r_1 | CA62: r_2 | CB62: L_eff | CC62: V_i | CD62: Q | CE62: G | CF62: p | CG62: P1 | CH62: P2
B63: =B51+1 -> 4 | G63: (m) | H63: (m) | I63: (m) | J63: (m) | K63: (m) | L63: (kN) | M63: (kN) | N63: (kN) | O63: (kN/m) | P63: (kN) | Q63: (kN) | R63: (kN) | S63: (kN) | T63: (m) | U63: (m) | V63: (kN/m) | W63: (kN/m) | BZ63: (m) | CA63: (m) | CB63: (m) | CC63: (kN) | CD63: (kN) | CE63: (kN) | CF63: (kN/m) | CG63: (kN) | CH63: (kN)
AA64: s_1 | AB64: s_2 | AC64: x_1 | AD64: y_1 | AE64: x_2 | AF64: y_2 | AG64: cos(a) | AH64: sin(a) | AI64: s_1_e | AJ64: s_2_e | AK64: s_N | AL64: N_0 | AM64: n | AN64: T_1 | AO64: T_2 | AP64: 0 | AQ64: 0 | AR64: =AB71 -> 7.0001 | AS64: =AB71 -> 7.0001 | AT64: =AP64 -> 0 | AU64: =AA70 -> 0 | AV64: =AA70 -> 0 | AW64: =AB70 -> 7.0001 | AX64: =AB70 -> 7.0001 | AY64: =AU64 -> 0 | AZ64: =AA69 -> 0 | BA64: =AA69 -> 0 | BB64: =AB69 -> 7.0001 | BC64: =AB69 -> 7.0001 | BD64: =AZ64 -> 0 | BE64: =AA68 -> 0 | BF64: =AA68 -> 0 | BG64: =AB68 -> 7.0001 | BH64: =AB68 -> 7.0001 | BI64: =BE64 -> 0 | BJ64: =AA67 -> 0 | BK64: =AA67 -> 0 | BL64: =AB67 -> 7.0001 | BM64: =AB67 -> 7.0001 | BN64: =BJ64 -> 0 | BO64: =AA66 -> 0 | BP64: =AA66 -> 0 | BQ64: =AB66 -> 7.0001 | BR64: =AB66 -> 7.0001 | BS64: =BO64 -> 0 | BT64: =BT72 -> 20
F66: 6 | G66: =IF(INDEX(Hovedtal,B63,9)<F66,0,INDEX(Etager,7-F66,2)) -> 3 | H66: =IF(F66>INDEX(Hovedtal,B63,9),0,INDEX(Hovedtal,B63,6)) -> 0.2 | I66: 0 | J66: 0 | K66: =AJ66-AI66 -> 7.0001 | L66: =INDEX(Hovedtal,B63,9+F66) -> 24.2348409 | M66: =L66 -> 24.2348409 | N66: =(AB66-AA66)*H66*G66*g_g*g_e -> 90.721296 | O66: 0 | P66: 0 | Q66: 0 | R66: =IF(AK66>0.5*(AI66+AJ66),AO66,AN66) -> 0 | S66: =AL66+R66 -> 90.721296 | T66: =IF(AK66<=0.5*(AI66+AJ66),IF(AK66>AI66+0.5*AL66/AM66,2*(AK66-AI66),S66/AM66),0) -> 0 | U66: =IF(AK66>0.5*(AI66+AJ66),IF(AK66<AJ66-0.5*AL66/AM66,2*(AJ66-AK66),S66/AM66),0) -> 5.397289504 | V66: =IF(AK66>0.5*(AI66+AJ66),S66/U66,S66/T66) -> 16.80867701 | W66: =INDEX(Hovedtal,B63,8) -> 1200 | X66: =IF(OR(V66>W66,ABS(M66)>0.5*S66),"!","") ->  | AA66: =IF(G66=0,AA67,IF(I66=0,0,I66)) -> 0 | AB66: =IF(G66=0,AB67,IF(J66=0,AB71,AB71-J66)) -> 7.0001 | AC66: =IF(G66=0,0,AC71+AA66*AG71) -> 30 | AD66: =IF(G66=0,0,AD71+AA66*AH71) -> 15 | AE66: =IF(G66=0,0,AC71+AB66*AG71) -> 30 | AF66: =IF(G66=0,0,AD71+AB66*AH71) -> 22 | AI66: =MAX(AA66:AA67) -> 0 | AJ66: =MIN(AB66:AB67) -> 7.0001 | AK66: =IF(G66=0,0.5*(AI66+AJ66),(M66*G66+AA66*P66+0.5*(AA66+AB66)*(N66+(AB66-AA66)*O66)+AB66*Q66)/AL66) -> 4.301455248 | AL66: =N66+O66*(AB66-AA66)+P66+Q66 -> 90.721296 | AM66: =IF(AK66<0.5*(AI66+AJ66),MAX(W66,8*AL66*(0.5*(AJ66+AI66)-AK66)/(AJ66-AI66)^2+0.1),MAX(W66,-8*AL66*(0.5*(AJ66+AI66)-AK66)/(AJ66-AI66)^2+0.1)) -> 1200 | AN66: =IF(AND(AK66<0.5*(AI66+AJ66),AL66/AM66>2*(AK66-AI66)),AM66*(-SQRT((AL66/AM66+0.5*AI66-0.5*AJ66)^2-2*(-AK66*AL66/AM66+0.5*AL66^2/AM66^2+AI66*AL66/AM66))-(AL66/AM66+0.5*AI66-0.5*AJ66)),0) -> 0 | AO66: =IF(AND(AK66>=0.5*(AI66+AJ66),AL66/AM66>2*(AJ66-AK66)),AM66*(-SQRT((AL66/AM66+0.5*AI66-0.5*AJ66)^2-2*(AK66*AL66/AM66+0.5*AL66^2/AM66^2-AJ66*AL66/AM66))-(AL66/AM66+0.5*AI66-0.5*AJ66)),0) -> 0 | BO66: =BL67 -> 16.5 | BP66: =BR66+G66 -> 19.5 | BQ66: =BO66+G66 -> 19.5 | BR66: =BK67 -> 16.5 | BS66: =BO66 -> 16.5 | BZ66: 0 | CA66: 0 | CB66: =DA66-CZ66 -> 0 | CC66: =INDEX(Hovedtal,BS63,9+BW66) ->  | CD66: =CC66 ->  | CE66: =(CS66-CR66)*BY66*BX66*g_g*g_e -> 0 | CF66: 0 | CG66: 0 | CH66: 0
F67: 5 | G67: =IF(INDEX(Hovedtal,B63,9)<F67,0,INDEX(Etager,7-F67,2)) -> 3 | H67: =IF(F67>INDEX(Hovedtal,B63,9),0,INDEX(Hovedtal,B63,6)) -> 0.2 | I67: 0 | J67: 0 | K67: 7.0001 | L67: =INDEX(Hovedtal,B63,9+F67) -> 31.50756118 | M67: =M66+L67 -> 55.74240208 | N67: 90.721296 | O67: 0 | P67: 0 | Q67: 0 | R67: 0 | S67: 181.442592 | T67: 0 | U67: 4.355387683 | V67: 41.6593436 | W67: =INDEX(Hovedtal,B63,8) -> 1200 | AA67: =IF(G67=0,AA68,IF(I67=0,0,I67)) -> 0 | AB67: =IF(G67=0,AB68,IF(J67=0,AB71,AB71-J67)) -> 7.0001 | AC67: =IF(G67=0,0,AC71+AA67*AG71) -> 30 | AD67: =IF(G67=0,0,AD71+AA67*AH71) -> 15 | AE67: =IF(G67=0,0,AC71+AB67*AG71) -> 30 | AF67: =IF(G67=0,0,AD71+AB67*AH71) -> 22 | AI67: =MAX(AA67:AA68) -> 0 | AJ67: =MIN(AB67:AB68) -> 7.0001 | AK67: =IF(G67=0,0.5*(AI67+AJ67),(M67*G67+AA67*P67+0.5*(AA67+AB67)*(N67+(AB67-AA67)*O67)+AB67*Q67+AK66*AL66)/AL67) -> 4.822406158 | AL67: =AL66+N67+O67*(AB67-AA67)+P67+Q67 -> 181.442592 | AM67: 1200 | AN67: 0 | AO67: 0 | BJ67: =BG68 -> 13.5 | BK67: =BM67+G67 -> 16.5 | BL67: =BJ67+G67 -> 16.5 | BM67: =BF68 -> 13.5 | BN67: =BJ67 -> 13.5 | BZ67: 0 | CA67: 0 | CB67: 0 | CC67: =INDEX(Hovedtal,BS63,9+BW67) ->  | CD67: =CD66+CC67 ->  | CE67: 0 | CF67: 0 | CG67: 0 | CH67: 0
F68: 4 | G68: =IF(INDEX(Hovedtal,B63,9)<F68,0,INDEX(Etager,7-F68,2)) -> 3 | H68: =IF(F68>INDEX(Hovedtal,B63,9),0,INDEX(Hovedtal,B63,6)) -> 0.2 | I68: 0 | J68: 0 | K68: 7.0001 | L68: =INDEX(Hovedtal,B63,9+F68) -> 32.0670012 | M68: =M67+L68 -> 87.80940328 | N68: 90.721296 | O68: 0 | P68: 0 | Q68: 0 | R68: 0 | S68: 272.163888 | T68: 0 | U68: 3.301152704 | V68: 82.44510703 | W68: =INDEX(Hovedtal,B63,8) -> 1200 | AA68: =IF(G68=0,AA69,IF(I68=0,0,I68)) -> 0 | AB68: =IF(G68=0,AB69,IF(J68=0,AB71,AB71-J68)) -> 7.0001 | AC68: =IF(G68=0,0,AC71+AA68*AG71) -> 30 | AD68: =IF(G68=0,0,AD71+AA68*AH71) -> 15 | AE68: =IF(G68=0,0,AC71+AB68*AG71) -> 30 | AF68: =IF(G68=0,0,AD71+AB68*AH71) -> 22 | AI68: =MAX(AA68:AA69) -> 0 | AJ68: =MIN(AB68:AB69) -> 7.0001 | AK68: =IF(G68=0,0.5*(AI68+AJ68),(M68*G68+AA68*P68+0.5*(AA68+AB68)*(N68+(AB68-AA68)*O68)+AB68*Q68+AK67*AL67)/AL68) -> 5.349523648 | AL68: =AL67+N68+O68*(AB68-AA68)+P68+Q68 -> 272.163888 | AM68: 1200 | AN68: 0 | AO68: 0 | BE68: =BB69 -> 10.5 | BF68: =BH68+G68 -> 13.5 | BG68: =BE68+G68 -> 13.5 | BH68: =BA69 -> 10.5 | BI68: =BE68 -> 10.5 | BZ68: 0 | CA68: 0 | CB68: 0 | CC68: =INDEX(Hovedtal,BS63,9+BW68) ->  | CD68: =CD67+CC68 ->  | CE68: 0 | CF68: 0 | CG68: 0 | CH68: 0
F69: 3 | G69: =IF(INDEX(Hovedtal,B63,9)<F69,0,INDEX(Etager,7-F69,2)) -> 3 | H69: =IF(F69>INDEX(Hovedtal,B63,9),0,INDEX(Hovedtal,B63,6)) -> 0.2 | I69: 0 | J69: 0 | K69: 7.0001 | L69: =INDEX(Hovedtal,B63,9+F69) -> 32.0670012 | M69: =M68+L69 -> 119.8764045 | N69: 90.721296 | O69: 0 | P69: 0 | Q69: 0 | R69: 0 | S69: 362.885184 | T69: 0 | U69: 2.243834436 | V69: 161.7254724 | W69: =INDEX(Hovedtal,B63,8) -> 1200 | AA69: =IF(G69=0,AA70,IF(I69=0,0,I69)) -> 0 | AB69: =IF(G69=0,AB70,IF(J69=0,AB71,AB71-J69)) -> 7.0001 | AC69: =IF(G69=0,0,AC71+AA69*AG71) -> 30 | AD69: =IF(G69=0,0,AD71+AA69*AH71) -> 15 | AE69: =IF(G69=0,0,AC71+AB69*AG71) -> 30 | AF69: =IF(G69=0,0,AD71+AB69*AH71) -> 22 | AI69: =MAX(AA69:AA70) -> 0 | AJ69: =MIN(AB69:AB70) -> 7.0001 | AK69: =IF(G69=0,0.5*(AI69+AJ69),(M69*G69+AA69*P69+0.5*(AA69+AB69)*(N69+(AB69-AA69)*O69)+AB69*Q69+AK68*AL68)/AL69) -> 5.878182782 | AL69: =AL68+N69+O69*(AB69-AA69)+P69+Q69 -> 362.885184 | AM69: 1200 | AN69: 0 | AO69: 0 | AZ69: =AW70 -> 7.5 | BA69: =BC69+G69 -> 10.5 | BB69: =AZ69+G69 -> 10.5 | BC69: =AV70 -> 7.5 | BD69: =AZ69 -> 7.5 | BZ69: 0 | CA69: 0 | CB69: 0 | CC69: =INDEX(Hovedtal,BS63,9+BW69) ->  | CD69: =CD68+CC69 ->  | CE69: 0 | CF69: 0 | CG69: 0 | CH69: 0
F70: 2 | G70: =IF(INDEX(Hovedtal,B63,9)<F70,0,INDEX(Etager,7-F70,2)) -> 4.5 | H70: =IF(F70>INDEX(Hovedtal,B63,9),0,INDEX(Hovedtal,B63,6)) -> 0.2 | I70: 0 | J70: 0 | K70: 7.0001 | L70: =INDEX(Hovedtal,B63,9+F70) -> 39.06000147 | M70: =M69+L70 -> 158.936406 | N70: 136.081944 | O70: 0 | P70: 0 | Q70: 0 | R70: 0 | S70: 498.967128 | T70: 0 | U70: 0.6742204361 | V70: 740.0652684 | W70: =INDEX(Hovedtal,B63,8) -> 1200 | AA70: =IF(G70=0,AA71,IF(I70=0,0,I70)) -> 0 | AB70: =IF(G70=0,AB71,IF(J70=0,AB71,AB71-J70)) -> 7.0001 | AC70: =IF(G70=0,0,AC71+AA70*AG71) -> 30 | AD70: =IF(G70=0,0,AD71+AA70*AH71) -> 15 | AE70: =IF(G70=0,0,AC71+AB70*AG71) -> 30 | AF70: =IF(G70=0,0,AD71+AB70*AH71) -> 22 | AI70: =MAX(AA70:AA71) -> 0 | AJ70: =MIN(AB70:AB71) -> 7.0001 | AK70: =IF(G70=0,0.5*(AI70+AJ70),(M70*G70+AA70*P70+0.5*(AA70+AB70)*(N70+(AB70-AA70)*O70)+AB70*Q70+AK69*AL69)/AL70) -> 6.662989782 | AL70: =AL69+N70+O70*(AB70-AA70)+P70+Q70 -> 498.967128 | AM70: 1200 | AN70: 0 | AO70: 0 | AU70: =AR71 -> 3 | AV70: =AX70+G70 -> 7.5 | AW70: =AU70+G70 -> 7.5 | AX70: =AQ71 -> 3 | AY70: =AU70 -> 3 | BZ70: 0 | CA70: 0 | CB70: 0 | CC70: =INDEX(Hovedtal,BS63,9+BW70) ->  | CD70: =CD69+CC70 ->  | CE70: 0 | CF70: 0 | CG70: 0 | CH70: 0
F71: 1 | G71: =IF(INDEX(Hovedtal,B63,9)<F71,0,INDEX(Etager,7-F71,2)) -> 3 | H71: =IF(F71>INDEX(Hovedtal,B63,9),0,INDEX(Hovedtal,B63,6)) -> 0.2 | K71: 7.0001 | L71: =INDEX(Hovedtal,B63,9+F71) -> 39.06000147 | M71: =M70+L71 -> 197.9964074 | N71: 90.721296 | O71: 0 | P71: 0 | Q71: 0 | R71: 85.14211957 | S71: 674.8305436 | T71: 0 | U71: 0.5623587863 | V71: 1200 | W71: =INDEX(Hovedtal,B63,8) -> 1200 | AA71: 0 | AB71: =SQRT((AE71-AC71)^2+(AF71-AD71)^2)+0.0001 -> 7.0001 | AC71: =INDEX(Hovedtal,B63,2) -> 30 | AD71: =INDEX(Hovedtal,B63,3) -> 15 | AE71: =INDEX(Hovedtal,B63,4) -> 30 | AF71: =INDEX(Hovedtal,B63,5) -> 22 | AG71: =(AE71-AC71)/AB71 -> 0 | AH71: =(AF71-AD71)/AB71 -> 0.9999857145 | AI71: =AA71 -> 0 | AJ71: =AB71 -> 7.0001 | AK71: =IF(G71=0,0.5*(AI71+AJ71),(M71*G71+AA71*P71+0.5*(AA71+AB71)*(N71+(AB71-AA71)*O71)+AB71*Q71+AK70*AL70)/AL71) -> 7.183677002 | AL71: =AL70+N71+O71*(AB71-AA71)+P71+Q71 -> 589.688424 | AM71: 1200 | AN71: 0 | AO71: 85.14211957 | AP71: 0 | AQ71: =G71 -> 3 | AR71: =G71 -> 3 | AS71: 0 | AT71: =AP71 -> 0 | CB71: 0 | CC71: =INDEX(Hovedtal,BS63,9+BW71) ->  | CD71: =CD70+CC71 ->  | CE71: 0 | CF71: 0 | CG71: 0 | CH71: 0
A72: * | BT72: =MAX(AP64:BS71)+0.5 -> 20
B74: Væg | F74: Etage | G74: h | H74: t | I74: r_1 | J74: r_2 | K74: L_eff | L74: V_i | M74: Q | N74: G | O74: p | P74: P1 | Q74: P2 | R74: T | S74: N | T74: b_1 | U74: b_2 | V74: n | W74: n_max | AA74: Etager: | AB74: 6 | AP74: Hjørnepunkter i vægopstalt | BZ74: r_1 | CA74: r_2 | CB74: L_eff | CC74: V_i | CD74: Q | CE74: G | CF74: p | CG74: P1 | CH74: P2
B75: =B63+1 -> 5 | G75: (m) | H75: (m) | I75: (m) | J75: (m) | K75: (m) | L75: (kN) | M75: (kN) | N75: (kN) | O75: (kN/m) | P75: (kN) | Q75: (kN) | R75: (kN) | S75: (kN) | T75: (m) | U75: (m) | V75: (kN/m) | W75: (kN/m) | BZ75: (m) | CA75: (m) | CB75: (m) | CC75: (kN) | CD75: (kN) | CE75: (kN) | CF75: (kN/m) | CG75: (kN) | CH75: (kN)
AA76: s_1 | AB76: s_2 | AC76: x_1 | AD76: y_1 | AE76: x_2 | AF76: y_2 | AG76: cos(a) | AH76: sin(a) | AI76: s_1_e | AJ76: s_2_e | AK76: s_N | AL76: N_0 | AM76: n | AN76: T_1 | AO76: T_2 | AP76: 0 | AQ76: 0 | AR76: =AB83 -> 0.0001 | AS76: =AB83 -> 0.0001 | AT76: =AP76 -> 0 | AU76: =AA82 -> 0 | AV76: =AA82 -> 0 | AW76: =AB82 -> 0.0001 | AX76: =AB82 -> 0.0001 | AY76: =AU76 -> 0 | AZ76: =AA81 -> 0 | BA76: =AA81 -> 0 | BB76: =AB81 -> 0.0001 | BC76: =AB81 -> 0.0001 | BD76: =AZ76 -> 0 | BE76: =AA80 -> 0 | BF76: =AA80 -> 0 | BG76: =AB80 -> 0.0001 | BH76: =AB80 -> 0.0001 | BI76: =BE76 -> 0 | BJ76: =AA79 -> 0 | BK76: =AA79 -> 0 | BL76: =AB79 -> 0.0001 | BM76: =AB79 -> 0.0001 | BN76: =BJ76 -> 0 | BO76: =AA78 -> 0 | BP76: =AA78 -> 0 | BQ76: =AB78 -> 0.0001 | BR76: =AB78 -> 0.0001 | BS76: =BO76 -> 0 | BT76: =BT84 -> 0.5001
F78: 6 | G78: =IF(INDEX(Hovedtal,B75,9)<F78,0,INDEX(Etager,7-F78,2)) -> 0 | H78: =IF(F78>INDEX(Hovedtal,B75,9),0,INDEX(Hovedtal,B75,6)) -> 0 | I78: 0 | J78: 0 | K78: =AJ78-AI78 -> 0.0001 | L78: =INDEX(Hovedtal,B75,9+F78) -> 0 | M78: =L78 -> 0 | N78: =(AB78-AA78)*H78*G78*g_g*g_e -> 0 | O78: 0 | P78: 0 | Q78: 0 | R78: =IF(AK78>0.5*(AI78+AJ78),AO78,AN78) -> 0 | S78: =AL78+R78 -> 0 | T78: =IF(AK78<=0.5*(AI78+AJ78),IF(AK78>AI78+0.5*AL78/AM78,2*(AK78-AI78),S78/AM78),0) -> 0.0001 | U78: =IF(AK78>0.5*(AI78+AJ78),IF(AK78<AJ78-0.5*AL78/AM78,2*(AJ78-AK78),S78/AM78),0) -> 0 | V78: =IF(AK78>0.5*(AI78+AJ78),S78/U78,S78/T78) -> 0 | W78: =INDEX(Hovedtal,B75,8) -> 0 | X78: =IF(OR(V78>W78,ABS(M78)>0.5*S78),"!","") ->  | AA78: =IF(G78=0,AA79,IF(I78=0,0,I78)) -> 0 | AB78: =IF(G78=0,AB79,IF(J78=0,AB83,AB83-J78)) -> 0.0001 | AC78: =IF(G78=0,0,AC83+AA78*AG83) -> 0 | AD78: =IF(G78=0,0,AD83+AA78*AH83) -> 0 | AE78: =IF(G78=0,0,AC83+AB78*AG83) -> 0 | AF78: =IF(G78=0,0,AD83+AB78*AH83) -> 0 | AI78: =MAX(AA78:AA79) -> 0 | AJ78: =MIN(AB78:AB79) -> 0.0001 | AK78: =IF(G78=0,0.5*(AI78+AJ78),(M78*G78+AA78*P78+0.5*(AA78+AB78)*(N78+(AB78-AA78)*O78)+AB78*Q78)/AL78) -> 5e-05 | AL78: =N78+O78*(AB78-AA78)+P78+Q78 -> 0 | AM78: =IF(AK78<0.5*(AI78+AJ78),MAX(W78,8*AL78*(0.5*(AJ78+AI78)-AK78)/(AJ78-AI78)^2+0.1),MAX(W78,-8*AL78*(0.5*(AJ78+AI78)-AK78)/(AJ78-AI78)^2+0.1)) -> 0.1 | AN78: =IF(AND(AK78<0.5*(AI78+AJ78),AL78/AM78>2*(AK78-AI78)),AM78*(-SQRT((AL78/AM78+0.5*AI78-0.5*AJ78)^2-2*(-AK78*AL78/AM78+0.5*AL78^2/AM78^2+AI78*AL78/AM78))-(AL78/AM78+0.5*AI78-0.5*AJ78)),0) -> 0 | AO78: =IF(AND(AK78>=0.5*(AI78+AJ78),AL78/AM78>2*(AJ78-AK78)),AM78*(-SQRT((AL78/AM78+0.5*AI78-0.5*AJ78)^2-2*(AK78*AL78/AM78+0.5*AL78^2/AM78^2-AJ78*AL78/AM78))-(AL78/AM78+0.5*AI78-0.5*AJ78)),0) -> 0 | BO78: =BL79 -> 0 | BP78: =BR78+G78 -> 0 | BQ78: =BO78+G78 -> 0 | BR78: =BK79 -> 0 | BS78: =BO78 -> 0 | BZ78: 0 | CA78: 0 | CB78: =DA78-CZ78 -> 0 | CC78: =INDEX(Hovedtal,BS75,9+BW78) ->  | CD78: =CC78 ->  | CE78: =(CS78-CR78)*BY78*BX78*g_g*g_e -> 0 | CF78: 0 | CG78: 0 | CH78: 0
F79: 5 | G79: =IF(INDEX(Hovedtal,B75,9)<F79,0,INDEX(Etager,7-F79,2)) -> 0 | H79: =IF(F79>INDEX(Hovedtal,B75,9),0,INDEX(Hovedtal,B75,6)) -> 0 | I79: 0 | J79: 0 | K79: 0.0001 | L79: =INDEX(Hovedtal,B75,9+F79) -> 0 | M79: =M78+L79 -> 0 | N79: 0 | O79: 0 | P79: 0 | Q79: 0 | R79: 0 | S79: 0 | T79: 0.0001 | U79: 0 | V79: 0 | W79: =INDEX(Hovedtal,B75,8) -> 0 | AA79: =IF(G79=0,AA80,IF(I79=0,0,I79)) -> 0 | AB79: =IF(G79=0,AB80,IF(J79=0,AB83,AB83-J79)) -> 0.0001 | AC79: =IF(G79=0,0,AC83+AA79*AG83) -> 0 | AD79: =IF(G79=0,0,AD83+AA79*AH83) -> 0 | AE79: =IF(G79=0,0,AC83+AB79*AG83) -> 0 | AF79: =IF(G79=0,0,AD83+AB79*AH83) -> 0 | AI79: =MAX(AA79:AA80) -> 0 | AJ79: =MIN(AB79:AB80) -> 0.0001 | AK79: =IF(G79=0,0.5*(AI79+AJ79),(M79*G79+AA79*P79+0.5*(AA79+AB79)*(N79+(AB79-AA79)*O79)+AB79*Q79+AK78*AL78)/AL79) -> 5e-05 | AL79: =AL78+N79+O79*(AB79-AA79)+P79+Q79 -> 0 | AM79: 0.1 | AN79: 0 | AO79: 0 | BJ79: =BG80 -> 0 | BK79: =BM79+G79 -> 0 | BL79: =BJ79+G79 -> 0 | BM79: =BF80 -> 0 | BN79: =BJ79 -> 0 | BZ79: 0 | CA79: 0 | CB79: 0 | CC79: =INDEX(Hovedtal,BS75,9+BW79) ->  | CD79: =CD78+CC79 ->  | CE79: 0 | CF79: 0 | CG79: 0 | CH79: 0
F80: 4 | G80: =IF(INDEX(Hovedtal,B75,9)<F80,0,INDEX(Etager,7-F80,2)) -> 0 | H80: =IF(F80>INDEX(Hovedtal,B75,9),0,INDEX(Hovedtal,B75,6)) -> 0 | I80: 0 | J80: 0 | K80: 0.0001 | L80: =INDEX(Hovedtal,B75,9+F80) -> 0 | M80: =M79+L80 -> 0 | N80: 0 | O80: 0 | P80: 0 | Q80: 0 | R80: 0 | S80: 0 | T80: 0.0001 | U80: 0 | V80: 0 | W80: =INDEX(Hovedtal,B75,8) -> 0 | AA80: =IF(G80=0,AA81,IF(I80=0,0,I80)) -> 0 | AB80: =IF(G80=0,AB81,IF(J80=0,AB83,AB83-J80)) -> 0.0001 | AC80: =IF(G80=0,0,AC83+AA80*AG83) -> 0 | AD80: =IF(G80=0,0,AD83+AA80*AH83) -> 0 | AE80: =IF(G80=0,0,AC83+AB80*AG83) -> 0 | AF80: =IF(G80=0,0,AD83+AB80*AH83) -> 0 | AI80: =MAX(AA80:AA81) -> 0 | AJ80: =MIN(AB80:AB81) -> 0.0001 | AK80: =IF(G80=0,0.5*(AI80+AJ80),(M80*G80+AA80*P80+0.5*(AA80+AB80)*(N80+(AB80-AA80)*O80)+AB80*Q80+AK79*AL79)/AL80) -> 5e-05 | AL80: =AL79+N80+O80*(AB80-AA80)+P80+Q80 -> 0 | AM80: 0.1 | AN80: 0 | AO80: 0 | BE80: =BB81 -> 0 | BF80: =BH80+G80 -> 0 | BG80: =BE80+G80 -> 0 | BH80: =BA81 -> 0 | BI80: =BE80 -> 0 | BZ80: 0 | CA80: 0 | CB80: 0 | CC80: =INDEX(Hovedtal,BS75,9+BW80) ->  | CD80: =CD79+CC80 ->  | CE80: 0 | CF80: 0 | CG80: 0 | CH80: 0
F81: 3 | G81: =IF(INDEX(Hovedtal,B75,9)<F81,0,INDEX(Etager,7-F81,2)) -> 0 | H81: =IF(F81>INDEX(Hovedtal,B75,9),0,INDEX(Hovedtal,B75,6)) -> 0 | I81: 0 | J81: 0 | K81: 0.0001 | L81: =INDEX(Hovedtal,B75,9+F81) -> 0 | M81: =M80+L81 -> 0 | N81: 0 | O81: 0 | P81: 0 | Q81: 0 | R81: 0 | S81: 0 | T81: 0.0001 | U81: 0 | V81: 0 | W81: =INDEX(Hovedtal,B75,8) -> 0 | AA81: =IF(G81=0,AA82,IF(I81=0,0,I81)) -> 0 | AB81: =IF(G81=0,AB82,IF(J81=0,AB83,AB83-J81)) -> 0.0001 | AC81: =IF(G81=0,0,AC83+AA81*AG83) -> 0 | AD81: =IF(G81=0,0,AD83+AA81*AH83) -> 0 | AE81: =IF(G81=0,0,AC83+AB81*AG83) -> 0 | AF81: =IF(G81=0,0,AD83+AB81*AH83) -> 0 | AI81: =MAX(AA81:AA82) -> 0 | AJ81: =MIN(AB81:AB82) -> 0.0001 | AK81: =IF(G81=0,0.5*(AI81+AJ81),(M81*G81+AA81*P81+0.5*(AA81+AB81)*(N81+(AB81-AA81)*O81)+AB81*Q81+AK80*AL80)/AL81) -> 5e-05 | AL81: =AL80+N81+O81*(AB81-AA81)+P81+Q81 -> 0 | AM81: 0.1 | AN81: 0 | AO81: 0 | AZ81: =AW82 -> 0 | BA81: =BC81+G81 -> 0 | BB81: =AZ81+G81 -> 0 | BC81: =AV82 -> 0 | BD81: =AZ81 -> 0 | BZ81: 0 | CA81: 0 | CB81: 0 | CC81: =INDEX(Hovedtal,BS75,9+BW81) ->  | CD81: =CD80+CC81 ->  | CE81: 0 | CF81: 0 | CG81: 0 | CH81: 0
F82: 2 | G82: =IF(INDEX(Hovedtal,B75,9)<F82,0,INDEX(Etager,7-F82,2)) -> 0 | H82: =IF(F82>INDEX(Hovedtal,B75,9),0,INDEX(Hovedtal,B75,6)) -> 0 | I82: 0 | J82: 0 | K82: 0.0001 | L82: =INDEX(Hovedtal,B75,9+F82) -> 0 | M82: =M81+L82 -> 0 | N82: 0 | O82: 0 | P82: 0 | Q82: 0 | R82: 0 | S82: 0 | T82: 0.0001 | U82: 0 | V82: 0 | W82: =INDEX(Hovedtal,B75,8) -> 0 | AA82: =IF(G82=0,AA83,IF(I82=0,0,I82)) -> 0 | AB82: =IF(G82=0,AB83,IF(J82=0,AB83,AB83-J82)) -> 0.0001 | AC82: =IF(G82=0,0,AC83+AA82*AG83) -> 0 | AD82: =IF(G82=0,0,AD83+AA82*AH83) -> 0 | AE82: =IF(G82=0,0,AC83+AB82*AG83) -> 0 | AF82: =IF(G82=0,0,AD83+AB82*AH83) -> 0 | AI82: =MAX(AA82:AA83) -> 0 | AJ82: =MIN(AB82:AB83) -> 0.0001 | AK82: =IF(G82=0,0.5*(AI82+AJ82),(M82*G82+AA82*P82+0.5*(AA82+AB82)*(N82+(AB82-AA82)*O82)+AB82*Q82+AK81*AL81)/AL82) -> 5e-05 | AL82: =AL81+N82+O82*(AB82-AA82)+P82+Q82 -> 0 | AM82: 0.1 | AN82: 0 | AO82: 0 | AU82: =AR83 -> 0 | AV82: =AX82+G82 -> 0 | AW82: =AU82+G82 -> 0 | AX82: =AQ83 -> 0 | AY82: =AU82 -> 0 | BZ82: 0 | CA82: 0 | CB82: 0 | CC82: =INDEX(Hovedtal,BS75,9+BW82) ->  | CD82: =CD81+CC82 ->  | CE82: 0 | CF82: 0 | CG82: 0 | CH82: 0
F83: 1 | G83: =IF(INDEX(Hovedtal,B75,9)<F83,0,INDEX(Etager,7-F83,2)) -> 0 | H83: =IF(F83>INDEX(Hovedtal,B75,9),0,INDEX(Hovedtal,B75,6)) -> 0 | K83: 0.0001 | L83: =INDEX(Hovedtal,B75,9+F83) -> 0 | M83: =M82+L83 -> 0 | N83: 0 | O83: 0 | P83: 0 | Q83: 0 | R83: 0 | S83: 0 | T83: 0.0001 | U83: 0 | V83: 0 | W83: =INDEX(Hovedtal,B75,8) -> 0 | AA83: 0 | AB83: =SQRT((AE83-AC83)^2+(AF83-AD83)^2)+0.0001 -> 0.0001 | AC83: =INDEX(Hovedtal,B75,2) -> 0 | AD83: =INDEX(Hovedtal,B75,3) -> 0 | AE83: =INDEX(Hovedtal,B75,4) -> 0 | AF83: =INDEX(Hovedtal,B75,5) -> 0 | AG83: =(AE83-AC83)/AB83 -> 0 | AH83: =(AF83-AD83)/AB83 -> 0 | AI83: =AA83 -> 0 | AJ83: =AB83 -> 0.0001 | AK83: =IF(G83=0,0.5*(AI83+AJ83),(M83*G83+AA83*P83+0.5*(AA83+AB83)*(N83+(AB83-AA83)*O83)+AB83*Q83+AK82*AL82)/AL83) -> 5e-05 | AL83: =AL82+N83+O83*(AB83-AA83)+P83+Q83 -> 0 | AM83: 0.1 | AN83: 0 | AO83: 0 | AP83: 0 | AQ83: =G83 -> 0 | AR83: =G83 -> 0 | AS83: 0 | AT83: =AP83 -> 0 | CB83: 0 | CC83: =INDEX(Hovedtal,BS75,9+BW83) ->  | CD83: =CD82+CC83 ->  | CE83: 0 | CF83: 0 | CG83: 0 | CH83: 0
A84: * | BT84: =MAX(AP76:BS83)+0.5 -> 0.5001
B86: Væg | F86: Etage | G86: h | H86: t | I86: r_1 | J86: r_2 | K86: L_eff | L86: V_i | M86: Q | N86: G | O86: p | P86: P1 | Q86: P2 | R86: T | S86: N | T86: b_1 | U86: b_2 | V86: n | W86: n_max | AA86: Etager: | AB86: 6 | AP86: Hjørnepunkter i vægopstalt | BZ86: r_1 | CA86: r_2 | CB86: L_eff | CC86: V_i | CD86: Q | CE86: G | CF86: p | CG86: P1 | CH86: P2
B87: =B75+1 -> 6 | G87: (m) | H87: (m) | I87: (m) | J87: (m) | K87: (m) | L87: (kN) | M87: (kN) | N87: (kN) | O87: (kN/m) | P87: (kN) | Q87: (kN) | R87: (kN) | S87: (kN) | T87: (m) | U87: (m) | V87: (kN/m) | W87: (kN/m) | BZ87: (m) | CA87: (m) | CB87: (m) | CC87: (kN) | CD87: (kN) | CE87: (kN) | CF87: (kN/m) | CG87: (kN) | CH87: (kN)
AA88: s_1 | AB88: s_2 | AC88: x_1 | AD88: y_1 | AE88: x_2 | AF88: y_2 | AG88: cos(a) | AH88: sin(a) | AI88: s_1_e | AJ88: s_2_e | AK88: s_N | AL88: N_0 | AM88: n | AN88: T_1 | AO88: T_2 | AP88: 0 | AQ88: 0 | AR88: =AB95 -> 0.0001 | AS88: =AB95 -> 0.0001 | AT88: =AP88 -> 0 | AU88: =AA94 -> 0 | AV88: =AA94 -> 0 | AW88: =AB94 -> 0.0001 | AX88: =AB94 -> 0.0001 | AY88: =AU88 -> 0 | AZ88: =AA93 -> 0 | BA88: =AA93 -> 0 | BB88: =AB93 -> 0.0001 | BC88: =AB93 -> 0.0001 | BD88: =AZ88 -> 0 | BE88: =AA92 -> 0 | BF88: =AA92 -> 0 | BG88: =AB92 -> 0.0001 | BH88: =AB92 -> 0.0001 | BI88: =BE88 -> 0 | BJ88: =AA91 -> 0 | BK88: =AA91 -> 0 | BL88: =AB91 -> 0.0001 | BM88: =AB91 -> 0.0001 | BN88: =BJ88 -> 0 | BO88: =AA90 -> 0 | BP88: =AA90 -> 0 | BQ88: =AB90 -> 0.0001 | BR88: =AB90 -> 0.0001 | BS88: =BO88 -> 0 | BT88: =BT96 -> 0.5001
F90: 6 | G90: =IF(INDEX(Hovedtal,B87,9)<F90,0,INDEX(Etager,7-F90,2)) -> 0 | H90: =IF(F90>INDEX(Hovedtal,B87,9),0,INDEX(Hovedtal,B87,6)) -> 0 | I90: 0 | J90: 0 | K90: =AJ90-AI90 -> 0.0001 | L90: =INDEX(Hovedtal,B87,9+F90) -> 0 | M90: =L90 -> 0 | N90: =(AB90-AA90)*H90*G90*g_g*g_e -> 0 | O90: 0 | P90: 0 | Q90: 0 | R90: =IF(AK90>0.5*(AI90+AJ90),AO90,AN90) -> 0 | S90: =AL90+R90 -> 0 | T90: =IF(AK90<=0.5*(AI90+AJ90),IF(AK90>AI90+0.5*AL90/AM90,2*(AK90-AI90),S90/AM90),0) -> 0.0001 | U90: =IF(AK90>0.5*(AI90+AJ90),IF(AK90<AJ90-0.5*AL90/AM90,2*(AJ90-AK90),S90/AM90),0) -> 0 | V90: =IF(AK90>0.5*(AI90+AJ90),S90/U90,S90/T90) -> 0 | W90: =INDEX(Hovedtal,B87,8) -> 0 | X90: =IF(OR(V90>W90,ABS(M90)>0.5*S90),"!","") ->  | AA90: =IF(G90=0,AA91,IF(I90=0,0,I90)) -> 0 | AB90: =IF(G90=0,AB91,IF(J90=0,AB95,AB95-J90)) -> 0.0001 | AC90: =IF(G90=0,0,AC95+AA90*AG95) -> 0 | AD90: =IF(G90=0,0,AD95+AA90*AH95) -> 0 | AE90: =IF(G90=0,0,AC95+AB90*AG95) -> 0 | AF90: =IF(G90=0,0,AD95+AB90*AH95) -> 0 | AI90: =MAX(AA90:AA91) -> 0 | AJ90: =MIN(AB90:AB91) -> 0.0001 | AK90: =IF(G90=0,0.5*(AI90+AJ90),(M90*G90+AA90*P90+0.5*(AA90+AB90)*(N90+(AB90-AA90)*O90)+AB90*Q90)/AL90) -> 5e-05 | AL90: =N90+O90*(AB90-AA90)+P90+Q90 -> 0 | AM90: =IF(AK90<0.5*(AI90+AJ90),MAX(W90,8*AL90*(0.5*(AJ90+AI90)-AK90)/(AJ90-AI90)^2+0.1),MAX(W90,-8*AL90*(0.5*(AJ90+AI90)-AK90)/(AJ90-AI90)^2+0.1)) -> 0.1 | AN90: =IF(AND(AK90<0.5*(AI90+AJ90),AL90/AM90>2*(AK90-AI90)),AM90*(-SQRT((AL90/AM90+0.5*AI90-0.5*AJ90)^2-2*(-AK90*AL90/AM90+0.5*AL90^2/AM90^2+AI90*AL90/AM90))-(AL90/AM90+0.5*AI90-0.5*AJ90)),0) -> 0 | AO90: =IF(AND(AK90>=0.5*(AI90+AJ90),AL90/AM90>2*(AJ90-AK90)),AM90*(-SQRT((AL90/AM90+0.5*AI90-0.5*AJ90)^2-2*(AK90*AL90/AM90+0.5*AL90^2/AM90^2-AJ90*AL90/AM90))-(AL90/AM90+0.5*AI90-0.5*AJ90)),0) -> 0 | BO90: =BL91 -> 0 | BP90: =BR90+G90 -> 0 | BQ90: =BO90+G90 -> 0 | BR90: =BK91 -> 0 | BS90: =BO90 -> 0 | BZ90: 0 | CA90: 0 | CB90: =DA90-CZ90 -> 0 | CC90: =INDEX(Hovedtal,BS87,9+BW90) ->  | CD90: =CC90 ->  | CE90: =(CS90-CR90)*BY90*BX90*g_g*g_e -> 0 | CF90: 0 | CG90: 0 | CH90: 0
F91: 5 | G91: =IF(INDEX(Hovedtal,B87,9)<F91,0,INDEX(Etager,7-F91,2)) -> 0 | H91: =IF(F91>INDEX(Hovedtal,B87,9),0,INDEX(Hovedtal,B87,6)) -> 0 | I91: 0 | J91: 0 | K91: 0.0001 | L91: =INDEX(Hovedtal,B87,9+F91) -> 0 | M91: =M90+L91 -> 0 | N91: 0 | O91: 0 | P91: 0 | Q91: 0 | R91: 0 | S91: 0 | T91: 0.0001 | U91: 0 | V91: 0 | W91: =INDEX(Hovedtal,B87,8) -> 0 | AA91: =IF(G91=0,AA92,IF(I91=0,0,I91)) -> 0 | AB91: =IF(G91=0,AB92,IF(J91=0,AB95,AB95-J91)) -> 0.0001 | AC91: =IF(G91=0,0,AC95+AA91*AG95) -> 0 | AD91: =IF(G91=0,0,AD95+AA91*AH95) -> 0 | AE91: =IF(G91=0,0,AC95+AB91*AG95) -> 0 | AF91: =IF(G91=0,0,AD95+AB91*AH95) -> 0 | AI91: =MAX(AA91:AA92) -> 0 | AJ91: =MIN(AB91:AB92) -> 0.0001 | AK91: =IF(G91=0,0.5*(AI91+AJ91),(M91*G91+AA91*P91+0.5*(AA91+AB91)*(N91+(AB91-AA91)*O91)+AB91*Q91+AK90*AL90)/AL91) -> 5e-05 | AL91: =AL90+N91+O91*(AB91-AA91)+P91+Q91 -> 0 | AM91: 0.1 | AN91: 0 | AO91: 0 | BJ91: =BG92 -> 0 | BK91: =BM91+G91 -> 0 | BL91: =BJ91+G91 -> 0 | BM91: =BF92 -> 0 | BN91: =BJ91 -> 0 | BZ91: 0 | CA91: 0 | CB91: 0 | CC91: =INDEX(Hovedtal,BS87,9+BW91) ->  | CD91: =CD90+CC91 ->  | CE91: 0 | CF91: 0 | CG91: 0 | CH91: 0
F92: 4 | G92: =IF(INDEX(Hovedtal,B87,9)<F92,0,INDEX(Etager,7-F92,2)) -> 0 | H92: =IF(F92>INDEX(Hovedtal,B87,9),0,INDEX(Hovedtal,B87,6)) -> 0 | I92: 0 | J92: 0 | K92: 0.0001 | L92: =INDEX(Hovedtal,B87,9+F92) -> 0 | M92: =M91+L92 -> 0 | N92: 0 | O92: 0 | P92: 0 | Q92: 0 | R92: 0 | S92: 0 | T92: 0.0001 | U92: 0 | V92: 0 | W92: =INDEX(Hovedtal,B87,8) -> 0 | AA92: =IF(G92=0,AA93,IF(I92=0,0,I92)) -> 0 | AB92: =IF(G92=0,AB93,IF(J92=0,AB95,AB95-J92)) -> 0.0001 | AC92: =IF(G92=0,0,AC95+AA92*AG95) -> 0 | AD92: =IF(G92=0,0,AD95+AA92*AH95) -> 0 | AE92: =IF(G92=0,0,AC95+AB92*AG95) -> 0 | AF92: =IF(G92=0,0,AD95+AB92*AH95) -> 0 | AI92: =MAX(AA92:AA93) -> 0 | AJ92: =MIN(AB92:AB93) -> 0.0001 | AK92: =IF(G92=0,0.5*(AI92+AJ92),(M92*G92+AA92*P92+0.5*(AA92+AB92)*(N92+(AB92-AA92)*O92)+AB92*Q92+AK91*AL91)/AL92) -> 5e-05 | AL92: =AL91+N92+O92*(AB92-AA92)+P92+Q92 -> 0 | AM92: 0.1 | AN92: 0 | AO92: 0 | BE92: =BB93 -> 0 | BF92: =BH92+G92 -> 0 | BG92: =BE92+G92 -> 0 | BH92: =BA93 -> 0 | BI92: =BE92 -> 0 | BZ92: 0 | CA92: 0 | CB92: 0 | CC92: =INDEX(Hovedtal,BS87,9+BW92) ->  | CD92: =CD91+CC92 ->  | CE92: 0 | CF92: 0 | CG92: 0 | CH92: 0
F93: 3 | G93: =IF(INDEX(Hovedtal,B87,9)<F93,0,INDEX(Etager,7-F93,2)) -> 0 | H93: =IF(F93>INDEX(Hovedtal,B87,9),0,INDEX(Hovedtal,B87,6)) -> 0 | I93: 0 | J93: 0 | K93: 0.0001 | L93: =INDEX(Hovedtal,B87,9+F93) -> 0 | M93: =M92+L93 -> 0 | N93: 0 | O93: 0 | P93: 0 | Q93: 0 | R93: 0 | S93: 0 | T93: 0.0001 | U93: 0 | V93: 0 | W93: =INDEX(Hovedtal,B87,8) -> 0 | AA93: =IF(G93=0,AA94,IF(I93=0,0,I93)) -> 0 | AB93: =IF(G93=0,AB94,IF(J93=0,AB95,AB95-J93)) -> 0.0001 | AC93: =IF(G93=0,0,AC95+AA93*AG95) -> 0 | AD93: =IF(G93=0,0,AD95+AA93*AH95) -> 0 | AE93: =IF(G93=0,0,AC95+AB93*AG95) -> 0 | AF93: =IF(G93=0,0,AD95+AB93*AH95) -> 0 | AI93: =MAX(AA93:AA94) -> 0 | AJ93: =MIN(AB93:AB94) -> 0.0001 | AK93: =IF(G93=0,0.5*(AI93+AJ93),(M93*G93+AA93*P93+0.5*(AA93+AB93)*(N93+(AB93-AA93)*O93)+AB93*Q93+AK92*AL92)/AL93) -> 5e-05 | AL93: =AL92+N93+O93*(AB93-AA93)+P93+Q93 -> 0 | AM93: 0.1 | AN93: 0 | AO93: 0 | AZ93: =AW94 -> 0 | BA93: =BC93+G93 -> 0 | BB93: =AZ93+G93 -> 0 | BC93: =AV94 -> 0 | BD93: =AZ93 -> 0 | BZ93: 0 | CA93: 0 | CB93: 0 | CC93: =INDEX(Hovedtal,BS87,9+BW93) ->  | CD93: =CD92+CC93 ->  | CE93: 0 | CF93: 0 | CG93: 0 | CH93: 0
F94: 2 | G94: =IF(INDEX(Hovedtal,B87,9)<F94,0,INDEX(Etager,7-F94,2)) -> 0 | H94: =IF(F94>INDEX(Hovedtal,B87,9),0,INDEX(Hovedtal,B87,6)) -> 0 | I94: 0 | J94: 0 | K94: 0.0001 | L94: =INDEX(Hovedtal,B87,9+F94) -> 0 | M94: =M93+L94 -> 0 | N94: 0 | O94: 0 | P94: 0 | Q94: 0 | R94: 0 | S94: 0 | T94: 0.0001 | U94: 0 | V94: 0 | W94: =INDEX(Hovedtal,B87,8) -> 0 | AA94: =IF(G94=0,AA95,IF(I94=0,0,I94)) -> 0 | AB94: =IF(G94=0,AB95,IF(J94=0,AB95,AB95-J94)) -> 0.0001 | AC94: =IF(G94=0,0,AC95+AA94*AG95) -> 0 | AD94: =IF(G94=0,0,AD95+AA94*AH95) -> 0 | AE94: =IF(G94=0,0,AC95+AB94*AG95) -> 0 | AF94: =IF(G94=0,0,AD95+AB94*AH95) -> 0 | AI94: =MAX(AA94:AA95) -> 0 | AJ94: =MIN(AB94:AB95) -> 0.0001 | AK94: =IF(G94=0,0.5*(AI94+AJ94),(M94*G94+AA94*P94+0.5*(AA94+AB94)*(N94+(AB94-AA94)*O94)+AB94*Q94+AK93*AL93)/AL94) -> 5e-05 | AL94: =AL93+N94+O94*(AB94-AA94)+P94+Q94 -> 0 | AM94: 0.1 | AN94: 0 | AO94: 0 | AU94: =AR95 -> 0 | AV94: =AX94+G94 -> 0 | AW94: =AU94+G94 -> 0 | AX94: =AQ95 -> 0 | AY94: =AU94 -> 0 | BZ94: 0 | CA94: 0 | CB94: 0 | CC94: =INDEX(Hovedtal,BS87,9+BW94) ->  | CD94: =CD93+CC94 ->  | CE94: 0 | CF94: 0 | CG94: 0 | CH94: 0
F95: 1 | G95: =IF(INDEX(Hovedtal,B87,9)<F95,0,INDEX(Etager,7-F95,2)) -> 0 | H95: =IF(F95>INDEX(Hovedtal,B87,9),0,INDEX(Hovedtal,B87,6)) -> 0 | K95: 0.0001 | L95: =INDEX(Hovedtal,B87,9+F95) -> 0 | M95: =M94+L95 -> 0 | N95: 0 | O95: 0 | P95: 0 | Q95: 0 | R95: 0 | S95: 0 | T95: 0.0001 | U95: 0 | V95: 0 | W95: =INDEX(Hovedtal,B87,8) -> 0 | AA95: 0 | AB95: =SQRT((AE95-AC95)^2+(AF95-AD95)^2)+0.0001 -> 0.0001 | AC95: =INDEX(Hovedtal,B87,2) -> 0 | AD95: =INDEX(Hovedtal,B87,3) -> 0 | AE95: =INDEX(Hovedtal,B87,4) -> 0 | AF95: =INDEX(Hovedtal,B87,5) -> 0 | AG95: =(AE95-AC95)/AB95 -> 0 | AH95: =(AF95-AD95)/AB95 -> 0 | AI95: =AA95 -> 0 | AJ95: =AB95 -> 0.0001 | AK95: =IF(G95=0,0.5*(AI95+AJ95),(M95*G95+AA95*P95+0.5*(AA95+AB95)*(N95+(AB95-AA95)*O95)+AB95*Q95+AK94*AL94)/AL95) -> 5e-05 | AL95: =AL94+N95+O95*(AB95-AA95)+P95+Q95 -> 0 | AM95: 0.1 | AN95: 0 | AO95: 0 | AP95: 0 | AQ95: =G95 -> 0 | AR95: =G95 -> 0 | AS95: 0 | AT95: =AP95 -> 0 | CB95: 0 | CC95: =INDEX(Hovedtal,BS87,9+BW95) ->  | CD95: =CD94+CC95 ->  | CE95: 0 | CF95: 0 | CG95: 0 | CH95: 0
A96: * | BT96: =MAX(AP88:BS95)+0.5 -> 0.5001
B98: Væg | F98: Etage | G98: h | H98: t | I98: r_1 | J98: r_2 | K98: L_eff | L98: V_i | M98: Q | N98: G | O98: p | P98: P1 | Q98: P2 | R98: T | S98: N | T98: b_1 | U98: b_2 | V98: n | W98: n_max | AA98: Etager: | AB98: 6 | AP98: Hjørnepunkter i vægopstalt | BZ98: r_1 | CA98: r_2 | CB98: L_eff | CC98: V_i | CD98: Q | CE98: G | CF98: p | CG98: P1 | CH98: P2
B99: =B87+1 -> 7 | G99: (m) | H99: (m) | I99: (m) | J99: (m) | K99: (m) | L99: (kN) | M99: (kN) | N99: (kN) | O99: (kN/m) | P99: (kN) | Q99: (kN) | R99: (kN) | S99: (kN) | T99: (m) | U99: (m) | V99: (kN/m) | W99: (kN/m) | BZ99: (m) | CA99: (m) | CB99: (m) | CC99: (kN) | CD99: (kN) | CE99: (kN) | CF99: (kN/m) | CG99: (kN) | CH99: (kN)
AA100: s_1 | AB100: s_2 | AC100: x_1 | AD100: y_1 | AE100: x_2 | AF100: y_2 | AG100: cos(a) | AH100: sin(a) | AI100: s_1_e | AJ100: s_2_e | AK100: s_N | AL100: N_0 | AM100: n | AN100: T_1 | AO100: T_2 | AP100: 0 | AQ100: 0 | AR100: =AB107 -> 0.0001 | AS100: =AB107 -> 0.0001 | AT100: =AP100 -> 0 | AU100: =AA106 -> 0 | AV100: =AA106 -> 0 | AW100: =AB106 -> 0.0001 | AX100: =AB106 -> 0.0001 | AY100: =AU100 -> 0 | AZ100: =AA105 -> 0 | BA100: =AA105 -> 0 | BB100: =AB105 -> 0.0001 | BC100: =AB105 -> 0.0001 | BD100: =AZ100 -> 0 | BE100: =AA104 -> 0 | BF100: =AA104 -> 0 | BG100: =AB104 -> 0.0001 | BH100: =AB104 -> 0.0001 | BI100: =BE100 -> 0 | BJ100: =AA103 -> 0 | BK100: =AA103 -> 0 | BL100: =AB103 -> 0.0001 | BM100: =AB103 -> 0.0001 | BN100: =BJ100 -> 0 | BO100: =AA102 -> 0 | BP100: =AA102 -> 0 | BQ100: =AB102 -> 0.0001 | BR100: =AB102 -> 0.0001 | BS100: =BO100 -> 0 | BT100: =BT108 -> 0.5001
F102: 6 | G102: =IF(INDEX(Hovedtal,B99,9)<F102,0,INDEX(Etager,7-F102,2)) -> 0 | H102: =IF(F102>INDEX(Hovedtal,B99,9),0,INDEX(Hovedtal,B99,6)) -> 0 | I102: 0 | J102: 0 | K102: =AJ102-AI102 -> 0.0001 | L102: =INDEX(Hovedtal,B99,9+F102) -> 0 | M102: =L102 -> 0 | N102: =(AB102-AA102)*H102*G102*g_g*g_e -> 0 | O102: 0 | P102: 0 | Q102: 0 | R102: =IF(AK102>0.5*(AI102+AJ102),AO102,AN102) -> 0 | S102: =AL102+R102 -> 0 | T102: =IF(AK102<=0.5*(AI102+AJ102),IF(AK102>AI102+0.5*AL102/AM102,2*(AK102-AI102),S102/AM102),0) -> 0.0001 | U102: =IF(AK102>0.5*(AI102+AJ102),IF(AK102<AJ102-0.5*AL102/AM102,2*(AJ102-AK102),S102/AM102),0) -> 0 | V102: =IF(AK102>0.5*(AI102+AJ102),S102/U102,S102/T102) -> 0 | W102: =INDEX(Hovedtal,B99,8) -> 0 | X102: =IF(OR(V102>W102,ABS(M102)>0.5*S102),"!","") ->  | AA102: =IF(G102=0,AA103,IF(I102=0,0,I102)) -> 0 | AB102: =IF(G102=0,AB103,IF(J102=0,AB107,AB107-J102)) -> 0.0001 | AC102: =IF(G102=0,0,AC107+AA102*AG107) -> 0 | AD102: =IF(G102=0,0,AD107+AA102*AH107) -> 0 | AE102: =IF(G102=0,0,AC107+AB102*AG107) -> 0 | AF102: =IF(G102=0,0,AD107+AB102*AH107) -> 0 | AI102: =MAX(AA102:AA103) -> 0 | AJ102: =MIN(AB102:AB103) -> 0.0001 | AK102: =IF(G102=0,0.5*(AI102+AJ102),(M102*G102+AA102*P102+0.5*(AA102+AB102)*(N102+(AB102-AA102)*O102)+AB102*Q102)/AL102) -> 5e-05 | AL102: =N102+O102*(AB102-AA102)+P102+Q102 -> 0 | AM102: =IF(AK102<0.5*(AI102+AJ102),MAX(W102,8*AL102*(0.5*(AJ102+AI102)-AK102)/(AJ102-AI102)^2+0.1),MAX(W102,-8*AL102*(0.5*(AJ102+AI102)-AK102)/(AJ102-AI102)^2+0.1)) -> 0.1 | AN102: =IF(AND(AK102<0.5*(AI102+AJ102),AL102/AM102>2*(AK102-AI102)),AM102*(-SQRT((AL102/AM102+0.5*AI102-0.5*AJ102)^2-2*(-AK102*AL102/AM102+0.5*AL102^2/AM102^2+AI102*AL102/AM102))-(AL102/AM102+0.5*AI102-0.5*AJ102)),0) -> 0 | AO102: =IF(AND(AK102>=0.5*(AI102+AJ102),AL102/AM102>2*(AJ102-AK102)),AM102*(-SQRT((AL102/AM102+0.5*AI102-0.5*AJ102)^2-2*(AK102*AL102/AM102+0.5*AL102^2/AM102^2-AJ102*AL102/AM102))-(AL102/AM102+0.5*AI102-0.5*AJ102)),0) -> 0 | BO102: =BL103 -> 0 | BP102: =BR102+G102 -> 0 | BQ102: =BO102+G102 -> 0 | BR102: =BK103 -> 0 | BS102: =BO102 -> 0 | BZ102: 0 | CA102: 0 | CB102: =DA102-CZ102 -> 0 | CC102: =INDEX(Hovedtal,BS99,9+BW102) ->  | CD102: =CC102 ->  | CE102: =(CS102-CR102)*BY102*BX102*g_g*g_e -> 0 | CF102: 0 | CG102: 0 | CH102: 0
F103: 5 | G103: =IF(INDEX(Hovedtal,B99,9)<F103,0,INDEX(Etager,7-F103,2)) -> 0 | H103: =IF(F103>INDEX(Hovedtal,B99,9),0,INDEX(Hovedtal,B99,6)) -> 0 | I103: 0 | J103: 0 | K103: 0.0001 | L103: =INDEX(Hovedtal,B99,9+F103) -> 0 | M103: =M102+L103 -> 0 | N103: 0 | O103: 0 | P103: 0 | Q103: 0 | R103: 0 | S103: 0 | T103: 0.0001 | U103: 0 | V103: 0 | W103: =INDEX(Hovedtal,B99,8) -> 0 | AA103: =IF(G103=0,AA104,IF(I103=0,0,I103)) -> 0 | AB103: =IF(G103=0,AB104,IF(J103=0,AB107,AB107-J103)) -> 0.0001 | AC103: =IF(G103=0,0,AC107+AA103*AG107) -> 0 | AD103: =IF(G103=0,0,AD107+AA103*AH107) -> 0 | AE103: =IF(G103=0,0,AC107+AB103*AG107) -> 0 | AF103: =IF(G103=0,0,AD107+AB103*AH107) -> 0 | AI103: =MAX(AA103:AA104) -> 0 | AJ103: =MIN(AB103:AB104) -> 0.0001 | AK103: =IF(G103=0,0.5*(AI103+AJ103),(M103*G103+AA103*P103+0.5*(AA103+AB103)*(N103+(AB103-AA103)*O103)+AB103*Q103+AK102*AL102)/AL103) -> 5e-05 | AL103: =AL102+N103+O103*(AB103-AA103)+P103+Q103 -> 0 | AM103: 0.1 | AN103: 0 | AO103: 0 | BJ103: =BG104 -> 0 | BK103: =BM103+G103 -> 0 | BL103: =BJ103+G103 -> 0 | BM103: =BF104 -> 0 | BN103: =BJ103 -> 0 | BZ103: 0 | CA103: 0 | CB103: 0 | CC103: =INDEX(Hovedtal,BS99,9+BW103) ->  | CD103: =CD102+CC103 ->  | CE103: 0 | CF103: 0 | CG103: 0 | CH103: 0
F104: 4 | G104: =IF(INDEX(Hovedtal,B99,9)<F104,0,INDEX(Etager,7-F104,2)) -> 0 | H104: =IF(F104>INDEX(Hovedtal,B99,9),0,INDEX(Hovedtal,B99,6)) -> 0 | I104: 0 | J104: 0 | K104: 0.0001 | L104: =INDEX(Hovedtal,B99,9+F104) -> 0 | M104: =M103+L104 -> 0 | N104: 0 | O104: 0 | P104: 0 | Q104: 0 | R104: 0 | S104: 0 | T104: 0.0001 | U104: 0 | V104: 0 | W104: =INDEX(Hovedtal,B99,8) -> 0 | AA104: =IF(G104=0,AA105,IF(I104=0,0,I104)) -> 0 | AB104: =IF(G104=0,AB105,IF(J104=0,AB107,AB107-J104)) -> 0.0001 | AC104: =IF(G104=0,0,AC107+AA104*AG107) -> 0 | AD104: =IF(G104=0,0,AD107+AA104*AH107) -> 0 | AE104: =IF(G104=0,0,AC107+AB104*AG107) -> 0 | AF104: =IF(G104=0,0,AD107+AB104*AH107) -> 0 | AI104: =MAX(AA104:AA105) -> 0 | AJ104: =MIN(AB104:AB105) -> 0.0001 | AK104: =IF(G104=0,0.5*(AI104+AJ104),(M104*G104+AA104*P104+0.5*(AA104+AB104)*(N104+(AB104-AA104)*O104)+AB104*Q104+AK103*AL103)/AL104) -> 5e-05 | AL104: =AL103+N104+O104*(AB104-AA104)+P104+Q104 -> 0 | AM104: 0.1 | AN104: 0 | AO104: 0 | BE104: =BB105 -> 0 | BF104: =BH104+G104 -> 0 | BG104: =BE104+G104 -> 0 | BH104: =BA105 -> 0 | BI104: =BE104 -> 0 | BZ104: 0 | CA104: 0 | CB104: 0 | CC104: =INDEX(Hovedtal,BS99,9+BW104) ->  | CD104: =CD103+CC104 ->  | CE104: 0 | CF104: 0 | CG104: 0 | CH104: 0
F105: 3 | G105: =IF(INDEX(Hovedtal,B99,9)<F105,0,INDEX(Etager,7-F105,2)) -> 0 | H105: =IF(F105>INDEX(Hovedtal,B99,9),0,INDEX(Hovedtal,B99,6)) -> 0 | I105: 0 | J105: 0 | K105: 0.0001 | L105: =INDEX(Hovedtal,B99,9+F105) -> 0 | M105: =M104+L105 -> 0 | N105: 0 | O105: 0 | P105: 0 | Q105: 0 | R105: 0 | S105: 0 | T105: 0.0001 | U105: 0 | V105: 0 | W105: =INDEX(Hovedtal,B99,8) -> 0 | AA105: =IF(G105=0,AA106,IF(I105=0,0,I105)) -> 0 | AB105: =IF(G105=0,AB106,IF(J105=0,AB107,AB107-J105)) -> 0.0001 | AC105: =IF(G105=0,0,AC107+AA105*AG107) -> 0 | AD105: =IF(G105=0,0,AD107+AA105*AH107) -> 0 | AE105: =IF(G105=0,0,AC107+AB105*AG107) -> 0 | AF105: =IF(G105=0,0,AD107+AB105*AH107) -> 0 | AI105: =MAX(AA105:AA106) -> 0 | AJ105: =MIN(AB105:AB106) -> 0.0001 | AK105: =IF(G105=0,0.5*(AI105+AJ105),(M105*G105+AA105*P105+0.5*(AA105+AB105)*(N105+(AB105-AA105)*O105)+AB105*Q105+AK104*AL104)/AL105) -> 5e-05 | AL105: =AL104+N105+O105*(AB105-AA105)+P105+Q105 -> 0 | AM105: 0.1 | AN105: 0 | AO105: 0 | AZ105: =AW106 -> 0 | BA105: =BC105+G105 -> 0 | BB105: =AZ105+G105 -> 0 | BC105: =AV106 -> 0 | BD105: =AZ105 -> 0 | BZ105: 0 | CA105: 0 | CB105: 0 | CC105: =INDEX(Hovedtal,BS99,9+BW105) ->  | CD105: =CD104+CC105 ->  | CE105: 0 | CF105: 0 | CG105: 0 | CH105: 0
F106: 2 | G106: =IF(INDEX(Hovedtal,B99,9)<F106,0,INDEX(Etager,7-F106,2)) -> 0 | H106: =IF(F106>INDEX(Hovedtal,B99,9),0,INDEX(Hovedtal,B99,6)) -> 0 | I106: 0 | J106: 0 | K106: 0.0001 | L106: =INDEX(Hovedtal,B99,9+F106) -> 0 | M106: =M105+L106 -> 0 | N106: 0 | O106: 0 | P106: 0 | Q106: 0 | R106: 0 | S106: 0 | T106: 0.0001 | U106: 0 | V106: 0 | W106: =INDEX(Hovedtal,B99,8) -> 0 | AA106: =IF(G106=0,AA107,IF(I106=0,0,I106)) -> 0 | AB106: =IF(G106=0,AB107,IF(J106=0,AB107,AB107-J106)) -> 0.0001 | AC106: =IF(G106=0,0,AC107+AA106*AG107) -> 0 | AD106: =IF(G106=0,0,AD107+AA106*AH107) -> 0 | AE106: =IF(G106=0,0,AC107+AB106*AG107) -> 0 | AF106: =IF(G106=0,0,AD107+AB106*AH107) -> 0 | AI106: =MAX(AA106:AA107) -> 0 | AJ106: =MIN(AB106:AB107) -> 0.0001 | AK106: =IF(G106=0,0.5*(AI106+AJ106),(M106*G106+AA106*P106+0.5*(AA106+AB106)*(N106+(AB106-AA106)*O106)+AB106*Q106+AK105*AL105)/AL106) -> 5e-05 | AL106: =AL105+N106+O106*(AB106-AA106)+P106+Q106 -> 0 | AM106: 0.1 | AN106: 0 | AO106: 0 | AU106: =AR107 -> 0 | AV106: =AX106+G106 -> 0 | AW106: =AU106+G106 -> 0 | AX106: =AQ107 -> 0 | AY106: =AU106 -> 0 | BZ106: 0 | CA106: 0 | CB106: 0 | CC106: =INDEX(Hovedtal,BS99,9+BW106) ->  | CD106: =CD105+CC106 ->  | CE106: 0 | CF106: 0 | CG106: 0 | CH106: 0
F107: 1 | G107: =IF(INDEX(Hovedtal,B99,9)<F107,0,INDEX(Etager,7-F107,2)) -> 0 | H107: =IF(F107>INDEX(Hovedtal,B99,9),0,INDEX(Hovedtal,B99,6)) -> 0 | K107: 0.0001 | L107: =INDEX(Hovedtal,B99,9+F107) -> 0 | M107: =M106+L107 -> 0 | N107: 0 | O107: 0 | P107: 0 | Q107: 0 | R107: 0 | S107: 0 | T107: 0.0001 | U107: 0 | V107: 0 | W107: =INDEX(Hovedtal,B99,8) -> 0 | AA107: 0 | AB107: =SQRT((AE107-AC107)^2+(AF107-AD107)^2)+0.0001 -> 0.0001 | AC107: =INDEX(Hovedtal,B99,2) -> 0 | AD107: =INDEX(Hovedtal,B99,3) -> 0 | AE107: =INDEX(Hovedtal,B99,4) -> 0 | AF107: =INDEX(Hovedtal,B99,5) -> 0 | AG107: =(AE107-AC107)/AB107 -> 0 | AH107: =(AF107-AD107)/AB107 -> 0 | AI107: =AA107 -> 0 | AJ107: =AB107 -> 0.0001 | AK107: =IF(G107=0,0.5*(AI107+AJ107),(M107*G107+AA107*P107+0.5*(AA107+AB107)*(N107+(AB107-AA107)*O107)+AB107*Q107+AK106*AL106)/AL107) -> 5e-05 | AL107: =AL106+N107+O107*(AB107-AA107)+P107+Q107 -> 0 | AM107: 0.1 | AN107: 0 | AO107: 0 | AP107: 0 | AQ107: =G107 -> 0 | AR107: =G107 -> 0 | AS107: 0 | AT107: =AP107 -> 0 | CB107: 0 | CC107: =INDEX(Hovedtal,BS99,9+BW107) ->  | CD107: =CD106+CC107 ->  | CE107: 0 | CF107: 0 | CG107: 0 | CH107: 0
A108: * | BT108: =MAX(AP100:BS107)+0.5 -> 0.5001
B110: Væg | F110: Etage | G110: h | H110: t | I110: r_1 | J110: r_2 | K110: L_eff | L110: V_i | M110: Q | N110: G | O110: p | P110: P1 | Q110: P2 | R110: T | S110: N | T110: b_1 | U110: b_2 | V110: n | W110: n_max | AA110: Etager: | AB110: 6 | AP110: Hjørnepunkter i vægopstalt | BZ110: r_1 | CA110: r_2 | CB110: L_eff | CC110: V_i | CD110: Q | CE110: G | CF110: p | CG110: P1 | CH110: P2
B111: =B99+1 -> 8 | G111: (m) | H111: (m) | I111: (m) | J111: (m) | K111: (m) | L111: (kN) | M111: (kN) | N111: (kN) | O111: (kN/m) | P111: (kN) | Q111: (kN) | R111: (kN) | S111: (kN) | T111: (m) | U111: (m) | V111: (kN/m) | W111: (kN/m) | BZ111: (m) | CA111: (m) | CB111: (m) | CC111: (kN) | CD111: (kN) | CE111: (kN) | CF111: (kN/m) | CG111: (kN) | CH111: (kN)
AA112: s_1 | AB112: s_2 | AC112: x_1 | AD112: y_1 | AE112: x_2 | AF112: y_2 | AG112: cos(a) | AH112: sin(a) | AI112: s_1_e | AJ112: s_2_e | AK112: s_N | AL112: N_0 | AM112: n | AN112: T_1 | AO112: T_2 | AP112: 0 | AQ112: 0 | AR112: =AB119 -> 0.0001 | AS112: =AB119 -> 0.0001 | AT112: =AP112 -> 0 | AU112: =AA118 -> 0 | AV112: =AA118 -> 0 | AW112: =AB118 -> 0.0001 | AX112: =AB118 -> 0.0001 | AY112: =AU112 -> 0 | AZ112: =AA117 -> 0 | BA112: =AA117 -> 0 | BB112: =AB117 -> 0.0001 | BC112: =AB117 -> 0.0001 | BD112: =AZ112 -> 0 | BE112: =AA116 -> 0 | BF112: =AA116 -> 0 | BG112: =AB116 -> 0.0001 | BH112: =AB116 -> 0.0001 | BI112: =BE112 -> 0 | BJ112: =AA115 -> 0 | BK112: =AA115 -> 0 | BL112: =AB115 -> 0.0001 | BM112: =AB115 -> 0.0001 | BN112: =BJ112 -> 0 | BO112: =AA114 -> 0 | BP112: =AA114 -> 0 | BQ112: =AB114 -> 0.0001 | BR112: =AB114 -> 0.0001 | BS112: =BO112 -> 0 | BT112: =BT120 -> 0.5001
F114: 6 | G114: =IF(INDEX(Hovedtal,B111,9)<F114,0,INDEX(Etager,7-F114,2)) -> 0 | H114: =IF(F114>INDEX(Hovedtal,B111,9),0,INDEX(Hovedtal,B111,6)) -> 0 | I114: 0 | J114: 0 | K114: =AJ114-AI114 -> 0.0001 | L114: =INDEX(Hovedtal,B111,9+F114) -> 0 | M114: =L114 -> 0 | N114: =(AB114-AA114)*H114*G114*g_g*g_e -> 0 | O114: 0 | P114: 0 | Q114: 0 | R114: =IF(AK114>0.5*(AI114+AJ114),AO114,AN114) -> 0 | S114: =AL114+R114 -> 0 | T114: =IF(AK114<=0.5*(AI114+AJ114),IF(AK114>AI114+0.5*AL114/AM114,2*(AK114-AI114),S114/AM114),0) -> 0.0001 | U114: =IF(AK114>0.5*(AI114+AJ114),IF(AK114<AJ114-0.5*AL114/AM114,2*(AJ114-AK114),S114/AM114),0) -> 0 | V114: =IF(AK114>0.5*(AI114+AJ114),S114/U114,S114/T114) -> 0 | W114: =INDEX(Hovedtal,B111,8) -> 0 | X114: =IF(OR(V114>W114,ABS(M114)>0.5*S114),"!","") ->  | AA114: =IF(G114=0,AA115,IF(I114=0,0,I114)) -> 0 | AB114: =IF(G114=0,AB115,IF(J114=0,AB119,AB119-J114)) -> 0.0001 | AC114: =IF(G114=0,0,AC119+AA114*AG119) -> 0 | AD114: =IF(G114=0,0,AD119+AA114*AH119) -> 0 | AE114: =IF(G114=0,0,AC119+AB114*AG119) -> 0 | AF114: =IF(G114=0,0,AD119+AB114*AH119) -> 0 | AI114: =MAX(AA114:AA115) -> 0 | AJ114: =MIN(AB114:AB115) -> 0.0001 | AK114: =IF(G114=0,0.5*(AI114+AJ114),(M114*G114+AA114*P114+0.5*(AA114+AB114)*(N114+(AB114-AA114)*O114)+AB114*Q114)/AL114) -> 5e-05 | AL114: =N114+O114*(AB114-AA114)+P114+Q114 -> 0 | AM114: =IF(AK114<0.5*(AI114+AJ114),MAX(W114,8*AL114*(0.5*(AJ114+AI114)-AK114)/(AJ114-AI114)^2+0.1),MAX(W114,-8*AL114*(0.5*(AJ114+AI114)-AK114)/(AJ114-AI114)^2+0.1)) -> 0.1 | AN114: =IF(AND(AK114<0.5*(AI114+AJ114),AL114/AM114>2*(AK114-AI114)),AM114*(-SQRT((AL114/AM114+0.5*AI114-0.5*AJ114)^2-2*(-AK114*AL114/AM114+0.5*AL114^2/AM114^2+AI114*AL114/AM114))-(AL114/AM114+0.5*AI114-0.5*AJ114)),0) -> 0 | AO114: =IF(AND(AK114>=0.5*(AI114+AJ114),AL114/AM114>2*(AJ114-AK114)),AM114*(-SQRT((AL114/AM114+0.5*AI114-0.5*AJ114)^2-2*(AK114*AL114/AM114+0.5*AL114^2/AM114^2-AJ114*AL114/AM114))-(AL114/AM114+0.5*AI114-0.5*AJ114)),0) -> 0 | BO114: =BL115 -> 0 | BP114: =BR114+G114 -> 0 | BQ114: =BO114+G114 -> 0 | BR114: =BK115 -> 0 | BS114: =BO114 -> 0 | BZ114: 0 | CA114: 0 | CB114: =DA114-CZ114 -> 0 | CC114: =INDEX(Hovedtal,BS111,9+BW114) ->  | CD114: =CC114 ->  | CE114: =(CS114-CR114)*BY114*BX114*g_g*g_e -> 0 | CF114: 0 | CG114: 0 | CH114: 0
F115: 5 | G115: =IF(INDEX(Hovedtal,B111,9)<F115,0,INDEX(Etager,7-F115,2)) -> 0 | H115: =IF(F115>INDEX(Hovedtal,B111,9),0,INDEX(Hovedtal,B111,6)) -> 0 | I115: 0 | J115: 0 | K115: 0.0001 | L115: =INDEX(Hovedtal,B111,9+F115) -> 0 | M115: =M114+L115 -> 0 | N115: 0 | O115: 0 | P115: 0 | Q115: 0 | R115: 0 | S115: 0 | T115: 0.0001 | U115: 0 | V115: 0 | W115: =INDEX(Hovedtal,B111,8) -> 0 | AA115: =IF(G115=0,AA116,IF(I115=0,0,I115)) -> 0 | AB115: =IF(G115=0,AB116,IF(J115=0,AB119,AB119-J115)) -> 0.0001 | AC115: =IF(G115=0,0,AC119+AA115*AG119) -> 0 | AD115: =IF(G115=0,0,AD119+AA115*AH119) -> 0 | AE115: =IF(G115=0,0,AC119+AB115*AG119) -> 0 | AF115: =IF(G115=0,0,AD119+AB115*AH119) -> 0 | AI115: =MAX(AA115:AA116) -> 0 | AJ115: =MIN(AB115:AB116) -> 0.0001 | AK115: =IF(G115=0,0.5*(AI115+AJ115),(M115*G115+AA115*P115+0.5*(AA115+AB115)*(N115+(AB115-AA115)*O115)+AB115*Q115+AK114*AL114)/AL115) -> 5e-05 | AL115: =AL114+N115+O115*(AB115-AA115)+P115+Q115 -> 0 | AM115: 0.1 | AN115: 0 | AO115: 0 | BJ115: =BG116 -> 0 | BK115: =BM115+G115 -> 0 | BL115: =BJ115+G115 -> 0 | BM115: =BF116 -> 0 | BN115: =BJ115 -> 0 | BZ115: 0 | CA115: 0 | CB115: 0 | CC115: =INDEX(Hovedtal,BS111,9+BW115) ->  | CD115: =CD114+CC115 ->  | CE115: 0 | CF115: 0 | CG115: 0 | CH115: 0
F116: 4 | G116: =IF(INDEX(Hovedtal,B111,9)<F116,0,INDEX(Etager,7-F116,2)) -> 0 | H116: =IF(F116>INDEX(Hovedtal,B111,9),0,INDEX(Hovedtal,B111,6)) -> 0 | I116: 0 | J116: 0 | K116: 0.0001 | L116: =INDEX(Hovedtal,B111,9+F116) -> 0 | M116: =M115+L116 -> 0 | N116: 0 | O116: 0 | P116: 0 | Q116: 0 | R116: 0 | S116: 0 | T116: 0.0001 | U116: 0 | V116: 0 | W116: =INDEX(Hovedtal,B111,8) -> 0 | AA116: =IF(G116=0,AA117,IF(I116=0,0,I116)) -> 0 | AB116: =IF(G116=0,AB117,IF(J116=0,AB119,AB119-J116)) -> 0.0001 | AC116: =IF(G116=0,0,AC119+AA116*AG119) -> 0 | AD116: =IF(G116=0,0,AD119+AA116*AH119) -> 0 | AE116: =IF(G116=0,0,AC119+AB116*AG119) -> 0 | AF116: =IF(G116=0,0,AD119+AB116*AH119) -> 0 | AI116: =MAX(AA116:AA117) -> 0 | AJ116: =MIN(AB116:AB117) -> 0.0001 | AK116: =IF(G116=0,0.5*(AI116+AJ116),(M116*G116+AA116*P116+0.5*(AA116+AB116)*(N116+(AB116-AA116)*O116)+AB116*Q116+AK115*AL115)/AL116) -> 5e-05 | AL116: =AL115+N116+O116*(AB116-AA116)+P116+Q116 -> 0 | AM116: 0.1 | AN116: 0 | AO116: 0 | BE116: =BB117 -> 0 | BF116: =BH116+G116 -> 0 | BG116: =BE116+G116 -> 0 | BH116: =BA117 -> 0 | BI116: =BE116 -> 0 | BZ116: 0 | CA116: 0 | CB116: 0 | CC116: =INDEX(Hovedtal,BS111,9+BW116) ->  | CD116: =CD115+CC116 ->  | CE116: 0 | CF116: 0 | CG116: 0 | CH116: 0
F117: 3 | G117: =IF(INDEX(Hovedtal,B111,9)<F117,0,INDEX(Etager,7-F117,2)) -> 0 | H117: =IF(F117>INDEX(Hovedtal,B111,9),0,INDEX(Hovedtal,B111,6)) -> 0 | I117: 0 | J117: 0 | K117: 0.0001 | L117: =INDEX(Hovedtal,B111,9+F117) -> 0 | M117: =M116+L117 -> 0 | N117: 0 | O117: 0 | P117: 0 | Q117: 0 | R117: 0 | S117: 0 | T117: 0.0001 | U117: 0 | V117: 0 | W117: =INDEX(Hovedtal,B111,8) -> 0 | AA117: =IF(G117=0,AA118,IF(I117=0,0,I117)) -> 0 | AB117: =IF(G117=0,AB118,IF(J117=0,AB119,AB119-J117)) -> 0.0001 | AC117: =IF(G117=0,0,AC119+AA117*AG119) -> 0 | AD117: =IF(G117=0,0,AD119+AA117*AH119) -> 0 | AE117: =IF(G117=0,0,AC119+AB117*AG119) -> 0 | AF117: =IF(G117=0,0,AD119+AB117*AH119) -> 0 | AI117: =MAX(AA117:AA118) -> 0 | AJ117: =MIN(AB117:AB118) -> 0.0001 | AK117: =IF(G117=0,0.5*(AI117+AJ117),(M117*G117+AA117*P117+0.5*(AA117+AB117)*(N117+(AB117-AA117)*O117)+AB117*Q117+AK116*AL116)/AL117) -> 5e-05 | AL117: =AL116+N117+O117*(AB117-AA117)+P117+Q117 -> 0 | AM117: 0.1 | AN117: 0 | AO117: 0 | AZ117: =AW118 -> 0 | BA117: =BC117+G117 -> 0 | BB117: =AZ117+G117 -> 0 | BC117: =AV118 -> 0 | BD117: =AZ117 -> 0 | BZ117: 0 | CA117: 0 | CB117: 0 | CC117: =INDEX(Hovedtal,BS111,9+BW117) ->  | CD117: =CD116+CC117 ->  | CE117: 0 | CF117: 0 | CG117: 0 | CH117: 0
F118: 2 | G118: =IF(INDEX(Hovedtal,B111,9)<F118,0,INDEX(Etager,7-F118,2)) -> 0 | H118: =IF(F118>INDEX(Hovedtal,B111,9),0,INDEX(Hovedtal,B111,6)) -> 0 | I118: 0 | J118: 0 | K118: 0.0001 | L118: =INDEX(Hovedtal,B111,9+F118) -> 0 | M118: =M117+L118 -> 0 | N118: 0 | O118: 0 | P118: 0 | Q118: 0 | R118: 0 | S118: 0 | T118: 0.0001 | U118: 0 | V118: 0 | W118: =INDEX(Hovedtal,B111,8) -> 0 | AA118: =IF(G118=0,AA119,IF(I118=0,0,I118)) -> 0 | AB118: =IF(G118=0,AB119,IF(J118=0,AB119,AB119-J118)) -> 0.0001 | AC118: =IF(G118=0,0,AC119+AA118*AG119) -> 0 | AD118: =IF(G118=0,0,AD119+AA118*AH119) -> 0 | AE118: =IF(G118=0,0,AC119+AB118*AG119) -> 0 | AF118: =IF(G118=0,0,AD119+AB118*AH119) -> 0 | AI118: =MAX(AA118:AA119) -> 0 | AJ118: =MIN(AB118:AB119) -> 0.0001 | AK118: =IF(G118=0,0.5*(AI118+AJ118),(M118*G118+AA118*P118+0.5*(AA118+AB118)*(N118+(AB118-AA118)*O118)+AB118*Q118+AK117*AL117)/AL118) -> 5e-05 | AL118: =AL117+N118+O118*(AB118-AA118)+P118+Q118 -> 0 | AM118: 0.1 | AN118: 0 | AO118: 0 | AU118: =AR119 -> 0 | AV118: =AX118+G118 -> 0 | AW118: =AU118+G118 -> 0 | AX118: =AQ119 -> 0 | AY118: =AU118 -> 0 | BZ118: 0 | CA118: 0 | CB118: 0 | CC118: =INDEX(Hovedtal,BS111,9+BW118) ->  | CD118: =CD117+CC118 ->  | CE118: 0 | CF118: 0 | CG118: 0 | CH118: 0
F119: 1 | G119: =IF(INDEX(Hovedtal,B111,9)<F119,0,INDEX(Etager,7-F119,2)) -> 0 | H119: =IF(F119>INDEX(Hovedtal,B111,9),0,INDEX(Hovedtal,B111,6)) -> 0 | K119: 0.0001 | L119: =INDEX(Hovedtal,B111,9+F119) -> 0 | M119: =M118+L119 -> 0 | N119: 0 | O119: 0 | P119: 0 | Q119: 0 | R119: 0 | S119: 0 | T119: 0.0001 | U119: 0 | V119: 0 | W119: =INDEX(Hovedtal,B111,8) -> 0 | AA119: 0 | AB119: =SQRT((AE119-AC119)^2+(AF119-AD119)^2)+0.0001 -> 0.0001 | AC119: =INDEX(Hovedtal,B111,2) -> 0 | AD119: =INDEX(Hovedtal,B111,3) -> 0 | AE119: =INDEX(Hovedtal,B111,4) -> 0 | AF119: =INDEX(Hovedtal,B111,5) -> 0 | AG119: =(AE119-AC119)/AB119 -> 0 | AH119: =(AF119-AD119)/AB119 -> 0 | AI119: =AA119 -> 0 | AJ119: =AB119 -> 0.0001 | AK119: =IF(G119=0,0.5*(AI119+AJ119),(M119*G119+AA119*P119+0.5*(AA119+AB119)*(N119+(AB119-AA119)*O119)+AB119*Q119+AK118*AL118)/AL119) -> 5e-05 | AL119: =AL118+N119+O119*(AB119-AA119)+P119+Q119 -> 0 | AM119: 0.1 | AN119: 0 | AO119: 0 | AP119: 0 | AQ119: =G119 -> 0 | AR119: =G119 -> 0 | AS119: 0 | AT119: =AP119 -> 0 | CB119: 0 | CC119: =INDEX(Hovedtal,BS111,9+BW119) ->  | CD119: =CD118+CC119 ->  | CE119: 0 | CF119: 0 | CG119: 0 | CH119: 0
A120: * | BT120: =MAX(AP112:BS119)+0.5 -> 0.5001
B122: Væg | F122: Etage | G122: h | H122: t | I122: r_1 | J122: r_2 | K122: L_eff | L122: V_i | M122: Q | N122: G | O122: p | P122: P1 | Q122: P2 | R122: T | S122: N | T122: b_1 | U122: b_2 | V122: n | W122: n_max | AA122: Etager: | AB122: 6 | AP122: Hjørnepunkter i vægopstalt | BZ122: r_1 | CA122: r_2 | CB122: L_eff | CC122: V_i | CD122: Q | CE122: G | CF122: p | CG122: P1 | CH122: P2
B123: =B111+1 -> 9 | G123: (m) | H123: (m) | I123: (m) | J123: (m) | K123: (m) | L123: (kN) | M123: (kN) | N123: (kN) | O123: (kN/m) | P123: (kN) | Q123: (kN) | R123: (kN) | S123: (kN) | T123: (m) | U123: (m) | V123: (kN/m) | W123: (kN/m) | BZ123: (m) | CA123: (m) | CB123: (m) | CC123: (kN) | CD123: (kN) | CE123: (kN) | CF123: (kN/m) | CG123: (kN) | CH123: (kN)
AA124: s_1 | AB124: s_2 | AC124: x_1 | AD124: y_1 | AE124: x_2 | AF124: y_2 | AG124: cos(a) | AH124: sin(a) | AI124: s_1_e | AJ124: s_2_e | AK124: s_N | AL124: N_0 | AM124: n | AN124: T_1 | AO124: T_2 | AP124: 0 | AQ124: 0 | AR124: =AB131 -> 0.0001 | AS124: =AB131 -> 0.0001 | AT124: =AP124 -> 0 | AU124: =AA130 -> 0 | AV124: =AA130 -> 0 | AW124: =AB130 -> 0.0001 | AX124: =AB130 -> 0.0001 | AY124: =AU124 -> 0 | AZ124: =AA129 -> 0 | BA124: =AA129 -> 0 | BB124: =AB129 -> 0.0001 | BC124: =AB129 -> 0.0001 | BD124: =AZ124 -> 0 | BE124: =AA128 -> 0 | BF124: =AA128 -> 0 | BG124: =AB128 -> 0.0001 | BH124: =AB128 -> 0.0001 | BI124: =BE124 -> 0 | BJ124: =AA127 -> 0 | BK124: =AA127 -> 0 | BL124: =AB127 -> 0.0001 | BM124: =AB127 -> 0.0001 | BN124: =BJ124 -> 0 | BO124: =AA126 -> 0 | BP124: =AA126 -> 0 | BQ124: =AB126 -> 0.0001 | BR124: =AB126 -> 0.0001 | BS124: =BO124 -> 0 | BT124: =BT132 -> 0.5001
F126: 6 | G126: =IF(INDEX(Hovedtal,B123,9)<F126,0,INDEX(Etager,7-F126,2)) -> 0 | H126: =IF(F126>INDEX(Hovedtal,B123,9),0,INDEX(Hovedtal,B123,6)) -> 0 | I126: 0 | J126: 0 | K126: =AJ126-AI126 -> 0.0001 | L126: =INDEX(Hovedtal,B123,9+F126) -> 0 | M126: =L126 -> 0 | N126: =(AB126-AA126)*H126*G126*g_g*g_e -> 0 | O126: 0 | P126: 0 | Q126: 0 | R126: =IF(AK126>0.5*(AI126+AJ126),AO126,AN126) -> 0 | S126: =AL126+R126 -> 0 | T126: =IF(AK126<=0.5*(AI126+AJ126),IF(AK126>AI126+0.5*AL126/AM126,2*(AK126-AI126),S126/AM126),0) -> 0.0001 | U126: =IF(AK126>0.5*(AI126+AJ126),IF(AK126<AJ126-0.5*AL126/AM126,2*(AJ126-AK126),S126/AM126),0) -> 0 | V126: =IF(AK126>0.5*(AI126+AJ126),S126/U126,S126/T126) -> 0 | W126: =INDEX(Hovedtal,B123,8) -> 0 | X126: =IF(OR(V126>W126,ABS(M126)>0.5*S126),"!","") ->  | AA126: =IF(G126=0,AA127,IF(I126=0,0,I126)) -> 0 | AB126: =IF(G126=0,AB127,IF(J126=0,AB131,AB131-J126)) -> 0.0001 | AC126: =IF(G126=0,0,AC131+AA126*AG131) -> 0 | AD126: =IF(G126=0,0,AD131+AA126*AH131) -> 0 | AE126: =IF(G126=0,0,AC131+AB126*AG131) -> 0 | AF126: =IF(G126=0,0,AD131+AB126*AH131) -> 0 | AI126: =MAX(AA126:AA127) -> 0 | AJ126: =MIN(AB126:AB127) -> 0.0001 | AK126: =IF(G126=0,0.5*(AI126+AJ126),(M126*G126+AA126*P126+0.5*(AA126+AB126)*(N126+(AB126-AA126)*O126)+AB126*Q126)/AL126) -> 5e-05 | AL126: =N126+O126*(AB126-AA126)+P126+Q126 -> 0 | AM126: =IF(AK126<0.5*(AI126+AJ126),MAX(W126,8*AL126*(0.5*(AJ126+AI126)-AK126)/(AJ126-AI126)^2+0.1),MAX(W126,-8*AL126*(0.5*(AJ126+AI126)-AK126)/(AJ126-AI126)^2+0.1)) -> 0.1 | AN126: =IF(AND(AK126<0.5*(AI126+AJ126),AL126/AM126>2*(AK126-AI126)),AM126*(-SQRT((AL126/AM126+0.5*AI126-0.5*AJ126)^2-2*(-AK126*AL126/AM126+0.5*AL126^2/AM126^2+AI126*AL126/AM126))-(AL126/AM126+0.5*AI126-0.5*AJ126)),0) -> 0 | AO126: =IF(AND(AK126>=0.5*(AI126+AJ126),AL126/AM126>2*(AJ126-AK126)),AM126*(-SQRT((AL126/AM126+0.5*AI126-0.5*AJ126)^2-2*(AK126*AL126/AM126+0.5*AL126^2/AM126^2-AJ126*AL126/AM126))-(AL126/AM126+0.5*AI126-0.5*AJ126)),0) -> 0 | BO126: =BL127 -> 0 | BP126: =BR126+G126 -> 0 | BQ126: =BO126+G126 -> 0 | BR126: =BK127 -> 0 | BS126: =BO126 -> 0 | BZ126: 0 | CA126: 0 | CB126: =DA126-CZ126 -> 0 | CC126: =INDEX(Hovedtal,BS123,9+BW126) ->  | CD126: =CC126 ->  | CE126: =(CS126-CR126)*BY126*BX126*g_g*g_e -> 0 | CF126: 0 | CG126: 0 | CH126: 0
F127: 5 | G127: =IF(INDEX(Hovedtal,B123,9)<F127,0,INDEX(Etager,7-F127,2)) -> 0 | H127: =IF(F127>INDEX(Hovedtal,B123,9),0,INDEX(Hovedtal,B123,6)) -> 0 | I127: 0 | J127: 0 | K127: 0.0001 | L127: =INDEX(Hovedtal,B123,9+F127) -> 0 | M127: =M126+L127 -> 0 | N127: 0 | O127: 0 | P127: 0 | Q127: 0 | R127: 0 | S127: 0 | T127: 0.0001 | U127: 0 | V127: 0 | W127: =INDEX(Hovedtal,B123,8) -> 0 | AA127: =IF(G127=0,AA128,IF(I127=0,0,I127)) -> 0 | AB127: =IF(G127=0,AB128,IF(J127=0,AB131,AB131-J127)) -> 0.0001 | AC127: =IF(G127=0,0,AC131+AA127*AG131) -> 0 | AD127: =IF(G127=0,0,AD131+AA127*AH131) -> 0 | AE127: =IF(G127=0,0,AC131+AB127*AG131) -> 0 | AF127: =IF(G127=0,0,AD131+AB127*AH131) -> 0 | AI127: =MAX(AA127:AA128) -> 0 | AJ127: =MIN(AB127:AB128) -> 0.0001 | AK127: =IF(G127=0,0.5*(AI127+AJ127),(M127*G127+AA127*P127+0.5*(AA127+AB127)*(N127+(AB127-AA127)*O127)+AB127*Q127+AK126*AL126)/AL127) -> 5e-05 | AL127: =AL126+N127+O127*(AB127-AA127)+P127+Q127 -> 0 | AM127: 0.1 | AN127: 0 | AO127: 0 | BJ127: =BG128 -> 0 | BK127: =BM127+G127 -> 0 | BL127: =BJ127+G127 -> 0 | BM127: =BF128 -> 0 | BN127: =BJ127 -> 0 | BZ127: 0 | CA127: 0 | CB127: 0 | CC127: =INDEX(Hovedtal,BS123,9+BW127) ->  | CD127: =CD126+CC127 ->  | CE127: 0 | CF127: 0 | CG127: 0 | CH127: 0
F128: 4 | G128: =IF(INDEX(Hovedtal,B123,9)<F128,0,INDEX(Etager,7-F128,2)) -> 0 | H128: =IF(F128>INDEX(Hovedtal,B123,9),0,INDEX(Hovedtal,B123,6)) -> 0 | I128: 0 | J128: 0 | K128: 0.0001 | L128: =INDEX(Hovedtal,B123,9+F128) -> 0 | M128: =M127+L128 -> 0 | N128: 0 | O128: 0 | P128: 0 | Q128: 0 | R128: 0 | S128: 0 | T128: 0.0001 | U128: 0 | V128: 0 | W128: =INDEX(Hovedtal,B123,8) -> 0 | AA128: =IF(G128=0,AA129,IF(I128=0,0,I128)) -> 0 | AB128: =IF(G128=0,AB129,IF(J128=0,AB131,AB131-J128)) -> 0.0001 | AC128: =IF(G128=0,0,AC131+AA128*AG131) -> 0 | AD128: =IF(G128=0,0,AD131+AA128*AH131) -> 0 | AE128: =IF(G128=0,0,AC131+AB128*AG131) -> 0 | AF128: =IF(G128=0,0,AD131+AB128*AH131) -> 0 | AI128: =MAX(AA128:AA129) -> 0 | AJ128: =MIN(AB128:AB129) -> 0.0001 | AK128: =IF(G128=0,0.5*(AI128+AJ128),(M128*G128+AA128*P128+0.5*(AA128+AB128)*(N128+(AB128-AA128)*O128)+AB128*Q128+AK127*AL127)/AL128) -> 5e-05 | AL128: =AL127+N128+O128*(AB128-AA128)+P128+Q128 -> 0 | AM128: 0.1 | AN128: 0 | AO128: 0 | BE128: =BB129 -> 0 | BF128: =BH128+G128 -> 0 | BG128: =BE128+G128 -> 0 | BH128: =BA129 -> 0 | BI128: =BE128 -> 0 | BZ128: 0 | CA128: 0 | CB128: 0 | CC128: =INDEX(Hovedtal,BS123,9+BW128) ->  | CD128: =CD127+CC128 ->  | CE128: 0 | CF128: 0 | CG128: 0 | CH128: 0
F129: 3 | G129: =IF(INDEX(Hovedtal,B123,9)<F129,0,INDEX(Etager,7-F129,2)) -> 0 | H129: =IF(F129>INDEX(Hovedtal,B123,9),0,INDEX(Hovedtal,B123,6)) -> 0 | I129: 0 | J129: 0 | K129: 0.0001 | L129: =INDEX(Hovedtal,B123,9+F129) -> 0 | M129: =M128+L129 -> 0 | N129: 0 | O129: 0 | P129: 0 | Q129: 0 | R129: 0 | S129: 0 | T129: 0.0001 | U129: 0 | V129: 0 | W129: =INDEX(Hovedtal,B123,8) -> 0 | AA129: =IF(G129=0,AA130,IF(I129=0,0,I129)) -> 0 | AB129: =IF(G129=0,AB130,IF(J129=0,AB131,AB131-J129)) -> 0.0001 | AC129: =IF(G129=0,0,AC131+AA129*AG131) -> 0 | AD129: =IF(G129=0,0,AD131+AA129*AH131) -> 0 | AE129: =IF(G129=0,0,AC131+AB129*AG131) -> 0 | AF129: =IF(G129=0,0,AD131+AB129*AH131) -> 0 | AI129: =MAX(AA129:AA130) -> 0 | AJ129: =MIN(AB129:AB130) -> 0.0001 | AK129: =IF(G129=0,0.5*(AI129+AJ129),(M129*G129+AA129*P129+0.5*(AA129+AB129)*(N129+(AB129-AA129)*O129)+AB129*Q129+AK128*AL128)/AL129) -> 5e-05 | AL129: =AL128+N129+O129*(AB129-AA129)+P129+Q129 -> 0 | AM129: 0.1 | AN129: 0 | AO129: 0 | AZ129: =AW130 -> 0 | BA129: =BC129+G129 -> 0 | BB129: =AZ129+G129 -> 0 | BC129: =AV130 -> 0 | BD129: =AZ129 -> 0 | BZ129: 0 | CA129: 0 | CB129: 0 | CC129: =INDEX(Hovedtal,BS123,9+BW129) ->  | CD129: =CD128+CC129 ->  | CE129: 0 | CF129: 0 | CG129: 0 | CH129: 0
F130: 2 | G130: =IF(INDEX(Hovedtal,B123,9)<F130,0,INDEX(Etager,7-F130,2)) -> 0 | H130: =IF(F130>INDEX(Hovedtal,B123,9),0,INDEX(Hovedtal,B123,6)) -> 0 | I130: 0 | J130: 0 | K130: 0.0001 | L130: =INDEX(Hovedtal,B123,9+F130) -> 0 | M130: =M129+L130 -> 0 | N130: 0 | O130: 0 | P130: 0 | Q130: 0 | R130: 0 | S130: 0 | T130: 0.0001 | U130: 0 | V130: 0 | W130: =INDEX(Hovedtal,B123,8) -> 0 | AA130: =IF(G130=0,AA131,IF(I130=0,0,I130)) -> 0 | AB130: =IF(G130=0,AB131,IF(J130=0,AB131,AB131-J130)) -> 0.0001 | AC130: =IF(G130=0,0,AC131+AA130*AG131) -> 0 | AD130: =IF(G130=0,0,AD131+AA130*AH131) -> 0 | AE130: =IF(G130=0,0,AC131+AB130*AG131) -> 0 | AF130: =IF(G130=0,0,AD131+AB130*AH131) -> 0 | AI130: =MAX(AA130:AA131) -> 0 | AJ130: =MIN(AB130:AB131) -> 0.0001 | AK130: =IF(G130=0,0.5*(AI130+AJ130),(M130*G130+AA130*P130+0.5*(AA130+AB130)*(N130+(AB130-AA130)*O130)+AB130*Q130+AK129*AL129)/AL130) -> 5e-05 | AL130: =AL129+N130+O130*(AB130-AA130)+P130+Q130 -> 0 | AM130: 0.1 | AN130: 0 | AO130: 0 | AU130: =AR131 -> 0 | AV130: =AX130+G130 -> 0 | AW130: =AU130+G130 -> 0 | AX130: =AQ131 -> 0 | AY130: =AU130 -> 0 | BZ130: 0 | CA130: 0 | CB130: 0 | CC130: =INDEX(Hovedtal,BS123,9+BW130) ->  | CD130: =CD129+CC130 ->  | CE130: 0 | CF130: 0 | CG130: 0 | CH130: 0
F131: 1 | G131: =IF(INDEX(Hovedtal,B123,9)<F131,0,INDEX(Etager,7-F131,2)) -> 0 | H131: =IF(F131>INDEX(Hovedtal,B123,9),0,INDEX(Hovedtal,B123,6)) -> 0 | K131: 0.0001 | L131: =INDEX(Hovedtal,B123,9+F131) -> 0 | M131: =M130+L131 -> 0 | N131: 0 | O131: 0 | P131: 0 | Q131: 0 | R131: 0 | S131: 0 | T131: 0.0001 | U131: 0 | V131: 0 | W131: =INDEX(Hovedtal,B123,8) -> 0 | AA131: 0 | AB131: =SQRT((AE131-AC131)^2+(AF131-AD131)^2)+0.0001 -> 0.0001 | AC131: =INDEX(Hovedtal,B123,2) -> 0 | AD131: =INDEX(Hovedtal,B123,3) -> 0 | AE131: =INDEX(Hovedtal,B123,4) -> 0 | AF131: =INDEX(Hovedtal,B123,5) -> 0 | AG131: =(AE131-AC131)/AB131 -> 0 | AH131: =(AF131-AD131)/AB131 -> 0 | AI131: =AA131 -> 0 | AJ131: =AB131 -> 0.0001 | AK131: =IF(G131=0,0.5*(AI131+AJ131),(M131*G131+AA131*P131+0.5*(AA131+AB131)*(N131+(AB131-AA131)*O131)+AB131*Q131+AK130*AL130)/AL131) -> 5e-05 | AL131: =AL130+N131+O131*(AB131-AA131)+P131+Q131 -> 0 | AM131: 0.1 | AN131: 0 | AO131: 0 | AP131: 0 | AQ131: =G131 -> 0 | AR131: =G131 -> 0 | AS131: 0 | AT131: =AP131 -> 0 | CB131: 0 | CC131: =INDEX(Hovedtal,BS123,9+BW131) ->  | CD131: =CD130+CC131 ->  | CE131: 0 | CF131: 0 | CG131: 0 | CH131: 0
A132: * | BT132: =MAX(AP124:BS131)+0.5 -> 0.5001
B134: Væg | F134: Etage | G134: h | H134: t | I134: r_1 | J134: r_2 | K134: L_eff | L134: V_i | M134: Q | N134: G | O134: p | P134: P1 | Q134: P2 | R134: T | S134: N | T134: b_1 | U134: b_2 | V134: n | W134: n_max | AA134: Etager: | AB134: 6 | AP134: Hjørnepunkter i vægopstalt | BZ134: r_1 | CA134: r_2 | CB134: L_eff | CC134: V_i | CD134: Q | CE134: G | CF134: p | CG134: P1 | CH134: P2
B135: =B123+1 -> 10 | G135: (m) | H135: (m) | I135: (m) | J135: (m) | K135: (m) | L135: (kN) | M135: (kN) | N135: (kN) | O135: (kN/m) | P135: (kN) | Q135: (kN) | R135: (kN) | S135: (kN) | T135: (m) | U135: (m) | V135: (kN/m) | W135: (kN/m) | BZ135: (m) | CA135: (m) | CB135: (m) | CC135: (kN) | CD135: (kN) | CE135: (kN) | CF135: (kN/m) | CG135: (kN) | CH135: (kN)
AA136: s_1 | AB136: s_2 | AC136: x_1 | AD136: y_1 | AE136: x_2 | AF136: y_2 | AG136: cos(a) | AH136: sin(a) | AI136: s_1_e | AJ136: s_2_e | AK136: s_N | AL136: N_0 | AM136: n | AN136: T_1 | AO136: T_2 | AP136: 0 | AQ136: 0 | AR136: =AB143 -> 0.0001 | AS136: =AB143 -> 0.0001 | AT136: =AP136 -> 0 | AU136: =AA142 -> 0 | AV136: =AA142 -> 0 | AW136: =AB142 -> 0.0001 | AX136: =AB142 -> 0.0001 | AY136: =AU136 -> 0 | AZ136: =AA141 -> 0 | BA136: =AA141 -> 0 | BB136: =AB141 -> 0.0001 | BC136: =AB141 -> 0.0001 | BD136: =AZ136 -> 0 | BE136: =AA140 -> 0 | BF136: =AA140 -> 0 | BG136: =AB140 -> 0.0001 | BH136: =AB140 -> 0.0001 | BI136: =BE136 -> 0 | BJ136: =AA139 -> 0 | BK136: =AA139 -> 0 | BL136: =AB139 -> 0.0001 | BM136: =AB139 -> 0.0001 | BN136: =BJ136 -> 0 | BO136: =AA138 -> 0 | BP136: =AA138 -> 0 | BQ136: =AB138 -> 0.0001 | BR136: =AB138 -> 0.0001 | BS136: =BO136 -> 0 | BT136: =BT144 -> 0.5001
F138: 6 | G138: =IF(INDEX(Hovedtal,B135,9)<F138,0,INDEX(Etager,7-F138,2)) -> 0 | H138: =IF(F138>INDEX(Hovedtal,B135,9),0,INDEX(Hovedtal,B135,6)) -> 0 | K138: =AJ138-AI138 -> 0.0001 | L138: =INDEX(Hovedtal,B135,9+F138) -> 0 | M138: =L138 -> 0 | N138: =(AB138-AA138)*H138*G138*g_g*g_e -> 0 | O138: 0 | P138: 0 | Q138: 0 | R138: =IF(AK138>0.5*(AI138+AJ138),AO138,AN138) -> 0 | S138: =AL138+R138 -> 0 | T138: =IF(AK138<=0.5*(AI138+AJ138),IF(AK138>AI138+0.5*AL138/AM138,2*(AK138-AI138),S138/AM138),0) -> 0.0001 | U138: =IF(AK138>0.5*(AI138+AJ138),IF(AK138<AJ138-0.5*AL138/AM138,2*(AJ138-AK138),S138/AM138),0) -> 0 | V138: =IF(AK138>0.5*(AI138+AJ138),S138/U138,S138/T138) -> 0 | W138: =INDEX(Hovedtal,B135,8) -> 0 | X138: =IF(OR(V138>W138,ABS(M138)>0.5*S138),"!","") ->  | AA138: =IF(G138=0,AA139,IF(I138=0,0,I138)) -> 0 | AB138: =IF(G138=0,AB139,IF(J138=0,AB143,AB143-J138)) -> 0.0001 | AC138: =IF(G138=0,0,AC143+AA138*AG143) -> 0 | AD138: =IF(G138=0,0,AD143+AA138*AH143) -> 0 | AE138: =IF(G138=0,0,AC143+AB138*AG143) -> 0 | AF138: =IF(G138=0,0,AD143+AB138*AH143) -> 0 | AI138: =MAX(AA138:AA139) -> 0 | AJ138: =MIN(AB138:AB139) -> 0.0001 | AK138: =IF(G138=0,0.5*(AI138+AJ138),(M138*G138+AA138*P138+0.5*(AA138+AB138)*(N138+(AB138-AA138)*O138)+AB138*Q138)/AL138) -> 5e-05 | AL138: =N138+O138*(AB138-AA138)+P138+Q138 -> 0 | AM138: =IF(AK138<0.5*(AI138+AJ138),MAX(W138,8*AL138*(0.5*(AJ138+AI138)-AK138)/(AJ138-AI138)^2+0.1),MAX(W138,-8*AL138*(0.5*(AJ138+AI138)-AK138)/(AJ138-AI138)^2+0.1)) -> 0.1 | AN138: =IF(AND(AK138<0.5*(AI138+AJ138),AL138/AM138>2*(AK138-AI138)),AM138*(-SQRT((AL138/AM138+0.5*AI138-0.5*AJ138)^2-2*(-AK138*AL138/AM138+0.5*AL138^2/AM138^2+AI138*AL138/AM138))-(AL138/AM138+0.5*AI138-0.5*AJ138)),0) -> 0 | AO138: =IF(AND(AK138>=0.5*(AI138+AJ138),AL138/AM138>2*(AJ138-AK138)),AM138*(-SQRT((AL138/AM138+0.5*AI138-0.5*AJ138)^2-2*(AK138*AL138/AM138+0.5*AL138^2/AM138^2-AJ138*AL138/AM138))-(AL138/AM138+0.5*AI138-0.5*AJ138)),0) -> 0 | BO138: =BL139 -> 0 | BP138: =BR138+G138 -> 0 | BQ138: =BO138+G138 -> 0 | BR138: =BK139 -> 0 | BS138: =BO138 -> 0 | CB138: =DA138-CZ138 -> 0 | CC138: =INDEX(Hovedtal,BS135,9+BW138) ->  | CD138: =CC138 ->  | CE138: =(CS138-CR138)*BY138*BX138*g_g*g_e -> 0 | CF138: 0 | CG138: 0 | CH138: 0
F139: 5 | G139: =IF(INDEX(Hovedtal,B135,9)<F139,0,INDEX(Etager,7-F139,2)) -> 0 | H139: =IF(F139>INDEX(Hovedtal,B135,9),0,INDEX(Hovedtal,B135,6)) -> 0 | K139: 0.0001 | L139: =INDEX(Hovedtal,B135,9+F139) -> 0 | M139: =M138+L139 -> 0 | N139: 0 | O139: 0 | P139: 0 | Q139: 0 | R139: 0 | S139: 0 | T139: 0.0001 | U139: 0 | V139: 0 | W139: =INDEX(Hovedtal,B135,8) -> 0 | AA139: =IF(G139=0,AA140,IF(I139=0,0,I139)) -> 0 | AB139: =IF(G139=0,AB140,IF(J139=0,AB143,AB143-J139)) -> 0.0001 | AC139: =IF(G139=0,0,AC143+AA139*AG143) -> 0 | AD139: =IF(G139=0,0,AD143+AA139*AH143) -> 0 | AE139: =IF(G139=0,0,AC143+AB139*AG143) -> 0 | AF139: =IF(G139=0,0,AD143+AB139*AH143) -> 0 | AI139: =MAX(AA139:AA140) -> 0 | AJ139: =MIN(AB139:AB140) -> 0.0001 | AK139: =IF(G139=0,0.5*(AI139+AJ139),(M139*G139+AA139*P139+0.5*(AA139+AB139)*(N139+(AB139-AA139)*O139)+AB139*Q139+AK138*AL138)/AL139) -> 5e-05 | AL139: =AL138+N139+O139*(AB139-AA139)+P139+Q139 -> 0 | AM139: 0.1 | AN139: 0 | AO139: 0 | BJ139: =BG140 -> 0 | BK139: =BM139+G139 -> 0 | BL139: =BJ139+G139 -> 0 | BM139: =BF140 -> 0 | BN139: =BJ139 -> 0 | CB139: 0 | CC139: =INDEX(Hovedtal,BS135,9+BW139) ->  | CD139: =CD138+CC139 ->  | CE139: 0 | CF139: 0 | CG139: 0 | CH139: 0
F140: 4 | G140: =IF(INDEX(Hovedtal,B135,9)<F140,0,INDEX(Etager,7-F140,2)) -> 0 | H140: =IF(F140>INDEX(Hovedtal,B135,9),0,INDEX(Hovedtal,B135,6)) -> 0 | K140: 0.0001 | L140: =INDEX(Hovedtal,B135,9+F140) -> 0 | M140: =M139+L140 -> 0 | N140: 0 | O140: 0 | P140: 0 | Q140: 0 | R140: 0 | S140: 0 | T140: 0.0001 | U140: 0 | V140: 0 | W140: =INDEX(Hovedtal,B135,8) -> 0 | AA140: =IF(G140=0,AA141,IF(I140=0,0,I140)) -> 0 | AB140: =IF(G140=0,AB141,IF(J140=0,AB143,AB143-J140)) -> 0.0001 | AC140: =IF(G140=0,0,AC143+AA140*AG143) -> 0 | AD140: =IF(G140=0,0,AD143+AA140*AH143) -> 0 | AE140: =IF(G140=0,0,AC143+AB140*AG143) -> 0 | AF140: =IF(G140=0,0,AD143+AB140*AH143) -> 0 | AI140: =MAX(AA140:AA141) -> 0 | AJ140: =MIN(AB140:AB141) -> 0.0001 | AK140: =IF(G140=0,0.5*(AI140+AJ140),(M140*G140+AA140*P140+0.5*(AA140+AB140)*(N140+(AB140-AA140)*O140)+AB140*Q140+AK139*AL139)/AL140) -> 5e-05 | AL140: =AL139+N140+O140*(AB140-AA140)+P140+Q140 -> 0 | AM140: 0.1 | AN140: 0 | AO140: 0 | BE140: =BB141 -> 0 | BF140: =BH140+G140 -> 0 | BG140: =BE140+G140 -> 0 | BH140: =BA141 -> 0 | BI140: =BE140 -> 0 | CB140: 0 | CC140: =INDEX(Hovedtal,BS135,9+BW140) ->  | CD140: =CD139+CC140 ->  | CE140: 0 | CF140: 0 | CG140: 0 | CH140: 0
F141: 3 | G141: =IF(INDEX(Hovedtal,B135,9)<F141,0,INDEX(Etager,7-F141,2)) -> 0 | H141: =IF(F141>INDEX(Hovedtal,B135,9),0,INDEX(Hovedtal,B135,6)) -> 0 | K141: 0.0001 | L141: =INDEX(Hovedtal,B135,9+F141) -> 0 | M141: =M140+L141 -> 0 | N141: 0 | O141: 0 | P141: 0 | Q141: 0 | R141: 0 | S141: 0 | T141: 0.0001 | U141: 0 | V141: 0 | W141: =INDEX(Hovedtal,B135,8) -> 0 | AA141: =IF(G141=0,AA142,IF(I141=0,0,I141)) -> 0 | AB141: =IF(G141=0,AB142,IF(J141=0,AB143,AB143-J141)) -> 0.0001 | AC141: =IF(G141=0,0,AC143+AA141*AG143) -> 0 | AD141: =IF(G141=0,0,AD143+AA141*AH143) -> 0 | AE141: =IF(G141=0,0,AC143+AB141*AG143) -> 0 | AF141: =IF(G141=0,0,AD143+AB141*AH143) -> 0 | AI141: =MAX(AA141:AA142) -> 0 | AJ141: =MIN(AB141:AB142) -> 0.0001 | AK141: =IF(G141=0,0.5*(AI141+AJ141),(M141*G141+AA141*P141+0.5*(AA141+AB141)*(N141+(AB141-AA141)*O141)+AB141*Q141+AK140*AL140)/AL141) -> 5e-05 | AL141: =AL140+N141+O141*(AB141-AA141)+P141+Q141 -> 0 | AM141: 0.1 | AN141: 0 | AO141: 0 | AZ141: =AW142 -> 0 | BA141: =BC141+G141 -> 0 | BB141: =AZ141+G141 -> 0 | BC141: =AV142 -> 0 | BD141: =AZ141 -> 0 | CB141: 0 | CC141: =INDEX(Hovedtal,BS135,9+BW141) ->  | CD141: =CD140+CC141 ->  | CE141: 0 | CF141: 0 | CG141: 0 | CH141: 0
F142: 2 | G142: =IF(INDEX(Hovedtal,B135,9)<F142,0,INDEX(Etager,7-F142,2)) -> 0 | H142: =IF(F142>INDEX(Hovedtal,B135,9),0,INDEX(Hovedtal,B135,6)) -> 0 | K142: 0.0001 | L142: =INDEX(Hovedtal,B135,9+F142) -> 0 | M142: =M141+L142 -> 0 | N142: 0 | O142: 0 | P142: 0 | Q142: 0 | R142: 0 | S142: 0 | T142: 0.0001 | U142: 0 | V142: 0 | W142: =INDEX(Hovedtal,B135,8) -> 0 | AA142: =IF(G142=0,AA143,IF(I142=0,0,I142)) -> 0 | AB142: =IF(G142=0,AB143,IF(J142=0,AB143,AB143-J142)) -> 0.0001 | AC142: =IF(G142=0,0,AC143+AA142*AG143) -> 0 | AD142: =IF(G142=0,0,AD143+AA142*AH143) -> 0 | AE142: =IF(G142=0,0,AC143+AB142*AG143) -> 0 | AF142: =IF(G142=0,0,AD143+AB142*AH143) -> 0 | AI142: =MAX(AA142:AA143) -> 0 | AJ142: =MIN(AB142:AB143) -> 0.0001 | AK142: =IF(G142=0,0.5*(AI142+AJ142),(M142*G142+AA142*P142+0.5*(AA142+AB142)*(N142+(AB142-AA142)*O142)+AB142*Q142+AK141*AL141)/AL142) -> 5e-05 | AL142: =AL141+N142+O142*(AB142-AA142)+P142+Q142 -> 0 | AM142: 0.1 | AN142: 0 | AO142: 0 | AU142: =AR143 -> 0 | AV142: =AX142+G142 -> 0 | AW142: =AU142+G142 -> 0 | AX142: =AQ143 -> 0 | AY142: =AU142 -> 0 | CB142: 0 | CC142: =INDEX(Hovedtal,BS135,9+BW142) ->  | CD142: =CD141+CC142 ->  | CE142: 0 | CF142: 0 | CG142: 0 | CH142: 0
F143: 1 | G143: =IF(INDEX(Hovedtal,B135,9)<F143,0,INDEX(Etager,7-F143,2)) -> 0 | H143: =IF(F143>INDEX(Hovedtal,B135,9),0,INDEX(Hovedtal,B135,6)) -> 0 | K143: 0.0001 | L143: =INDEX(Hovedtal,B135,9+F143) -> 0 | M143: =M142+L143 -> 0 | N143: 0 | O143: 0 | P143: 0 | Q143: 0 | R143: 0 | S143: 0 | T143: 0.0001 | U143: 0 | V143: 0 | W143: =INDEX(Hovedtal,B135,8) -> 0 | AA143: 0 | AB143: =SQRT((AE143-AC143)^2+(AF143-AD143)^2)+0.0001 -> 0.0001 | AC143: =INDEX(Hovedtal,B135,2) -> 0 | AD143: =INDEX(Hovedtal,B135,3) -> 0 | AE143: =INDEX(Hovedtal,B135,4) -> 0 | AF143: =INDEX(Hovedtal,B135,5) -> 0 | AG143: =(AE143-AC143)/AB143 -> 0 | AH143: =(AF143-AD143)/AB143 -> 0 | AI143: =AA143 -> 0 | AJ143: =AB143 -> 0.0001 | AK143: =IF(G143=0,0.5*(AI143+AJ143),(M143*G143+AA143*P143+0.5*(AA143+AB143)*(N143+(AB143-AA143)*O143)+AB143*Q143+AK142*AL142)/AL143) -> 5e-05 | AL143: =AL142+N143+O143*(AB143-AA143)+P143+Q143 -> 0 | AM143: 0.1 | AN143: 0 | AO143: 0 | AP143: 0 | AQ143: =G143 -> 0 | AR143: =G143 -> 0 | AS143: 0 | AT143: =AP143 -> 0 | CB143: 0 | CC143: =INDEX(Hovedtal,BS135,9+BW143) ->  | CD143: =CD142+CC143 ->  | CE143: 0 | CF143: 0 | CG143: 0 | CH143: 0
A144: * | BT144: =MAX(AP136:BS143)+0.5 -> 0.5001
B146: Væg | F146: Etage | G146: h | H146: t | I146: r_1 | J146: r_2 | K146: L_eff | L146: V_i | M146: Q | N146: G | O146: p | P146: P1 | Q146: P2 | R146: T | S146: N | T146: b_1 | U146: b_2 | V146: n | W146: n_max | AA146: Etager: | AB146: 6 | AP146: Hjørnepunkter i vægopstalt | BZ146: r_1 | CA146: r_2 | CB146: L_eff | CC146: V_i | CD146: Q | CE146: G | CF146: p | CG146: P1 | CH146: P2
B147: =B135+1 -> 11 | G147: (m) | H147: (m) | I147: (m) | J147: (m) | K147: (m) | L147: (kN) | M147: (kN) | N147: (kN) | O147: (kN/m) | P147: (kN) | Q147: (kN) | R147: (kN) | S147: (kN) | T147: (m) | U147: (m) | V147: (kN/m) | W147: (kN/m) | BZ147: (m) | CA147: (m) | CB147: (m) | CC147: (kN) | CD147: (kN) | CE147: (kN) | CF147: (kN/m) | CG147: (kN) | CH147: (kN)
AA148: s_1 | AB148: s_2 | AC148: x_1 | AD148: y_1 | AE148: x_2 | AF148: y_2 | AG148: cos(a) | AH148: sin(a) | AI148: s_1_e | AJ148: s_2_e | AK148: s_N | AL148: N_0 | AM148: n | AN148: T_1 | AO148: T_2 | AP148: 0 | AQ148: 0 | AR148: =AB155 -> 0.0001 | AS148: =AB155 -> 0.0001 | AT148: =AP148 -> 0 | AU148: =AA154 -> 0 | AV148: =AA154 -> 0 | AW148: =AB154 -> 0.0001 | AX148: =AB154 -> 0.0001 | AY148: =AU148 -> 0 | AZ148: =AA153 -> 0 | BA148: =AA153 -> 0 | BB148: =AB153 -> 0.0001 | BC148: =AB153 -> 0.0001 | BD148: =AZ148 -> 0 | BE148: =AA152 -> 0 | BF148: =AA152 -> 0 | BG148: =AB152 -> 0.0001 | BH148: =AB152 -> 0.0001 | BI148: =BE148 -> 0 | BJ148: =AA151 -> 0 | BK148: =AA151 -> 0 | BL148: =AB151 -> 0.0001 | BM148: =AB151 -> 0.0001 | BN148: =BJ148 -> 0 | BO148: =AA150 -> 0 | BP148: =AA150 -> 0 | BQ148: =AB150 -> 0.0001 | BR148: =AB150 -> 0.0001 | BS148: =BO148 -> 0 | BT148: =BT156 -> 0.5001
F150: 6 | G150: =IF(INDEX(Hovedtal,B147,9)<F150,0,INDEX(Etager,7-F150,2)) -> 0 | H150: =IF(F150>INDEX(Hovedtal,B147,9),0,INDEX(Hovedtal,B147,6)) -> 0 | I150: 0 | J150: 0 | K150: =AJ150-AI150 -> 0.0001 | L150: =INDEX(Hovedtal,B147,9+F150) -> 0 | M150: =L150 -> 0 | N150: =(AB150-AA150)*H150*G150*g_g*g_e -> 0 | O150: 0 | P150: 0 | Q150: 0 | R150: =IF(AK150>0.5*(AI150+AJ150),AO150,AN150) -> 0 | S150: =AL150+R150 -> 0 | T150: =IF(AK150<=0.5*(AI150+AJ150),IF(AK150>AI150+0.5*AL150/AM150,2*(AK150-AI150),S150/AM150),0) -> 0.0001 | U150: =IF(AK150>0.5*(AI150+AJ150),IF(AK150<AJ150-0.5*AL150/AM150,2*(AJ150-AK150),S150/AM150),0) -> 0 | V150: =IF(AK150>0.5*(AI150+AJ150),S150/U150,S150/T150) -> 0 | W150: =INDEX(Hovedtal,B147,8) -> 0 | X150: =IF(OR(V150>W150,ABS(M150)>0.5*S150),"!","") ->  | AA150: =IF(G150=0,AA151,IF(I150=0,0,I150)) -> 0 | AB150: =IF(G150=0,AB151,IF(J150=0,AB155,AB155-J150)) -> 0.0001 | AC150: =IF(G150=0,0,AC155+AA150*AG155) -> 0 | AD150: =IF(G150=0,0,AD155+AA150*AH155) -> 0 | AE150: =IF(G150=0,0,AC155+AB150*AG155) -> 0 | AF150: =IF(G150=0,0,AD155+AB150*AH155) -> 0 | AI150: =MAX(AA150:AA151) -> 0 | AJ150: =MIN(AB150:AB151) -> 0.0001 | AK150: =IF(G150=0,0.5*(AI150+AJ150),(M150*G150+AA150*P150+0.5*(AA150+AB150)*(N150+(AB150-AA150)*O150)+AB150*Q150)/AL150) -> 5e-05 | AL150: =N150+O150*(AB150-AA150)+P150+Q150 -> 0 | AM150: =IF(AK150<0.5*(AI150+AJ150),MAX(W150,8*AL150*(0.5*(AJ150+AI150)-AK150)/(AJ150-AI150)^2+0.1),MAX(W150,-8*AL150*(0.5*(AJ150+AI150)-AK150)/(AJ150-AI150)^2+0.1)) -> 0.1 | AN150: =IF(AND(AK150<0.5*(AI150+AJ150),AL150/AM150>2*(AK150-AI150)),AM150*(-SQRT((AL150/AM150+0.5*AI150-0.5*AJ150)^2-2*(-AK150*AL150/AM150+0.5*AL150^2/AM150^2+AI150*AL150/AM150))-(AL150/AM150+0.5*AI150-0.5*AJ150)),0) -> 0 | AO150: =IF(AND(AK150>=0.5*(AI150+AJ150),AL150/AM150>2*(AJ150-AK150)),AM150*(-SQRT((AL150/AM150+0.5*AI150-0.5*AJ150)^2-2*(AK150*AL150/AM150+0.5*AL150^2/AM150^2-AJ150*AL150/AM150))-(AL150/AM150+0.5*AI150-0.5*AJ150)),0) -> 0 | BO150: =BL151 -> 0 | BP150: =BR150+G150 -> 0 | BQ150: =BO150+G150 -> 0 | BR150: =BK151 -> 0 | BS150: =BO150 -> 0 | BZ150: 0 | CA150: 0 | CB150: =DA150-CZ150 -> 0 | CC150: =INDEX(Hovedtal,BS147,9+BW150) ->  | CD150: =CC150 ->  | CE150: =(CS150-CR150)*BY150*BX150*g_g*g_e -> 0 | CF150: 0 | CG150: 0 | CH150: 0
F151: 5 | G151: =IF(INDEX(Hovedtal,B147,9)<F151,0,INDEX(Etager,7-F151,2)) -> 0 | H151: =IF(F151>INDEX(Hovedtal,B147,9),0,INDEX(Hovedtal,B147,6)) -> 0 | I151: 0 | J151: 0 | K151: 0.0001 | L151: =INDEX(Hovedtal,B147,9+F151) -> 0 | M151: =M150+L151 -> 0 | N151: 0 | O151: 0 | P151: 0 | Q151: 0 | R151: 0 | S151: 0 | T151: 0.0001 | U151: 0 | V151: 0 | W151: =INDEX(Hovedtal,B147,8) -> 0 | AA151: =IF(G151=0,AA152,IF(I151=0,0,I151)) -> 0 | AB151: =IF(G151=0,AB152,IF(J151=0,AB155,AB155-J151)) -> 0.0001 | AC151: =IF(G151=0,0,AC155+AA151*AG155) -> 0 | AD151: =IF(G151=0,0,AD155+AA151*AH155) -> 0 | AE151: =IF(G151=0,0,AC155+AB151*AG155) -> 0 | AF151: =IF(G151=0,0,AD155+AB151*AH155) -> 0 | AI151: =MAX(AA151:AA152) -> 0 | AJ151: =MIN(AB151:AB152) -> 0.0001 | AK151: =IF(G151=0,0.5*(AI151+AJ151),(M151*G151+AA151*P151+0.5*(AA151+AB151)*(N151+(AB151-AA151)*O151)+AB151*Q151+AK150*AL150)/AL151) -> 5e-05 | AL151: =AL150+N151+O151*(AB151-AA151)+P151+Q151 -> 0 | AM151: 0.1 | AN151: 0 | AO151: 0 | BJ151: =BG152 -> 0 | BK151: =BM151+G151 -> 0 | BL151: =BJ151+G151 -> 0 | BM151: =BF152 -> 0 | BN151: =BJ151 -> 0 | BZ151: 0 | CA151: 0 | CB151: 0 | CC151: =INDEX(Hovedtal,BS147,9+BW151) ->  | CD151: =CD150+CC151 ->  | CE151: 0 | CF151: 0 | CG151: 0 | CH151: 0
F152: 4 | G152: =IF(INDEX(Hovedtal,B147,9)<F152,0,INDEX(Etager,7-F152,2)) -> 0 | H152: =IF(F152>INDEX(Hovedtal,B147,9),0,INDEX(Hovedtal,B147,6)) -> 0 | I152: 0 | K152: 0.0001 | L152: =INDEX(Hovedtal,B147,9+F152) -> 0 | M152: =M151+L152 -> 0 | N152: 0 | O152: 0 | P152: 0 | Q152: 0 | R152: 0 | S152: 0 | T152: 0.0001 | U152: 0 | V152: 0 | W152: =INDEX(Hovedtal,B147,8) -> 0 | AA152: =IF(G152=0,AA153,IF(I152=0,0,I152)) -> 0 | AB152: =IF(G152=0,AB153,IF(J152=0,AB155,AB155-J152)) -> 0.0001 | AC152: =IF(G152=0,0,AC155+AA152*AG155) -> 0 | AD152: =IF(G152=0,0,AD155+AA152*AH155) -> 0 | AE152: =IF(G152=0,0,AC155+AB152*AG155) -> 0 | AF152: =IF(G152=0,0,AD155+AB152*AH155) -> 0 | AI152: =MAX(AA152:AA153) -> 0 | AJ152: =MIN(AB152:AB153) -> 0.0001 | AK152: =IF(G152=0,0.5*(AI152+AJ152),(M152*G152+AA152*P152+0.5*(AA152+AB152)*(N152+(AB152-AA152)*O152)+AB152*Q152+AK151*AL151)/AL152) -> 5e-05 | AL152: =AL151+N152+O152*(AB152-AA152)+P152+Q152 -> 0 | AM152: 0.1 | AN152: 0 | AO152: 0 | BE152: =BB153 -> 0 | BF152: =BH152+G152 -> 0 | BG152: =BE152+G152 -> 0 | BH152: =BA153 -> 0 | BI152: =BE152 -> 0 | BZ152: 0 | CB152: 0 | CC152: =INDEX(Hovedtal,BS147,9+BW152) ->  | CD152: =CD151+CC152 ->  | CE152: 0 | CF152: 0 | CG152: 0 | CH152: 0
F153: 3 | G153: =IF(INDEX(Hovedtal,B147,9)<F153,0,INDEX(Etager,7-F153,2)) -> 0 | H153: =IF(F153>INDEX(Hovedtal,B147,9),0,INDEX(Hovedtal,B147,6)) -> 0 | I153: 0 | K153: 0.0001 | L153: =INDEX(Hovedtal,B147,9+F153) -> 0 | M153: =M152+L153 -> 0 | N153: 0 | O153: 0 | P153: 0 | Q153: 0 | R153: 0 | S153: 0 | T153: 0.0001 | U153: 0 | V153: 0 | W153: =INDEX(Hovedtal,B147,8) -> 0 | AA153: =IF(G153=0,AA154,IF(I153=0,0,I153)) -> 0 | AB153: =IF(G153=0,AB154,IF(J153=0,AB155,AB155-J153)) -> 0.0001 | AC153: =IF(G153=0,0,AC155+AA153*AG155) -> 0 | AD153: =IF(G153=0,0,AD155+AA153*AH155) -> 0 | AE153: =IF(G153=0,0,AC155+AB153*AG155) -> 0 | AF153: =IF(G153=0,0,AD155+AB153*AH155) -> 0 | AI153: =MAX(AA153:AA154) -> 0 | AJ153: =MIN(AB153:AB154) -> 0.0001 | AK153: =IF(G153=0,0.5*(AI153+AJ153),(M153*G153+AA153*P153+0.5*(AA153+AB153)*(N153+(AB153-AA153)*O153)+AB153*Q153+AK152*AL152)/AL153) -> 5e-05 | AL153: =AL152+N153+O153*(AB153-AA153)+P153+Q153 -> 0 | AM153: 0.1 | AN153: 0 | AO153: 0 | AZ153: =AW154 -> 0 | BA153: =BC153+G153 -> 0 | BB153: =AZ153+G153 -> 0 | BC153: =AV154 -> 0 | BD153: =AZ153 -> 0 | BZ153: 0 | CB153: 0 | CC153: =INDEX(Hovedtal,BS147,9+BW153) ->  | CD153: =CD152+CC153 ->  | CE153: 0 | CF153: 0 | CG153: 0 | CH153: 0
F154: 2 | G154: =IF(INDEX(Hovedtal,B147,9)<F154,0,INDEX(Etager,7-F154,2)) -> 0 | H154: =IF(F154>INDEX(Hovedtal,B147,9),0,INDEX(Hovedtal,B147,6)) -> 0 | I154: 0 | K154: 0.0001 | L154: =INDEX(Hovedtal,B147,9+F154) -> 0 | M154: =M153+L154 -> 0 | N154: 0 | O154: 0 | P154: 0 | Q154: 0 | R154: 0 | S154: 0 | T154: 0.0001 | U154: 0 | V154: 0 | W154: =INDEX(Hovedtal,B147,8) -> 0 | AA154: =IF(G154=0,AA155,IF(I154=0,0,I154)) -> 0 | AB154: =IF(G154=0,AB155,IF(J154=0,AB155,AB155-J154)) -> 0.0001 | AC154: =IF(G154=0,0,AC155+AA154*AG155) -> 0 | AD154: =IF(G154=0,0,AD155+AA154*AH155) -> 0 | AE154: =IF(G154=0,0,AC155+AB154*AG155) -> 0 | AF154: =IF(G154=0,0,AD155+AB154*AH155) -> 0 | AI154: =MAX(AA154:AA155) -> 0 | AJ154: =MIN(AB154:AB155) -> 0.0001 | AK154: =IF(G154=0,0.5*(AI154+AJ154),(M154*G154+AA154*P154+0.5*(AA154+AB154)*(N154+(AB154-AA154)*O154)+AB154*Q154+AK153*AL153)/AL154) -> 5e-05 | AL154: =AL153+N154+O154*(AB154-AA154)+P154+Q154 -> 0 | AM154: 0.1 | AN154: 0 | AO154: 0 | AU154: =AR155 -> 0 | AV154: =AX154+G154 -> 0 | AW154: =AU154+G154 -> 0 | AX154: =AQ155 -> 0 | AY154: =AU154 -> 0 | BZ154: 0 | CB154: 0 | CC154: =INDEX(Hovedtal,BS147,9+BW154) ->  | CD154: =CD153+CC154 ->  | CE154: 0 | CF154: 0 | CG154: 0 | CH154: 0
F155: 1 | G155: =IF(INDEX(Hovedtal,B147,9)<F155,0,INDEX(Etager,7-F155,2)) -> 0 | H155: =IF(F155>INDEX(Hovedtal,B147,9),0,INDEX(Hovedtal,B147,6)) -> 0 | K155: 0.0001 | L155: =INDEX(Hovedtal,B147,9+F155) -> 0 | M155: =M154+L155 -> 0 | N155: 0 | O155: 0 | P155: 0 | Q155: 0 | R155: 0 | S155: 0 | T155: 0.0001 | U155: 0 | V155: 0 | W155: =INDEX(Hovedtal,B147,8) -> 0 | AA155: 0 | AB155: =SQRT((AE155-AC155)^2+(AF155-AD155)^2)+0.0001 -> 0.0001 | AC155: =INDEX(Hovedtal,B147,2) -> 0 | AD155: =INDEX(Hovedtal,B147,3) -> 0 | AE155: =INDEX(Hovedtal,B147,4) -> 0 | AF155: =INDEX(Hovedtal,B147,5) -> 0 | AG155: =(AE155-AC155)/AB155 -> 0 | AH155: =(AF155-AD155)/AB155 -> 0 | AI155: =AA155 -> 0 | AJ155: =AB155 -> 0.0001 | AK155: =IF(G155=0,0.5*(AI155+AJ155),(M155*G155+AA155*P155+0.5*(AA155+AB155)*(N155+(AB155-AA155)*O155)+AB155*Q155+AK154*AL154)/AL155) -> 5e-05 | AL155: =AL154+N155+O155*(AB155-AA155)+P155+Q155 -> 0 | AM155: 0.1 | AN155: 0 | AO155: 0 | AP155: 0 | AQ155: =G155 -> 0 | AR155: =G155 -> 0 | AS155: 0 | AT155: =AP155 -> 0 | CB155: 0 | CC155: =INDEX(Hovedtal,BS147,9+BW155) ->  | CD155: =CD154+CC155 ->  | CE155: 0 | CF155: 0 | CG155: 0 | CH155: 0
A156: * | BT156: =MAX(AP148:BS155)+0.5 -> 0.5001
B158: Væg | F158: Etage | G158: h | H158: t | I158: r_1 | J158: r_2 | K158: L_eff | L158: V_i | M158: Q | N158: G | O158: p | P158: P1 | Q158: P2 | R158: T | S158: N | T158: b_1 | U158: b_2 | V158: n | W158: n_max | AA158: Etager: | AB158: 6 | AP158: Hjørnepunkter i vægopstalt | BZ158: r_1 | CA158: r_2 | CB158: L_eff | CC158: V_i | CD158: Q | CE158: G | CF158: p | CG158: P1 | CH158: P2
B159: =B147+1 -> 12 | G159: (m) | H159: (m) | I159: (m) | J159: (m) | K159: (m) | L159: (kN) | M159: (kN) | N159: (kN) | O159: (kN/m) | P159: (kN) | Q159: (kN) | R159: (kN) | S159: (kN) | T159: (m) | U159: (m) | V159: (kN/m) | W159: (kN/m) | BZ159: (m) | CA159: (m) | CB159: (m) | CC159: (kN) | CD159: (kN) | CE159: (kN) | CF159: (kN/m) | CG159: (kN) | CH159: (kN)
AA160: s_1 | AB160: s_2 | AC160: x_1 | AD160: y_1 | AE160: x_2 | AF160: y_2 | AG160: cos(a) | AH160: sin(a) | AI160: s_1_e | AJ160: s_2_e | AK160: s_N | AL160: N_0 | AM160: n | AN160: T_1 | AO160: T_2 | AP160: 0 | AQ160: 0 | AR160: =AB167 -> 0.0001 | AS160: =AB167 -> 0.0001 | AT160: =AP160 -> 0 | AU160: =AA166 -> 0 | AV160: =AA166 -> 0 | AW160: =AB166 -> 0.0001 | AX160: =AB166 -> 0.0001 | AY160: =AU160 -> 0 | AZ160: =AA165 -> 0 | BA160: =AA165 -> 0 | BB160: =AB165 -> 0.0001 | BC160: =AB165 -> 0.0001 | BD160: =AZ160 -> 0 | BE160: =AA164 -> 0 | BF160: =AA164 -> 0 | BG160: =AB164 -> 0.0001 | BH160: =AB164 -> 0.0001 | BI160: =BE160 -> 0 | BJ160: =AA163 -> 0 | BK160: =AA163 -> 0 | BL160: =AB163 -> 0.0001 | BM160: =AB163 -> 0.0001 | BN160: =BJ160 -> 0 | BO160: =AA162 -> 0 | BP160: =AA162 -> 0 | BQ160: =AB162 -> 0.0001 | BR160: =AB162 -> 0.0001 | BS160: =BO160 -> 0 | BT160: =BT168 -> 0.5001
F162: 6 | G162: =IF(INDEX(Hovedtal,B159,9)<F162,0,INDEX(Etager,7-F162,2)) -> 0 | H162: =IF(F162>INDEX(Hovedtal,B159,9),0,INDEX(Hovedtal,B159,6)) -> 0 | I162: 0 | J162: 0 | K162: =AJ162-AI162 -> 0.0001 | L162: =INDEX(Hovedtal,B159,9+F162) -> 0 | M162: =L162 -> 0 | N162: =(AB162-AA162)*H162*G162*g_g*g_e -> 0 | O162: 0 | P162: 0 | Q162: 0 | R162: =IF(AK162>0.5*(AI162+AJ162),AO162,AN162) -> 0 | S162: =AL162+R162 -> 0 | T162: =IF(AK162<=0.5*(AI162+AJ162),IF(AK162>AI162+0.5*AL162/AM162,2*(AK162-AI162),S162/AM162),0) -> 0.0001 | U162: =IF(AK162>0.5*(AI162+AJ162),IF(AK162<AJ162-0.5*AL162/AM162,2*(AJ162-AK162),S162/AM162),0) -> 0 | V162: =IF(AK162>0.5*(AI162+AJ162),S162/U162,S162/T162) -> 0 | W162: =INDEX(Hovedtal,B159,8) -> 0 | X162: =IF(OR(V162>W162,ABS(M162)>0.5*S162),"!","") ->  | AA162: =IF(G162=0,AA163,IF(I162=0,0,I162)) -> 0 | AB162: =IF(G162=0,AB163,IF(J162=0,AB167,AB167-J162)) -> 0.0001 | AC162: =IF(G162=0,0,AC167+AA162*AG167) -> 0 | AD162: =IF(G162=0,0,AD167+AA162*AH167) -> 0 | AE162: =IF(G162=0,0,AC167+AB162*AG167) -> 0 | AF162: =IF(G162=0,0,AD167+AB162*AH167) -> 0 | AI162: =MAX(AA162:AA163) -> 0 | AJ162: =MIN(AB162:AB163) -> 0.0001 | AK162: =IF(G162=0,0.5*(AI162+AJ162),(M162*G162+AA162*P162+0.5*(AA162+AB162)*(N162+(AB162-AA162)*O162)+AB162*Q162)/AL162) -> 5e-05 | AL162: =N162+O162*(AB162-AA162)+P162+Q162 -> 0 | AM162: =IF(AK162<0.5*(AI162+AJ162),MAX(W162,8*AL162*(0.5*(AJ162+AI162)-AK162)/(AJ162-AI162)^2+0.1),MAX(W162,-8*AL162*(0.5*(AJ162+AI162)-AK162)/(AJ162-AI162)^2+0.1)) -> 0.1 | AN162: =IF(AND(AK162<0.5*(AI162+AJ162),AL162/AM162>2*(AK162-AI162)),AM162*(-SQRT((AL162/AM162+0.5*AI162-0.5*AJ162)^2-2*(-AK162*AL162/AM162+0.5*AL162^2/AM162^2+AI162*AL162/AM162))-(AL162/AM162+0.5*AI162-0.5*AJ162)),0) -> 0 | AO162: =IF(AND(AK162>=0.5*(AI162+AJ162),AL162/AM162>2*(AJ162-AK162)),AM162*(-SQRT((AL162/AM162+0.5*AI162-0.5*AJ162)^2-2*(AK162*AL162/AM162+0.5*AL162^2/AM162^2-AJ162*AL162/AM162))-(AL162/AM162+0.5*AI162-0.5*AJ162)),0) -> 0 | BO162: =BL163 -> 0 | BP162: =BR162+G162 -> 0 | BQ162: =BO162+G162 -> 0 | BR162: =BK163 -> 0 | BS162: =BO162 -> 0 | BZ162: 0 | CA162: 0 | CB162: =DA162-CZ162 -> 0 | CC162: =INDEX(Hovedtal,BS159,9+BW162) ->  | CD162: =CC162 ->  | CE162: =(CS162-CR162)*BY162*BX162*g_g*g_e -> 0 | CF162: 0 | CG162: 0 | CH162: 0
F163: 5 | G163: =IF(INDEX(Hovedtal,B159,9)<F163,0,INDEX(Etager,7-F163,2)) -> 0 | H163: =IF(F163>INDEX(Hovedtal,B159,9),0,INDEX(Hovedtal,B159,6)) -> 0 | I163: 0 | J163: 0 | K163: 0.0001 | L163: =INDEX(Hovedtal,B159,9+F163) -> 0 | M163: =M162+L163 -> 0 | N163: 0 | O163: 0 | P163: 0 | Q163: 0 | R163: 0 | S163: 0 | T163: 0.0001 | U163: 0 | V163: 0 | W163: =INDEX(Hovedtal,B159,8) -> 0 | AA163: =IF(G163=0,AA164,IF(I163=0,0,I163)) -> 0 | AB163: =IF(G163=0,AB164,IF(J163=0,AB167,AB167-J163)) -> 0.0001 | AC163: =IF(G163=0,0,AC167+AA163*AG167) -> 0 | AD163: =IF(G163=0,0,AD167+AA163*AH167) -> 0 | AE163: =IF(G163=0,0,AC167+AB163*AG167) -> 0 | AF163: =IF(G163=0,0,AD167+AB163*AH167) -> 0 | AI163: =MAX(AA163:AA164) -> 0 | AJ163: =MIN(AB163:AB164) -> 0.0001 | AK163: =IF(G163=0,0.5*(AI163+AJ163),(M163*G163+AA163*P163+0.5*(AA163+AB163)*(N163+(AB163-AA163)*O163)+AB163*Q163+AK162*AL162)/AL163) -> 5e-05 | AL163: =AL162+N163+O163*(AB163-AA163)+P163+Q163 -> 0 | AM163: 0.1 | AN163: 0 | AO163: 0 | BJ163: =BG164 -> 0 | BK163: =BM163+G163 -> 0 | BL163: =BJ163+G163 -> 0 | BM163: =BF164 -> 0 | BN163: =BJ163 -> 0 | BZ163: 0 | CA163: 0 | CB163: 0 | CC163: =INDEX(Hovedtal,BS159,9+BW163) ->  | CD163: =CD162+CC163 ->  | CE163: 0 | CF163: 0 | CG163: 0 | CH163: 0
F164: 4 | G164: =IF(INDEX(Hovedtal,B159,9)<F164,0,INDEX(Etager,7-F164,2)) -> 0 | H164: =IF(F164>INDEX(Hovedtal,B159,9),0,INDEX(Hovedtal,B159,6)) -> 0 | I164: 0 | J164: 0 | K164: 0.0001 | L164: =INDEX(Hovedtal,B159,9+F164) -> 0 | M164: =M163+L164 -> 0 | N164: 0 | O164: 0 | P164: 0 | Q164: 0 | R164: 0 | S164: 0 | T164: 0.0001 | U164: 0 | V164: 0 | W164: =INDEX(Hovedtal,B159,8) -> 0 | AA164: =IF(G164=0,AA165,IF(I164=0,0,I164)) -> 0 | AB164: =IF(G164=0,AB165,IF(J164=0,AB167,AB167-J164)) -> 0.0001 | AC164: =IF(G164=0,0,AC167+AA164*AG167) -> 0 | AD164: =IF(G164=0,0,AD167+AA164*AH167) -> 0 | AE164: =IF(G164=0,0,AC167+AB164*AG167) -> 0 | AF164: =IF(G164=0,0,AD167+AB164*AH167) -> 0 | AI164: =MAX(AA164:AA165) -> 0 | AJ164: =MIN(AB164:AB165) -> 0.0001 | AK164: =IF(G164=0,0.5*(AI164+AJ164),(M164*G164+AA164*P164+0.5*(AA164+AB164)*(N164+(AB164-AA164)*O164)+AB164*Q164+AK163*AL163)/AL164) -> 5e-05 | AL164: =AL163+N164+O164*(AB164-AA164)+P164+Q164 -> 0 | AM164: 0.1 | AN164: 0 | AO164: 0 | BE164: =BB165 -> 0 | BF164: =BH164+G164 -> 0 | BG164: =BE164+G164 -> 0 | BH164: =BA165 -> 0 | BI164: =BE164 -> 0 | BZ164: 0 | CA164: 0 | CB164: 0 | CC164: =INDEX(Hovedtal,BS159,9+BW164) ->  | CD164: =CD163+CC164 ->  | CE164: 0 | CF164: 0 | CG164: 0 | CH164: 0
F165: 3 | G165: =IF(INDEX(Hovedtal,B159,9)<F165,0,INDEX(Etager,7-F165,2)) -> 0 | H165: =IF(F165>INDEX(Hovedtal,B159,9),0,INDEX(Hovedtal,B159,6)) -> 0 | I165: 0 | J165: 0 | K165: 0.0001 | L165: =INDEX(Hovedtal,B159,9+F165) -> 0 | M165: =M164+L165 -> 0 | N165: 0 | O165: 0 | P165: 0 | Q165: 0 | R165: 0 | S165: 0 | T165: 0.0001 | U165: 0 | V165: 0 | W165: =INDEX(Hovedtal,B159,8) -> 0 | AA165: =IF(G165=0,AA166,IF(I165=0,0,I165)) -> 0 | AB165: =IF(G165=0,AB166,IF(J165=0,AB167,AB167-J165)) -> 0.0001 | AC165: =IF(G165=0,0,AC167+AA165*AG167) -> 0 | AD165: =IF(G165=0,0,AD167+AA165*AH167) -> 0 | AE165: =IF(G165=0,0,AC167+AB165*AG167) -> 0 | AF165: =IF(G165=0,0,AD167+AB165*AH167) -> 0 | AI165: =MAX(AA165:AA166) -> 0 | AJ165: =MIN(AB165:AB166) -> 0.0001 | AK165: =IF(G165=0,0.5*(AI165+AJ165),(M165*G165+AA165*P165+0.5*(AA165+AB165)*(N165+(AB165-AA165)*O165)+AB165*Q165+AK164*AL164)/AL165) -> 5e-05 | AL165: =AL164+N165+O165*(AB165-AA165)+P165+Q165 -> 0 | AM165: 0.1 | AN165: 0 | AO165: 0 | AZ165: =AW166 -> 0 | BA165: =BC165+G165 -> 0 | BB165: =AZ165+G165 -> 0 | BC165: =AV166 -> 0 | BD165: =AZ165 -> 0 | BZ165: 0 | CA165: 0 | CB165: 0 | CC165: =INDEX(Hovedtal,BS159,9+BW165) ->  | CD165: =CD164+CC165 ->  | CE165: 0 | CF165: 0 | CG165: 0 | CH165: 0
F166: 2 | G166: =IF(INDEX(Hovedtal,B159,9)<F166,0,INDEX(Etager,7-F166,2)) -> 0 | H166: =IF(F166>INDEX(Hovedtal,B159,9),0,INDEX(Hovedtal,B159,6)) -> 0 | I166: 0 | J166: 0 | K166: 0.0001 | L166: =INDEX(Hovedtal,B159,9+F166) -> 0 | M166: =M165+L166 -> 0 | N166: 0 | O166: 0 | P166: 0 | Q166: 0 | R166: 0 | S166: 0 | T166: 0.0001 | U166: 0 | V166: 0 | W166: =INDEX(Hovedtal,B159,8) -> 0 | AA166: =IF(G166=0,AA167,IF(I166=0,0,I166)) -> 0 | AB166: =IF(G166=0,AB167,IF(J166=0,AB167,AB167-J166)) -> 0.0001 | AC166: =IF(G166=0,0,AC167+AA166*AG167) -> 0 | AD166: =IF(G166=0,0,AD167+AA166*AH167) -> 0 | AE166: =IF(G166=0,0,AC167+AB166*AG167) -> 0 | AF166: =IF(G166=0,0,AD167+AB166*AH167) -> 0 | AI166: =MAX(AA166:AA167) -> 0 | AJ166: =MIN(AB166:AB167) -> 0.0001 | AK166: =IF(G166=0,0.5*(AI166+AJ166),(M166*G166+AA166*P166+0.5*(AA166+AB166)*(N166+(AB166-AA166)*O166)+AB166*Q166+AK165*AL165)/AL166) -> 5e-05 | AL166: =AL165+N166+O166*(AB166-AA166)+P166+Q166 -> 0 | AM166: 0.1 | AN166: 0 | AO166: 0 | AU166: =AR167 -> 0 | AV166: =AX166+G166 -> 0 | AW166: =AU166+G166 -> 0 | AX166: =AQ167 -> 0 | AY166: =AU166 -> 0 | BZ166: 0 | CA166: 0 | CB166: 0 | CC166: =INDEX(Hovedtal,BS159,9+BW166) ->  | CD166: =CD165+CC166 ->  | CE166: 0 | CF166: 0 | CG166: 0 | CH166: 0
F167: 1 | G167: =IF(INDEX(Hovedtal,B159,9)<F167,0,INDEX(Etager,7-F167,2)) -> 0 | H167: =IF(F167>INDEX(Hovedtal,B159,9),0,INDEX(Hovedtal,B159,6)) -> 0 | K167: 0.0001 | L167: =INDEX(Hovedtal,B159,9+F167) -> 0 | M167: =M166+L167 -> 0 | N167: 0 | O167: 0 | P167: 0 | Q167: 0 | R167: 0 | S167: 0 | T167: 0.0001 | U167: 0 | V167: 0 | W167: =INDEX(Hovedtal,B159,8) -> 0 | AA167: 0 | AB167: =SQRT((AE167-AC167)^2+(AF167-AD167)^2)+0.0001 -> 0.0001 | AC167: =INDEX(Hovedtal,B159,2) -> 0 | AD167: =INDEX(Hovedtal,B159,3) -> 0 | AE167: =INDEX(Hovedtal,B159,4) -> 0 | AF167: =INDEX(Hovedtal,B159,5) -> 0 | AG167: =(AE167-AC167)/AB167 -> 0 | AH167: =(AF167-AD167)/AB167 -> 0 | AI167: =AA167 -> 0 | AJ167: =AB167 -> 0.0001 | AK167: =IF(G167=0,0.5*(AI167+AJ167),(M167*G167+AA167*P167+0.5*(AA167+AB167)*(N167+(AB167-AA167)*O167)+AB167*Q167+AK166*AL166)/AL167) -> 5e-05 | AL167: =AL166+N167+O167*(AB167-AA167)+P167+Q167 -> 0 | AM167: 0.1 | AN167: 0 | AO167: 0 | AP167: 0 | AQ167: =G167 -> 0 | AR167: =G167 -> 0 | AS167: 0 | AT167: =AP167 -> 0 | CB167: 0 | CC167: =INDEX(Hovedtal,BS159,9+BW167) ->  | CD167: =CD166+CC167 ->  | CE167: 0 | CF167: 0 | CG167: 0 | CH167: 0
A168: * | BT168: =MAX(AP160:BS167)+0.5 -> 0.5001
B170: Væg | F170: Etage | G170: h | H170: t | I170: r_1 | J170: r_2 | K170: L_eff | L170: V_i | M170: Q | N170: G | O170: p | P170: P1 | Q170: P2 | R170: T | S170: N | T170: b_1 | U170: b_2 | V170: n | W170: n_max | AA170: Etager: | AB170: 6 | AP170: Hjørnepunkter i vægopstalt | BZ170: r_1 | CA170: r_2 | CB170: L_eff | CC170: V_i | CD170: Q | CE170: G | CF170: p | CG170: P1 | CH170: P2
B171: =B159+1 -> 13 | G171: (m) | H171: (m) | I171: (m) | J171: (m) | K171: (m) | L171: (kN) | M171: (kN) | N171: (kN) | O171: (kN/m) | P171: (kN) | Q171: (kN) | R171: (kN) | S171: (kN) | T171: (m) | U171: (m) | V171: (kN/m) | W171: (kN/m) | BZ171: (m) | CA171: (m) | CB171: (m) | CC171: (kN) | CD171: (kN) | CE171: (kN) | CF171: (kN/m) | CG171: (kN) | CH171: (kN)
AA172: s_1 | AB172: s_2 | AC172: x_1 | AD172: y_1 | AE172: x_2 | AF172: y_2 | AG172: cos(a) | AH172: sin(a) | AI172: s_1_e | AJ172: s_2_e | AK172: s_N | AL172: N_0 | AM172: n | AN172: T_1 | AO172: T_2 | AP172: 0 | AQ172: 0 | AR172: =AB179 -> 0.0001 | AS172: =AB179 -> 0.0001 | AT172: =AP172 -> 0 | AU172: =AA178 -> 0 | AV172: =AA178 -> 0 | AW172: =AB178 -> 0.0001 | AX172: =AB178 -> 0.0001 | AY172: =AU172 -> 0 | AZ172: =AA177 -> 0 | BA172: =AA177 -> 0 | BB172: =AB177 -> 0.0001 | BC172: =AB177 -> 0.0001 | BD172: =AZ172 -> 0 | BE172: =AA176 -> 0 | BF172: =AA176 -> 0 | BG172: =AB176 -> 0.0001 | BH172: =AB176 -> 0.0001 | BI172: =BE172 -> 0 | BJ172: =AA175 -> 0 | BK172: =AA175 -> 0 | BL172: =AB175 -> 0.0001 | BM172: =AB175 -> 0.0001 | BN172: =BJ172 -> 0 | BO172: =AA174 -> 0 | BP172: =AA174 -> 0 | BQ172: =AB174 -> 0.0001 | BR172: =AB174 -> 0.0001 | BS172: =BO172 -> 0 | BT172: =BT180 -> 0.5001
F174: 6 | G174: =IF(INDEX(Hovedtal,B171,9)<F174,0,INDEX(Etager,7-F174,2)) -> 0 | H174: =IF(F174>INDEX(Hovedtal,B171,9),0,INDEX(Hovedtal,B171,6)) -> 0 | I174: 0 | J174: 0 | K174: =AJ174-AI174 -> 0.0001 | L174: =INDEX(Hovedtal,B171,9+F174) -> 0 | M174: =L174 -> 0 | N174: =(AB174-AA174)*H174*G174*g_g*g_e -> 0 | O174: 0 | P174: 0 | Q174: 0 | R174: =IF(AK174>0.5*(AI174+AJ174),AO174,AN174) -> 0 | S174: =AL174+R174 -> 0 | T174: =IF(AK174<=0.5*(AI174+AJ174),IF(AK174>AI174+0.5*AL174/AM174,2*(AK174-AI174),S174/AM174),0) -> 0.0001 | U174: =IF(AK174>0.5*(AI174+AJ174),IF(AK174<AJ174-0.5*AL174/AM174,2*(AJ174-AK174),S174/AM174),0) -> 0 | V174: =IF(AK174>0.5*(AI174+AJ174),S174/U174,S174/T174) -> 0 | W174: =INDEX(Hovedtal,B171,8) -> 0 | X174: =IF(OR(V174>W174,ABS(M174)>0.5*S174),"!","") ->  | AA174: =IF(G174=0,AA175,IF(I174=0,0,I174)) -> 0 | AB174: =IF(G174=0,AB175,IF(J174=0,AB179,AB179-J174)) -> 0.0001 | AC174: =IF(G174=0,0,AC179+AA174*AG179) -> 0 | AD174: =IF(G174=0,0,AD179+AA174*AH179) -> 0 | AE174: =IF(G174=0,0,AC179+AB174*AG179) -> 0 | AF174: =IF(G174=0,0,AD179+AB174*AH179) -> 0 | AI174: =MAX(AA174:AA175) -> 0 | AJ174: =MIN(AB174:AB175) -> 0.0001 | AK174: =IF(G174=0,0.5*(AI174+AJ174),(M174*G174+AA174*P174+0.5*(AA174+AB174)*(N174+(AB174-AA174)*O174)+AB174*Q174)/AL174) -> 5e-05 | AL174: =N174+O174*(AB174-AA174)+P174+Q174 -> 0 | AM174: =IF(AK174<0.5*(AI174+AJ174),MAX(W174,8*AL174*(0.5*(AJ174+AI174)-AK174)/(AJ174-AI174)^2+0.1),MAX(W174,-8*AL174*(0.5*(AJ174+AI174)-AK174)/(AJ174-AI174)^2+0.1)) -> 0.1 | AN174: =IF(AND(AK174<0.5*(AI174+AJ174),AL174/AM174>2*(AK174-AI174)),AM174*(-SQRT((AL174/AM174+0.5*AI174-0.5*AJ174)^2-2*(-AK174*AL174/AM174+0.5*AL174^2/AM174^2+AI174*AL174/AM174))-(AL174/AM174+0.5*AI174-0.5*AJ174)),0) -> 0 | AO174: =IF(AND(AK174>=0.5*(AI174+AJ174),AL174/AM174>2*(AJ174-AK174)),AM174*(-SQRT((AL174/AM174+0.5*AI174-0.5*AJ174)^2-2*(AK174*AL174/AM174+0.5*AL174^2/AM174^2-AJ174*AL174/AM174))-(AL174/AM174+0.5*AI174-0.5*AJ174)),0) -> 0 | BO174: =BL175 -> 0 | BP174: =BR174+G174 -> 0 | BQ174: =BO174+G174 -> 0 | BR174: =BK175 -> 0 | BS174: =BO174 -> 0 | BZ174: 0 | CA174: 0 | CB174: =DA174-CZ174 -> 0 | CC174: =INDEX(Hovedtal,BS171,9+BW174) ->  | CD174: =CC174 ->  | CE174: =(CS174-CR174)*BY174*BX174*g_g*g_e -> 0 | CF174: 0 | CG174: 0 | CH174: 0
F175: 5 | G175: =IF(INDEX(Hovedtal,B171,9)<F175,0,INDEX(Etager,7-F175,2)) -> 0 | H175: =IF(F175>INDEX(Hovedtal,B171,9),0,INDEX(Hovedtal,B171,6)) -> 0 | I175: 0 | J175: 0 | K175: 0.0001 | L175: =INDEX(Hovedtal,B171,9+F175) -> 0 | M175: =M174+L175 -> 0 | N175: 0 | O175: 0 | P175: 0 | Q175: 0 | R175: 0 | S175: 0 | T175: 0.0001 | U175: 0 | V175: 0 | W175: =INDEX(Hovedtal,B171,8) -> 0 | AA175: =IF(G175=0,AA176,IF(I175=0,0,I175)) -> 0 | AB175: =IF(G175=0,AB176,IF(J175=0,AB179,AB179-J175)) -> 0.0001 | AC175: =IF(G175=0,0,AC179+AA175*AG179) -> 0 | AD175: =IF(G175=0,0,AD179+AA175*AH179) -> 0 | AE175: =IF(G175=0,0,AC179+AB175*AG179) -> 0 | AF175: =IF(G175=0,0,AD179+AB175*AH179) -> 0 | AI175: =MAX(AA175:AA176) -> 0 | AJ175: =MIN(AB175:AB176) -> 0.0001 | AK175: =IF(G175=0,0.5*(AI175+AJ175),(M175*G175+AA175*P175+0.5*(AA175+AB175)*(N175+(AB175-AA175)*O175)+AB175*Q175+AK174*AL174)/AL175) -> 5e-05 | AL175: =AL174+N175+O175*(AB175-AA175)+P175+Q175 -> 0 | AM175: 0.1 | AN175: 0 | AO175: 0 | BJ175: =BG176 -> 0 | BK175: =BM175+G175 -> 0 | BL175: =BJ175+G175 -> 0 | BM175: =BF176 -> 0 | BN175: =BJ175 -> 0 | BZ175: 0 | CA175: 0 | CB175: 0 | CC175: =INDEX(Hovedtal,BS171,9+BW175) ->  | CD175: =CD174+CC175 ->  | CE175: 0 | CF175: 0 | CG175: 0 | CH175: 0
F176: 4 | G176: =IF(INDEX(Hovedtal,B171,9)<F176,0,INDEX(Etager,7-F176,2)) -> 0 | H176: =IF(F176>INDEX(Hovedtal,B171,9),0,INDEX(Hovedtal,B171,6)) -> 0 | I176: 0 | K176: 0.0001 | L176: =INDEX(Hovedtal,B171,9+F176) -> 0 | M176: =M175+L176 -> 0 | N176: 0 | O176: 0 | P176: 0 | Q176: 0 | R176: 0 | S176: 0 | T176: 0.0001 | U176: 0 | V176: 0 | W176: =INDEX(Hovedtal,B171,8) -> 0 | AA176: =IF(G176=0,AA177,IF(I176=0,0,I176)) -> 0 | AB176: =IF(G176=0,AB177,IF(J176=0,AB179,AB179-J176)) -> 0.0001 | AC176: =IF(G176=0,0,AC179+AA176*AG179) -> 0 | AD176: =IF(G176=0,0,AD179+AA176*AH179) -> 0 | AE176: =IF(G176=0,0,AC179+AB176*AG179) -> 0 | AF176: =IF(G176=0,0,AD179+AB176*AH179) -> 0 | AI176: =MAX(AA176:AA177) -> 0 | AJ176: =MIN(AB176:AB177) -> 0.0001 | AK176: =IF(G176=0,0.5*(AI176+AJ176),(M176*G176+AA176*P176+0.5*(AA176+AB176)*(N176+(AB176-AA176)*O176)+AB176*Q176+AK175*AL175)/AL176) -> 5e-05 | AL176: =AL175+N176+O176*(AB176-AA176)+P176+Q176 -> 0 | AM176: 0.1 | AN176: 0 | AO176: 0 | BE176: =BB177 -> 0 | BF176: =BH176+G176 -> 0 | BG176: =BE176+G176 -> 0 | BH176: =BA177 -> 0 | BI176: =BE176 -> 0 | BZ176: 0 | CB176: 0 | CC176: =INDEX(Hovedtal,BS171,9+BW176) ->  | CD176: =CD175+CC176 ->  | CE176: 0 | CF176: 0 | CG176: 0 | CH176: 0
F177: 3 | G177: =IF(INDEX(Hovedtal,B171,9)<F177,0,INDEX(Etager,7-F177,2)) -> 0 | H177: =IF(F177>INDEX(Hovedtal,B171,9),0,INDEX(Hovedtal,B171,6)) -> 0 | I177: 0 | K177: 0.0001 | L177: =INDEX(Hovedtal,B171,9+F177) -> 0 | M177: =M176+L177 -> 0 | N177: 0 | O177: 0 | P177: 0 | Q177: 0 | R177: 0 | S177: 0 | T177: 0.0001 | U177: 0 | V177: 0 | W177: =INDEX(Hovedtal,B171,8) -> 0 | AA177: =IF(G177=0,AA178,IF(I177=0,0,I177)) -> 0 | AB177: =IF(G177=0,AB178,IF(J177=0,AB179,AB179-J177)) -> 0.0001 | AC177: =IF(G177=0,0,AC179+AA177*AG179) -> 0 | AD177: =IF(G177=0,0,AD179+AA177*AH179) -> 0 | AE177: =IF(G177=0,0,AC179+AB177*AG179) -> 0 | AF177: =IF(G177=0,0,AD179+AB177*AH179) -> 0 | AI177: =MAX(AA177:AA178) -> 0 | AJ177: =MIN(AB177:AB178) -> 0.0001 | AK177: =IF(G177=0,0.5*(AI177+AJ177),(M177*G177+AA177*P177+0.5*(AA177+AB177)*(N177+(AB177-AA177)*O177)+AB177*Q177+AK176*AL176)/AL177) -> 5e-05 | AL177: =AL176+N177+O177*(AB177-AA177)+P177+Q177 -> 0 | AM177: 0.1 | AN177: 0 | AO177: 0 | AZ177: =AW178 -> 0 | BA177: =BC177+G177 -> 0 | BB177: =AZ177+G177 -> 0 | BC177: =AV178 -> 0 | BD177: =AZ177 -> 0 | BZ177: 0 | CB177: 0 | CC177: =INDEX(Hovedtal,BS171,9+BW177) ->  | CD177: =CD176+CC177 ->  | CE177: 0 | CF177: 0 | CG177: 0 | CH177: 0
F178: 2 | G178: =IF(INDEX(Hovedtal,B171,9)<F178,0,INDEX(Etager,7-F178,2)) -> 0 | H178: =IF(F178>INDEX(Hovedtal,B171,9),0,INDEX(Hovedtal,B171,6)) -> 0 | I178: 0 | K178: 0.0001 | L178: =INDEX(Hovedtal,B171,9+F178) -> 0 | M178: =M177+L178 -> 0 | N178: 0 | O178: 0 | P178: 0 | Q178: 0 | R178: 0 | S178: 0 | T178: 0.0001 | U178: 0 | V178: 0 | W178: =INDEX(Hovedtal,B171,8) -> 0 | AA178: =IF(G178=0,AA179,IF(I178=0,0,I178)) -> 0 | AB178: =IF(G178=0,AB179,IF(J178=0,AB179,AB179-J178)) -> 0.0001 | AC178: =IF(G178=0,0,AC179+AA178*AG179) -> 0 | AD178: =IF(G178=0,0,AD179+AA178*AH179) -> 0 | AE178: =IF(G178=0,0,AC179+AB178*AG179) -> 0 | AF178: =IF(G178=0,0,AD179+AB178*AH179) -> 0 | AI178: =MAX(AA178:AA179) -> 0 | AJ178: =MIN(AB178:AB179) -> 0.0001 | AK178: =IF(G178=0,0.5*(AI178+AJ178),(M178*G178+AA178*P178+0.5*(AA178+AB178)*(N178+(AB178-AA178)*O178)+AB178*Q178+AK177*AL177)/AL178) -> 5e-05 | AL178: =AL177+N178+O178*(AB178-AA178)+P178+Q178 -> 0 | AM178: 0.1 | AN178: 0 | AO178: 0 | AU178: =AR179 -> 0 | AV178: =AX178+G178 -> 0 | AW178: =AU178+G178 -> 0 | AX178: =AQ179 -> 0 | AY178: =AU178 -> 0 | BZ178: 0 | CB178: 0 | CC178: =INDEX(Hovedtal,BS171,9+BW178) ->  | CD178: =CD177+CC178 ->  | CE178: 0 | CF178: 0 | CG178: 0 | CH178: 0
F179: 1 | G179: =IF(INDEX(Hovedtal,B171,9)<F179,0,INDEX(Etager,7-F179,2)) -> 0 | H179: =IF(F179>INDEX(Hovedtal,B171,9),0,INDEX(Hovedtal,B171,6)) -> 0 | K179: 0.0001 | L179: =INDEX(Hovedtal,B171,9+F179) -> 0 | M179: =M178+L179 -> 0 | N179: 0 | O179: 0 | P179: 0 | Q179: 0 | R179: 0 | S179: 0 | T179: 0.0001 | U179: 0 | V179: 0 | W179: =INDEX(Hovedtal,B171,8) -> 0 | AA179: 0 | AB179: =SQRT((AE179-AC179)^2+(AF179-AD179)^2)+0.0001 -> 0.0001 | AC179: =INDEX(Hovedtal,B171,2) -> 0 | AD179: =INDEX(Hovedtal,B171,3) -> 0 | AE179: =INDEX(Hovedtal,B171,4) -> 0 | AF179: =INDEX(Hovedtal,B171,5) -> 0 | AG179: =(AE179-AC179)/AB179 -> 0 | AH179: =(AF179-AD179)/AB179 -> 0 | AI179: =AA179 -> 0 | AJ179: =AB179 -> 0.0001 | AK179: =IF(G179=0,0.5*(AI179+AJ179),(M179*G179+AA179*P179+0.5*(AA179+AB179)*(N179+(AB179-AA179)*O179)+AB179*Q179+AK178*AL178)/AL179) -> 5e-05 | AL179: =AL178+N179+O179*(AB179-AA179)+P179+Q179 -> 0 | AM179: 0.1 | AN179: 0 | AO179: 0 | AP179: 0 | AQ179: =G179 -> 0 | AR179: =G179 -> 0 | AS179: 0 | AT179: =AP179 -> 0 | CB179: 0 | CC179: =INDEX(Hovedtal,BS171,9+BW179) ->  | CD179: =CD178+CC179 ->  | CE179: 0 | CF179: 0 | CG179: 0 | CH179: 0
A180: * | BT180: =MAX(AP172:BS179)+0.5 -> 0.5001
B182: Væg | F182: Etage | G182: h | H182: t | I182: r_1 | J182: r_2 | K182: L_eff | L182: V_i | M182: Q | N182: G | O182: p | P182: P1 | Q182: P2 | R182: T | S182: N | T182: b_1 | U182: b_2 | V182: n | W182: n_max | AA182: Etager: | AB182: 6 | AP182: Hjørnepunkter i vægopstalt | BZ182: r_1 | CA182: r_2 | CB182: L_eff | CC182: V_i | CD182: Q | CE182: G | CF182: p | CG182: P1 | CH182: P2
B183: =B171+1 -> 14 | G183: (m) | H183: (m) | I183: (m) | J183: (m) | K183: (m) | L183: (kN) | M183: (kN) | N183: (kN) | O183: (kN/m) | P183: (kN) | Q183: (kN) | R183: (kN) | S183: (kN) | T183: (m) | U183: (m) | V183: (kN/m) | W183: (kN/m) | BZ183: (m) | CA183: (m) | CB183: (m) | CC183: (kN) | CD183: (kN) | CE183: (kN) | CF183: (kN/m) | CG183: (kN) | CH183: (kN)
AA184: s_1 | AB184: s_2 | AC184: x_1 | AD184: y_1 | AE184: x_2 | AF184: y_2 | AG184: cos(a) | AH184: sin(a) | AI184: s_1_e | AJ184: s_2_e | AK184: s_N | AL184: N_0 | AM184: n | AN184: T_1 | AO184: T_2 | AP184: 0 | AQ184: 0 | AR184: =AB191 -> 0.0001 | AS184: =AB191 -> 0.0001 | AT184: =AP184 -> 0 | AU184: =AA190 -> 0 | AV184: =AA190 -> 0 | AW184: =AB190 -> 0.0001 | AX184: =AB190 -> 0.0001 | AY184: =AU184 -> 0 | AZ184: =AA189 -> 0 | BA184: =AA189 -> 0 | BB184: =AB189 -> 0.0001 | BC184: =AB189 -> 0.0001 | BD184: =AZ184 -> 0 | BE184: =AA188 -> 0 | BF184: =AA188 -> 0 | BG184: =AB188 -> 0.0001 | BH184: =AB188 -> 0.0001 | BI184: =BE184 -> 0 | BJ184: =AA187 -> 0 | BK184: =AA187 -> 0 | BL184: =AB187 -> 0.0001 | BM184: =AB187 -> 0.0001 | BN184: =BJ184 -> 0 | BO184: =AA186 -> 0 | BP184: =AA186 -> 0 | BQ184: =AB186 -> 0.0001 | BR184: =AB186 -> 0.0001 | BS184: =BO184 -> 0 | BT184: =BT192 -> 0.5001
F186: 6 | G186: =IF(INDEX(Hovedtal,B183,9)<F186,0,INDEX(Etager,7-F186,2)) -> 0 | H186: =IF(F186>INDEX(Hovedtal,B183,9),0,INDEX(Hovedtal,B183,6)) -> 0 | I186: 0 | J186: 0 | K186: =AJ186-AI186 -> 0.0001 | L186: =INDEX(Hovedtal,B183,9+F186) -> 0 | M186: =L186 -> 0 | N186: =(AB186-AA186)*H186*G186*g_g*g_e -> 0 | O186: 0 | P186: 0 | Q186: 0 | R186: =IF(AK186>0.5*(AI186+AJ186),AO186,AN186) -> 0 | S186: =AL186+R186 -> 0 | T186: =IF(AK186<=0.5*(AI186+AJ186),IF(AK186>AI186+0.5*AL186/AM186,2*(AK186-AI186),S186/AM186),0) -> 0.0001 | U186: =IF(AK186>0.5*(AI186+AJ186),IF(AK186<AJ186-0.5*AL186/AM186,2*(AJ186-AK186),S186/AM186),0) -> 0 | V186: =IF(AK186>0.5*(AI186+AJ186),S186/U186,S186/T186) -> 0 | W186: =INDEX(Hovedtal,B183,8) -> 0 | X186: =IF(OR(V186>W186,ABS(M186)>0.5*S186),"!","") ->  | AA186: =IF(G186=0,AA187,IF(I186=0,0,I186)) -> 0 | AB186: =IF(G186=0,AB187,IF(J186=0,AB191,AB191-J186)) -> 0.0001 | AC186: =IF(G186=0,0,AC191+AA186*AG191) -> 0 | AD186: =IF(G186=0,0,AD191+AA186*AH191) -> 0 | AE186: =IF(G186=0,0,AC191+AB186*AG191) -> 0 | AF186: =IF(G186=0,0,AD191+AB186*AH191) -> 0 | AI186: =MAX(AA186:AA187) -> 0 | AJ186: =MIN(AB186:AB187) -> 0.0001 | AK186: =IF(G186=0,0.5*(AI186+AJ186),(M186*G186+AA186*P186+0.5*(AA186+AB186)*(N186+(AB186-AA186)*O186)+AB186*Q186)/AL186) -> 5e-05 | AL186: =N186+O186*(AB186-AA186)+P186+Q186 -> 0 | AM186: =IF(AK186<0.5*(AI186+AJ186),MAX(W186,8*AL186*(0.5*(AJ186+AI186)-AK186)/(AJ186-AI186)^2+0.1),MAX(W186,-8*AL186*(0.5*(AJ186+AI186)-AK186)/(AJ186-AI186)^2+0.1)) -> 0.1 | AN186: =IF(AND(AK186<0.5*(AI186+AJ186),AL186/AM186>2*(AK186-AI186)),AM186*(-SQRT((AL186/AM186+0.5*AI186-0.5*AJ186)^2-2*(-AK186*AL186/AM186+0.5*AL186^2/AM186^2+AI186*AL186/AM186))-(AL186/AM186+0.5*AI186-0.5*AJ186)),0) -> 0 | AO186: =IF(AND(AK186>=0.5*(AI186+AJ186),AL186/AM186>2*(AJ186-AK186)),AM186*(-SQRT((AL186/AM186+0.5*AI186-0.5*AJ186)^2-2*(AK186*AL186/AM186+0.5*AL186^2/AM186^2-AJ186*AL186/AM186))-(AL186/AM186+0.5*AI186-0.5*AJ186)),0) -> 0 | BO186: =BL187 -> 0 | BP186: =BR186+G186 -> 0 | BQ186: =BO186+G186 -> 0 | BR186: =BK187 -> 0 | BS186: =BO186 -> 0 | BZ186: 0 | CA186: 0 | CB186: =DA186-CZ186 -> 0 | CC186: =INDEX(Hovedtal,BS183,9+BW186) ->  | CD186: =CC186 ->  | CE186: =(CS186-CR186)*BY186*BX186*g_g*g_e -> 0 | CF186: 0 | CG186: 0 | CH186: 0
F187: 5 | G187: =IF(INDEX(Hovedtal,B183,9)<F187,0,INDEX(Etager,7-F187,2)) -> 0 | H187: =IF(F187>INDEX(Hovedtal,B183,9),0,INDEX(Hovedtal,B183,6)) -> 0 | I187: 0 | J187: 0 | K187: 0.0001 | L187: =INDEX(Hovedtal,B183,9+F187) -> 0 | M187: =M186+L187 -> 0 | N187: 0 | O187: 0 | P187: 0 | Q187: 0 | R187: 0 | S187: 0 | T187: 0.0001 | U187: 0 | V187: 0 | W187: =INDEX(Hovedtal,B183,8) -> 0 | AA187: =IF(G187=0,AA188,IF(I187=0,0,I187)) -> 0 | AB187: =IF(G187=0,AB188,IF(J187=0,AB191,AB191-J187)) -> 0.0001 | AC187: =IF(G187=0,0,AC191+AA187*AG191) -> 0 | AD187: =IF(G187=0,0,AD191+AA187*AH191) -> 0 | AE187: =IF(G187=0,0,AC191+AB187*AG191) -> 0 | AF187: =IF(G187=0,0,AD191+AB187*AH191) -> 0 | AI187: =MAX(AA187:AA188) -> 0 | AJ187: =MIN(AB187:AB188) -> 0.0001 | AK187: =IF(G187=0,0.5*(AI187+AJ187),(M187*G187+AA187*P187+0.5*(AA187+AB187)*(N187+(AB187-AA187)*O187)+AB187*Q187+AK186*AL186)/AL187) -> 5e-05 | AL187: =AL186+N187+O187*(AB187-AA187)+P187+Q187 -> 0 | AM187: 0.1 | AN187: 0 | AO187: 0 | BJ187: =BG188 -> 0 | BK187: =BM187+G187 -> 0 | BL187: =BJ187+G187 -> 0 | BM187: =BF188 -> 0 | BN187: =BJ187 -> 0 | BZ187: 0 | CA187: 0 | CB187: 0 | CC187: =INDEX(Hovedtal,BS183,9+BW187) ->  | CD187: =CD186+CC187 ->  | CE187: 0 | CF187: 0 | CG187: 0 | CH187: 0
F188: 4 | G188: =IF(INDEX(Hovedtal,B183,9)<F188,0,INDEX(Etager,7-F188,2)) -> 0 | H188: =IF(F188>INDEX(Hovedtal,B183,9),0,INDEX(Hovedtal,B183,6)) -> 0 | J188: 0 | K188: 0.0001 | L188: =INDEX(Hovedtal,B183,9+F188) -> 0 | M188: =M187+L188 -> 0 | N188: 0 | O188: 0 | P188: 0 | Q188: 0 | R188: 0 | S188: 0 | T188: 0.0001 | U188: 0 | V188: 0 | W188: =INDEX(Hovedtal,B183,8) -> 0 | AA188: =IF(G188=0,AA189,IF(I188=0,0,I188)) -> 0 | AB188: =IF(G188=0,AB189,IF(J188=0,AB191,AB191-J188)) -> 0.0001 | AC188: =IF(G188=0,0,AC191+AA188*AG191) -> 0 | AD188: =IF(G188=0,0,AD191+AA188*AH191) -> 0 | AE188: =IF(G188=0,0,AC191+AB188*AG191) -> 0 | AF188: =IF(G188=0,0,AD191+AB188*AH191) -> 0 | AI188: =MAX(AA188:AA189) -> 0 | AJ188: =MIN(AB188:AB189) -> 0.0001 | AK188: =IF(G188=0,0.5*(AI188+AJ188),(M188*G188+AA188*P188+0.5*(AA188+AB188)*(N188+(AB188-AA188)*O188)+AB188*Q188+AK187*AL187)/AL188) -> 5e-05 | AL188: =AL187+N188+O188*(AB188-AA188)+P188+Q188 -> 0 | AM188: 0.1 | AN188: 0 | AO188: 0 | BE188: =BB189 -> 0 | BF188: =BH188+G188 -> 0 | BG188: =BE188+G188 -> 0 | BH188: =BA189 -> 0 | BI188: =BE188 -> 0 | CA188: 0 | CB188: 0 | CC188: =INDEX(Hovedtal,BS183,9+BW188) ->  | CD188: =CD187+CC188 ->  | CE188: 0 | CF188: 0 | CG188: 0 | CH188: 0
F189: 3 | G189: =IF(INDEX(Hovedtal,B183,9)<F189,0,INDEX(Etager,7-F189,2)) -> 0 | H189: =IF(F189>INDEX(Hovedtal,B183,9),0,INDEX(Hovedtal,B183,6)) -> 0 | J189: 0 | K189: 0.0001 | L189: =INDEX(Hovedtal,B183,9+F189) -> 0 | M189: =M188+L189 -> 0 | N189: 0 | O189: 0 | P189: 0 | Q189: 0 | R189: 0 | S189: 0 | T189: 0.0001 | U189: 0 | V189: 0 | W189: =INDEX(Hovedtal,B183,8) -> 0 | AA189: =IF(G189=0,AA190,IF(I189=0,0,I189)) -> 0 | AB189: =IF(G189=0,AB190,IF(J189=0,AB191,AB191-J189)) -> 0.0001 | AC189: =IF(G189=0,0,AC191+AA189*AG191) -> 0 | AD189: =IF(G189=0,0,AD191+AA189*AH191) -> 0 | AE189: =IF(G189=0,0,AC191+AB189*AG191) -> 0 | AF189: =IF(G189=0,0,AD191+AB189*AH191) -> 0 | AI189: =MAX(AA189:AA190) -> 0 | AJ189: =MIN(AB189:AB190) -> 0.0001 | AK189: =IF(G189=0,0.5*(AI189+AJ189),(M189*G189+AA189*P189+0.5*(AA189+AB189)*(N189+(AB189-AA189)*O189)+AB189*Q189+AK188*AL188)/AL189) -> 5e-05 | AL189: =AL188+N189+O189*(AB189-AA189)+P189+Q189 -> 0 | AM189: 0.1 | AN189: 0 | AO189: 0 | AZ189: =AW190 -> 0 | BA189: =BC189+G189 -> 0 | BB189: =AZ189+G189 -> 0 | BC189: =AV190 -> 0 | BD189: =AZ189 -> 0 | CA189: 0 | CB189: 0 | CC189: =INDEX(Hovedtal,BS183,9+BW189) ->  | CD189: =CD188+CC189 ->  | CE189: 0 | CF189: 0 | CG189: 0 | CH189: 0
F190: 2 | G190: =IF(INDEX(Hovedtal,B183,9)<F190,0,INDEX(Etager,7-F190,2)) -> 0 | H190: =IF(F190>INDEX(Hovedtal,B183,9),0,INDEX(Hovedtal,B183,6)) -> 0 | J190: 0 | K190: 0.0001 | L190: =INDEX(Hovedtal,B183,9+F190) -> 0 | M190: =M189+L190 -> 0 | N190: 0 | O190: 0 | P190: 0 | Q190: 0 | R190: 0 | S190: 0 | T190: 0.0001 | U190: 0 | V190: 0 | W190: =INDEX(Hovedtal,B183,8) -> 0 | AA190: =IF(G190=0,AA191,IF(I190=0,0,I190)) -> 0 | AB190: =IF(G190=0,AB191,IF(J190=0,AB191,AB191-J190)) -> 0.0001 | AC190: =IF(G190=0,0,AC191+AA190*AG191) -> 0 | AD190: =IF(G190=0,0,AD191+AA190*AH191) -> 0 | AE190: =IF(G190=0,0,AC191+AB190*AG191) -> 0 | AF190: =IF(G190=0,0,AD191+AB190*AH191) -> 0 | AI190: =MAX(AA190:AA191) -> 0 | AJ190: =MIN(AB190:AB191) -> 0.0001 | AK190: =IF(G190=0,0.5*(AI190+AJ190),(M190*G190+AA190*P190+0.5*(AA190+AB190)*(N190+(AB190-AA190)*O190)+AB190*Q190+AK189*AL189)/AL190) -> 5e-05 | AL190: =AL189+N190+O190*(AB190-AA190)+P190+Q190 -> 0 | AM190: 0.1 | AN190: 0 | AO190: 0 | AU190: =AR191 -> 0 | AV190: =AX190+G190 -> 0 | AW190: =AU190+G190 -> 0 | AX190: =AQ191 -> 0 | AY190: =AU190 -> 0 | CA190: 0 | CB190: 0 | CC190: =INDEX(Hovedtal,BS183,9+BW190) ->  | CD190: =CD189+CC190 ->  | CE190: 0 | CF190: 0 | CG190: 0 | CH190: 0
F191: 1 | G191: =IF(INDEX(Hovedtal,B183,9)<F191,0,INDEX(Etager,7-F191,2)) -> 0 | H191: =IF(F191>INDEX(Hovedtal,B183,9),0,INDEX(Hovedtal,B183,6)) -> 0 | K191: 0.0001 | L191: =INDEX(Hovedtal,B183,9+F191) -> 0 | M191: =M190+L191 -> 0 | N191: 0 | O191: 0 | P191: 0 | Q191: 0 | R191: 0 | S191: 0 | T191: 0.0001 | U191: 0 | V191: 0 | W191: =INDEX(Hovedtal,B183,8) -> 0 | AA191: 0 | AB191: =SQRT((AE191-AC191)^2+(AF191-AD191)^2)+0.0001 -> 0.0001 | AC191: =INDEX(Hovedtal,B183,2) -> 0 | AD191: =INDEX(Hovedtal,B183,3) -> 0 | AE191: =INDEX(Hovedtal,B183,4) -> 0 | AF191: =INDEX(Hovedtal,B183,5) -> 0 | AG191: =(AE191-AC191)/AB191 -> 0 | AH191: =(AF191-AD191)/AB191 -> 0 | AI191: =AA191 -> 0 | AJ191: =AB191 -> 0.0001 | AK191: =IF(G191=0,0.5*(AI191+AJ191),(M191*G191+AA191*P191+0.5*(AA191+AB191)*(N191+(AB191-AA191)*O191)+AB191*Q191+AK190*AL190)/AL191) -> 5e-05 | AL191: =AL190+N191+O191*(AB191-AA191)+P191+Q191 -> 0 | AM191: 0.1 | AN191: 0 | AO191: 0 | AP191: 0 | AQ191: =G191 -> 0 | AR191: =G191 -> 0 | AS191: 0 | AT191: =AP191 -> 0 | CB191: 0 | CC191: =INDEX(Hovedtal,BS183,9+BW191) ->  | CD191: =CD190+CC191 ->  | CE191: 0 | CF191: 0 | CG191: 0 | CH191: 0
A192: * | BT192: =MAX(AP184:BS191)+0.5 -> 0.5001
B194: Væg | F194: Etage | G194: h | H194: t | I194: r_1 | J194: r_2 | K194: L_eff | L194: V_i | M194: Q | N194: G | O194: p | P194: P1 | Q194: P2 | R194: T | S194: N | T194: b_1 | U194: b_2 | V194: n | W194: n_max | AA194: Etager: | AB194: 6 | AP194: Hjørnepunkter i vægopstalt | BZ194: r_1 | CA194: r_2 | CB194: L_eff | CC194: V_i | CD194: Q | CE194: G | CF194: p | CG194: P1 | CH194: P2
B195: =B183+1 -> 15 | G195: (m) | H195: (m) | I195: (m) | J195: (m) | K195: (m) | L195: (kN) | M195: (kN) | N195: (kN) | O195: (kN/m) | P195: (kN) | Q195: (kN) | R195: (kN) | S195: (kN) | T195: (m) | U195: (m) | V195: (kN/m) | W195: (kN/m) | BZ195: (m) | CA195: (m) | CB195: (m) | CC195: (kN) | CD195: (kN) | CE195: (kN) | CF195: (kN/m) | CG195: (kN) | CH195: (kN)
AA196: s_1 | AB196: s_2 | AC196: x_1 | AD196: y_1 | AE196: x_2 | AF196: y_2 | AG196: cos(a) | AH196: sin(a) | AI196: s_1_e | AJ196: s_2_e | AK196: s_N | AL196: N_0 | AM196: n | AN196: T_1 | AO196: T_2 | AP196: 0 | AQ196: 0 | AR196: =AB203 -> 0.0001 | AS196: =AB203 -> 0.0001 | AT196: =AP196 -> 0 | AU196: =AA202 -> 0 | AV196: =AA202 -> 0 | AW196: =AB202 -> 0.0001 | AX196: =AB202 -> 0.0001 | AY196: =AU196 -> 0 | AZ196: =AA201 -> 0 | BA196: =AA201 -> 0 | BB196: =AB201 -> 0.0001 | BC196: =AB201 -> 0.0001 | BD196: =AZ196 -> 0 | BE196: =AA200 -> 0 | BF196: =AA200 -> 0 | BG196: =AB200 -> 0.0001 | BH196: =AB200 -> 0.0001 | BI196: =BE196 -> 0 | BJ196: =AA199 -> 0 | BK196: =AA199 -> 0 | BL196: =AB199 -> 0.0001 | BM196: =AB199 -> 0.0001 | BN196: =BJ196 -> 0 | BO196: =AA198 -> 0 | BP196: =AA198 -> 0 | BQ196: =AB198 -> 0.0001 | BR196: =AB198 -> 0.0001 | BS196: =BO196 -> 0 | BT196: =BT204 -> 0.5001
F198: 6 | G198: =IF(INDEX(Hovedtal,B195,9)<F198,0,INDEX(Etager,7-F198,2)) -> 0 | H198: =IF(F198>INDEX(Hovedtal,B195,9),0,INDEX(Hovedtal,B195,6)) -> 0 | I198: 0 | J198: 0 | K198: =AJ198-AI198 -> 0.0001 | L198: =INDEX(Hovedtal,B195,9+F198) -> 0 | M198: =L198 -> 0 | N198: =(AB198-AA198)*H198*G198*g_g*g_e -> 0 | O198: 0 | P198: 0 | Q198: 0 | R198: =IF(AK198>0.5*(AI198+AJ198),AO198,AN198) -> 0 | S198: =AL198+R198 -> 0 | T198: =IF(AK198<=0.5*(AI198+AJ198),IF(AK198>AI198+0.5*AL198/AM198,2*(AK198-AI198),S198/AM198),0) -> 0.0001 | U198: =IF(AK198>0.5*(AI198+AJ198),IF(AK198<AJ198-0.5*AL198/AM198,2*(AJ198-AK198),S198/AM198),0) -> 0 | V198: =IF(AK198>0.5*(AI198+AJ198),S198/U198,S198/T198) -> 0 | W198: =INDEX(Hovedtal,B195,8) -> 0 | X198: =IF(OR(V198>W198,ABS(M198)>0.5*S198),"!","") ->  | AA198: =IF(G198=0,AA199,IF(I198=0,0,I198)) -> 0 | AB198: =IF(G198=0,AB199,IF(J198=0,AB203,AB203-J198)) -> 0.0001 | AC198: =IF(G198=0,0,AC203+AA198*AG203) -> 0 | AD198: =IF(G198=0,0,AD203+AA198*AH203) -> 0 | AE198: =IF(G198=0,0,AC203+AB198*AG203) -> 0 | AF198: =IF(G198=0,0,AD203+AB198*AH203) -> 0 | AI198: =MAX(AA198:AA199) -> 0 | AJ198: =MIN(AB198:AB199) -> 0.0001 | AK198: =IF(G198=0,0.5*(AI198+AJ198),(M198*G198+AA198*P198+0.5*(AA198+AB198)*(N198+(AB198-AA198)*O198)+AB198*Q198)/AL198) -> 5e-05 | AL198: =N198+O198*(AB198-AA198)+P198+Q198 -> 0 | AM198: =IF(AK198<0.5*(AI198+AJ198),MAX(W198,8*AL198*(0.5*(AJ198+AI198)-AK198)/(AJ198-AI198)^2+0.1),MAX(W198,-8*AL198*(0.5*(AJ198+AI198)-AK198)/(AJ198-AI198)^2+0.1)) -> 0.1 | AN198: =IF(AND(AK198<0.5*(AI198+AJ198),AL198/AM198>2*(AK198-AI198)),AM198*(-SQRT((AL198/AM198+0.5*AI198-0.5*AJ198)^2-2*(-AK198*AL198/AM198+0.5*AL198^2/AM198^2+AI198*AL198/AM198))-(AL198/AM198+0.5*AI198-0.5*AJ198)),0) -> 0 | AO198: =IF(AND(AK198>=0.5*(AI198+AJ198),AL198/AM198>2*(AJ198-AK198)),AM198*(-SQRT((AL198/AM198+0.5*AI198-0.5*AJ198)^2-2*(AK198*AL198/AM198+0.5*AL198^2/AM198^2-AJ198*AL198/AM198))-(AL198/AM198+0.5*AI198-0.5*AJ198)),0) -> 0 | BO198: =BL199 -> 0 | BP198: =BR198+G198 -> 0 | BQ198: =BO198+G198 -> 0 | BR198: =BK199 -> 0 | BS198: =BO198 -> 0 | BZ198: 0 | CA198: 0 | CB198: =DA198-CZ198 -> 0 | CC198: =INDEX(Hovedtal,BS195,9+BW198) ->  | CD198: =CC198 ->  | CE198: =(CS198-CR198)*BY198*BX198*g_g*g_e -> 0 | CF198: 0 | CG198: 0 | CH198: 0
F199: 5 | G199: =IF(INDEX(Hovedtal,B195,9)<F199,0,INDEX(Etager,7-F199,2)) -> 0 | H199: =IF(F199>INDEX(Hovedtal,B195,9),0,INDEX(Hovedtal,B195,6)) -> 0 | I199: 0 | J199: 0 | K199: 0.0001 | L199: =INDEX(Hovedtal,B195,9+F199) -> 0 | M199: =M198+L199 -> 0 | N199: 0 | O199: 0 | P199: 0 | Q199: 0 | R199: 0 | S199: 0 | T199: 0.0001 | U199: 0 | V199: 0 | W199: =INDEX(Hovedtal,B195,8) -> 0 | AA199: =IF(G199=0,AA200,IF(I199=0,0,I199)) -> 0 | AB199: =IF(G199=0,AB200,IF(J199=0,AB203,AB203-J199)) -> 0.0001 | AC199: =IF(G199=0,0,AC203+AA199*AG203) -> 0 | AD199: =IF(G199=0,0,AD203+AA199*AH203) -> 0 | AE199: =IF(G199=0,0,AC203+AB199*AG203) -> 0 | AF199: =IF(G199=0,0,AD203+AB199*AH203) -> 0 | AI199: =MAX(AA199:AA200) -> 0 | AJ199: =MIN(AB199:AB200) -> 0.0001 | AK199: =IF(G199=0,0.5*(AI199+AJ199),(M199*G199+AA199*P199+0.5*(AA199+AB199)*(N199+(AB199-AA199)*O199)+AB199*Q199+AK198*AL198)/AL199) -> 5e-05 | AL199: =AL198+N199+O199*(AB199-AA199)+P199+Q199 -> 0 | AM199: 0.1 | AN199: 0 | AO199: 0 | BJ199: =BG200 -> 0 | BK199: =BM199+G199 -> 0 | BL199: =BJ199+G199 -> 0 | BM199: =BF200 -> 0 | BN199: =BJ199 -> 0 | BZ199: 0 | CA199: 0 | CB199: 0 | CC199: =INDEX(Hovedtal,BS195,9+BW199) ->  | CD199: =CD198+CC199 ->  | CE199: 0 | CF199: 0 | CG199: 0 | CH199: 0
F200: 4 | G200: =IF(INDEX(Hovedtal,B195,9)<F200,0,INDEX(Etager,7-F200,2)) -> 0 | H200: =IF(F200>INDEX(Hovedtal,B195,9),0,INDEX(Hovedtal,B195,6)) -> 0 | K200: 0.0001 | L200: =INDEX(Hovedtal,B195,9+F200) -> 0 | M200: =M199+L200 -> 0 | N200: 0 | O200: 0 | P200: 0 | Q200: 0 | R200: 0 | S200: 0 | T200: 0.0001 | U200: 0 | V200: 0 | W200: =INDEX(Hovedtal,B195,8) -> 0 | AA200: =IF(G200=0,AA201,IF(I200=0,0,I200)) -> 0 | AB200: =IF(G200=0,AB201,IF(J200=0,AB203,AB203-J200)) -> 0.0001 | AC200: =IF(G200=0,0,AC203+AA200*AG203) -> 0 | AD200: =IF(G200=0,0,AD203+AA200*AH203) -> 0 | AE200: =IF(G200=0,0,AC203+AB200*AG203) -> 0 | AF200: =IF(G200=0,0,AD203+AB200*AH203) -> 0 | AI200: =MAX(AA200:AA201) -> 0 | AJ200: =MIN(AB200:AB201) -> 0.0001 | AK200: =IF(G200=0,0.5*(AI200+AJ200),(M200*G200+AA200*P200+0.5*(AA200+AB200)*(N200+(AB200-AA200)*O200)+AB200*Q200+AK199*AL199)/AL200) -> 5e-05 | AL200: =AL199+N200+O200*(AB200-AA200)+P200+Q200 -> 0 | AM200: 0.1 | AN200: 0 | AO200: 0 | BE200: =BB201 -> 0 | BF200: =BH200+G200 -> 0 | BG200: =BE200+G200 -> 0 | BH200: =BA201 -> 0 | BI200: =BE200 -> 0 | CB200: 0 | CC200: =INDEX(Hovedtal,BS195,9+BW200) ->  | CD200: =CD199+CC200 ->  | CE200: 0 | CF200: 0 | CG200: 0 | CH200: 0
F201: 3 | G201: =IF(INDEX(Hovedtal,B195,9)<F201,0,INDEX(Etager,7-F201,2)) -> 0 | H201: =IF(F201>INDEX(Hovedtal,B195,9),0,INDEX(Hovedtal,B195,6)) -> 0 | K201: 0.0001 | L201: =INDEX(Hovedtal,B195,9+F201) -> 0 | M201: =M200+L201 -> 0 | N201: 0 | O201: 0 | P201: 0 | Q201: 0 | R201: 0 | S201: 0 | T201: 0.0001 | U201: 0 | V201: 0 | W201: =INDEX(Hovedtal,B195,8) -> 0 | AA201: =IF(G201=0,AA202,IF(I201=0,0,I201)) -> 0 | AB201: =IF(G201=0,AB202,IF(J201=0,AB203,AB203-J201)) -> 0.0001 | AC201: =IF(G201=0,0,AC203+AA201*AG203) -> 0 | AD201: =IF(G201=0,0,AD203+AA201*AH203) -> 0 | AE201: =IF(G201=0,0,AC203+AB201*AG203) -> 0 | AF201: =IF(G201=0,0,AD203+AB201*AH203) -> 0 | AI201: =MAX(AA201:AA202) -> 0 | AJ201: =MIN(AB201:AB202) -> 0.0001 | AK201: =IF(G201=0,0.5*(AI201+AJ201),(M201*G201+AA201*P201+0.5*(AA201+AB201)*(N201+(AB201-AA201)*O201)+AB201*Q201+AK200*AL200)/AL201) -> 5e-05 | AL201: =AL200+N201+O201*(AB201-AA201)+P201+Q201 -> 0 | AM201: 0.1 | AN201: 0 | AO201: 0 | AZ201: =AW202 -> 0 | BA201: =BC201+G201 -> 0 | BB201: =AZ201+G201 -> 0 | BC201: =AV202 -> 0 | BD201: =AZ201 -> 0 | CB201: 0 | CC201: =INDEX(Hovedtal,BS195,9+BW201) ->  | CD201: =CD200+CC201 ->  | CE201: 0 | CF201: 0 | CG201: 0 | CH201: 0
F202: 2 | G202: =IF(INDEX(Hovedtal,B195,9)<F202,0,INDEX(Etager,7-F202,2)) -> 0 | H202: =IF(F202>INDEX(Hovedtal,B195,9),0,INDEX(Hovedtal,B195,6)) -> 0 | K202: 0.0001 | L202: =INDEX(Hovedtal,B195,9+F202) -> 0 | M202: =M201+L202 -> 0 | N202: 0 | O202: 0 | P202: 0 | Q202: 0 | R202: 0 | S202: 0 | T202: 0.0001 | U202: 0 | V202: 0 | W202: =INDEX(Hovedtal,B195,8) -> 0 | AA202: =IF(G202=0,AA203,IF(I202=0,0,I202)) -> 0 | AB202: =IF(G202=0,AB203,IF(J202=0,AB203,AB203-J202)) -> 0.0001 | AC202: =IF(G202=0,0,AC203+AA202*AG203) -> 0 | AD202: =IF(G202=0,0,AD203+AA202*AH203) -> 0 | AE202: =IF(G202=0,0,AC203+AB202*AG203) -> 0 | AF202: =IF(G202=0,0,AD203+AB202*AH203) -> 0 | AI202: =MAX(AA202:AA203) -> 0 | AJ202: =MIN(AB202:AB203) -> 0.0001 | AK202: =IF(G202=0,0.5*(AI202+AJ202),(M202*G202+AA202*P202+0.5*(AA202+AB202)*(N202+(AB202-AA202)*O202)+AB202*Q202+AK201*AL201)/AL202) -> 5e-05 | AL202: =AL201+N202+O202*(AB202-AA202)+P202+Q202 -> 0 | AM202: 0.1 | AN202: 0 | AO202: 0 | AU202: =AR203 -> 0 | AV202: =AX202+G202 -> 0 | AW202: =AU202+G202 -> 0 | AX202: =AQ203 -> 0 | AY202: =AU202 -> 0 | CB202: 0 | CC202: =INDEX(Hovedtal,BS195,9+BW202) ->  | CD202: =CD201+CC202 ->  | CE202: 0 | CF202: 0 | CG202: 0 | CH202: 0
F203: 1 | G203: =IF(INDEX(Hovedtal,B195,9)<F203,0,INDEX(Etager,7-F203,2)) -> 0 | H203: =IF(F203>INDEX(Hovedtal,B195,9),0,INDEX(Hovedtal,B195,6)) -> 0 | K203: 0.0001 | L203: =INDEX(Hovedtal,B195,9+F203) -> 0 | M203: =M202+L203 -> 0 | N203: 0 | O203: 0 | P203: 0 | Q203: 0 | R203: 0 | S203: 0 | T203: 0.0001 | U203: 0 | V203: 0 | W203: =INDEX(Hovedtal,B195,8) -> 0 | AA203: 0 | AB203: =SQRT((AE203-AC203)^2+(AF203-AD203)^2)+0.0001 -> 0.0001 | AC203: =INDEX(Hovedtal,B195,2) -> 0 | AD203: =INDEX(Hovedtal,B195,3) -> 0 | AE203: =INDEX(Hovedtal,B195,4) -> 0 | AF203: =INDEX(Hovedtal,B195,5) -> 0 | AG203: =(AE203-AC203)/AB203 -> 0 | AH203: =(AF203-AD203)/AB203 -> 0 | AI203: =AA203 -> 0 | AJ203: =AB203 -> 0.0001 | AK203: =IF(G203=0,0.5*(AI203+AJ203),(M203*G203+AA203*P203+0.5*(AA203+AB203)*(N203+(AB203-AA203)*O203)+AB203*Q203+AK202*AL202)/AL203) -> 5e-05 | AL203: =AL202+N203+O203*(AB203-AA203)+P203+Q203 -> 0 | AM203: 0.1 | AN203: 0 | AO203: 0 | AP203: 0 | AQ203: =G203 -> 0 | AR203: =G203 -> 0 | AS203: 0 | AT203: =AP203 -> 0 | CB203: 0 | CC203: =INDEX(Hovedtal,BS195,9+BW203) ->  | CD203: =CD202+CC203 ->  | CE203: 0 | CF203: 0 | CG203: 0 | CH203: 0
A204: * | BT204: =MAX(AP196:BS203)+0.5 -> 0.5001
B206: Væg | F206: Etage | G206: h | H206: t | I206: r_1 | J206: r_2 | K206: L_eff | L206: V_i | M206: Q | N206: G | O206: p | P206: P1 | Q206: P2 | R206: T | S206: N | T206: b_1 | U206: b_2 | V206: n | W206: n_max | AA206: Etager: | AB206: 6 | AP206: Hjørnepunkter i vægopstalt | BZ206: r_1 | CA206: r_2 | CB206: L_eff | CC206: V_i | CD206: Q | CE206: G | CF206: p | CG206: P1 | CH206: P2
B207: =B195+1 -> 16 | G207: (m) | H207: (m) | I207: (m) | J207: (m) | K207: (m) | L207: (kN) | M207: (kN) | N207: (kN) | O207: (kN/m) | P207: (kN) | Q207: (kN) | R207: (kN) | S207: (kN) | T207: (m) | U207: (m) | V207: (kN/m) | W207: (kN/m) | BZ207: (m) | CA207: (m) | CB207: (m) | CC207: (kN) | CD207: (kN) | CE207: (kN) | CF207: (kN/m) | CG207: (kN) | CH207: (kN)
AA208: s_1 | AB208: s_2 | AC208: x_1 | AD208: y_1 | AE208: x_2 | AF208: y_2 | AG208: cos(a) | AH208: sin(a) | AI208: s_1_e | AJ208: s_2_e | AK208: s_N | AL208: N_0 | AM208: n | AN208: T_1 | AO208: T_2 | AP208: 0 | AQ208: 0 | AR208: =AB215 -> 0.0001 | AS208: =AB215 -> 0.0001 | AT208: =AP208 -> 0 | AU208: =AA214 -> 0 | AV208: =AA214 -> 0 | AW208: =AB214 -> 0.0001 | AX208: =AB214 -> 0.0001 | AY208: =AU208 -> 0 | AZ208: =AA213 -> 0 | BA208: =AA213 -> 0 | BB208: =AB213 -> 0.0001 | BC208: =AB213 -> 0.0001 | BD208: =AZ208 -> 0 | BE208: =AA212 -> 0 | BF208: =AA212 -> 0 | BG208: =AB212 -> 0.0001 | BH208: =AB212 -> 0.0001 | BI208: =BE208 -> 0 | BJ208: =AA211 -> 0 | BK208: =AA211 -> 0 | BL208: =AB211 -> 0.0001 | BM208: =AB211 -> 0.0001 | BN208: =BJ208 -> 0 | BO208: =AA210 -> 0 | BP208: =AA210 -> 0 | BQ208: =AB210 -> 0.0001 | BR208: =AB210 -> 0.0001 | BS208: =BO208 -> 0 | BT208: =BT216 -> 0.5001
F210: 6 | G210: =IF(INDEX(Hovedtal,B207,9)<F210,0,INDEX(Etager,7-F210,2)) -> 0 | H210: =IF(F210>INDEX(Hovedtal,B207,9),0,INDEX(Hovedtal,B207,6)) -> 0 | I210: 0 | J210: 0 | K210: =AJ210-AI210 -> 0.0001 | L210: =INDEX(Hovedtal,B207,9+F210) -> 0 | M210: =L210 -> 0 | N210: =(AB210-AA210)*H210*G210*g_g*g_e -> 0 | O210: 0 | P210: 0 | Q210: 0 | R210: =IF(AK210>0.5*(AI210+AJ210),AO210,AN210) -> 0 | S210: =AL210+R210 -> 0 | T210: =IF(AK210<=0.5*(AI210+AJ210),IF(AK210>AI210+0.5*AL210/AM210,2*(AK210-AI210),S210/AM210),0) -> 0.0001 | U210: =IF(AK210>0.5*(AI210+AJ210),IF(AK210<AJ210-0.5*AL210/AM210,2*(AJ210-AK210),S210/AM210),0) -> 0 | V210: =IF(AK210>0.5*(AI210+AJ210),S210/U210,S210/T210) -> 0 | W210: =INDEX(Hovedtal,B207,8) -> 0 | X210: =IF(OR(V210>W210,ABS(M210)>0.5*S210),"!","") ->  | AA210: =IF(G210=0,AA211,IF(I210=0,0,I210)) -> 0 | AB210: =IF(G210=0,AB211,IF(J210=0,AB215,AB215-J210)) -> 0.0001 | AC210: =IF(G210=0,0,AC215+AA210*AG215) -> 0 | AD210: =IF(G210=0,0,AD215+AA210*AH215) -> 0 | AE210: =IF(G210=0,0,AC215+AB210*AG215) -> 0 | AF210: =IF(G210=0,0,AD215+AB210*AH215) -> 0 | AI210: =MAX(AA210:AA211) -> 0 | AJ210: =MIN(AB210:AB211) -> 0.0001 | AK210: =IF(G210=0,0.5*(AI210+AJ210),(M210*G210+AA210*P210+0.5*(AA210+AB210)*(N210+(AB210-AA210)*O210)+AB210*Q210)/AL210) -> 5e-05 | AL210: =N210+O210*(AB210-AA210)+P210+Q210 -> 0 | AM210: =IF(AK210<0.5*(AI210+AJ210),MAX(W210,8*AL210*(0.5*(AJ210+AI210)-AK210)/(AJ210-AI210)^2+0.1),MAX(W210,-8*AL210*(0.5*(AJ210+AI210)-AK210)/(AJ210-AI210)^2+0.1)) -> 0.1 | AN210: =IF(AND(AK210<0.5*(AI210+AJ210),AL210/AM210>2*(AK210-AI210)),AM210*(-SQRT((AL210/AM210+0.5*AI210-0.5*AJ210)^2-2*(-AK210*AL210/AM210+0.5*AL210^2/AM210^2+AI210*AL210/AM210))-(AL210/AM210+0.5*AI210-0.5*AJ210)),0) -> 0 | AO210: =IF(AND(AK210>=0.5*(AI210+AJ210),AL210/AM210>2*(AJ210-AK210)),AM210*(-SQRT((AL210/AM210+0.5*AI210-0.5*AJ210)^2-2*(AK210*AL210/AM210+0.5*AL210^2/AM210^2-AJ210*AL210/AM210))-(AL210/AM210+0.5*AI210-0.5*AJ210)),0) -> 0 | BO210: =BL211 -> 0 | BP210: =BR210+G210 -> 0 | BQ210: =BO210+G210 -> 0 | BR210: =BK211 -> 0 | BS210: =BO210 -> 0 | BZ210: 0 | CA210: 0 | CB210: =DA210-CZ210 -> 0 | CC210: =INDEX(Hovedtal,BS207,9+BW210) ->  | CD210: =CC210 ->  | CE210: =(CS210-CR210)*BY210*BX210*g_g*g_e -> 0 | CF210: 0 | CG210: 0 | CH210: 0
F211: 5 | G211: =IF(INDEX(Hovedtal,B207,9)<F211,0,INDEX(Etager,7-F211,2)) -> 0 | H211: =IF(F211>INDEX(Hovedtal,B207,9),0,INDEX(Hovedtal,B207,6)) -> 0 | I211: 0 | J211: 0 | K211: 0.0001 | L211: =INDEX(Hovedtal,B207,9+F211) -> 0 | M211: =M210+L211 -> 0 | N211: 0 | O211: 0 | P211: 0 | Q211: 0 | R211: 0 | S211: 0 | T211: 0.0001 | U211: 0 | V211: 0 | W211: =INDEX(Hovedtal,B207,8) -> 0 | AA211: =IF(G211=0,AA212,IF(I211=0,0,I211)) -> 0 | AB211: =IF(G211=0,AB212,IF(J211=0,AB215,AB215-J211)) -> 0.0001 | AC211: =IF(G211=0,0,AC215+AA211*AG215) -> 0 | AD211: =IF(G211=0,0,AD215+AA211*AH215) -> 0 | AE211: =IF(G211=0,0,AC215+AB211*AG215) -> 0 | AF211: =IF(G211=0,0,AD215+AB211*AH215) -> 0 | AI211: =MAX(AA211:AA212) -> 0 | AJ211: =MIN(AB211:AB212) -> 0.0001 | AK211: =IF(G211=0,0.5*(AI211+AJ211),(M211*G211+AA211*P211+0.5*(AA211+AB211)*(N211+(AB211-AA211)*O211)+AB211*Q211+AK210*AL210)/AL211) -> 5e-05 | AL211: =AL210+N211+O211*(AB211-AA211)+P211+Q211 -> 0 | AM211: 0.1 | AN211: 0 | AO211: 0 | BJ211: =BG212 -> 0 | BK211: =BM211+G211 -> 0 | BL211: =BJ211+G211 -> 0 | BM211: =BF212 -> 0 | BN211: =BJ211 -> 0 | BZ211: 0 | CA211: 0 | CB211: 0 | CC211: =INDEX(Hovedtal,BS207,9+BW211) ->  | CD211: =CD210+CC211 ->  | CE211: 0 | CF211: 0 | CG211: 0 | CH211: 0
F212: 4 | G212: =IF(INDEX(Hovedtal,B207,9)<F212,0,INDEX(Etager,7-F212,2)) -> 0 | H212: =IF(F212>INDEX(Hovedtal,B207,9),0,INDEX(Hovedtal,B207,6)) -> 0 | I212: 0 | K212: 0.0001 | L212: =INDEX(Hovedtal,B207,9+F212) -> 0 | M212: =M211+L212 -> 0 | N212: 0 | O212: 0 | P212: 0 | Q212: 0 | R212: 0 | S212: 0 | T212: 0.0001 | U212: 0 | V212: 0 | W212: =INDEX(Hovedtal,B207,8) -> 0 | AA212: =IF(G212=0,AA213,IF(I212=0,0,I212)) -> 0 | AB212: =IF(G212=0,AB213,IF(J212=0,AB215,AB215-J212)) -> 0.0001 | AC212: =IF(G212=0,0,AC215+AA212*AG215) -> 0 | AD212: =IF(G212=0,0,AD215+AA212*AH215) -> 0 | AE212: =IF(G212=0,0,AC215+AB212*AG215) -> 0 | AF212: =IF(G212=0,0,AD215+AB212*AH215) -> 0 | AI212: =MAX(AA212:AA213) -> 0 | AJ212: =MIN(AB212:AB213) -> 0.0001 | AK212: =IF(G212=0,0.5*(AI212+AJ212),(M212*G212+AA212*P212+0.5*(AA212+AB212)*(N212+(AB212-AA212)*O212)+AB212*Q212+AK211*AL211)/AL212) -> 5e-05 | AL212: =AL211+N212+O212*(AB212-AA212)+P212+Q212 -> 0 | AM212: 0.1 | AN212: 0 | AO212: 0 | BE212: =BB213 -> 0 | BF212: =BH212+G212 -> 0 | BG212: =BE212+G212 -> 0 | BH212: =BA213 -> 0 | BI212: =BE212 -> 0 | BZ212: 0 | CB212: 0 | CC212: =INDEX(Hovedtal,BS207,9+BW212) ->  | CD212: =CD211+CC212 ->  | CE212: 0 | CF212: 0 | CG212: 0 | CH212: 0
F213: 3 | G213: =IF(INDEX(Hovedtal,B207,9)<F213,0,INDEX(Etager,7-F213,2)) -> 0 | H213: =IF(F213>INDEX(Hovedtal,B207,9),0,INDEX(Hovedtal,B207,6)) -> 0 | I213: 0 | K213: 0.0001 | L213: =INDEX(Hovedtal,B207,9+F213) -> 0 | M213: =M212+L213 -> 0 | N213: 0 | O213: 0 | P213: 0 | Q213: 0 | R213: 0 | S213: 0 | T213: 0.0001 | U213: 0 | V213: 0 | W213: =INDEX(Hovedtal,B207,8) -> 0 | AA213: =IF(G213=0,AA214,IF(I213=0,0,I213)) -> 0 | AB213: =IF(G213=0,AB214,IF(J213=0,AB215,AB215-J213)) -> 0.0001 | AC213: =IF(G213=0,0,AC215+AA213*AG215) -> 0 | AD213: =IF(G213=0,0,AD215+AA213*AH215) -> 0 | AE213: =IF(G213=0,0,AC215+AB213*AG215) -> 0 | AF213: =IF(G213=0,0,AD215+AB213*AH215) -> 0 | AI213: =MAX(AA213:AA214) -> 0 | AJ213: =MIN(AB213:AB214) -> 0.0001 | AK213: =IF(G213=0,0.5*(AI213+AJ213),(M213*G213+AA213*P213+0.5*(AA213+AB213)*(N213+(AB213-AA213)*O213)+AB213*Q213+AK212*AL212)/AL213) -> 5e-05 | AL213: =AL212+N213+O213*(AB213-AA213)+P213+Q213 -> 0 | AM213: 0.1 | AN213: 0 | AO213: 0 | AZ213: =AW214 -> 0 | BA213: =BC213+G213 -> 0 | BB213: =AZ213+G213 -> 0 | BC213: =AV214 -> 0 | BD213: =AZ213 -> 0 | BZ213: 0 | CB213: 0 | CC213: =INDEX(Hovedtal,BS207,9+BW213) ->  | CD213: =CD212+CC213 ->  | CE213: 0 | CF213: 0 | CG213: 0 | CH213: 0
F214: 2 | G214: =IF(INDEX(Hovedtal,B207,9)<F214,0,INDEX(Etager,7-F214,2)) -> 0 | H214: =IF(F214>INDEX(Hovedtal,B207,9),0,INDEX(Hovedtal,B207,6)) -> 0 | I214: 0 | K214: 0.0001 | L214: =INDEX(Hovedtal,B207,9+F214) -> 0 | M214: =M213+L214 -> 0 | N214: 0 | O214: 0 | P214: 0 | Q214: 0 | R214: 0 | S214: 0 | T214: 0.0001 | U214: 0 | V214: 0 | W214: =INDEX(Hovedtal,B207,8) -> 0 | AA214: =IF(G214=0,AA215,IF(I214=0,0,I214)) -> 0 | AB214: =IF(G214=0,AB215,IF(J214=0,AB215,AB215-J214)) -> 0.0001 | AC214: =IF(G214=0,0,AC215+AA214*AG215) -> 0 | AD214: =IF(G214=0,0,AD215+AA214*AH215) -> 0 | AE214: =IF(G214=0,0,AC215+AB214*AG215) -> 0 | AF214: =IF(G214=0,0,AD215+AB214*AH215) -> 0 | AI214: =MAX(AA214:AA215) -> 0 | AJ214: =MIN(AB214:AB215) -> 0.0001 | AK214: =IF(G214=0,0.5*(AI214+AJ214),(M214*G214+AA214*P214+0.5*(AA214+AB214)*(N214+(AB214-AA214)*O214)+AB214*Q214+AK213*AL213)/AL214) -> 5e-05 | AL214: =AL213+N214+O214*(AB214-AA214)+P214+Q214 -> 0 | AM214: 0.1 | AN214: 0 | AO214: 0 | AU214: =AR215 -> 0 | AV214: =AX214+G214 -> 0 | AW214: =AU214+G214 -> 0 | AX214: =AQ215 -> 0 | AY214: =AU214 -> 0 | BZ214: 0 | CB214: 0 | CC214: =INDEX(Hovedtal,BS207,9+BW214) ->  | CD214: =CD213+CC214 ->  | CE214: 0 | CF214: 0 | CG214: 0 | CH214: 0
F215: 1 | G215: =IF(INDEX(Hovedtal,B207,9)<F215,0,INDEX(Etager,7-F215,2)) -> 0 | H215: =IF(F215>INDEX(Hovedtal,B207,9),0,INDEX(Hovedtal,B207,6)) -> 0 | K215: 0.0001 | L215: =INDEX(Hovedtal,B207,9+F215) -> 0 | M215: =M214+L215 -> 0 | N215: 0 | O215: 0 | P215: 0 | Q215: 0 | R215: 0 | S215: 0 | T215: 0.0001 | U215: 0 | V215: 0 | W215: =INDEX(Hovedtal,B207,8) -> 0 | AA215: 0 | AB215: =SQRT((AE215-AC215)^2+(AF215-AD215)^2)+0.0001 -> 0.0001 | AC215: =INDEX(Hovedtal,B207,2) -> 0 | AD215: =INDEX(Hovedtal,B207,3) -> 0 | AE215: =INDEX(Hovedtal,B207,4) -> 0 | AF215: =INDEX(Hovedtal,B207,5) -> 0 | AG215: =(AE215-AC215)/AB215 -> 0 | AH215: =(AF215-AD215)/AB215 -> 0 | AI215: =AA215 -> 0 | AJ215: =AB215 -> 0.0001 | AK215: =IF(G215=0,0.5*(AI215+AJ215),(M215*G215+AA215*P215+0.5*(AA215+AB215)*(N215+(AB215-AA215)*O215)+AB215*Q215+AK214*AL214)/AL215) -> 5e-05 | AL215: =AL214+N215+O215*(AB215-AA215)+P215+Q215 -> 0 | AM215: 0.1 | AN215: 0 | AO215: 0 | AP215: 0 | AQ215: =G215 -> 0 | AR215: =G215 -> 0 | AS215: 0 | AT215: =AP215 -> 0 | CB215: 0 | CC215: =INDEX(Hovedtal,BS207,9+BW215) ->  | CD215: =CD214+CC215 ->  | CE215: 0 | CF215: 0 | CG215: 0 | CH215: 0
A216: * | BT216: =MAX(AP208:BS215)+0.5 -> 0.5001
B218: Væg | F218: Etage | G218: h | H218: t | I218: r_1 | J218: r_2 | K218: L_eff | L218: V_i | M218: Q | N218: G | O218: p | P218: P1 | Q218: P2 | R218: T | S218: N | T218: b_1 | U218: b_2 | V218: n | W218: n_max | AA218: Etager: | AB218: 6 | AP218: Hjørnepunkter i vægopstalt | BZ218: r_1 | CA218: r_2 | CB218: L_eff | CC218: V_i | CD218: Q | CE218: G | CF218: p | CG218: P1 | CH218: P2
B219: =B207+1 -> 17 | G219: (m) | H219: (m) | I219: (m) | J219: (m) | K219: (m) | L219: (kN) | M219: (kN) | N219: (kN) | O219: (kN/m) | P219: (kN) | Q219: (kN) | R219: (kN) | S219: (kN) | T219: (m) | U219: (m) | V219: (kN/m) | W219: (kN/m) | BZ219: (m) | CA219: (m) | CB219: (m) | CC219: (kN) | CD219: (kN) | CE219: (kN) | CF219: (kN/m) | CG219: (kN) | CH219: (kN)
AA220: s_1 | AB220: s_2 | AC220: x_1 | AD220: y_1 | AE220: x_2 | AF220: y_2 | AG220: cos(a) | AH220: sin(a) | AI220: s_1_e | AJ220: s_2_e | AK220: s_N | AL220: N_0 | AM220: n | AN220: T_1 | AO220: T_2 | AP220: 0 | AQ220: 0 | AR220: =AB227 -> 0.0001 | AS220: =AB227 -> 0.0001 | AT220: =AP220 -> 0 | AU220: =AA226 -> 0 | AV220: =AA226 -> 0 | AW220: =AB226 -> 0.0001 | AX220: =AB226 -> 0.0001 | AY220: =AU220 -> 0 | AZ220: =AA225 -> 0 | BA220: =AA225 -> 0 | BB220: =AB225 -> 0.0001 | BC220: =AB225 -> 0.0001 | BD220: =AZ220 -> 0 | BE220: =AA224 -> 0 | BF220: =AA224 -> 0 | BG220: =AB224 -> 0.0001 | BH220: =AB224 -> 0.0001 | BI220: =BE220 -> 0 | BJ220: =AA223 -> 0 | BK220: =AA223 -> 0 | BL220: =AB223 -> 0.0001 | BM220: =AB223 -> 0.0001 | BN220: =BJ220 -> 0 | BO220: =AA222 -> 0 | BP220: =AA222 -> 0 | BQ220: =AB222 -> 0.0001 | BR220: =AB222 -> 0.0001 | BS220: =BO220 -> 0 | BT220: =BT228 -> 0.5001
F222: 6 | G222: =IF(INDEX(Hovedtal,B219,9)<F222,0,INDEX(Etager,7-F222,2)) -> 0 | H222: =IF(F222>INDEX(Hovedtal,B219,9),0,INDEX(Hovedtal,B219,6)) -> 0 | I222: 0 | J222: 0 | K222: =AJ222-AI222 -> 0.0001 | L222: =INDEX(Hovedtal,B219,9+F222) -> 0 | M222: =L222 -> 0 | N222: =(AB222-AA222)*H222*G222*g_g*g_e -> 0 | O222: 0 | P222: 0 | Q222: 0 | R222: =IF(AK222>0.5*(AI222+AJ222),AO222,AN222) -> 0 | S222: =AL222+R222 -> 0 | T222: =IF(AK222<=0.5*(AI222+AJ222),IF(AK222>AI222+0.5*AL222/AM222,2*(AK222-AI222),S222/AM222),0) -> 0.0001 | U222: =IF(AK222>0.5*(AI222+AJ222),IF(AK222<AJ222-0.5*AL222/AM222,2*(AJ222-AK222),S222/AM222),0) -> 0 | V222: =IF(AK222>0.5*(AI222+AJ222),S222/U222,S222/T222) -> 0 | W222: =INDEX(Hovedtal,B219,8) -> 0 | X222: =IF(OR(V222>W222,ABS(M222)>0.5*S222),"!","") ->  | AA222: =IF(G222=0,AA223,IF(I222=0,0,I222)) -> 0 | AB222: =IF(G222=0,AB223,IF(J222=0,AB227,AB227-J222)) -> 0.0001 | AC222: =IF(G222=0,0,AC227+AA222*AG227) -> 0 | AD222: =IF(G222=0,0,AD227+AA222*AH227) -> 0 | AE222: =IF(G222=0,0,AC227+AB222*AG227) -> 0 | AF222: =IF(G222=0,0,AD227+AB222*AH227) -> 0 | AI222: =MAX(AA222:AA223) -> 0 | AJ222: =MIN(AB222:AB223) -> 0.0001 | AK222: =IF(G222=0,0.5*(AI222+AJ222),(M222*G222+AA222*P222+0.5*(AA222+AB222)*(N222+(AB222-AA222)*O222)+AB222*Q222)/AL222) -> 5e-05 | AL222: =N222+O222*(AB222-AA222)+P222+Q222 -> 0 | AM222: =IF(AK222<0.5*(AI222+AJ222),MAX(W222,8*AL222*(0.5*(AJ222+AI222)-AK222)/(AJ222-AI222)^2+0.1),MAX(W222,-8*AL222*(0.5*(AJ222+AI222)-AK222)/(AJ222-AI222)^2+0.1)) -> 0.1 | AN222: =IF(AND(AK222<0.5*(AI222+AJ222),AL222/AM222>2*(AK222-AI222)),AM222*(-SQRT((AL222/AM222+0.5*AI222-0.5*AJ222)^2-2*(-AK222*AL222/AM222+0.5*AL222^2/AM222^2+AI222*AL222/AM222))-(AL222/AM222+0.5*AI222-0.5*AJ222)),0) -> 0 | AO222: =IF(AND(AK222>=0.5*(AI222+AJ222),AL222/AM222>2*(AJ222-AK222)),AM222*(-SQRT((AL222/AM222+0.5*AI222-0.5*AJ222)^2-2*(AK222*AL222/AM222+0.5*AL222^2/AM222^2-AJ222*AL222/AM222))-(AL222/AM222+0.5*AI222-0.5*AJ222)),0) -> 0 | BO222: =BL223 -> 0 | BP222: =BR222+G222 -> 0 | BQ222: =BO222+G222 -> 0 | BR222: =BK223 -> 0 | BS222: =BO222 -> 0 | BZ222: 0 | CA222: 0 | CB222: =DA222-CZ222 -> 0 | CC222: =INDEX(Hovedtal,BS219,9+BW222) ->  | CD222: =CC222 ->  | CE222: =(CS222-CR222)*BY222*BX222*g_g*g_e -> 0 | CF222: 0 | CG222: 0 | CH222: 0
F223: 5 | G223: =IF(INDEX(Hovedtal,B219,9)<F223,0,INDEX(Etager,7-F223,2)) -> 0 | H223: =IF(F223>INDEX(Hovedtal,B219,9),0,INDEX(Hovedtal,B219,6)) -> 0 | I223: 0 | J223: 0 | K223: 0.0001 | L223: =INDEX(Hovedtal,B219,9+F223) -> 0 | M223: =M222+L223 -> 0 | N223: 0 | O223: 0 | P223: 0 | Q223: 0 | R223: 0 | S223: 0 | T223: 0.0001 | U223: 0 | V223: 0 | W223: =INDEX(Hovedtal,B219,8) -> 0 | AA223: =IF(G223=0,AA224,IF(I223=0,0,I223)) -> 0 | AB223: =IF(G223=0,AB224,IF(J223=0,AB227,AB227-J223)) -> 0.0001 | AC223: =IF(G223=0,0,AC227+AA223*AG227) -> 0 | AD223: =IF(G223=0,0,AD227+AA223*AH227) -> 0 | AE223: =IF(G223=0,0,AC227+AB223*AG227) -> 0 | AF223: =IF(G223=0,0,AD227+AB223*AH227) -> 0 | AI223: =MAX(AA223:AA224) -> 0 | AJ223: =MIN(AB223:AB224) -> 0.0001 | AK223: =IF(G223=0,0.5*(AI223+AJ223),(M223*G223+AA223*P223+0.5*(AA223+AB223)*(N223+(AB223-AA223)*O223)+AB223*Q223+AK222*AL222)/AL223) -> 5e-05 | AL223: =AL222+N223+O223*(AB223-AA223)+P223+Q223 -> 0 | AM223: 0.1 | AN223: 0 | AO223: 0 | BJ223: =BG224 -> 0 | BK223: =BM223+G223 -> 0 | BL223: =BJ223+G223 -> 0 | BM223: =BF224 -> 0 | BN223: =BJ223 -> 0 | BZ223: 0 | CA223: 0 | CB223: 0 | CC223: =INDEX(Hovedtal,BS219,9+BW223) ->  | CD223: =CD222+CC223 ->  | CE223: 0 | CF223: 0 | CG223: 0 | CH223: 0
F224: 4 | G224: =IF(INDEX(Hovedtal,B219,9)<F224,0,INDEX(Etager,7-F224,2)) -> 0 | H224: =IF(F224>INDEX(Hovedtal,B219,9),0,INDEX(Hovedtal,B219,6)) -> 0 | J224: 0 | K224: 0.0001 | L224: =INDEX(Hovedtal,B219,9+F224) -> 0 | M224: =M223+L224 -> 0 | N224: 0 | O224: 0 | P224: 0 | Q224: 0 | R224: 0 | S224: 0 | T224: 0.0001 | U224: 0 | V224: 0 | W224: =INDEX(Hovedtal,B219,8) -> 0 | AA224: =IF(G224=0,AA225,IF(I224=0,0,I224)) -> 0 | AB224: =IF(G224=0,AB225,IF(J224=0,AB227,AB227-J224)) -> 0.0001 | AC224: =IF(G224=0,0,AC227+AA224*AG227) -> 0 | AD224: =IF(G224=0,0,AD227+AA224*AH227) -> 0 | AE224: =IF(G224=0,0,AC227+AB224*AG227) -> 0 | AF224: =IF(G224=0,0,AD227+AB224*AH227) -> 0 | AI224: =MAX(AA224:AA225) -> 0 | AJ224: =MIN(AB224:AB225) -> 0.0001 | AK224: =IF(G224=0,0.5*(AI224+AJ224),(M224*G224+AA224*P224+0.5*(AA224+AB224)*(N224+(AB224-AA224)*O224)+AB224*Q224+AK223*AL223)/AL224) -> 5e-05 | AL224: =AL223+N224+O224*(AB224-AA224)+P224+Q224 -> 0 | AM224: 0.1 | AN224: 0 | AO224: 0 | BE224: =BB225 -> 0 | BF224: =BH224+G224 -> 0 | BG224: =BE224+G224 -> 0 | BH224: =BA225 -> 0 | BI224: =BE224 -> 0 | CA224: 0 | CB224: 0 | CC224: =INDEX(Hovedtal,BS219,9+BW224) ->  | CD224: =CD223+CC224 ->  | CE224: 0 | CF224: 0 | CG224: 0 | CH224: 0
F225: 3 | G225: =IF(INDEX(Hovedtal,B219,9)<F225,0,INDEX(Etager,7-F225,2)) -> 0 | H225: =IF(F225>INDEX(Hovedtal,B219,9),0,INDEX(Hovedtal,B219,6)) -> 0 | J225: 0 | K225: 0.0001 | L225: =INDEX(Hovedtal,B219,9+F225) -> 0 | M225: =M224+L225 -> 0 | N225: 0 | O225: 0 | P225: 0 | Q225: 0 | R225: 0 | S225: 0 | T225: 0.0001 | U225: 0 | V225: 0 | W225: =INDEX(Hovedtal,B219,8) -> 0 | AA225: =IF(G225=0,AA226,IF(I225=0,0,I225)) -> 0 | AB225: =IF(G225=0,AB226,IF(J225=0,AB227,AB227-J225)) -> 0.0001 | AC225: =IF(G225=0,0,AC227+AA225*AG227) -> 0 | AD225: =IF(G225=0,0,AD227+AA225*AH227) -> 0 | AE225: =IF(G225=0,0,AC227+AB225*AG227) -> 0 | AF225: =IF(G225=0,0,AD227+AB225*AH227) -> 0 | AI225: =MAX(AA225:AA226) -> 0 | AJ225: =MIN(AB225:AB226) -> 0.0001 | AK225: =IF(G225=0,0.5*(AI225+AJ225),(M225*G225+AA225*P225+0.5*(AA225+AB225)*(N225+(AB225-AA225)*O225)+AB225*Q225+AK224*AL224)/AL225) -> 5e-05 | AL225: =AL224+N225+O225*(AB225-AA225)+P225+Q225 -> 0 | AM225: 0.1 | AN225: 0 | AO225: 0 | AZ225: =AW226 -> 0 | BA225: =BC225+G225 -> 0 | BB225: =AZ225+G225 -> 0 | BC225: =AV226 -> 0 | BD225: =AZ225 -> 0 | CA225: 0 | CB225: 0 | CC225: =INDEX(Hovedtal,BS219,9+BW225) ->  | CD225: =CD224+CC225 ->  | CE225: 0 | CF225: 0 | CG225: 0 | CH225: 0
F226: 2 | G226: =IF(INDEX(Hovedtal,B219,9)<F226,0,INDEX(Etager,7-F226,2)) -> 0 | H226: =IF(F226>INDEX(Hovedtal,B219,9),0,INDEX(Hovedtal,B219,6)) -> 0 | J226: 0 | K226: 0.0001 | L226: =INDEX(Hovedtal,B219,9+F226) -> 0 | M226: =M225+L226 -> 0 | N226: 0 | O226: 0 | P226: 0 | Q226: 0 | R226: 0 | S226: 0 | T226: 0.0001 | U226: 0 | V226: 0 | W226: =INDEX(Hovedtal,B219,8) -> 0 | AA226: =IF(G226=0,AA227,IF(I226=0,0,I226)) -> 0 | AB226: =IF(G226=0,AB227,IF(J226=0,AB227,AB227-J226)) -> 0.0001 | AC226: =IF(G226=0,0,AC227+AA226*AG227) -> 0 | AD226: =IF(G226=0,0,AD227+AA226*AH227) -> 0 | AE226: =IF(G226=0,0,AC227+AB226*AG227) -> 0 | AF226: =IF(G226=0,0,AD227+AB226*AH227) -> 0 | AI226: =MAX(AA226:AA227) -> 0 | AJ226: =MIN(AB226:AB227) -> 0.0001 | AK226: =IF(G226=0,0.5*(AI226+AJ226),(M226*G226+AA226*P226+0.5*(AA226+AB226)*(N226+(AB226-AA226)*O226)+AB226*Q226+AK225*AL225)/AL226) -> 5e-05 | AL226: =AL225+N226+O226*(AB226-AA226)+P226+Q226 -> 0 | AM226: 0.1 | AN226: 0 | AO226: 0 | AU226: =AR227 -> 0 | AV226: =AX226+G226 -> 0 | AW226: =AU226+G226 -> 0 | AX226: =AQ227 -> 0 | AY226: =AU226 -> 0 | CA226: 0 | CB226: 0 | CC226: =INDEX(Hovedtal,BS219,9+BW226) ->  | CD226: =CD225+CC226 ->  | CE226: 0 | CF226: 0 | CG226: 0 | CH226: 0
F227: 1 | G227: =IF(INDEX(Hovedtal,B219,9)<F227,0,INDEX(Etager,7-F227,2)) -> 0 | H227: =IF(F227>INDEX(Hovedtal,B219,9),0,INDEX(Hovedtal,B219,6)) -> 0 | K227: 0.0001 | L227: =INDEX(Hovedtal,B219,9+F227) -> 0 | M227: =M226+L227 -> 0 | N227: 0 | O227: 0 | P227: 0 | Q227: 0 | R227: 0 | S227: 0 | T227: 0.0001 | U227: 0 | V227: 0 | W227: =INDEX(Hovedtal,B219,8) -> 0 | AA227: 0 | AB227: =SQRT((AE227-AC227)^2+(AF227-AD227)^2)+0.0001 -> 0.0001 | AC227: =INDEX(Hovedtal,B219,2) -> 0 | AD227: =INDEX(Hovedtal,B219,3) -> 0 | AE227: =INDEX(Hovedtal,B219,4) -> 0 | AF227: =INDEX(Hovedtal,B219,5) -> 0 | AG227: =(AE227-AC227)/AB227 -> 0 | AH227: =(AF227-AD227)/AB227 -> 0 | AI227: =AA227 -> 0 | AJ227: =AB227 -> 0.0001 | AK227: =IF(G227=0,0.5*(AI227+AJ227),(M227*G227+AA227*P227+0.5*(AA227+AB227)*(N227+(AB227-AA227)*O227)+AB227*Q227+AK226*AL226)/AL227) -> 5e-05 | AL227: =AL226+N227+O227*(AB227-AA227)+P227+Q227 -> 0 | AM227: 0.1 | AN227: 0 | AO227: 0 | AP227: 0 | AQ227: =G227 -> 0 | AR227: =G227 -> 0 | AS227: 0 | AT227: =AP227 -> 0 | CB227: 0 | CC227: =INDEX(Hovedtal,BS219,9+BW227) ->  | CD227: =CD226+CC227 ->  | CE227: 0 | CF227: 0 | CG227: 0 | CH227: 0
A228: * | BT228: =MAX(AP220:BS227)+0.5 -> 0.5001
B230: Væg | F230: Etage | G230: h | H230: t | I230: r_1 | J230: r_2 | K230: L_eff | L230: V_i | M230: Q | N230: G | O230: p | P230: P1 | Q230: P2 | R230: T | S230: N | T230: b_1 | U230: b_2 | V230: n | W230: n_max | AA230: Etager: | AB230: 6 | AP230: Hjørnepunkter i vægopstalt | BZ230: r_1 | CA230: r_2 | CB230: L_eff | CC230: V_i | CD230: Q | CE230: G | CF230: p | CG230: P1 | CH230: P2
B231: =B219+1 -> 18 | G231: (m) | H231: (m) | I231: (m) | J231: (m) | K231: (m) | L231: (kN) | M231: (kN) | N231: (kN) | O231: (kN/m) | P231: (kN) | Q231: (kN) | R231: (kN) | S231: (kN) | T231: (m) | U231: (m) | V231: (kN/m) | W231: (kN/m) | BZ231: (m) | CA231: (m) | CB231: (m) | CC231: (kN) | CD231: (kN) | CE231: (kN) | CF231: (kN/m) | CG231: (kN) | CH231: (kN)
AA232: s_1 | AB232: s_2 | AC232: x_1 | AD232: y_1 | AE232: x_2 | AF232: y_2 | AG232: cos(a) | AH232: sin(a) | AI232: s_1_e | AJ232: s_2_e | AK232: s_N | AL232: N_0 | AM232: n | AN232: T_1 | AO232: T_2 | AP232: 0 | AQ232: 0 | AR232: =AB239 -> 0.0001 | AS232: =AB239 -> 0.0001 | AT232: =AP232 -> 0 | AU232: =AA238 -> 0 | AV232: =AA238 -> 0 | AW232: =AB238 -> 0.0001 | AX232: =AB238 -> 0.0001 | AY232: =AU232 -> 0 | AZ232: =AA237 -> 0 | BA232: =AA237 -> 0 | BB232: =AB237 -> 0.0001 | BC232: =AB237 -> 0.0001 | BD232: =AZ232 -> 0 | BE232: =AA236 -> 0 | BF232: =AA236 -> 0 | BG232: =AB236 -> 0.0001 | BH232: =AB236 -> 0.0001 | BI232: =BE232 -> 0 | BJ232: =AA235 -> 0 | BK232: =AA235 -> 0 | BL232: =AB235 -> 0.0001 | BM232: =AB235 -> 0.0001 | BN232: =BJ232 -> 0 | BO232: =AA234 -> 0 | BP232: =AA234 -> 0 | BQ232: =AB234 -> 0.0001 | BR232: =AB234 -> 0.0001 | BS232: =BO232 -> 0 | BT232: =BT240 -> 0.5001
F234: 6 | G234: =IF(INDEX(Hovedtal,B231,9)<F234,0,INDEX(Etager,7-F234,2)) -> 0 | H234: =IF(F234>INDEX(Hovedtal,B231,9),0,INDEX(Hovedtal,B231,6)) -> 0 | I234: 0 | J234: 0 | K234: =AJ234-AI234 -> 0.0001 | L234: =INDEX(Hovedtal,B231,9+F234) -> 0 | M234: =L234 -> 0 | N234: =(AB234-AA234)*H234*G234*g_g*g_e -> 0 | O234: 0 | P234: 0 | Q234: 0 | R234: =IF(AK234>0.5*(AI234+AJ234),AO234,AN234) -> 0 | S234: =AL234+R234 -> 0 | T234: =IF(AK234<=0.5*(AI234+AJ234),IF(AK234>AI234+0.5*AL234/AM234,2*(AK234-AI234),S234/AM234),0) -> 0.0001 | U234: =IF(AK234>0.5*(AI234+AJ234),IF(AK234<AJ234-0.5*AL234/AM234,2*(AJ234-AK234),S234/AM234),0) -> 0 | V234: =IF(AK234>0.5*(AI234+AJ234),S234/U234,S234/T234) -> 0 | W234: =INDEX(Hovedtal,B231,8) -> 0 | X234: =IF(OR(V234>W234,ABS(M234)>0.5*S234),"!","") ->  | AA234: =IF(G234=0,AA235,IF(I234=0,0,I234)) -> 0 | AB234: =IF(G234=0,AB235,IF(J234=0,AB239,AB239-J234)) -> 0.0001 | AC234: =IF(G234=0,0,AC239+AA234*AG239) -> 0 | AD234: =IF(G234=0,0,AD239+AA234*AH239) -> 0 | AE234: =IF(G234=0,0,AC239+AB234*AG239) -> 0 | AF234: =IF(G234=0,0,AD239+AB234*AH239) -> 0 | AI234: =MAX(AA234:AA235) -> 0 | AJ234: =MIN(AB234:AB235) -> 0.0001 | AK234: =IF(G234=0,0.5*(AI234+AJ234),(M234*G234+AA234*P234+0.5*(AA234+AB234)*(N234+(AB234-AA234)*O234)+AB234*Q234)/AL234) -> 5e-05 | AL234: =N234+O234*(AB234-AA234)+P234+Q234 -> 0 | AM234: =IF(AK234<0.5*(AI234+AJ234),MAX(W234,8*AL234*(0.5*(AJ234+AI234)-AK234)/(AJ234-AI234)^2+0.1),MAX(W234,-8*AL234*(0.5*(AJ234+AI234)-AK234)/(AJ234-AI234)^2+0.1)) -> 0.1 | AN234: =IF(AND(AK234<0.5*(AI234+AJ234),AL234/AM234>2*(AK234-AI234)),AM234*(-SQRT((AL234/AM234+0.5*AI234-0.5*AJ234)^2-2*(-AK234*AL234/AM234+0.5*AL234^2/AM234^2+AI234*AL234/AM234))-(AL234/AM234+0.5*AI234-0.5*AJ234)),0) -> 0 | AO234: =IF(AND(AK234>=0.5*(AI234+AJ234),AL234/AM234>2*(AJ234-AK234)),AM234*(-SQRT((AL234/AM234+0.5*AI234-0.5*AJ234)^2-2*(AK234*AL234/AM234+0.5*AL234^2/AM234^2-AJ234*AL234/AM234))-(AL234/AM234+0.5*AI234-0.5*AJ234)),0) -> 0 | BO234: =BL235 -> 0 | BP234: =BR234+G234 -> 0 | BQ234: =BO234+G234 -> 0 | BR234: =BK235 -> 0 | BS234: =BO234 -> 0 | BZ234: 0 | CA234: 0 | CB234: =DA234-CZ234 -> 0 | CC234: =INDEX(Hovedtal,BS231,9+BW234) ->  | CD234: =CC234 ->  | CE234: =(CS234-CR234)*BY234*BX234*g_g*g_e -> 0 | CF234: 0 | CG234: 0 | CH234: 0
F235: 5 | G235: =IF(INDEX(Hovedtal,B231,9)<F235,0,INDEX(Etager,7-F235,2)) -> 0 | H235: =IF(F235>INDEX(Hovedtal,B231,9),0,INDEX(Hovedtal,B231,6)) -> 0 | I235: 0 | J235: 0 | K235: 0.0001 | L235: =INDEX(Hovedtal,B231,9+F235) -> 0 | M235: =M234+L235 -> 0 | N235: 0 | O235: 0 | P235: 0 | Q235: 0 | R235: 0 | S235: 0 | T235: 0.0001 | U235: 0 | V235: 0 | W235: =INDEX(Hovedtal,B231,8) -> 0 | AA235: =IF(G235=0,AA236,IF(I235=0,0,I235)) -> 0 | AB235: =IF(G235=0,AB236,IF(J235=0,AB239,AB239-J235)) -> 0.0001 | AC235: =IF(G235=0,0,AC239+AA235*AG239) -> 0 | AD235: =IF(G235=0,0,AD239+AA235*AH239) -> 0 | AE235: =IF(G235=0,0,AC239+AB235*AG239) -> 0 | AF235: =IF(G235=0,0,AD239+AB235*AH239) -> 0 | AI235: =MAX(AA235:AA236) -> 0 | AJ235: =MIN(AB235:AB236) -> 0.0001 | AK235: =IF(G235=0,0.5*(AI235+AJ235),(M235*G235+AA235*P235+0.5*(AA235+AB235)*(N235+(AB235-AA235)*O235)+AB235*Q235+AK234*AL234)/AL235) -> 5e-05 | AL235: =AL234+N235+O235*(AB235-AA235)+P235+Q235 -> 0 | AM235: 0.1 | AN235: 0 | AO235: 0 | BJ235: =BG236 -> 0 | BK235: =BM235+G235 -> 0 | BL235: =BJ235+G235 -> 0 | BM235: =BF236 -> 0 | BN235: =BJ235 -> 0 | BZ235: 0 | CA235: 0 | CB235: 0 | CC235: =INDEX(Hovedtal,BS231,9+BW235) ->  | CD235: =CD234+CC235 ->  | CE235: 0 | CF235: 0 | CG235: 0 | CH235: 0
F236: 4 | G236: =IF(INDEX(Hovedtal,B231,9)<F236,0,INDEX(Etager,7-F236,2)) -> 0 | H236: =IF(F236>INDEX(Hovedtal,B231,9),0,INDEX(Hovedtal,B231,6)) -> 0 | I236: 0 | K236: 0.0001 | L236: =INDEX(Hovedtal,B231,9+F236) -> 0 | M236: =M235+L236 -> 0 | N236: 0 | O236: 0 | P236: 0 | Q236: 0 | R236: 0 | S236: 0 | T236: 0.0001 | U236: 0 | V236: 0 | W236: =INDEX(Hovedtal,B231,8) -> 0 | AA236: =IF(G236=0,AA237,IF(I236=0,0,I236)) -> 0 | AB236: =IF(G236=0,AB237,IF(J236=0,AB239,AB239-J236)) -> 0.0001 | AC236: =IF(G236=0,0,AC239+AA236*AG239) -> 0 | AD236: =IF(G236=0,0,AD239+AA236*AH239) -> 0 | AE236: =IF(G236=0,0,AC239+AB236*AG239) -> 0 | AF236: =IF(G236=0,0,AD239+AB236*AH239) -> 0 | AI236: =MAX(AA236:AA237) -> 0 | AJ236: =MIN(AB236:AB237) -> 0.0001 | AK236: =IF(G236=0,0.5*(AI236+AJ236),(M236*G236+AA236*P236+0.5*(AA236+AB236)*(N236+(AB236-AA236)*O236)+AB236*Q236+AK235*AL235)/AL236) -> 5e-05 | AL236: =AL235+N236+O236*(AB236-AA236)+P236+Q236 -> 0 | AM236: 0.1 | AN236: 0 | AO236: 0 | BE236: =BB237 -> 0 | BF236: =BH236+G236 -> 0 | BG236: =BE236+G236 -> 0 | BH236: =BA237 -> 0 | BI236: =BE236 -> 0 | BZ236: 0 | CB236: 0 | CC236: =INDEX(Hovedtal,BS231,9+BW236) ->  | CD236: =CD235+CC236 ->  | CE236: 0 | CF236: 0 | CG236: 0 | CH236: 0
F237: 3 | G237: =IF(INDEX(Hovedtal,B231,9)<F237,0,INDEX(Etager,7-F237,2)) -> 0 | H237: =IF(F237>INDEX(Hovedtal,B231,9),0,INDEX(Hovedtal,B231,6)) -> 0 | I237: 0 | K237: 0.0001 | L237: =INDEX(Hovedtal,B231,9+F237) -> 0 | M237: =M236+L237 -> 0 | N237: 0 | O237: 0 | P237: 0 | Q237: 0 | R237: 0 | S237: 0 | T237: 0.0001 | U237: 0 | V237: 0 | W237: =INDEX(Hovedtal,B231,8) -> 0 | AA237: =IF(G237=0,AA238,IF(I237=0,0,I237)) -> 0 | AB237: =IF(G237=0,AB238,IF(J237=0,AB239,AB239-J237)) -> 0.0001 | AC237: =IF(G237=0,0,AC239+AA237*AG239) -> 0 | AD237: =IF(G237=0,0,AD239+AA237*AH239) -> 0 | AE237: =IF(G237=0,0,AC239+AB237*AG239) -> 0 | AF237: =IF(G237=0,0,AD239+AB237*AH239) -> 0 | AI237: =MAX(AA237:AA238) -> 0 | AJ237: =MIN(AB237:AB238) -> 0.0001 | AK237: =IF(G237=0,0.5*(AI237+AJ237),(M237*G237+AA237*P237+0.5*(AA237+AB237)*(N237+(AB237-AA237)*O237)+AB237*Q237+AK236*AL236)/AL237) -> 5e-05 | AL237: =AL236+N237+O237*(AB237-AA237)+P237+Q237 -> 0 | AM237: 0.1 | AN237: 0 | AO237: 0 | AZ237: =AW238 -> 0 | BA237: =BC237+G237 -> 0 | BB237: =AZ237+G237 -> 0 | BC237: =AV238 -> 0 | BD237: =AZ237 -> 0 | BZ237: 0 | CB237: 0 | CC237: =INDEX(Hovedtal,BS231,9+BW237) ->  | CD237: =CD236+CC237 ->  | CE237: 0 | CF237: 0 | CG237: 0 | CH237: 0
F238: 2 | G238: =IF(INDEX(Hovedtal,B231,9)<F238,0,INDEX(Etager,7-F238,2)) -> 0 | H238: =IF(F238>INDEX(Hovedtal,B231,9),0,INDEX(Hovedtal,B231,6)) -> 0 | I238: 0 | K238: 0.0001 | L238: =INDEX(Hovedtal,B231,9+F238) -> 0 | M238: =M237+L238 -> 0 | N238: 0 | O238: 0 | P238: 0 | Q238: 0 | R238: 0 | S238: 0 | T238: 0.0001 | U238: 0 | V238: 0 | W238: =INDEX(Hovedtal,B231,8) -> 0 | AA238: =IF(G238=0,AA239,IF(I238=0,0,I238)) -> 0 | AB238: =IF(G238=0,AB239,IF(J238=0,AB239,AB239-J238)) -> 0.0001 | AC238: =IF(G238=0,0,AC239+AA238*AG239) -> 0 | AD238: =IF(G238=0,0,AD239+AA238*AH239) -> 0 | AE238: =IF(G238=0,0,AC239+AB238*AG239) -> 0 | AF238: =IF(G238=0,0,AD239+AB238*AH239) -> 0 | AI238: =MAX(AA238:AA239) -> 0 | AJ238: =MIN(AB238:AB239) -> 0.0001 | AK238: =IF(G238=0,0.5*(AI238+AJ238),(M238*G238+AA238*P238+0.5*(AA238+AB238)*(N238+(AB238-AA238)*O238)+AB238*Q238+AK237*AL237)/AL238) -> 5e-05 | AL238: =AL237+N238+O238*(AB238-AA238)+P238+Q238 -> 0 | AM238: 0.1 | AN238: 0 | AO238: 0 | AU238: =AR239 -> 0 | AV238: =AX238+G238 -> 0 | AW238: =AU238+G238 -> 0 | AX238: =AQ239 -> 0 | AY238: =AU238 -> 0 | BZ238: 0 | CB238: 0 | CC238: =INDEX(Hovedtal,BS231,9+BW238) ->  | CD238: =CD237+CC238 ->  | CE238: 0 | CF238: 0 | CG238: 0 | CH238: 0
F239: 1 | G239: =IF(INDEX(Hovedtal,B231,9)<F239,0,INDEX(Etager,7-F239,2)) -> 0 | H239: =IF(F239>INDEX(Hovedtal,B231,9),0,INDEX(Hovedtal,B231,6)) -> 0 | K239: 0.0001 | L239: =INDEX(Hovedtal,B231,9+F239) -> 0 | M239: =M238+L239 -> 0 | N239: 0 | O239: 0 | P239: 0 | Q239: 0 | R239: 0 | S239: 0 | T239: 0.0001 | U239: 0 | V239: 0 | W239: =INDEX(Hovedtal,B231,8) -> 0 | AA239: 0 | AB239: =SQRT((AE239-AC239)^2+(AF239-AD239)^2)+0.0001 -> 0.0001 | AC239: =INDEX(Hovedtal,B231,2) -> 0 | AD239: =INDEX(Hovedtal,B231,3) -> 0 | AE239: =INDEX(Hovedtal,B231,4) -> 0 | AF239: =INDEX(Hovedtal,B231,5) -> 0 | AG239: =(AE239-AC239)/AB239 -> 0 | AH239: =(AF239-AD239)/AB239 -> 0 | AI239: =AA239 -> 0 | AJ239: =AB239 -> 0.0001 | AK239: =IF(G239=0,0.5*(AI239+AJ239),(M239*G239+AA239*P239+0.5*(AA239+AB239)*(N239+(AB239-AA239)*O239)+AB239*Q239+AK238*AL238)/AL239) -> 5e-05 | AL239: =AL238+N239+O239*(AB239-AA239)+P239+Q239 -> 0 | AM239: 0.1 | AN239: 0 | AO239: 0 | AP239: 0 | AQ239: =G239 -> 0 | AR239: =G239 -> 0 | AS239: 0 | AT239: =AP239 -> 0 | CB239: 0 | CC239: =INDEX(Hovedtal,BS231,9+BW239) ->  | CD239: =CD238+CC239 ->  | CE239: 0 | CF239: 0 | CG239: 0 | CH239: 0
A240: * | BT240: =MAX(AP232:BS239)+0.5 -> 0.5001
B242: Væg | F242: Etage | G242: h | H242: t | I242: r_1 | J242: r_2 | K242: L_eff | L242: V_i | M242: Q | N242: G | O242: p | P242: P1 | Q242: P2 | R242: T | S242: N | T242: b_1 | U242: b_2 | V242: n | W242: n_max | AA242: Etager: | AB242: 6 | AP242: Hjørnepunkter i vægopstalt | BZ242: r_1 | CA242: r_2 | CB242: L_eff | CC242: V_i | CD242: Q | CE242: G | CF242: p | CG242: P1 | CH242: P2
B243: =B231+1 -> 19 | G243: (m) | H243: (m) | I243: (m) | J243: (m) | K243: (m) | L243: (kN) | M243: (kN) | N243: (kN) | O243: (kN/m) | P243: (kN) | Q243: (kN) | R243: (kN) | S243: (kN) | T243: (m) | U243: (m) | V243: (kN/m) | W243: (kN/m) | BZ243: (m) | CA243: (m) | CB243: (m) | CC243: (kN) | CD243: (kN) | CE243: (kN) | CF243: (kN/m) | CG243: (kN) | CH243: (kN)
AA244: s_1 | AB244: s_2 | AC244: x_1 | AD244: y_1 | AE244: x_2 | AF244: y_2 | AG244: cos(a) | AH244: sin(a) | AI244: s_1_e | AJ244: s_2_e | AK244: s_N | AL244: N_0 | AM244: n | AN244: T_1 | AO244: T_2 | AP244: 0 | AQ244: 0 | AR244: =AB251 -> 0.0001 | AS244: =AB251 -> 0.0001 | AT244: =AP244 -> 0 | AU244: =AA250 -> 0 | AV244: =AA250 -> 0 | AW244: =AB250 -> 0.0001 | AX244: =AB250 -> 0.0001 | AY244: =AU244 -> 0 | AZ244: =AA249 -> 0 | BA244: =AA249 -> 0 | BB244: =AB249 -> 0.0001 | BC244: =AB249 -> 0.0001 | BD244: =AZ244 -> 0 | BE244: =AA248 -> 0 | BF244: =AA248 -> 0 | BG244: =AB248 -> 0.0001 | BH244: =AB248 -> 0.0001 | BI244: =BE244 -> 0 | BJ244: =AA247 -> 0 | BK244: =AA247 -> 0 | BL244: =AB247 -> 0.0001 | BM244: =AB247 -> 0.0001 | BN244: =BJ244 -> 0 | BO244: =AA246 -> 0 | BP244: =AA246 -> 0 | BQ244: =AB246 -> 0.0001 | BR244: =AB246 -> 0.0001 | BS244: =BO244 -> 0 | BT244: =BT252 -> 0.5001
F246: 6 | G246: =IF(INDEX(Hovedtal,B243,9)<F246,0,INDEX(Etager,7-F246,2)) -> 0 | H246: =IF(F246>INDEX(Hovedtal,B243,9),0,INDEX(Hovedtal,B243,6)) -> 0 | I246: 0 | J246: 0 | K246: =AJ246-AI246 -> 0.0001 | L246: =INDEX(Hovedtal,B243,9+F246) -> 0 | M246: =L246 -> 0 | N246: =(AB246-AA246)*H246*G246*g_g*g_e -> 0 | O246: 0 | P246: 0 | Q246: 0 | R246: =IF(AK246>0.5*(AI246+AJ246),AO246,AN246) -> 0 | S246: =AL246+R246 -> 0 | T246: =IF(AK246<=0.5*(AI246+AJ246),IF(AK246>AI246+0.5*AL246/AM246,2*(AK246-AI246),S246/AM246),0) -> 0.0001 | U246: =IF(AK246>0.5*(AI246+AJ246),IF(AK246<AJ246-0.5*AL246/AM246,2*(AJ246-AK246),S246/AM246),0) -> 0 | V246: =IF(AK246>0.5*(AI246+AJ246),S246/U246,S246/T246) -> 0 | W246: =INDEX(Hovedtal,B243,8) -> 0 | X246: =IF(OR(V246>W246,ABS(M246)>0.5*S246),"!","") ->  | AA246: =IF(G246=0,AA247,IF(I246=0,0,I246)) -> 0 | AB246: =IF(G246=0,AB247,IF(J246=0,AB251,AB251-J246)) -> 0.0001 | AC246: =IF(G246=0,0,AC251+AA246*AG251) -> 0 | AD246: =IF(G246=0,0,AD251+AA246*AH251) -> 0 | AE246: =IF(G246=0,0,AC251+AB246*AG251) -> 0 | AF246: =IF(G246=0,0,AD251+AB246*AH251) -> 0 | AI246: =MAX(AA246:AA247) -> 0 | AJ246: =MIN(AB246:AB247) -> 0.0001 | AK246: =IF(G246=0,0.5*(AI246+AJ246),(M246*G246+AA246*P246+0.5*(AA246+AB246)*(N246+(AB246-AA246)*O246)+AB246*Q246)/AL246) -> 5e-05 | AL246: =N246+O246*(AB246-AA246)+P246+Q246 -> 0 | AM246: =IF(AK246<0.5*(AI246+AJ246),MAX(W246,8*AL246*(0.5*(AJ246+AI246)-AK246)/(AJ246-AI246)^2+0.1),MAX(W246,-8*AL246*(0.5*(AJ246+AI246)-AK246)/(AJ246-AI246)^2+0.1)) -> 0.1 | AN246: =IF(AND(AK246<0.5*(AI246+AJ246),AL246/AM246>2*(AK246-AI246)),AM246*(-SQRT((AL246/AM246+0.5*AI246-0.5*AJ246)^2-2*(-AK246*AL246/AM246+0.5*AL246^2/AM246^2+AI246*AL246/AM246))-(AL246/AM246+0.5*AI246-0.5*AJ246)),0) -> 0 | AO246: =IF(AND(AK246>=0.5*(AI246+AJ246),AL246/AM246>2*(AJ246-AK246)),AM246*(-SQRT((AL246/AM246+0.5*AI246-0.5*AJ246)^2-2*(AK246*AL246/AM246+0.5*AL246^2/AM246^2-AJ246*AL246/AM246))-(AL246/AM246+0.5*AI246-0.5*AJ246)),0) -> 0 | BO246: =BL247 -> 0 | BP246: =BR246+G246 -> 0 | BQ246: =BO246+G246 -> 0 | BR246: =BK247 -> 0 | BS246: =BO246 -> 0 | BZ246: 0 | CA246: 0 | CB246: =DA246-CZ246 -> 0 | CC246: =INDEX(Hovedtal,BS243,9+BW246) ->  | CD246: =CC246 ->  | CE246: =(CS246-CR246)*BY246*BX246*g_g*g_e -> 0 | CF246: 0 | CG246: 0 | CH246: 0
... 86 more rows

Sheet Vægplan
B2: =System!B2 -> BEF's prøvehus, ULS lastkomb. 6.10b | M2: sag nr. | N2: =System!$N$2 -> 21-101
B3: =System!B3 -> Lasttilfælde 7a, Vind: + W_y og + W_x* (+ imperfektionsbidrag / masselast i vindretning) | M3: =System!N3 -> NNN | N3: ="ref. nr.: "&System!$P$3&" - 2" -> ref. nr.: 7a - 2
B4: ="Bruger: "&Inddata!O2 -> Bruger: Bruger skal registreres
H9: Oversigt over placering af stabiliserende vægge
J10: ="etage "&7-ge -> etage 1

Sheet Kontur
B2: KONTURER | D2: 1 | E2: 2 | F2: 3 | G2: 4 | H2: 5 | I2: 6 | J2: 7 | K2: 8 | L2: 9 | M2: 10 | N2: 11 | O2: 12 | P2: 13 | Q2: 14 | R2: 15 | S2: 16 | T2: 17 | U2: 18 | V2: 19 | W2: 20 | AO2: KONTUR - hjørnepunkter: | AQ2: 1 | AR2: 2 | AS2: 3 | AT2: 4 | AU2: 5 | AV2: 6 | AW2: 7 | AX2: 8 | AY2: 9 | AZ2: 10 | BA2: 11 | BB2: 12 | BC2: 13 | BD2: 14 | BE2: 15 | BF2: 16 | BG2: 17 | BH2: 18 | BI2: 19 | BJ2: 20
B3: Etage 6 | C3: x (m) | D3: 9.5 | E3: 30.5 | F3: 30.5 | G3: 9.5 | AO3: Etage 6 | AP3: x (m) | AQ3: =INDEX(kontur,1+2*(6-$AO$5),AQ$2) -> 9.5 | AR3: =IF(INDEX(kontur,1+2*(6-$AO$5),AR$2)="",AQ3,INDEX(kontur,1+2*(6-$AO$5),AR$2)) -> 30.5 | AS3: 30.5 | AT3: 9.5 | AU3: 9.5 | AV3: 9.5 | AW3: 9.5 | AX3: 9.5 | AY3: 9.5 | AZ3: 9.5 | BA3: 9.5 | BB3: 9.5 | BC3: 9.5 | BD3: 9.5 | BE3: 9.5 | BF3: 9.5 | BG3: 9.5 | BH3: 9.5 | BI3: 9.5 | BJ3: 9.5 | BK3: =AQ3 -> 9.5
C4: y(m) | D4: 9.5 | E4: 9.5 | F4: 22.5 | G4: 22.5 | AP4: y(m) | AQ4: =INDEX(kontur,2+2*(6-$AO$5),AQ$2) -> 9.5 | AR4: =IF(INDEX(kontur,2+2*(6-$AO$5),AR$2)="",AQ4,INDEX(kontur,2+2*(6-$AO$5),AR$2)) -> 9.5 | AS4: 22.5 | AT4: 22.5 | AU4: 22.5 | AV4: 22.5 | AW4: 22.5 | AX4: 22.5 | AY4: 22.5 | AZ4: 22.5 | BA4: 22.5 | BB4: 22.5 | BC4: 22.5 | BD4: 22.5 | BE4: 22.5 | BF4: 22.5 | BG4: 22.5 | BH4: 22.5 | BI4: 22.5 | BJ4: 22.5 | BK4: =AQ4 -> 9.5
B5: Etage 5 | C5: x (m) | D5: 9.5 | E5: 30.5 | F5: 30.5 | G5: 9.5 | AO5: =7-ge -> 1
C6: y(m) | D6: 9.5 | E6: 9.5 | F6: 22.5 | G6: 22.5
B7: Etage 4 | C7: x (m) | D7: 9.5 | E7: 30.5 | F7: 30.5 | G7: 9.5
C8: y(m) | D8: 9.5 | E8: 9.5 | F8: 22.5 | G8: 22.5
B9: Etage 3 | C9: x (m) | D9: 9.5 | E9: 30.5 | F9: 30.5 | G9: 9.5
C10: y(m) | D10: 9.5 | E10: 9.5 | F10: 22.5 | G10: 22.5
B11: Etage 2 | C11: x (m) | D11: 9.5 | E11: 30.5 | F11: 30.5 | G11: 9.5
C12: y(m) | D12: 9.5 | E12: 9.5 | F12: 22.5 | G12: 22.5
B13: Etage 1 | C13: x (m) | D13: 9.5 | E13: 30.5 | F13: 30.5 | G13: 9.5
C14: y(m) | D14: 9.5 | E14: 9.5 | F14: 22.5 | G14: 22.5
B66: m - %: | C66: =Inddata!E41/100 -> 0.0175 | D66: nr | E66: x | F66: y | G66: x_2 | H66: y_2 | I66: A | J66: S_x | K66: S_y | L66: Dx | M66: Dy | N66: Ds_x | O66: Ds_y | R66: =topetg -> 6
B67: Etage | C67: 6 | D67: 1 | E67: =INDEX(kontur,1+2*(6-$C$67),$D67) -> 9.5 | F67: =INDEX(kontur,2+2*(6-$C$67),$D67) -> 9.5 | G67: =E68 -> 30.5 | H67: 9.5 | I67: =-0.5*(G67-E67)*(H67+F67) -> -199.5 | J67: =IF(H67=F67,-0.5*F67^2*(G67-E67),(G67-E67)*(-H67^3/6+F67^3/6)/(H67-F67)) -> -947.625 | K67: =-IF(G67=E67,-0.5*E67^2*(H67-F67),(H67-F67)*(-G67^3/6+E67^3/6)/(G67-E67)) -> 0 | L67: =IF(G67>E67,G67-E67,0) -> 21 | M67: =IF(H67>F67,H67-F67,0) -> 0 | N67: =0.5*(H67+F67)*M67 -> 0 | O67: =0.5*(G67+E67)*L67 -> 420
B68: Højde | C68: =IF(INDEX(lastdata,7-C67,1)=0,0.0001,INDEX(lastdata,7-C67,1)) -> 3 | D68: 2 | E68: =IF(INDEX(kontur,1+2*(6-$C$67),$D68)="",E67,INDEX(kontur,1+2*(6-$C$67),$D68)) -> 30.5 | F68: =IF(INDEX(kontur,2+2*(6-$C$67),$D68)="",F67,INDEX(kontur,2+2*(6-$C$67),$D68)) -> 9.5 | G68: 30.5 | H68: 22.5 | I68: 0 | J68: 0 | K68: =-IF(G68=E68,-0.5*E68^2*(H68-F68),(H68-F68)*(-G68^3/6+E68^3/6)/(G68-E68)) -> 6046.625 | L68: =IF(G68>E68,G68-E68,0) -> 0 | M68: 13 | N68: 208 | O68: 0
B69: Stern | C69: =INDEX(lastdata,7-C67,2) -> 0.6 | D69: 3 | E69: =IF(INDEX(kontur,1+2*(6-$C$67),$D69)="",E68,INDEX(kontur,1+2*(6-$C$67),$D69)) -> 30.5 | F69: =IF(INDEX(kontur,2+2*(6-$C$67),$D69)="",F68,INDEX(kontur,2+2*(6-$C$67),$D69)) -> 22.5 | G69: 9.5 | H69: 22.5 | I69: 472.5 | J69: 5315.625 | K69: =-IF(G69=E69,-0.5*E69^2*(H69-F69),(H69-F69)*(-G69^3/6+E69^3/6)/(G69-E69)) -> 0 | L69: =IF(G69>E69,G69-E69,0) -> 0 | M69: 0 | N69: 0 | O69: 0
B70: W_masse | C70: =$C$66*C73*(C71+C72) -> 57.33 | D70: 4 | E70: 9.5 | F70: =IF(INDEX(kontur,2+2*(6-$C$67),$D70)="",F69,INDEX(kontur,2+2*(6-$C$67),$D70)) -> 22.5 | G70: 9.5 | H70: 22.5 | I70: 0 | J70: 0 | K70: 0 | L70: 0 | M70: 0 | N70: 0 | O70: 0
B71: q_flade | C71: =INDEX(lastdata,7-C67,3) -> 10 | D71: 5 | E71: 9.5 | F71: 22.5 | G71: 9.5 | H71: 22.5 | I71: 0 | J71: 0 | K71: 0 | L71: 0 | M71: 0 | N71: 0 | O71: 0
B72: q_ækv | C72: =INDEX(lastdata,7-C67,4) -> 2 | D72: 6 | E72: 9.5 | F72: 22.5 | G72: 9.5 | H72: 22.5 | I72: 0 | J72: 0 | K72: 0 | L72: 0 | M72: 0 | N72: 0 | O72: 0
B73: A | C73: =SUM(I67:I86) -> 273 | D73: 7 | E73: 9.5 | F73: 22.5 | G73: 9.5 | H73: 22.5 | I73: 0 | J73: 0 | K73: 0 | L73: 0 | M73: 0 | N73: 0 | O73: 0
B74: S_x | C74: =SUM(J67:J86) -> 4368 | D74: 8 | E74: 9.5 | F74: 22.5 | G74: 9.5 | H74: 22.5 | I74: 0 | J74: 0 | K74: 0 | L74: 0 | M74: 0 | N74: 0 | O74: 0
B75: S_y | C75: =SUM(K67:K86) -> 5460 | D75: 9 | E75: 9.5 | F75: 22.5 | G75: 9.5 | H75: 22.5 | I75: 0 | J75: 0 | K75: 0 | L75: 0 | M75: 0 | N75: 0 | O75: 0
B76: x_masse | C76: =IF(C73=0,0,C75/C73) -> 20 | D76: 10 | E76: 9.5 | F76: 22.5 | G76: 9.5 | H76: 22.5 | I76: 0 | J76: 0 | K76: 0 | L76: 0 | M76: 0 | N76: 0 | O76: 0
B77: y_masse | C77: =IF(C73=0,0,C74/C73) -> 16 | D77: 11 | E77: 9.5 | F77: 22.5 | G77: 9.5 | H77: 22.5 | I77: 0 | J77: 0 | K77: 0 | L77: 0 | M77: 0 | N77: 0 | O77: 0
B78: W_x_vind | C78: =0.5*(C68+C69)^2*C80*C81*C83/C68 -> 33.696 | D78: 12 | E78: 9.5 | F78: 22.5 | G78: 9.5 | H78: 22.5 | I78: 0 | J78: 0 | K78: 0 | L78: 0 | M78: 0 | N78: 0 | O78: 0
B79: W_y_vind | C79: =0.5*(C68+C69)^2*C80*C81*C82/C68 -> 54.432 | D79: 13 | E79: 9.5 | F79: 22.5 | G79: 9.5 | H79: 22.5 | I79: 0 | J79: 0 | K79: 0 | L79: 0 | M79: 0 | N79: 0 | O79: 0
B80: c_1+c_2 | C80: 1 | D80: 14 | E80: 9.5 | F80: 22.5 | G80: 9.5 | H80: 22.5 | I80: 0 | J80: 0 | K80: 0 | L80: 0 | M80: 0 | N80: 0 | O80: 0
B81: w_d | C81: =INDEX(lastdata,7-C67,5)+IF(C67>$R$66,0,10^-60) -> 1.2 | D81: 15 | E81: 9.5 | F81: 22.5 | G81: 9.5 | H81: 22.5 | I81: 0 | J81: 0 | K81: 0 | L81: 0 | M81: 0 | N81: 0 | O81: 0
B82: Sx | C82: =SUM(L67:L86) -> 21 | D82: 16 | E82: 9.5 | F82: 22.5 | G82: 9.5 | H82: 22.5 | I82: 0 | J82: 0 | K82: 0 | L82: 0 | M82: 0 | N82: 0 | O82: 0
B83: Sy | C83: =SUM(M67:M86) -> 13 | D83: 17 | E83: 9.5 | F83: 22.5 | G83: 9.5 | H83: 22.5 | I83: 0 | J83: 0 | K83: 0 | L83: 0 | M83: 0 | N83: 0 | O83: 0
B84: Ss_x | C84: =SUM(N67:N86) -> 208 | D84: 18 | E84: 9.5 | F84: 22.5 | G84: 9.5 | H84: 22.5 | I84: 0 | J84: 0 | K84: 0 | L84: 0 | M84: 0 | N84: 0 | O84: 0
B85: Ss_y | C85: =SUM(O67:O86) -> 420 | D85: 19 | E85: 9.5 | F85: 22.5 | G85: 9.5 | H85: 22.5 | I85: 0 | J85: 0 | K85: 0 | L85: 0 | M85: 0 | N85: 0 | O85: 0
B86: x_vind | C86: =L87 -> 20 | D86: 20 | E86: 9.5 | F86: 22.5 | G86: =E87 -> 9.5 | H86: =F87 -> 9.5 | I86: 0 | J86: 0 | K86: -586.625 | L86: 0 | M86: 0 | N86: 0 | O86: 0
B87: y_vind | C87: =M87 -> 16 | D87: 21 | E87: =E67 -> 9.5 | F87: =F67 -> 9.5 | L87: =IF(C82=0,0,C85/C82) -> 20 | M87: =IF(C82=0,0,C84/C83) -> 16
B88: Etage | C88: 5 | D88: 1 | E88: =INDEX(kontur,1+2*(6-$C$88),$D88) -> 9.5 | F88: =INDEX(kontur,2+2*(6-$C$88),$D88) -> 9.5 | G88: =E89 -> 30.5 | H88: 9.5 | I88: =-0.5*(G88-E88)*(H88+F88) -> -199.5 | J88: =IF(H88=F88,-0.5*F88^2*(G88-E88),(G88-E88)*(-H88^3/6+F88^3/6)/(H88-F88)) -> -947.625 | K88: =-IF(G88=E88,-0.5*E88^2*(H88-F88),(H88-F88)*(-G88^3/6+E88^3/6)/(G88-E88)) -> 0 | L88: =IF(G88>E88,G88-E88,0) -> 21 | M88: =IF(H88>F88,H88-F88,0) -> 0 | N88: =0.5*(H88+F88)*M88 -> 0 | O88: =0.5*(G88+E88)*L88 -> 420
B89: Højde | C89: =IF(INDEX(lastdata,7-C88,1)=0,0.0001,INDEX(lastdata,7-C88,1)) -> 3 | D89: 2 | E89: =IF(INDEX(kontur,1+2*(6-$C$88),$D89)="",E88,INDEX(kontur,1+2*(6-$C$88),$D89)) -> 30.5 | F89: =IF(INDEX(kontur,2+2*(6-$C$88),$D89)="",F88,INDEX(kontur,2+2*(6-$C$88),$D89)) -> 9.5 | G89: 30.5 | H89: 22.5 | I89: 0 | J89: 0 | K89: =-IF(G89=E89,-0.5*E89^2*(H89-F89),(H89-F89)*(-G89^3/6+E89^3/6)/(G89-E89)) -> 6046.625 | L89: =IF(G89>E89,G89-E89,0) -> 0 | M89: 13 | N89: 208 | O89: 0
B90: Stern | C90: =INDEX(lastdata,7-C88,2) -> 0 | D90: 3 | E90: 30.5 | F90: 22.5 | G90: 9.5 | H90: 22.5 | I90: 472.5 | J90: 5315.625 | K90: =-IF(G90=E90,-0.5*E90^2*(H90-F90),(H90-F90)*(-G90^3/6+E90^3/6)/(G90-E90)) -> 0 | L90: =IF(G90>E90,G90-E90,0) -> 0 | M90: 0 | N90: 0 | O90: 0
B91: W_masse | C91: =$C$66*C94*(C92+C93) -> 57.33 | D91: 4 | E91: 9.5 | F91: 22.5 | G91: 9.5 | H91: 22.5 | I91: 0 | J91: 0 | K91: 0 | L91: 0 | M91: 0 | N91: 0 | O91: 0
B92: q_flade | C92: =INDEX(lastdata,7-C88,3) -> 10 | D92: 5 | E92: 9.5 | F92: 22.5 | G92: 9.5 | H92: 22.5 | I92: 0 | J92: 0 | K92: 0 | L92: 0 | M92: 0 | N92: 0 | O92: 0
B93: q_ækv | C93: =INDEX(lastdata,7-C88,4) -> 2 | D93: 6 | E93: 9.5 | F93: 22.5 | G93: 9.5 | H93: 22.5 | I93: 0 | J93: 0 | K93: 0 | L93: 0 | M93: 0 | N93: 0 | O93: 0
B94: A | C94: =SUM(I88:I107) -> 273 | D94: 7 | E94: 9.5 | F94: 22.5 | G94: 9.5 | H94: 22.5 | I94: 0 | J94: 0 | K94: 0 | L94: 0 | M94: 0 | N94: 0 | O94: 0
B95: S_x | C95: =SUM(J88:J107) -> 4368 | D95: 8 | E95: 9.5 | F95: 22.5 | G95: 9.5 | H95: 22.5 | I95: 0 | J95: 0 | K95: 0 | L95: 0 | M95: 0 | N95: 0 | O95: 0
B96: S_y | C96: =SUM(K88:K107) -> 5460 | D96: 9 | E96: 9.5 | F96: 22.5 | G96: 9.5 | H96: 22.5 | I96: 0 | J96: 0 | K96: 0 | L96: 0 | M96: 0 | N96: 0 | O96: 0
B97: x_masse | C97: =IF(C94=0,0,C96/C94) -> 20 | D97: 10 | E97: 9.5 | F97: 22.5 | G97: 9.5 | H97: 22.5 | I97: 0 | J97: 0 | K97: 0 | L97: 0 | M97: 0 | N97: 0 | O97: 0
B98: y_masse | C98: =IF(C94=0,0,C95/C94) -> 16 | D98: 11 | E98: 9.5 | F98: 22.5 | G98: 9.5 | H98: 22.5 | I98: 0 | J98: 0 | K98: 0 | L98: 0 | M98: 0 | N98: 0 | O98: 0
B99: W_x_vind | C99: =0.5*(C89+C90)^2*C101*C102*C104/C89+0.5*(C68^2-C69^2)*C80*C81*C83/C68 -> 45.864 | D99: 12 | E99: 9.5 | F99: 22.5 | G99: 9.5 | H99: 22.5 | I99: 0 | J99: 0 | K99: 0 | L99: 0 | M99: 0 | N99: 0 | O99: 0
B100: W_y_vind | C100: =0.5*(C89+C90)^2*C101*C102*C103/C89+0.5*(C68^2-C69^2)*C80*C81*C82/C68 -> 74.088 | D100: 13 | E100: 9.5 | F100: 22.5 | G100: 9.5 | H100: 22.5 | I100: 0 | J100: 0 | K100: 0 | L100: 0 | M100: 0 | N100: 0 | O100: 0
B101: c_1+c_2 | C101: 1 | D101: 14 | E101: 9.5 | F101: 22.5 | G101: 9.5 | H101: 22.5 | I101: 0 | J101: 0 | K101: 0 | L101: 0 | M101: 0 | N101: 0 | O101: 0
B102: w_d | C102: =INDEX(lastdata,7-C88,5)+IF(C88>$R$66,0,10^-60) -> 1.2 | D102: 15 | E102: 9.5 | F102: 22.5 | G102: 9.5 | H102: 22.5 | I102: 0 | J102: 0 | K102: 0 | L102: 0 | M102: 0 | N102: 0 | O102: 0
B103: Sx | C103: =SUM(L88:L107) -> 21 | D103: 16 | E103: 9.5 | F103: 22.5 | G103: 9.5 | H103: 22.5 | I103: 0 | J103: 0 | K103: 0 | L103: 0 | M103: 0 | N103: 0 | O103: 0
B104: Sy | C104: =SUM(M88:M107) -> 13 | D104: 17 | E104: 9.5 | F104: 22.5 | G104: 9.5 | H104: 22.5 | I104: 0 | J104: 0 | K104: 0 | L104: 0 | M104: 0 | N104: 0 | O104: 0
B105: Ss_x | C105: =SUM(N88:N107) -> 208 | D105: 18 | E105: 9.5 | F105: 22.5 | G105: 9.5 | H105: 22.5 | I105: 0 | J105: 0 | K105: 0 | L105: 0 | M105: 0 | N105: 0 | O105: 0
B106: Ss_y | C106: =SUM(O88:O107) -> 420 | D106: 19 | E106: 9.5 | F106: 22.5 | G106: 9.5 | H106: 22.5 | I106: 0 | J106: 0 | K106: 0 | L106: 0 | M106: 0 | N106: 0 | O106: 0
B107: x_vind | C107: =IF(R107=0,0,(L108*0.5*(C89+C90)^2*C101*C102*C103/C89+L87*0.5*(C68^2-C69^2)*C80*C81*C82/C68)/(0.5*(C89+C90)^2*C101*C102*C103/C89+0.5*(C68^2-C69^2)*C80*C81*C82/C68)) -> 20 | D107: 20 | E107: 9.5 | F107: 22.5 | G107: =E108 -> 9.5 | H107: =F108 -> 9.5 | I107: 0 | J107: 0 | K107: -586.625 | L107: 0 | M107: 0 | N107: 0 | O107: 0 | R107: =(0.5*(C89+C90)^2*C101*C102*C103/C89+0.5*(C68^2-C69^2)*C80*C81*C82/C68) -> 74.088
B108: y_vind | C108: =IF(R108=0,0,(M108*0.5*(C89+C90)^2*C101*C102*C104/C89+M87*0.5*(C68^2-C69^2)*C80*C81*C83/C68)/(0.5*(C89+C90)^2*C101*C102*C104/C89+0.5*(C68^2-C69^2)*C80*C81*C83/C68)) -> 16 | D108: 21 | E108: =E88 -> 9.5 | F108: =F88 -> 9.5 | L108: =IF(C103=0,0,C106/C103) -> 20 | M108: =IF(C103=0,0,C105/C104) -> 16 | R108: =(0.5*(C89+C90)^2*C101*C102*C104/C89+0.5*(C68^2-C69^2)*C80*C81*C83/C68) -> 45.864
B109: Etage | C109: 4 | D109: 1 | E109: =INDEX(kontur,1+2*(6-$C$109),$D109) -> 9.5 | F109: =INDEX(kontur,2+2*(6-$C$109),$D109) -> 9.5 | G109: =E110 -> 30.5 | H109: =F110 -> 9.5 | I109: =-0.5*(G109-E109)*(H109+F109) -> -199.5 | J109: =IF(H109=F109,-0.5*F109^2*(G109-E109),(G109-E109)*(-H109^3/6+F109^3/6)/(H109-F109)) -> -947.625 | K109: =-IF(G109=E109,-0.5*E109^2*(H109-F109),(H109-F109)*(-G109^3/6+E109^3/6)/(G109-E109)) -> 0 | L109: =IF(G109>E109,G109-E109,0) -> 21 | M109: =IF(H109>F109,H109-F109,0) -> 0 | N109: =0.5*(H109+F109)*M109 -> 0 | O109: =0.5*(G109+E109)*L109 -> 420
B110: Højde | C110: =IF(INDEX(lastdata,7-C109,1)=0,0.0001,INDEX(lastdata,7-C109,1)) -> 3 | D110: 2 | E110: =IF(INDEX(kontur,1+2*(6-$C$109),$D110)="",E109,INDEX(kontur,1+2*(6-$C$109),$D110)) -> 30.5 | F110: =IF(INDEX(kontur,2+2*(6-$C$109),$D110)="",F109,INDEX(kontur,2+2*(6-$C$109),$D110)) -> 9.5 | G110: 30.5 | H110: 22.5 | I110: 0 | J110: 0 | K110: =-IF(G110=E110,-0.5*E110^2*(H110-F110),(H110-F110)*(-G110^3/6+E110^3/6)/(G110-E110)) -> 6046.625 | L110: =IF(G110>E110,G110-E110,0) -> 0 | M110: 13 | N110: 208 | O110: 0
B111: Stern | C111: =INDEX(lastdata,7-C109,2) -> 0 | D111: 3 | E111: 30.5 | F111: 22.5 | G111: 9.5 | H111: 22.5 | I111: 472.5 | J111: 5315.625 | K111: =-IF(G111=E111,-0.5*E111^2*(H111-F111),(H111-F111)*(-G111^3/6+E111^3/6)/(G111-E111)) -> 0 | L111: =IF(G111>E111,G111-E111,0) -> 0 | M111: 0 | N111: 0 | O111: 0
B112: W_masse | C112: =$C$66*C115*(C113+C114) -> 57.33 | D112: 4 | E112: 9.5 | F112: 22.5 | G112: 9.5 | H112: 22.5 | I112: 0 | J112: 0 | K112: 0 | L112: 0 | M112: 0 | N112: 0 | O112: 0
B113: q_flade | C113: =INDEX(lastdata,7-C109,3) -> 10 | D113: 5 | E113: 9.5 | F113: 22.5 | G113: 9.5 | H113: 22.5 | I113: 0 | J113: 0 | K113: 0 | L113: 0 | M113: 0 | N113: 0 | O113: 0
B114: q_ækv | C114: =INDEX(lastdata,7-C109,4) -> 2 | D114: 6 | E114: 9.5 | F114: 22.5 | G114: 9.5 | H114: 22.5 | I114: 0 | J114: 0 | K114: 0 | L114: 0 | M114: 0 | N114: 0 | O114: 0
B115: A | C115: =SUM(I109:I128) -> 273 | D115: 7 | E115: 9.5 | F115: 22.5 | G115: 9.5 | H115: 22.5 | I115: 0 | J115: 0 | K115: 0 | L115: 0 | M115: 0 | N115: 0 | O115: 0
B116: S_x | C116: =SUM(J109:J128) -> 4368 | D116: 8 | E116: 9.5 | F116: 22.5 | G116: 9.5 | H116: 22.5 | I116: 0 | J116: 0 | K116: 0 | L116: 0 | M116: 0 | N116: 0 | O116: 0
B117: S_y | C117: =SUM(K109:K128) -> 5460 | D117: 9 | E117: 9.5 | F117: 22.5 | G117: 9.5 | H117: 22.5 | I117: 0 | J117: 0 | K117: 0 | L117: 0 | M117: 0 | N117: 0 | O117: 0
B118: x_masse | C118: =IF(C115=0,0,C117/C115) -> 20 | D118: 10 | E118: 9.5 | F118: 22.5 | G118: 9.5 | H118: 22.5 | I118: 0 | J118: 0 | K118: 0 | L118: 0 | M118: 0 | N118: 0 | O118: 0
B119: y_masse | C119: =IF(C115=0,0,C116/C115) -> 16 | D119: 11 | E119: 9.5 | F119: 22.5 | G119: 9.5 | H119: 22.5 | I119: 0 | J119: 0 | K119: 0 | L119: 0 | M119: 0 | N119: 0 | O119: 0
B120: W_x_vind | C120: =0.5*(C110+C111)^2*C122*C123*C125/C110+0.5*(C89^2-C90^2)*C101*C102*C104/C89 -> 46.8 | D120: 12 | E120: 9.5 | F120: 22.5 | G120: 9.5 | H120: 22.5 | I120: 0 | J120: 0 | K120: 0 | L120: 0 | M120: 0 | N120: 0 | O120: 0
B121: W_y_vind | C121: =0.5*(C110+C111)^2*C122*C123*C124/C110+0.5*(C89^2-C90^2)*C101*C102*C103/C89 -> 75.6 | D121: 13 | E121: 9.5 | F121: 22.5 | G121: 9.5 | H121: 22.5 | I121: 0 | J121: 0 | K121: 0 | L121: 0 | M121: 0 | N121: 0 | O121: 0
B122: c_1+c_2 | C122: 1 | D122: 14 | E122: 9.5 | F122: 22.5 | G122: 9.5 | H122: 22.5 | I122: 0 | J122: 0 | K122: 0 | L122: 0 | M122: 0 | N122: 0 | O122: 0
B123: w_d | C123: =INDEX(lastdata,7-C109,5)+IF(C109>$R$66,0,10^-60) -> 1.2 | D123: 15 | E123: 9.5 | F123: 22.5 | G123: 9.5 | H123: 22.5 | I123: 0 | J123: 0 | K123: 0 | L123: 0 | M123: 0 | N123: 0 | O123: 0
B124: Sx | C124: =SUM(L109:L128) -> 21 | D124: 16 | E124: 9.5 | F124: 22.5 | G124: 9.5 | H124: 22.5 | I124: 0 | J124: 0 | K124: 0 | L124: 0 | M124: 0 | N124: 0 | O124: 0
B125: Sy | C125: =SUM(M109:M128) -> 13 | D125: 17 | E125: 9.5 | F125: 22.5 | G125: 9.5 | H125: 22.5 | I125: 0 | J125: 0 | K125: 0 | L125: 0 | M125: 0 | N125: 0 | O125: 0
B126: Ss_x | C126: =SUM(N109:N128) -> 208 | D126: 18 | E126: 9.5 | F126: 22.5 | G126: 9.5 | H126: 22.5 | I126: 0 | J126: 0 | K126: 0 | L126: 0 | M126: 0 | N126: 0 | O126: 0
B127: Ss_y | C127: =SUM(O109:O128) -> 420 | D127: 19 | E127: 9.5 | F127: 22.5 | G127: 9.5 | H127: 22.5 | I127: 0 | J127: 0 | K127: 0 | L127: 0 | M127: 0 | N127: 0 | O127: 0
B128: x_vind | C128: =IF(R128=0,0,(L129*0.5*(C110+C111)^2*C122*C123*C124/C110+L108*0.5*(C89^2-C90^2)*C101*C102*C103/C89)/(0.5*(C110+C111)^2*C122*C123*C124/C110+0.5*(C89^2-C90^2)*C101*C102*C103/C89)) -> 20 | D128: 20 | E128: 9.5 | F128: 22.5 | G128: =E129 -> 9.5 | H128: =F129 -> 9.5 | I128: 0 | J128: 0 | K128: -586.625 | L128: 0 | M128: 0 | N128: 0 | O128: 0 | R128: =(0.5*(C110+C111)^2*C122*C123*C124/C110+0.5*(C89^2-C90^2)*C101*C102*C103/C89) -> 75.6
B129: y_vind | C129: =IF(R129=0,0,(M129*0.5*(C110+C111)^2*C122*C123*C125/C110+M108*0.5*(C89^2-C90^2)*C101*C102*C104/C89)/(0.5*(C110+C111)^2*C122*C123*C125/C110+0.5*(C89^2-C90^2)*C101*C102*C104/C89)) -> 16 | D129: 21 | E129: =E109 -> 9.5 | F129: =F109 -> 9.5 | L129: =IF(C124=0,0,C127/C124) -> 20 | M129: =IF(C124=0,0,C126/C125) -> 16 | R129: =(0.5*(C110+C111)^2*C122*C123*C125/C110+0.5*(C89^2-C90^2)*C101*C102*C104/C89) -> 46.8
B130: Etage | C130: 3 | D130: 1 | E130: =INDEX(kontur,1+2*(6-$C$130),$D130) -> 9.5 | F130: =INDEX(kontur,2+2*(6-$C$130),$D130) -> 9.5 | G130: =E131 -> 30.5 | H130: =F131 -> 9.5 | I130: =-0.5*(G130-E130)*(H130+F130) -> -199.5 | J130: =IF(H130=F130,-0.5*F130^2*(G130-E130),(G130-E130)*(-H130^3/6+F130^3/6)/(H130-F130)) -> -947.625 | K130: =-IF(G130=E130,-0.5*E130^2*(H130-F130),(H130-F130)*(-G130^3/6+E130^3/6)/(G130-E130)) -> 0 | L130: =IF(G130>E130,G130-E130,0) -> 21 | M130: =IF(H130>F130,H130-F130,0) -> 0 | N130: =0.5*(H130+F130)*M130 -> 0 | O130: =0.5*(G130+E130)*L130 -> 420
B131: Højde | C131: =IF(INDEX(lastdata,7-C130,1)=0,0.0001,INDEX(lastdata,7-C130,1)) -> 3 | D131: 2 | E131: =IF(INDEX(kontur,1+2*(6-$C$130),$D131)="",E130,INDEX(kontur,1+2*(6-$C$130),$D131)) -> 30.5 | F131: =IF(INDEX(kontur,2+2*(6-$C$130),$D131)="",F130,INDEX(kontur,2+2*(6-$C$130),$D131)) -> 9.5 | G131: 30.5 | H131: 22.5 | I131: 0 | J131: 0 | K131: =-IF(G131=E131,-0.5*E131^2*(H131-F131),(H131-F131)*(-G131^3/6+E131^3/6)/(G131-E131)) -> 6046.625 | L131: =IF(G131>E131,G131-E131,0) -> 0 | M131: 13 | N131: 208 | O131: 0
B132: Stern | C132: =INDEX(lastdata,7-C130,2) -> 0 | D132: 3 | E132: 30.5 | F132: 22.5 | G132: 9.5 | H132: 22.5 | I132: 472.5 | J132: 5315.625 | K132: =-IF(G132=E132,-0.5*E132^2*(H132-F132),(H132-F132)*(-G132^3/6+E132^3/6)/(G132-E132)) -> 0 | L132: =IF(G132>E132,G132-E132,0) -> 0 | M132: 0 | N132: 0 | O132: 0
B133: W_masse | C133: =$C$66*C136*(C134+C135) -> 57.33 | D133: 4 | E133: 9.5 | F133: 22.5 | G133: 9.5 | H133: 22.5 | I133: 0 | J133: 0 | K133: 0 | L133: 0 | M133: 0 | N133: 0 | O133: 0
B134: q_flade | C134: =INDEX(lastdata,7-C130,3) -> 10 | D134: 5 | E134: 9.5 | F134: 22.5 | G134: 9.5 | H134: 22.5 | I134: 0 | J134: 0 | K134: 0 | L134: 0 | M134: 0 | N134: 0 | O134: 0
B135: q_ækv | C135: =INDEX(lastdata,7-C130,4) -> 2 | D135: 6 | E135: 9.5 | F135: 22.5 | G135: 9.5 | H135: 22.5 | I135: 0 | J135: 0 | K135: 0 | L135: 0 | M135: 0 | N135: 0 | O135: 0
B136: A | C136: =SUM(I130:I149) -> 273 | D136: 7 | E136: 9.5 | F136: 22.5 | G136: 9.5 | H136: 22.5 | I136: 0 | J136: 0 | K136: 0 | L136: 0 | M136: 0 | N136: 0 | O136: 0
B137: S_x | C137: =SUM(J130:J149) -> 4368 | D137: 8 | E137: 9.5 | F137: 22.5 | G137: 9.5 | H137: 22.5 | I137: 0 | J137: 0 | K137: 0 | L137: 0 | M137: 0 | N137: 0 | O137: 0
B138: S_y | C138: =SUM(K130:K149) -> 5460 | D138: 9 | E138: 9.5 | F138: 22.5 | G138: 9.5 | H138: 22.5 | I138: 0 | J138: 0 | K138: 0 | L138: 0 | M138: 0 | N138: 0 | O138: 0
B139: x_masse | C139: =IF(C136=0,0,C138/C136) -> 20 | D139: 10 | E139: 9.5 | F139: 22.5 | G139: 9.5 | H139: 22.5 | I139: 0 | J139: 0 | K139: 0 | L139: 0 | M139: 0 | N139: 0 | O139: 0
B140: y_masse | C140: =IF(C136=0,0,C137/C136) -> 16 | D140: 11 | E140: 9.5 | F140: 22.5 | G140: 9.5 | H140: 22.5 | I140: 0 | J140: 0 | K140: 0 | L140: 0 | M140: 0 | N140: 0 | O140: 0
B141: W_x_vind | C141: =0.5*(C131+C132)^2*C143*C144*C146/C131+0.5*(C110^2-C111^2)*C122*C123*C125/C110 -> 46.8 | D141: 12 | E141: 9.5 | F141: 22.5 | G141: 9.5 | H141: 22.5 | I141: 0 | J141: 0 | K141: 0 | L141: 0 | M141: 0 | N141: 0 | O141: 0
B142: W_y_vind | C142: =0.5*(C131+C132)^2*C143*C144*C145/C131+0.5*(C110^2-C111^2)*C122*C123*C124/C110 -> 75.6 | D142: 13 | E142: 9.5 | F142: 22.5 | G142: 9.5 | H142: 22.5 | I142: 0 | J142: 0 | K142: 0 | L142: 0 | M142: 0 | N142: 0 | O142: 0
B143: c_1+c_2 | C143: 1 | D143: 14 | E143: 9.5 | F143: 22.5 | G143: 9.5 | H143: 22.5 | I143: 0 | J143: 0 | K143: 0 | L143: 0 | M143: 0 | N143: 0 | O143: 0
B144: w_d | C144: =INDEX(lastdata,7-C130,5)+IF(C130>$R$66,0,10^-60) -> 1.2 | D144: 15 | E144: 9.5 | F144: 22.5 | G144: 9.5 | H144: 22.5 | I144: 0 | J144: 0 | K144: 0 | L144: 0 | M144: 0 | N144: 0 | O144: 0
B145: Sx | C145: =SUM(L130:L149) -> 21 | D145: 16 | E145: 9.5 | F145: 22.5 | G145: 9.5 | H145: 22.5 | I145: 0 | J145: 0 | K145: 0 | L145: 0 | M145: 0 | N145: 0 | O145: 0
B146: Sy | C146: =SUM(M130:M149) -> 13 | D146: 17 | E146: 9.5 | F146: 22.5 | G146: 9.5 | H146: 22.5 | I146: 0 | J146: 0 | K146: 0 | L146: 0 | M146: 0 | N146: 0 | O146: 0
B147: Ss_x | C147: =SUM(N130:N149) -> 208 | D147: 18 | E147: 9.5 | F147: 22.5 | G147: 9.5 | H147: 22.5 | I147: 0 | J147: 0 | K147: 0 | L147: 0 | M147: 0 | N147: 0 | O147: 0
B148: Ss_y | C148: =SUM(O130:O149) -> 420 | D148: 19 | E148: 9.5 | F148: 22.5 | G148: 9.5 | H148: 22.5 | I148: 0 | J148: 0 | K148: 0 | L148: 0 | M148: 0 | N148: 0 | O148: 0
B149: x_vind | C149: =IF(R149=0,0,(L150*0.5*(C131+C132)^2*C143*C144*C145/C131+L129*0.5*(C110^2-C111^2)*C122*C123*C124/C110)/(0.5*(C131+C132)^2*C143*C144*C145/C131+0.5*(C110^2-C111^2)*C122*C123*C124/C110)) -> 20 | D149: 20 | E149: 9.5 | F149: 22.5 | G149: =E150 -> 9.5 | H149: =F150 -> 9.5 | I149: 0 | J149: 0 | K149: -586.625 | L149: 0 | M149: 0 | N149: 0 | O149: 0 | R149: =(0.5*(C131+C132)^2*C143*C144*C145/C131+0.5*(C110^2-C111^2)*C122*C123*C124/C110) -> 75.6
B150: y_vind | C150: =IF(R150=0,0,(M150*0.5*(C131+C132)^2*C143*C144*C146/C131+M129*0.5*(C110^2-C111^2)*C122*C123*C125/C110)/(0.5*(C131+C132)^2*C143*C144*C146/C131+0.5*(C110^2-C111^2)*C122*C123*C125/C110)) -> 16 | D150: 21 | E150: =E130 -> 9.5 | F150: =F130 -> 9.5 | L150: =IF(C145=0,0,C148/C145) -> 20 | M150: =IF(C145=0,0,C147/C146) -> 16 | R150: =(0.5*(C131+C132)^2*C143*C144*C146/C131+0.5*(C110^2-C111^2)*C122*C123*C125/C110) -> 46.8
B151: Etage | C151: 2 | D151: 1 | E151: =INDEX(kontur,1+2*(6-$C$151),$D151) -> 9.5 | F151: =INDEX(kontur,2+2*(6-$C$151),$D151) -> 9.5 | G151: =E152 -> 30.5 | H151: =F152 -> 9.5 | I151: =-0.5*(G151-E151)*(H151+F151) -> -199.5 | J151: =IF(H151=F151,-0.5*F151^2*(G151-E151),(G151-E151)*(-H151^3/6+F151^3/6)/(H151-F151)) -> -947.625 | K151: =-IF(G151=E151,-0.5*E151^2*(H151-F151),(H151-F151)*(-G151^3/6+E151^3/6)/(G151-E151)) -> 0 | L151: =IF(G151>E151,G151-E151,0) -> 21 | M151: =IF(H151>F151,H151-F151,0) -> 0 | N151: =0.5*(H151+F151)*M151 -> 0 | O151: =0.5*(G151+E151)*L151 -> 420
B152: Højde | C152: =IF(INDEX(lastdata,7-C151,1)=0,0.0001,INDEX(lastdata,7-C151,1)) -> 4.5 | D152: 2 | E152: =IF(INDEX(kontur,1+2*(6-$C$151),$D152)="",E151,INDEX(kontur,1+2*(6-$C$151),$D152)) -> 30.5 | F152: =IF(INDEX(kontur,2+2*(6-$C$151),$D152)="",F151,INDEX(kontur,2+2*(6-$C$151),$D152)) -> 9.5 | G152: 30.5 | H152: 22.5 | I152: 0 | J152: 0 | K152: =-IF(G152=E152,-0.5*E152^2*(H152-F152),(H152-F152)*(-G152^3/6+E152^3/6)/(G152-E152)) -> 6046.625 | L152: =IF(G152>E152,G152-E152,0) -> 0 | M152: 13 | N152: 208 | O152: 0
B153: Stern | C153: =INDEX(lastdata,7-C151,2) -> 0 | D153: 3 | E153: 30.5 | F153: 22.5 | G153: 9.5 | H153: 22.5 | I153: 472.5 | J153: 5315.625 | K153: =-IF(G153=E153,-0.5*E153^2*(H153-F153),(H153-F153)*(-G153^3/6+E153^3/6)/(G153-E153)) -> 0 | L153: =IF(G153>E153,G153-E153,0) -> 0 | M153: 0 | N153: 0 | O153: 0
B154: W_masse | C154: =$C$66*C157*(C155+C156) -> 57.33 | D154: 4 | E154: 9.5 | F154: 22.5 | G154: 9.5 | H154: 22.5 | I154: 0 | J154: 0 | K154: 0 | L154: 0 | M154: 0 | N154: 0 | O154: 0
B155: q_flade | C155: =INDEX(lastdata,7-C151,3) -> 10 | D155: 5 | E155: 9.5 | F155: 22.5 | G155: 9.5 | H155: 22.5 | I155: 0 | J155: 0 | K155: 0 | L155: 0 | M155: 0 | N155: 0 | O155: 0
B156: q_ækv | C156: =INDEX(lastdata,7-C151,4) -> 2 | D156: 6 | E156: 9.5 | F156: 22.5 | G156: 9.5 | H156: 22.5 | I156: 0 | J156: 0 | K156: 0 | L156: 0 | M156: 0 | N156: 0 | O156: 0
B157: A | C157: =SUM(I151:I170) -> 273 | D157: 7 | E157: 9.5 | F157: 22.5 | G157: 9.5 | H157: 22.5 | I157: 0 | J157: 0 | K157: 0 | L157: 0 | M157: 0 | N157: 0 | O157: 0
B158: S_x | C158: =SUM(J151:J170) -> 4368 | D158: 8 | E158: 9.5 | F158: 22.5 | G158: 9.5 | H158: 22.5 | I158: 0 | J158: 0 | K158: 0 | L158: 0 | M158: 0 | N158: 0 | O158: 0
B159: S_y | C159: =SUM(K151:K170) -> 5460 | D159: 9 | E159: 9.5 | F159: 22.5 | G159: 9.5 | H159: 22.5 | I159: 0 | J159: 0 | K159: 0 | L159: 0 | M159: 0 | N159: 0 | O159: 0
B160: x_masse | C160: =IF(C157=0,0,C159/C157) -> 20 | D160: 10 | E160: 9.5 | F160: 22.5 | G160: 9.5 | H160: 22.5 | I160: 0 | J160: 0 | K160: 0 | L160: 0 | M160: 0 | N160: 0 | O160: 0
B161: y_masse | C161: =IF(C157=0,0,C158/C157) -> 16 | D161: 11 | E161: 9.5 | F161: 22.5 | G161: 9.5 | H161: 22.5 | I161: 0 | J161: 0 | K161: 0 | L161: 0 | M161: 0 | N161: 0 | O161: 0
B162: W_x_vind | C162: =0.5*(C152+C153)^2*C164*C165*C167/C152+0.5*(C131^2-C132^2)*C143*C144*C146/C131 -> 58.5 | D162: 12 | E162: 9.5 | F162: 22.5 | G162: 9.5 | H162: 22.5 | I162: 0 | J162: 0 | K162: 0 | L162: 0 | M162: 0 | N162: 0 | O162: 0
B163: W_y_vind | C163: =0.5*(C152+C153)^2*C164*C165*C166/C152+0.5*(C131^2-C132^2)*C143*C144*C145/C131 -> 94.5 | D163: 13 | E163: 9.5 | F163: 22.5 | G163: 9.5 | H163: 22.5 | I163: 0 | J163: 0 | K163: 0 | L163: 0 | M163: 0 | N163: 0 | O163: 0
B164: c_1+c_2 | C164: 1 | D164: 14 | E164: 9.5 | F164: 22.5 | G164: 9.5 | H164: 22.5 | I164: 0 | J164: 0 | K164: 0 | L164: 0 | M164: 0 | N164: 0 | O164: 0
B165: w_d | C165: =INDEX(lastdata,7-C151,5)+IF(C151>$R$66,0,10^-60) -> 1.2 | D165: 15 | E165: 9.5 | F165: 22.5 | G165: 9.5 | H165: 22.5 | I165: 0 | J165: 0 | K165: 0 | L165: 0 | M165: 0 | N165: 0 | O165: 0
B166: Sx | C166: =SUM(L151:L170) -> 21 | D166: 16 | E166: 9.5 | F166: 22.5 | G166: 9.5 | H166: 22.5 | I166: 0 | J166: 0 | K166: 0 | L166: 0 | M166: 0 | N166: 0 | O166: 0
B167: Sy | C167: =SUM(M151:M170) -> 13 | D167: 17 | E167: 9.5 | F167: 22.5 | G167: 9.5 | H167: 22.5 | I167: 0 | J167: 0 | K167: 0 | L167: 0 | M167: 0 | N167: 0 | O167: 0
B168: Ss_x | C168: =SUM(N151:N170) -> 208 | D168: 18 | E168: 9.5 | F168: 22.5 | G168: 9.5 | H168: 22.5 | I168: 0 | J168: 0 | K168: 0 | L168: 0 | M168: 0 | N168: 0 | O168: 0
B169: Ss_y | C169: =SUM(O151:O170) -> 420 | D169: 19 | E169: 9.5 | F169: 22.5 | G169: 9.5 | H169: 22.5 | I169: 0 | J169: 0 | K169: 0 | L169: 0 | M169: 0 | N169: 0 | O169: 0
B170: x_vind | C170: =IF(R170=0,0,(L171*0.5*(C152+C153)^2*C164*C165*C166/C152+L150*0.5*(C131^2-C132^2)*C143*C144*C145/C131)/(0.5*(C152+C153)^2*C164*C165*C166/C152+0.5*(C131^2-C132^2)*C143*C144*C145/C131)) -> 20 | D170: 20 | E170: 9.5 | F170: 22.5 | G170: =E171 -> 9.5 | H170: =F171 -> 9.5 | I170: 0 | J170: 0 | K170: -586.625 | L170: 0 | M170: 0 | N170: 0 | O170: 0 | R170: =(0.5*(C152+C153)^2*C164*C165*C166/C152+0.5*(C131^2-C132^2)*C143*C144*C145/C131) -> 94.5
B171: y_vind | C171: =IF(R171=0,0,(M171*0.5*(C152+C153)^2*C164*C165*C167/C152+M150*0.5*(C131^2-C132^2)*C143*C144*C146/C131)/(0.5*(C152+C153)^2*C164*C165*C167/C152+0.5*(C131^2-C132^2)*C143*C144*C146/C131)) -> 16 | D171: 21 | E171: =E151 -> 9.5 | F171: =F151 -> 9.5 | L171: =IF(C166=0,0,C169/C166) -> 20 | M171: =IF(C166=0,0,C168/C167) -> 16 | R171: =(0.5*(C152+C153)^2*C164*C165*C167/C152+0.5*(C131^2-C132^2)*C143*C144*C146/C131) -> 58.5
B172: Etage | C172: 1 | D172: 1 | E172: =INDEX(kontur,1+2*(6-$C$172),$D172) -> 9.5 | F172: =INDEX(kontur,2+2*(6-$C$172),$D172) -> 9.5 | G172: =E173 -> 30.5 | H172: =F173 -> 9.5 | I172: =-0.5*(G172-E172)*(H172+F172) -> -199.5 | J172: =IF(H172=F172,-0.5*F172^2*(G172-E172),(G172-E172)*(-H172^3/6+F172^3/6)/(H172-F172)) -> -947.625 | K172: =-IF(G172=E172,-0.5*E172^2*(H172-F172),(H172-F172)*(-G172^3/6+E172^3/6)/(G172-E172)) -> 0 | L172: =IF(G172>E172,G172-E172,0) -> 21 | M172: =IF(H172>F172,H172-F172,0) -> 0 | N172: =0.5*(H172+F172)*M172 -> 0 | O172: =0.5*(G172+E172)*L172 -> 420
B173: Højde | C173: =IF(INDEX(lastdata,7-C172,1)=0,0.0001,INDEX(lastdata,7-C172,1)) -> 3 | D173: 2 | E173: =IF(INDEX(kontur,1+2*(6-$C$172),$D173)="",E172,INDEX(kontur,1+2*(6-$C$172),$D173)) -> 30.5 | F173: =IF(INDEX(kontur,2+2*(6-$C$172),$D173)="",F172,INDEX(kontur,2+2*(6-$C$172),$D173)) -> 9.5 | G173: 30.5 | H173: 22.5 | I173: 0 | J173: 0 | K173: =-IF(G173=E173,-0.5*E173^2*(H173-F173),(H173-F173)*(-G173^3/6+E173^3/6)/(G173-E173)) -> 6046.625 | L173: =IF(G173>E173,G173-E173,0) -> 0 | M173: 13 | N173: 208 | O173: 0
B174: Stern | C174: =INDEX(lastdata,7-C172,2) -> 0 | D174: 3 | E174: 30.5 | F174: 22.5 | G174: 9.5 | H174: 22.5 | I174: 472.5 | J174: 5315.625 | K174: =-IF(G174=E174,-0.5*E174^2*(H174-F174),(H174-F174)*(-G174^3/6+E174^3/6)/(G174-E174)) -> 0 | L174: =IF(G174>E174,G174-E174,0) -> 0 | M174: 0 | N174: 0 | O174: 0
B175: W_masse | C175: =$C$66*C178*(C176+C177) -> 57.33 | D175: 4 | E175: 9.5 | F175: 22.5 | G175: 9.5 | H175: 22.5 | I175: 0 | J175: 0 | K175: 0 | L175: 0 | M175: 0 | N175: 0 | O175: 0
B176: q_flade | C176: =INDEX(lastdata,7-C172,3) -> 10 | D176: 5 | E176: 9.5 | F176: 22.5 | G176: 9.5 | H176: 22.5 | I176: 0 | J176: 0 | K176: 0 | L176: 0 | M176: 0 | N176: 0 | O176: 0
B177: q_ækv | C177: =INDEX(lastdata,7-C172,4) -> 2 | D177: 6 | E177: 9.5 | F177: 22.5 | G177: 9.5 | H177: 22.5 | I177: 0 | J177: 0 | K177: 0 | L177: 0 | M177: 0 | N177: 0 | O177: 0
B178: A | C178: =SUM(I172:I191) -> 273 | D178: 7 | E178: 9.5 | F178: 22.5 | G178: 9.5 | H178: 22.5 | I178: 0 | J178: 0 | K178: 0 | L178: 0 | M178: 0 | N178: 0 | O178: 0
B179: S_x | C179: =SUM(J172:J191) -> 4368 | D179: 8 | E179: 9.5 | F179: 22.5 | G179: 9.5 | H179: 22.5 | I179: 0 | J179: 0 | K179: 0 | L179: 0 | M179: 0 | N179: 0 | O179: 0
B180: S_y | C180: =SUM(K172:K191) -> 5460 | D180: 9 | E180: 9.5 | F180: 22.5 | G180: 9.5 | H180: 22.5 | I180: 0 | J180: 0 | K180: 0 | L180: 0 | M180: 0 | N180: 0 | O180: 0
B181: x_masse | C181: =IF(C178=0,0,C180/C178) -> 20 | D181: 10 | E181: 9.5 | F181: 22.5 | G181: 9.5 | H181: 22.5 | I181: 0 | J181: 0 | K181: 0 | L181: 0 | M181: 0 | N181: 0 | O181: 0
B182: y_masse | C182: =IF(C178=0,0,C179/C178) -> 16 | D182: 11 | E182: 9.5 | F182: 22.5 | G182: 9.5 | H182: 22.5 | I182: 0 | J182: 0 | K182: 0 | L182: 0 | M182: 0 | N182: 0 | O182: 0
B183: W_x_vind | C183: =0.5*(C173+C174)^2*C185*C186*C188/C173+0.5*(C152^2-C153^2)*C164*C165*C167/C152 -> 58.5 | D183: 12 | E183: 9.5 | F183: 22.5 | G183: 9.5 | H183: 22.5 | I183: 0 | J183: 0 | K183: 0 | L183: 0 | M183: 0 | N183: 0 | O183: 0
B184: W_y_vind | C184: =0.5*(C173+C174)^2*C185*C186*C187/C173+0.5*(C152^2-C153^2)*C164*C165*C166/C152 -> 94.5 | D184: 13 | E184: 9.5 | F184: 22.5 | G184: 9.5 | H184: 22.5 | I184: 0 | J184: 0 | K184: 0 | L184: 0 | M184: 0 | N184: 0 | O184: 0
B185: c_1+c_2 | C185: 1 | D185: 14 | E185: 9.5 | F185: 22.5 | G185: 9.5 | H185: 22.5 | I185: 0 | J185: 0 | K185: 0 | L185: 0 | M185: 0 | N185: 0 | O185: 0
B186: w_d | C186: =INDEX(lastdata,7-C172,5)+IF(C172>$R$66,0,10^-60) -> 1.2 | D186: 15 | E186: 9.5 | F186: 22.5 | G186: 9.5 | H186: 22.5 | I186: 0 | J186: 0 | K186: 0 | L186: 0 | M186: 0 | N186: 0 | O186: 0
B187: Sx | C187: =SUM(L172:L191) -> 21 | D187: 16 | E187: 9.5 | F187: 22.5 | G187: 9.5 | H187: 22.5 | I187: 0 | J187: 0 | K187: 0 | L187: 0 | M187: 0 | N187: 0 | O187: 0
B188: Sy | C188: =SUM(M172:M191) -> 13 | D188: 17 | E188: 9.5 | F188: 22.5 | G188: 9.5 | H188: 22.5 | I188: 0 | J188: 0 | K188: 0 | L188: 0 | M188: 0 | N188: 0 | O188: 0
B189: Ss_x | C189: =SUM(N172:N191) -> 208 | D189: 18 | E189: 9.5 | F189: 22.5 | G189: 9.5 | H189: 22.5 | I189: 0 | J189: 0 | K189: 0 | L189: 0 | M189: 0 | N189: 0 | O189: 0
B190: Ss_y | C190: =SUM(O172:O191) -> 420 | D190: 19 | E190: 9.5 | F190: 22.5 | G190: 9.5 | H190: 22.5 | I190: 0 | J190: 0 | K190: 0 | L190: 0 | M190: 0 | N190: 0 | O190: 0
B191: x_vind | C191: =IF(R191=0,0,(L192*0.5*(C173+C174)^2*C185*C186*C187/C173+L171*0.5*(C152^2-C153^2)*C164*C165*C166/C152)/(0.5*(C173+C174)^2*C185*C186*C187/C173+0.5*(C152^2-C153^2)*C164*C165*C166/C152)) -> 20 | D191: 20 | E191: 9.5 | F191: 22.5 | G191: =E192 -> 9.5 | H191: =F192 -> 9.5 | I191: 0 | J191: 0 | K191: -586.625 | L191: 0 | M191: 0 | N191: 0 | O191: 0 | R191: =(0.5*(C173+C174)^2*C185*C186*C187/C173+0.5*(C152^2-C153^2)*C164*C165*C166/C152) -> 94.5
B192: y_vind | C192: =IF(R192=0,0,(M192*0.5*(C173+C174)^2*C185*C186*C188/C173+M171*0.5*(C152^2-C153^2)*C164*C165*C167/C152)/(0.5*(C173+C174)^2*C185*C186*C188/C173+0.5*(C152^2-C153^2)*C164*C165*C167/C152)) -> 16 | D192: 21 | E192: =E172 -> 9.5 | F192: =F172 -> 9.5 | L192: =IF(C187=0,0,C190/C187) -> 20 | M192: =IF(C187=0,0,C189/C188) -> 16 | R192: =(0.5*(C173+C174)^2*C185*C186*C188/C173+0.5*(C152^2-C153^2)*C164*C165*C167/C152) -> 58.5

Sheet Laste
AE1: Topetage | AG1: =MAX(Inddata!J7:J33) -> 6
C2: Højde | D2: Stern | E2: Lodret last | G2: Vind
C3: h_etg | D3: h_s | E3: q_flade | F3: q_ækv | G3: w | I3: Vindlasttilfælde suppleres i programmet med to undertilfælde svarende til vindsug på én gavl, eksempelvis :
C4: (m) | D4: (m) | E4: (kN/m2) | F4: (kN/m2) | G4: (kN/m2) | J4: W_y | M4: W_y | Q4: W_y
B5: 6 | C5: =Inddata!O7 -> 3 | D5: 0.6 | E5: 10 | F5: 2 | G5: 1.2 | AE5: 6 | AF5: =IF(OR(AND(AE5<>topetg,D5<>0),AND(AE5>topetg,OR(D5<>0,E5<>0,F5<>0,G5<>0))),1,0) -> 0
B6: 5 | C6: =Inddata!O8 -> 3 | E6: 10 | F6: 2 | G6: 1.2 | AE6: 5 | AF6: 0
B7: 4 | C7: =Inddata!O9 -> 3 | E7: 10 | F7: 2 | G7: 1.2 | N7: W_x* | P7: -W_x* | AE7: 4 | AF7: 0
B8: 3 | C8: =Inddata!O10 -> 3 | E8: 10 | F8: 2 | G8: 1.2 | AE8: 3 | AF8: 0
B9: 2 | C9: =Inddata!O11 -> 4.5 | E9: 10 | F9: 2 | G9: 1.2 | J9: Lasttilfælde 7 | M9: Lasttilfælde 7a | Q9: Lasttilfælde 7b | AE9: 2 | AF9: 0
B10: 1 | C10: =Inddata!O12 -> 3 | E10: 10 | F10: 2 | G10: 1.2 | I10: W_y* = f_v∙W_y' og W_x* = f_v∙W_x', hvor W_y' og W_x' er vindlastresultant i hovedvindretning. f_v = | R10: =Tvind -> 0.7 | AE10: 1 | AF10: 0
B11: =IF(AF11=0,"","OBS: Øverste etage i bygning er etage "&topetg) ->  | AF11: =SUM(AF5:AF10) -> 0
B12: Masselast i x-retning | D12: y_Wx | E12: W_x | F12: y_Wx | G12: W_x | I12: Vind i x-retning | K12: y_Wx | L12: W_x | M12: y_Wx | N12: W_x | O12: x_Wy* | P12: | W_y* | | Q12: x_Wy | R12: | W_y* |
D13: (m) | E13: (kN) | F13: (m) | G13: (kN) | I13: incl. masselast/imper- | K13: (m) | L13: (kN) | M13: (m) | N13: (kN) | O13: (m) | P13: (kN) | Q13: (m) | R13: (kN)
F14: Evt. egne tal | I14: fektionsbidrag | M14: Evt. egne tal | Q14: Evt. egne tal
B15: 1 | C15: 6 | D15: =IF(F15<>"",F15,D74) -> 16 | E15: 57.33 | I15: 5 | J15: 6 | K15: =IF(M15<>"",M15,M74) -> 16 | L15: 41.886 | O15: =IF(Q15<>"",Q15,F84) -> 20 | P15: =IF(R15<>"",R15,Tvind*G84) -> 38.1024
C16: 5 | D16: 16 | E16: 57.33 | J16: 5 | K16: 16 | L16: 54.054 | O16: 20 | P16: =IF(R16<>"",R16,Tvind*G85) -> 51.8616
C17: 4 | D17: 16 | E17: 57.33 | J17: 4 | K17: 16 | L17: 54.99 | O17: 20 | P17: 52.92
C18: 3 | D18: 16 | E18: 57.33 | J18: 3 | K18: 16 | L18: 54.99 | O18: 20 | P18: 52.92
C19: 2 | D19: 16 | E19: 57.33 | J19: 2 | K19: 16 | L19: 66.69 | O19: 20 | P19: 66.15
C20: 1 | D20: 16 | E20: 57.33 | J20: 1 | K20: 16 | L20: 66.69 | O20: 20 | P20: 66.15
B21: 2 | C21: 6 | D21: =IF(F21<>"",F21,D74) -> 16 | E21: =IF(G21<>"",G21,-E74) -> -57.33 | I21: 6 | J21: 6 | K21: =IF(M21<>"",M21,M84) -> 16 | L21: =IF(N21<>"",N21,N84) -> -41.886 | O21: =IF(Q21<>"",Q21,F84) -> 20 | P21: =IF(R21<>"",R21,Tvind*G84) -> 38.1024
C22: 5 | D22: 16 | E22: -57.33 | J22: 5 | K22: =IF(M22<>"",M22,M85) -> 16 | L22: -54.054 | O22: 20 | P22: 51.8616
C23: 4 | D23: 16 | E23: -57.33 | J23: 4 | K23: =IF(M23<>"",M23,M86) -> 16 | L23: -54.99 | O23: 20 | P23: 52.92
C24: 3 | D24: 16 | E24: -57.33 | J24: 3 | K24: =IF(M24<>"",M24,M87) -> 16 | L24: -54.99 | O24: 20 | P24: 52.92
C25: 2 | D25: 16 | E25: -57.33 | J25: 2 | K25: =IF(M25<>"",M25,M88) -> 16 | L25: -66.69 | O25: 20 | P25: 66.15
C26: 1 | D26: 16 | E26: -57.33 | J26: 1 | K26: =IF(M26<>"",M26,M89) -> 16 | L26: -66.69 | O26: 20 | P26: 66.15
B28: Masselast i y-retning | D28: x_Wy | E28: W_y | F28: x_Wy | G28: W_y | I28: Vind i y-retning | K28: y_Wx* | L28: | W_x* | | M28: y_Wx | N28: | W_x* | | O28: x_Wy | P28: W_y | Q28: x_Wy | R28: W_y
D29: (m) | E29: (kN) | F29: (m) | G29: (kN) | I29: incl. masselast/imper- | K29: (m) | L29: (kN) | M29: (m) | N29: (kN) | O29: (m) | P29: (kN) | Q29: (m) | R29: (kN)
F30: Evt. egne tal | I30: fektionsbidrag | M30: Evt. egne tal | Q30: Evt. egne tal
B31: 3 | C31: 6 | D31: =IF(F31<>"",F31,F74) -> 20 | E31: 57.33 | I31: 7 | J31: 6 | K31: =IF(M31<>"",M31,D84) -> 16 | L31: =IF(N31<>"",N31,Tvind*E84) -> 23.5872 | O31: =IF(Q31<>"",Q31,O74) -> 20 | P31: =IF(R31<>"",R31,P74) -> 62.622
C32: 5 | D32: 20 | E32: 57.33 | J32: 5 | K32: 16 | L32: 32.1048 | O32: 20 | P32: 82.278
C33: 4 | D33: 20 | E33: 57.33 | J33: 4 | K33: 16 | L33: 32.76 | O33: 20 | P33: 83.79
C34: 3 | D34: 20 | E34: 57.33 | J34: 3 | K34: 16 | L34: 32.76 | O34: 20 | P34: 83.79
C35: 2 | D35: 20 | E35: 57.33 | J35: 2 | K35: 16 | L35: 40.95 | O35: 20 | P35: 102.69
C36: 1 | D36: 20 | E36: 57.33 | J36: 1 | K36: 16 | L36: 40.95 | O36: 20 | P36: 102.69
B37: 4 | C37: 6 | D37: =IF(F37<>"",F37,F74) -> 20 | E37: =IF(G37<>"",G37,-G74) -> -57.33 | I37: 8 | J37: 6 | K37: =IF(M37<>"",M37,D84) -> 16 | L37: =IF(N37<>"",N37,Tvind*E84) -> 23.5872 | O37: =IF(Q37<>"",Q37,O84) -> 20 | P37: =IF(R37<>"",R37,P84) -> -62.622
C38: 5 | D38: 20 | E38: -57.33 | J38: 5 | K38: 16 | L38: 32.1048 | O38: =IF(Q38<>"",Q38,O85) -> 20 | P38: =IF(R38<>"",R38,P85) -> -82.278
C39: 4 | D39: 20 | E39: -57.33 | J39: 4 | K39: 16 | L39: 32.76 | O39: 20 | P39: -83.79
C40: 3 | D40: 20 | E40: -57.33 | J40: 3 | K40: 16 | L40: 32.76 | O40: 20 | P40: -83.79
C41: 2 | D41: 20 | E41: -57.33 | J41: 2 | K41: 16 | L41: 40.95 | O41: 20 | P41: -102.69
C42: 1 | D42: 20 | E42: -57.33 | J42: 1 | K42: 16 | L42: 40.95 | O42: 20 | P42: -102.69
B71: Basislaste på dækskiver - masselast | K71: Basislaste på dækskiver - vind- + masselast (positive) | R71: f_v med vind / f_v uden vind | U71: =Inddata!E42/Inddata!E41 -> 0.1428571429
D72: y_Wx0 | E72: W_x0 | F72: x_Wy0 | G72: W_y0 | M72: y_Wx0 | N72: W_x0 | O72: x_Wy0 | P72: W_y0
D73: (m) | E73: (kN) | F73: (m) | G73: (kN) | M73: (m) | N73: (kN) | O73: (m) | P73: (kN)
C74: 6 | D74: =INDEX(belastning,11+21*(6-$C74),1) -> 16 | E74: =INDEX(belastning,4+21*(6-$C74),1) -> 57.33 | F74: =INDEX(belastning,10+21*(6-$C74),1) -> 20 | G74: =E74 -> 57.33 | L74: 6 | M74: =IF(N74=0,0,($U$71*D15*E15+D84*E84)/N74) -> 16 | N74: =$U$71*E15+E84 -> 41.886 | O74: =IF(P74=0,0,($U$71*D31*E31+F84*G84)/P74) -> 20 | P74: =$U$71*E31+G84 -> 62.622
C75: 5 | D75: 16 | E75: 57.33 | F75: 20 | G75: 57.33 | L75: 5 | M75: =IF(N75=0,0,($U$71*D16*E16+D85*E85)/N75) -> 16 | N75: =$U$71*E16+E85 -> 54.054 | O75: =IF(P75=0,0,($U$71*D32*E32+F85*G85)/P75) -> 20 | P75: =$U$71*E32+G85 -> 82.278
C76: 4 | D76: 16 | E76: 57.33 | F76: 20 | G76: 57.33 | L76: 4 | M76: 16 | N76: 54.99 | O76: 20 | P76: 83.79
C77: 3 | D77: 16 | E77: 57.33 | F77: 20 | G77: 57.33 | L77: 3 | M77: 16 | N77: 54.99 | O77: 20 | P77: 83.79
C78: 2 | D78: 16 | E78: 57.33 | F78: 20 | G78: 57.33 | L78: 2 | M78: 16 | N78: 66.69 | O78: 20 | P78: 102.69
C79: 1 | D79: 16 | E79: 57.33 | F79: 20 | G79: 57.33 | L79: 1 | M79: 16 | N79: 66.69 | O79: 20 | P79: 102.69
B81: Basislaste på dækskiver - vindlast | K81: Basislaste på dækskiver - vind- + masselast (negative)
D82: y_Wx0 | E82: W_x0 | F82: x_Wy0 | G82: W_y0 | M82: y_Wx0 | N82: W_x0 | O82: x_Wy0 | P82: W_y0
D83: (m) | E83: (kN) | F83: (m) | G83: (kN) | M83: (m) | N83: (kN) | O83: (m) | P83: (kN)
C84: 6 | D84: =INDEX(belastning,21+21*(6-$C84),1) -> 16 | E84: =INDEX(belastning,12+21*(6-$C84),1) -> 33.696 | F84: =INDEX(belastning,20+21*(6-$C84),1) -> 20 | G84: =INDEX(belastning,13+21*(6-$C84),1) -> 54.432 | L84: 6 | M84: =IF(N84=0,0,($U$71*D21*E21-D84*E84)/N84) -> 16 | N84: =$U$71*E21-E84 -> -41.886 | O84: =IF(P84=0,0,($U$71*D37*E37-F84*G84)/P84) -> 20 | P84: =$U$71*E37-G84 -> -62.622
C85: 5 | D85: 16 | E85: 45.864 | F85: 20 | G85: 74.088 | L85: 5 | M85: =IF(N85=0,0,($U$71*D22*E22-D85*E85)/N85) -> 16 | N85: =$U$71*E22-E85 -> -54.054 | O85: =IF(P85=0,0,($U$71*D38*E38-F85*G85)/P85) -> 20 | P85: =$U$71*E38-G85 -> -82.278
C86: 4 | D86: 16 | E86: 46.8 | F86: 20 | G86: 75.6 | L86: 4 | M86: 16 | N86: -54.99 | O86: 20 | P86: -83.79
C87: 3 | D87: 16 | E87: 46.8 | F87: 20 | G87: 75.6 | L87: 3 | M87: 16 | N87: -54.99 | O87: 20 | P87: -83.79
C88: 2 | D88: 16 | E88: 58.5 | F88: 20 | G88: 94.5 | L88: 2 | M88: 16 | N88: -66.69 | O88: 20 | P88: -102.69
C89: 1 | D89: 16 | E89: 58.5 | F89: 20 | G89: 94.5 | L89: 1 | M89: 16 | N89: -66.69 | O89: 20 | P89: -102.69
B91: Resulterende lasttilfælde
D92: y_Wx0 | E92: W_x0 | F92: x_Wy0 | G92: W_y0
D93: (m) | E93: (kN) | F93: (m) | G93: (kN)
B94: 1 | C94: 6 | D94: =D15 -> 16 | E94: 57.33 | F94: =IF(F31="",D31,F31) -> 20 | G94: 0 | I94: =INDEX(lasttilf,B94,1) -> 1, Masselast: + W_x
C95: 5 | D95: 16 | E95: 57.33 | F95: 20 | G95: 0
C96: 4 | D96: 16 | E96: =E17 -> 57.33 | F96: 20 | G96: 0
C97: 3 | D97: 16 | E97: 57.33 | F97: 20 | G97: 0
C98: 2 | D98: 16 | E98: 57.33 | F98: 20 | G98: 0
C99: 1 | D99: 16 | E99: 57.33 | F99: 20 | G99: 0
B100: 2 | C100: 6 | D100: 16 | E100: -57.33 | F100: 20 | G100: 0 | I100: =INDEX(lasttilf,B100,1) -> 2, Masselast: - W_x
C101: 5 | D101: 16 | E101: -57.33 | F101: 20 | G101: 0
C102: 4 | D102: 16 | E102: -57.33 | F102: 20 | G102: 0
C103: 3 | D103: 16 | E103: -57.33 | F103: 20 | G103: 0
C104: 2 | D104: 16 | E104: -57.33 | F104: 20 | G104: 0
C105: 1 | D105: 16 | E105: -57.33 | F105: 20 | G105: 0
B106: 3 | C106: 6 | D106: =IF(F15="",D15,F15) -> 16 | E106: 0 | F106: =D31 -> 20 | G106: =E31 -> 57.33 | I106: =INDEX(lasttilf,B106,1) -> 3, Masselast: + W_y
C107: 5 | D107: =IF(F16="",D16,F16) -> 16 | E107: 0 | F107: =D32 -> 20 | G107: =E32 -> 57.33
C108: 4 | D108: 16 | E108: 0 | F108: 20 | G108: 57.33
C109: 3 | D109: 16 | E109: 0 | F109: 20 | G109: 57.33
C110: 2 | D110: 16 | E110: 0 | F110: 20 | G110: 57.33
C111: 1 | D111: 16 | E111: 0 | F111: 20 | G111: 57.33
B112: 4 | C112: 6 | D112: 16 | E112: 0 | F112: 20 | G112: -57.33 | I112: =INDEX(lasttilf,B112,1) -> 4, Masselast: - W_y
C113: 5 | D113: 16 | E113: 0 | F113: 20 | G113: -57.33
C114: 4 | D114: 16 | E114: 0 | F114: 20 | G114: -57.33
C115: 3 | D115: 16 | E115: 0 | F115: 20 | G115: -57.33
C116: 2 | D116: 16 | E116: 0 | F116: 20 | G116: -57.33
C117: 1 | D117: 16 | E117: 0 | F117: 20 | G117: -57.33
B118: 5 | C118: 6 | D118: =K15 -> 16 | E118: 41.886 | F118: =O15 -> 20 | G118: 0 | I118: =INDEX(lasttilf,B118,1) -> 5, Vind: + W_x
C119: 5 | D119: 16 | E119: 54.054 | F119: 20 | G119: 0
C120: 4 | D120: 16 | E120: 54.99 | F120: 20 | G120: 0
C121: 3 | D121: 16 | E121: 54.99 | F121: 20 | G121: 0
C122: 2 | D122: 16 | E122: 66.69 | F122: 20 | G122: 0
C123: 1 | D123: 16 | E123: 66.69 | F123: 20 | G123: 0
B124: 6 | C124: 6 | D124: =K15 -> 16 | E124: 41.886 | F124: =O15 -> 20 | G124: 38.1024 | I124: =INDEX(lasttilf,B124,1) -> 5a, Vind: + W_x og + W_y*
C125: 5 | D125: 16 | E125: 54.054 | F125: 20 | G125: 51.8616
C126: 4 | D126: 16 | E126: 54.99 | F126: 20 | G126: 52.92
C127: 3 | D127: 16 | E127: 54.99 | F127: 20 | G127: 52.92
C128: 2 | D128: 16 | E128: 66.69 | F128: 20 | G128: 66.15
C129: 1 | D129: 16 | E129: 66.69 | F129: 20 | G129: 66.15
B130: 7 | C130: 6 | D130: =K15 -> 16 | E130: =L15 -> 41.886 | F130: =O15 -> 20 | G130: =-P15 -> -38.1024 | I130: =INDEX(lasttilf,B130,1) -> 5b, Vind: + W_x og - W_y*
C131: 5 | D131: 16 | E131: 54.054 | F131: 20 | G131: -51.8616
C132: 4 | D132: 16 | E132: 54.99 | F132: 20 | G132: -52.92
C133: 3 | D133: 16 | E133: 54.99 | F133: 20 | G133: -52.92
C134: 2 | D134: 16 | E134: 66.69 | F134: 20 | G134: -66.15
C135: 1 | D135: 16 | E135: 66.69 | F135: 20 | G135: -66.15
B136: 8 | C136: 6 | D136: 16 | E136: -41.886 | F136: 20 | G136: 0 | I136: =INDEX(lasttilf,B136,1) -> 6, Vind: - W_x
C137: 5 | D137: 16 | E137: -54.054 | F137: 20 | G137: 0
C138: 4 | D138: 16 | E138: -54.99 | F138: 20 | G138: 0
C139: 3 | D139: 16 | E139: -54.99 | F139: 20 | G139: 0
C140: 2 | D140: 16 | E140: -66.69 | F140: 20 | G140: 0
C141: 1 | D141: 16 | E141: -66.69 | F141: 20 | G141: 0
B142: 9 | C142: 6 | D142: =K21 -> 16 | E142: -41.886 | F142: =O21 -> 20 | G142: 38.1024 | I142: =INDEX(lasttilf,B142,1) -> 6a, Vind: - W_x og + W_y*
C143: 5 | D143: 16 | E143: -54.054 | F143: 20 | G143: 51.8616
C144: 4 | D144: 16 | E144: -54.99 | F144: 20 | G144: 52.92
C145: 3 | D145: 16 | E145: -54.99 | F145: 20 | G145: 52.92
C146: 2 | D146: 16 | E146: -66.69 | F146: 20 | G146: 66.15
C147: 1 | D147: 16 | E147: -66.69 | F147: 20 | G147: 66.15
B148: 10 | C148: 6 | D148: =K21 -> 16 | E148: -41.886 | F148: =O21 -> 20 | G148: =-P21 -> -38.1024 | I148: =INDEX(lasttilf,B148,1) -> 6b, Vind: - W_x og - W_y*
C149: 5 | D149: 16 | E149: -54.054 | F149: 20 | G149: -51.8616
C150: 4 | D150: 16 | E150: -54.99 | F150: 20 | G150: -52.92
C151: 3 | D151: 16 | E151: -54.99 | F151: 20 | G151: -52.92
C152: 2 | D152: 16 | E152: -66.69 | F152: 20 | G152: -66.15
C153: 1 | D153: 16 | E153: -66.69 | F153: 20 | G153: -66.15
B154: 11 | C154: 6 | D154: =K31 -> 16 | E154: 0 | F154: =O31 -> 20 | G154: 62.622 | I154: =INDEX(lasttilf,B154,1) -> 7, Vind: + W_y
C155: 5 | D155: 16 | E155: 0 | F155: 20 | G155: 82.278
C156: 4 | D156: 16 | E156: 0 | F156: 20 | G156: 83.79
C157: 3 | D157: 16 | E157: 0 | F157: 20 | G157: 83.79
C158: 2 | D158: 16 | E158: 0 | F158: 20 | G158: 102.69
C159: 1 | D159: 16 | E159: 0 | F159: 20 | G159: 102.69
B160: 12 | C160: 6 | D160: =K31 -> 16 | E160: 23.5872 | F160: =O31 -> 20 | G160: 62.622 | I160: =INDEX(lasttilf,B160,1) -> 7a, Vind: + W_y og + W_x*
C161: 5 | D161: 16 | E161: 32.1048 | F161: 20 | G161: 82.278
C162: 4 | D162: 16 | E162: 32.76 | F162: 20 | G162: 83.79
C163: 3 | D163: 16 | E163: 32.76 | F163: 20 | G163: 83.79
C164: 2 | D164: 16 | E164: 40.95 | F164: 20 | G164: 102.69
C165: 1 | D165: 16 | E165: 40.95 | F165: 20 | G165: 102.69
B166: 13 | C166: 6 | D166: =K31 -> 16 | E166: =-L31 -> -23.5872 | F166: =O31 -> 20 | G166: =P31 -> 62.622 | I166: =INDEX(lasttilf,B166,1) -> 7b, Vind: + W_y og - W_x*
C167: 5 | D167: 16 | E167: -32.1048 | F167: 20 | G167: 82.278
C168: 4 | D168: 16 | E168: -32.76 | F168: 20 | G168: 83.79
C169: 3 | D169: 16 | E169: -32.76 | F169: 20 | G169: 83.79
C170: 2 | D170: 16 | E170: -40.95 | F170: 20 | G170: 102.69
C171: 1 | D171: 16 | E171: -40.95 | F171: 20 | G171: 102.69
B172: 14 | C172: 6 | D172: 16 | E172: 0 | F172: 20 | G172: -62.622 | I172: =INDEX(lasttilf,B172,1) -> 8, Vind: - W_y
C173: 5 | D173: 16 | E173: 0 | F173: 20 | G173: -82.278
C174: 4 | D174: 16 | E174: 0 | F174: 20 | G174: -83.79
C175: 3 | D175: 16 | E175: 0 | F175: 20 | G175: -83.79
C176: 2 | D176: 16 | E176: 0 | F176: 20 | G176: -102.69
C177: 1 | D177: 16 | E177: 0 | F177: 20 | G177: -102.69
B178: 15 | C178: 6 | D178: =K37 -> 16 | E178: 23.5872 | F178: =O37 -> 20 | G178: -62.622 | I178: =INDEX(lasttilf,B178,1) -> 8a, Vind: - W_y og + W_x*
C179: 5 | D179: 16 | E179: 32.1048 | F179: 20 | G179: -82.278
C180: 4 | D180: 16 | E180: 32.76 | F180: 20 | G180: -83.79
C181: 3 | D181: 16 | E181: 32.76 | F181: 20 | G181: -83.79
C182: 2 | D182: 16 | E182: 40.95 | F182: 20 | G182: -102.69
C183: 1 | D183: 16 | E183: 40.95 | F183: 20 | G183: -102.69
B184: 16 | C184: 6 | D184: =K37 -> 16 | E184: =-L37 -> -23.5872 | F184: =O37 -> 20 | G184: -62.622 | I184: =INDEX(lasttilf,B184,1) -> 8b, Vind: - W_y og - W_x*
C185: 5 | D185: 16 | E185: -32.1048 | F185: 20 | G185: -82.278
C186: 4 | D186: 16 | E186: -32.76 | F186: 20 | G186: -83.79
C187: 3 | D187: 16 | E187: -32.76 | F187: 20 | G187: -83.79
C188: 2 | D188: 16 | E188: -40.95 | F188: 20 | G188: -102.69
C189: 1 | D189: 16 | E189: -40.95 | F189: 20 | G189: -102.69

Sheet E1
A5: Etage: | B5: 1 | O5: System: | P5: x_0 | Q5: =(Q7*(-SUMPRODUCT(a_1,yacc)+SUMPRODUCT(a_1,xacs))+(-SUMPRODUCT(a_1,yacs)+SUMPRODUCT(a_1,xass)))/Q10 -> 19.99999949
P6: y_0 | Q6: =-(-SUMPRODUCT(a_1,yacc)+SUMPRODUCT(a_1,xacs)+Q8*(-SUMPRODUCT(a_1,yacs)+SUMPRODUCT(a_1,xass)))/Q9 -> 9.9999992
A7: Totallaste - incl. bidrag fra ovenliggende etager: | G7: W_x | H7: =INDEX(Last,7-$B$5,1) -> 203.112 | I7: kN | P7: Dx | Q7: =-SUMPRODUCT(a_1,acs)/SUMPRODUCT(a_1,acc) -> 1.99999992e-08
G8: y_Wx | H8: =INDEX(Last,7-$B$5,2) -> 16 | I8: m | P8: Dy | Q8: =-SUMPRODUCT(a_1,acs)/SUMPRODUCT(a_1,ass) -> 1.020408142e-08
G9: W_y | H9: =INDEX(Last,7-$B$5,3) -> 517.86 | I9: kN | P9: Ax | Q9: =SUMPRODUCT(a_1,acc)+Q8*SUMPRODUCT(a_1,acs) -> 10.0000004
G10: x_Wy | H10: =INDEX(Last,7-$B$5,4) -> 20 | I10: m | P10: Ay | Q10: =Q7*SUMPRODUCT(a_1,acs)+SUMPRODUCT(a_1,ass) -> 19.6000004
G11: M_w | H11: =-(H8-Q6)*H7+(H10-Q5)*H9 -> -1218.671898 | I11: kNm | P11: I_w | Q11: =SUMPRODUCT(a_1,xxass)-2*Q5*SUMPRODUCT(a_1,xass)+Q5^2*SUMPRODUCT(a_1,ass)-2*SUMPRODUCT(a_1,yxacs)+2*Q6*SUMPRODUCT(a_1,xacs)+2*Q5*SUMPRODUCT(a_1,yacs)-2*Q5*Q6*SUMPRODUCT(a_1,acs)+SUMPRODUCT(a_1,yyacc)-2*Q6*SUMPRODUCT(a_1,yacc)+Q6^2*SUMPRODUCT(a_1,acc) -> 1960.00028
A14: Væg nr | B14: x1 | C14: y1 | D14: x2 | E14: y2 | F14: t | G14: a0 | H14: etager | I14: x_i | J14: y_i | K14: L_i | L14: a_i | M14: Q_i | N14: Q_ix | O14: Q_iy | P14: cos(v_i) | Q14: sin(v_i)
A15: 1 | B15: =System!C22 -> 10 | C15: =System!D22 -> 10 | D15: =System!E22 -> 15 | E15: =System!F22 -> 10 | F15: =System!G22 -> 0.2 | G15: =System!H22 -> 1 | H15: =System!J22 -> 6 | I15: =0.5*(B15+D15) -> 12.5 | J15: 10 | K15: =SQRT((D15-B15)^2+(E15-C15)^2) -> 5 | L15: =IF($B$5>H15,0,K15^2*G15*F15) -> 5 | M15: =L15*((P15+$Q$8*Q15)*$H$7/$Q$9+($Q$7*P15+Q15)*$H$9/$Q$10+((I15-$Q$5)*Q15-(J15-$Q$6)*P15)*$H$11/$Q$11) -> 101.5560011 | N15: =M15*P15 -> 101.5560011 | O15: =M15*Q15 -> 0 | P15: =IF(K15=0,1,(D15-B15)/K15) -> 1 | Q15: =IF(K15=0,0,(E15-C15)/K15) -> 0
A16: 2 | B16: =System!C23 -> 25 | C16: =System!D23 -> 10 | D16: =System!E23 -> 30 | E16: =System!F23 -> 10 | F16: =System!G23 -> 0.2 | G16: =System!H23 -> 1 | H16: =System!J23 -> 6 | I16: 27.5 | J16: 10 | K16: =SQRT((D16-B16)^2+(E16-C16)^2) -> 5 | L16: =IF($B$5>H16,0,K16^2*G16*F16) -> 5 | M16: 101.5560011 | N16: =M16*P16 -> 101.5560011 | O16: =M16*Q16 -> 0 | P16: 1 | Q16: =IF(K16=0,0,(E16-C16)/K16) -> 0
A17: 3 | B17: =System!C24 -> 10 | C17: =System!D24 -> 15 | D17: =System!E24 -> 10 | E17: =System!F24 -> 22 | F17: =System!G24 -> 0.2 | G17: =System!H24 -> 1 | H17: =System!J24 -> 6 | I17: 10 | J17: 18.5 | K17: =SQRT((D17-B17)^2+(E17-C17)^2) -> 7 | L17: 9.8 | M17: 319.8635799 | N17: =M17*P17 -> 0 | O17: =M17*Q17 -> 319.8635799 | P17: 0 | Q17: 1
A18: 4 | B18: =System!C25 -> 30 | C18: =System!D25 -> 15 | D18: =System!E25 -> 30 | E18: =System!F25 -> 22 | F18: =System!G25 -> 0.2 | G18: =System!H25 -> 1 | H18: =System!J25 -> 6 | I18: =0.5*(B18+D18) -> 30 | J18: =0.5*(C18+E18) -> 18.5 | K18: =SQRT((D18-B18)^2+(E18-C18)^2) -> 7 | L18: 9.8 | M18: 197.9964074 | N18: =M18*P18 -> 0 | O18: =M18*Q18 -> 197.9964074 | P18: 0 | Q18: 1
A19: 5 | B19: =System!C26 -> 0 | C19: =System!D26 -> 0 | D19: =System!E26 -> 0 | E19: =System!F26 -> 0 | F19: =System!G26 -> 0 | G19: =System!H26 -> 0 | H19: =System!J26 -> 0 | I19: 0 | J19: 0 | K19: 0 | L19: 0 | M19: 0 | N19: 0 | O19: 0 | P19: 1 | Q19: 0
A20: 6 | B20: =System!C27 -> 0 | C20: =System!D27 -> 0 | D20: =System!E27 -> 0 | E20: =System!F27 -> 0 | F20: =System!G27 -> 0 | G20: =System!H27 -> 0 | H20: =System!J27 -> 0 | I20: 0 | J20: 0 | K20: 0 | L20: 0 | M20: 0 | N20: 0 | O20: 0 | P20: 1 | Q20: 0
A21: 7 | B21: =System!C28 -> 0 | C21: =System!D28 -> 0 | D21: =System!E28 -> 0 | E21: =System!F28 -> 0 | F21: =System!G28 -> 0 | G21: =System!H28 -> 0 | H21: =System!J28 -> 0 | I21: 0 | J21: 0 | K21: 0 | L21: 0 | M21: 0 | N21: 0 | O21: 0 | P21: 1 | Q21: 0
A22: 8 | B22: =System!C29 -> 0 | C22: =System!D29 -> 0 | D22: =System!E29 -> 0 | E22: =System!F29 -> 0 | F22: =System!G29 -> 0 | G22: =System!H29 -> 0 | H22: =System!J29 -> 0 | I22: 0 | J22: 0 | K22: 0 | L22: 0 | M22: 0 | N22: 0 | O22: 0 | P22: 1 | Q22: 0
A23: 9 | B23: =System!C30 -> 0 | C23: =System!D30 -> 0 | D23: =System!E30 -> 0 | E23: =System!F30 -> 0 | F23: =System!G30 -> 0 | G23: =System!H30 -> 0 | H23: =System!J30 -> 0 | I23: 0 | J23: 0 | K23: 0 | L23: 0 | M23: 0 | N23: 0 | O23: 0 | P23: 1 | Q23: 0
A24: 10 | B24: =System!C31 -> 0 | C24: =System!D31 -> 0 | D24: =System!E31 -> 0 | E24: =System!F31 -> 0 | F24: =System!G31 -> 0 | G24: =System!H31 -> 0 | H24: =System!J31 -> 0 | I24: 0 | J24: 0 | K24: 0 | L24: 0 | M24: 0 | N24: 0 | O24: 0 | P24: 1 | Q24: 0
A25: 11 | B25: =System!C32 -> 0 | C25: =System!D32 -> 0 | D25: =System!E32 -> 0 | E25: =System!F32 -> 0 | F25: =System!G32 -> 0 | G25: =System!H32 -> 0 | H25: =System!J32 -> 0 | I25: 0 | J25: 0 | K25: 0 | L25: 0 | M25: 0 | N25: 0 | O25: 0 | P25: 1 | Q25: 0
A26: 12 | B26: =System!C33 -> 0 | C26: =System!D33 -> 0 | D26: =System!E33 -> 0 | E26: =System!F33 -> 0 | F26: =System!G33 -> 0 | G26: =System!H33 -> 0 | H26: =System!J33 -> 0 | I26: 0 | J26: 0 | K26: 0 | L26: 0 | M26: 0 | N26: 0 | O26: 0 | P26: 1 | Q26: 0
A27: 13 | B27: =System!C34 -> 0 | C27: =System!D34 -> 0 | D27: =System!E34 -> 0 | E27: =System!F34 -> 0 | F27: =System!G34 -> 0 | G27: =System!H34 -> 0 | H27: =System!J34 -> 0 | I27: 0 | J27: 0 | K27: 0 | L27: 0 | M27: 0 | N27: 0 | O27: 0 | P27: 1 | Q27: 0
A28: 14 | B28: =System!C35 -> 0 | C28: =System!D35 -> 0 | D28: =System!E35 -> 0 | E28: =System!F35 -> 0 | F28: =System!G35 -> 0 | G28: =System!H35 -> 0 | H28: =System!J35 -> 0 | I28: 0 | J28: 0 | K28: 0 | L28: 0 | M28: 0 | N28: 0 | O28: 0 | P28: 1 | Q28: 0
A29: 15 | B29: =System!C36 -> 0 | C29: =System!D36 -> 0 | D29: =System!E36 -> 0 | E29: =System!F36 -> 0 | F29: =System!G36 -> 0 | G29: =System!H36 -> 0 | H29: =System!J36 -> 0 | I29: 0 | J29: 0 | K29: 0 | L29: 0 | M29: 0 | N29: 0 | O29: 0 | P29: 1 | Q29: 0
A30: 16 | B30: =System!C37 -> 0 | C30: =System!D37 -> 0 | D30: =System!E37 -> 0 | E30: =System!F37 -> 0 | F30: =System!G37 -> 0 | G30: =System!H37 -> 0 | H30: =System!J37 -> 0 | I30: 0 | J30: 0 | K30: 0 | L30: 0 | M30: 0 | N30: 0 | O30: 0 | P30: 1 | Q30: 0
A31: 17 | B31: =System!C38 -> 0 | C31: =System!D38 -> 0 | D31: =System!E38 -> 0 | E31: =System!F38 -> 0 | F31: =System!G38 -> 0 | G31: =System!H38 -> 0 | H31: =System!J38 -> 0 | I31: 0 | J31: 0 | K31: 0 | L31: 0 | M31: 0 | N31: 0 | O31: 0 | P31: 1 | Q31: 0
A32: 18 | B32: =System!C39 -> 0 | C32: =System!D39 -> 0 | D32: =System!E39 -> 0 | E32: =System!F39 -> 0 | F32: =System!G39 -> 0 | G32: =System!H39 -> 0 | H32: =System!J39 -> 0 | I32: 0 | J32: 0 | K32: 0 | L32: 0 | M32: 0 | N32: 0 | O32: 0 | P32: 1 | Q32: 0
A33: 19 | B33: =System!C40 -> 0 | C33: =System!D40 -> 0 | D33: =System!E40 -> 0 | E33: =System!F40 -> 0 | F33: =System!G40 -> 0 | G33: =System!H40 -> 0 | H33: =System!J40 -> 0 | I33: 0 | J33: 0 | K33: 0 | L33: 0 | M33: 0 | N33: 0 | O33: 0 | P33: 1 | Q33: 0
A34: 20 | B34: =System!C41 -> 0 | C34: =System!D41 -> 0 | D34: =System!E41 -> 0 | E34: =System!F41 -> 0 | F34: =System!G41 -> 0 | G34: =System!H41 -> 0 | H34: =System!J41 -> 0 | I34: 0 | J34: 0 | K34: 0 | L34: 0 | M34: 0 | N34: 0 | O34: 0 | P34: 1 | Q34: 0
A35: 21 | B35: =System!C42 -> 0 | C35: =System!D42 -> 0 | D35: =System!E42 -> 0 | E35: =System!F42 -> 0 | F35: =System!G42 -> 0 | G35: =System!H42 -> 0 | H35: =System!J42 -> 0 | I35: 0 | J35: 0 | K35: 0 | L35: 0 | M35: 0 | N35: 0 | O35: 0 | P35: 1 | Q35: 0
A36: 22 | B36: =System!C43 -> 0 | C36: =System!D43 -> 0 | D36: =System!E43 -> 0 | E36: =System!F43 -> 0 | F36: =System!G43 -> 0 | G36: =System!H43 -> 0 | H36: =System!J43 -> 0 | I36: 0 | J36: 0 | K36: 0 | L36: 0 | M36: 0 | N36: 0 | O36: 0 | P36: 1 | Q36: 0
A37: 23 | B37: =System!C44 -> 0 | C37: =System!D44 -> 0 | D37: =System!E44 -> 0 | E37: =System!F44 -> 0 | F37: =System!G44 -> 0 | G37: =System!H44 -> 0 | H37: =System!J44 -> 0 | I37: 0 | J37: 0 | K37: 0 | L37: 0 | M37: 0 | N37: 0 | O37: 0 | P37: 1 | Q37: 0
A38: 24 | B38: =System!C45 -> 0 | C38: =System!D45 -> 0 | D38: =System!E45 -> 0 | E38: =System!F45 -> 0 | F38: =System!G45 -> 0 | G38: =System!H45 -> 0 | H38: =System!J45 -> 0 | I38: 0 | J38: 0 | K38: 0 | L38: 0 | M38: 0 | N38: 0 | O38: 0 | P38: 1 | Q38: 0
A39: 25 | B39: =System!C46 -> 0 | C39: =System!D46 -> 0 | D39: =System!E46 -> 0 | E39: =System!F46 -> 0 | F39: =System!G46 -> 0 | G39: =System!H46 -> 0 | H39: =System!J46 -> 0 | I39: 0 | J39: 0 | K39: 0 | L39: 0 | M39: 0 | N39: 0 | O39: 0 | P39: 1 | Q39: 0
A40: 26 | B40: =System!C47 -> 0 | C40: =System!D47 -> 0 | D40: =System!E47 -> 0 | E40: =System!F47 -> 0 | F40: =System!G47 -> 0 | G40: =System!H47 -> 0 | H40: =System!J47 -> 0 | I40: 0 | J40: 0 | K40: 0 | L40: 0 | M40: 0 | N40: 0 | O40: 0 | P40: 1 | Q40: 0
A41: 27 | B41: =System!C48 -> 0 | C41: =System!D48 -> 0 | D41: =System!E48 -> 0 | E41: =System!F48 -> 0 | F41: =System!G48 -> 0 | G41: =System!H48 -> 0 | H41: =System!J48 -> 0 | I41: 0 | J41: 0 | K41: 0 | L41: 0 | M41: 0 | N41: 0 | O41: 0 | P41: 1 | Q41: 0
A42: 28 | B42: =System!C49 -> 0 | C42: =System!D49 -> 0 | D42: =System!E49 -> 0 | E42: =System!F49 -> 0.01 | F42: =System!G49 -> 0.2 | G42: =System!H49 -> 0.01 | H42: =System!J49 -> 6 | I42: 0 | J42: 0.005 | K42: 0.01 | L42: 2e-07 | M42: 7.771370736e-06 | N42: 0 | O42: 7.771370736e-06 | P42: 0 | Q42: 1
A43: 29 | B43: =System!C50 -> 0 | C43: =System!D50 -> 0 | D43: =System!E50 -> 0.01 | E43: =System!F50 -> 0 | F43: =System!G50 -> 0.2 | G43: =System!H50 -> 0.01 | H43: =System!J50 -> 6 | I43: 0.005 | J43: 0 | K43: 0.01 | L43: 2e-07 | M43: 2.818697467e-06 | N43: 2.818697467e-06 | O43: 0 | P43: 1 | Q43: 0
A44: 30 | B44: =System!C51 -> 0.01 | C44: =System!D51 -> 0 | D44: =System!E51 -> 0 | E44: =System!F51 -> 0.01 | F44: =System!G51 -> 0.2 | G44: =System!H51 -> 0.01 | H44: =System!J51 -> 6 | I44: 0.005 | J44: 0.005 | K44: 0.01414213562 | L44: 4e-07 | M44: 7.002379072e-06 | N44: -4.951429727e-06 | O44: 4.951429727e-06 | P44: -0.7071067812 | Q44: 0.7071067812
N46: =SUM(N15:N45) -> 203.112 | O46: =SUM(O15:O45) -> 517.86

Sheet E2
A5: Etage: | B5: 2 | O5: System: | P5: x_0 | Q5: =(Q7*(-SUMPRODUCT(a_2,yacc)+SUMPRODUCT(a_2,xacs))+(-SUMPRODUCT(a_2,yacs)+SUMPRODUCT(a_2,xass)))/Q10 -> 19.99999949
P6: y_0 | Q6: =-(-SUMPRODUCT(a_2,yacc)+SUMPRODUCT(a_2,xacs)+Q8*(-SUMPRODUCT(a_2,yacs)+SUMPRODUCT(a_2,xass)))/Q9 -> 9.9999992
A7: Totallaste - incl. bidrag fra ovenliggende etager: | G7: W_x | H7: =INDEX(Last,7-$B$5,1) -> 162.162 | I7: kN | P7: Dx | Q7: =-SUMPRODUCT(a_2,acs)/SUMPRODUCT(a_2,acc) -> 1.99999992e-08
G8: y_Wx | H8: =INDEX(Last,7-$B$5,2) -> 16 | I8: m | P8: Dy | Q8: =-SUMPRODUCT(a_2,acs)/SUMPRODUCT(a_2,ass) -> 1.020408142e-08
G9: W_y | H9: =INDEX(Last,7-$B$5,3) -> 415.17 | I9: kN | P9: Ax | Q9: =SUMPRODUCT(a_2,acc)+Q8*SUMPRODUCT(a_2,acs) -> 10.0000004
G10: x_Wy | H10: =INDEX(Last,7-$B$5,4) -> 20 | I10: m | P10: Ay | Q10: =Q7*SUMPRODUCT(a_2,acs)+SUMPRODUCT(a_2,ass) -> 19.6000004
G11: M_w | H11: =-(H8-Q6)*H7+(H10-Q5)*H9 -> -972.9719179 | I11: kNm | P11: I_w | Q11: =SUMPRODUCT(a_2,xxass)-2*Q5*SUMPRODUCT(a_2,xass)+Q5^2*SUMPRODUCT(a_2,ass)-2*SUMPRODUCT(a_2,yxacs)+2*Q6*SUMPRODUCT(a_2,xacs)+2*Q5*SUMPRODUCT(a_2,yacs)-2*Q5*Q6*SUMPRODUCT(a_2,acs)+SUMPRODUCT(a_2,yyacc)-2*Q6*SUMPRODUCT(a_2,yacc)+Q6^2*SUMPRODUCT(a_2,acc) -> 1960.00028
A14: Væg nr | B14: x1 | C14: y1 | D14: x2 | E14: y2 | F14: t | G14: a0 | H14: etager | I14: x_i | J14: y_i | K14: L_i | L14: a_i | M14: Q_i | N14: Q_ix | O14: Q_iy | P14: cos(v_i) | Q14: sin(v_i)
A15: 1 | B15: =System!C22 -> 10 | C15: =System!D22 -> 10 | D15: =System!E22 -> 15 | E15: =System!F22 -> 10 | F15: =System!G22 -> 0.2 | G15: =System!H22 -> 1 | H15: =System!J22 -> 6 | I15: =0.5*(B15+D15) -> 12.5 | J15: =0.5*(C15+E15) -> 10 | K15: =SQRT((D15-B15)^2+(E15-C15)^2) -> 5 | L15: =IF($B$5>H15,0,K15^2*G15*F15) -> 5 | M15: =L15*((P15+$Q$8*Q15)*$H$7/$Q$9+($Q$7*P15+Q15)*$H$9/$Q$10+((I15-$Q$5)*Q15-(J15-$Q$6)*P15)*$H$11/$Q$11) -> 81.08100086 | N15: =M15*P15 -> 81.08100086 | O15: =M15*Q15 -> 0 | P15: =IF(K15=0,1,(D15-B15)/K15) -> 1 | Q15: =IF(K15=0,0,(E15-C15)/K15) -> 0
A16: 2 | B16: =System!C23 -> 25 | C16: =System!D23 -> 10 | D16: =System!E23 -> 30 | E16: =System!F23 -> 10 | F16: =System!G23 -> 0.2 | G16: =System!H23 -> 1 | H16: =System!J23 -> 6 | I16: 27.5 | J16: 10 | K16: 5 | L16: =IF($B$5>H16,0,K16^2*G16*F16) -> 5 | M16: 81.08100086 | N16: 81.08100086 | O16: 0 | P16: 1 | Q16: =IF(K16=0,0,(E16-C16)/K16) -> 0
A17: 3 | B17: =System!C24 -> 10 | C17: =System!D24 -> 15 | D17: =System!E24 -> 10 | E17: =System!F24 -> 22 | F17: =System!G24 -> 0.2 | G17: =System!H24 -> 1 | H17: =System!J24 -> 6 | I17: 10 | J17: 18.5 | K17: 7 | L17: 9.8 | M17: 256.2335839 | N17: 0 | O17: 256.2335839 | P17: 0 | Q17: 1
A18: 4 | B18: =System!C25 -> 30 | C18: =System!D25 -> 15 | D18: =System!E25 -> 30 | E18: =System!F25 -> 22 | F18: =System!G25 -> 0.2 | G18: =System!H25 -> 1 | H18: =System!J25 -> 6 | I18: 30 | J18: 18.5 | K18: 7 | L18: 9.8 | M18: 158.936406 | N18: 0 | O18: 158.936406 | P18: 0 | Q18: 1
A19: 5 | B19: =System!C26 -> 0 | C19: =System!D26 -> 0 | D19: =System!E26 -> 0 | E19: =System!F26 -> 0 | F19: =System!G26 -> 0 | G19: =System!H26 -> 0 | H19: =System!J26 -> 0 | I19: 0 | J19: 0 | K19: 0 | L19: 0 | M19: 0 | N19: 0 | O19: 0 | P19: 1 | Q19: 0
A20: 6 | B20: =System!C27 -> 0 | C20: =System!D27 -> 0 | D20: =System!E27 -> 0 | E20: =System!F27 -> 0 | F20: =System!G27 -> 0 | G20: =System!H27 -> 0 | H20: =System!J27 -> 0 | I20: 0 | J20: 0 | K20: 0 | L20: 0 | M20: 0 | N20: 0 | O20: 0 | P20: 1 | Q20: 0
A21: 7 | B21: =System!C28 -> 0 | C21: =System!D28 -> 0 | D21: =System!E28 -> 0 | E21: =System!F28 -> 0 | F21: =System!G28 -> 0 | G21: =System!H28 -> 0 | H21: =System!J28 -> 0 | I21: 0 | J21: 0 | K21: 0 | L21: 0 | M21: 0 | N21: 0 | O21: 0 | P21: 1 | Q21: 0
A22: 8 | B22: =System!C29 -> 0 | C22: =System!D29 -> 0 | D22: =System!E29 -> 0 | E22: =System!F29 -> 0 | F22: =System!G29 -> 0 | G22: =System!H29 -> 0 | H22: =System!J29 -> 0 | I22: 0 | J22: 0 | K22: 0 | L22: 0 | M22: 0 | N22: 0 | O22: 0 | P22: 1 | Q22: 0
A23: 9 | B23: =System!C30 -> 0 | C23: =System!D30 -> 0 | D23: =System!E30 -> 0 | E23: =System!F30 -> 0 | F23: =System!G30 -> 0 | G23: =System!H30 -> 0 | H23: =System!J30 -> 0 | I23: 0 | J23: 0 | K23: 0 | L23: 0 | M23: 0 | N23: 0 | O23: 0 | P23: 1 | Q23: 0
A24: 10 | B24: =System!C31 -> 0 | C24: =System!D31 -> 0 | D24: =System!E31 -> 0 | E24: =System!F31 -> 0 | F24: =System!G31 -> 0 | G24: =System!H31 -> 0 | H24: =System!J31 -> 0 | I24: 0 | J24: 0 | K24: 0 | L24: 0 | M24: 0 | N24: 0 | O24: 0 | P24: 1 | Q24: 0
A25: 11 | B25: =System!C32 -> 0 | C25: =System!D32 -> 0 | D25: =System!E32 -> 0 | E25: =System!F32 -> 0 | F25: =System!G32 -> 0 | G25: =System!H32 -> 0 | H25: =System!J32 -> 0 | I25: 0 | J25: 0 | K25: 0 | L25: 0 | M25: 0 | N25: 0 | O25: 0 | P25: 1 | Q25: 0
A26: 12 | B26: =System!C33 -> 0 | C26: =System!D33 -> 0 | D26: =System!E33 -> 0 | E26: =System!F33 -> 0 | F26: =System!G33 -> 0 | G26: =System!H33 -> 0 | H26: =System!J33 -> 0 | I26: 0 | J26: 0 | K26: 0 | L26: 0 | M26: 0 | N26: 0 | O26: 0 | P26: 1 | Q26: 0
A27: 13 | B27: =System!C34 -> 0 | C27: =System!D34 -> 0 | D27: =System!E34 -> 0 | E27: =System!F34 -> 0 | F27: =System!G34 -> 0 | G27: =System!H34 -> 0 | H27: =System!J34 -> 0 | I27: 0 | J27: 0 | K27: 0 | L27: 0 | M27: 0 | N27: 0 | O27: 0 | P27: 1 | Q27: 0
A28: 14 | B28: =System!C35 -> 0 | C28: =System!D35 -> 0 | D28: =System!E35 -> 0 | E28: =System!F35 -> 0 | F28: =System!G35 -> 0 | G28: =System!H35 -> 0 | H28: =System!J35 -> 0 | I28: 0 | J28: 0 | K28: 0 | L28: 0 | M28: 0 | N28: 0 | O28: 0 | P28: 1 | Q28: 0
A29: 15 | B29: =System!C36 -> 0 | C29: =System!D36 -> 0 | D29: =System!E36 -> 0 | E29: =System!F36 -> 0 | F29: =System!G36 -> 0 | G29: =System!H36 -> 0 | H29: =System!J36 -> 0 | I29: 0 | J29: 0 | K29: 0 | L29: 0 | M29: 0 | N29: 0 | O29: 0 | P29: 1 | Q29: 0
A30: 16 | B30: =System!C37 -> 0 | C30: =System!D37 -> 0 | D30: =System!E37 -> 0 | E30: =System!F37 -> 0 | F30: =System!G37 -> 0 | G30: =System!H37 -> 0 | H30: =System!J37 -> 0 | I30: 0 | J30: 0 | K30: 0 | L30: 0 | M30: 0 | N30: 0 | O30: 0 | P30: 1 | Q30: 0
A31: 17 | B31: =System!C38 -> 0 | C31: =System!D38 -> 0 | D31: =System!E38 -> 0 | E31: =System!F38 -> 0 | F31: =System!G38 -> 0 | G31: =System!H38 -> 0 | H31: =System!J38 -> 0 | I31: 0 | J31: 0 | K31: 0 | L31: 0 | M31: 0 | N31: 0 | O31: 0 | P31: 1 | Q31: 0
A32: 18 | B32: =System!C39 -> 0 | C32: =System!D39 -> 0 | D32: =System!E39 -> 0 | E32: =System!F39 -> 0 | F32: =System!G39 -> 0 | G32: =System!H39 -> 0 | H32: =System!J39 -> 0 | I32: 0 | J32: 0 | K32: 0 | L32: 0 | M32: 0 | N32: 0 | O32: 0 | P32: 1 | Q32: 0
A33: 19 | B33: =System!C40 -> 0 | C33: =System!D40 -> 0 | D33: =System!E40 -> 0 | E33: =System!F40 -> 0 | F33: =System!G40 -> 0 | G33: =System!H40 -> 0 | H33: =System!J40 -> 0 | I33: 0 | J33: 0 | K33: 0 | L33: 0 | M33: 0 | N33: 0 | O33: 0 | P33: 1 | Q33: 0
A34: 20 | B34: =System!C41 -> 0 | C34: =System!D41 -> 0 | D34: =System!E41 -> 0 | E34: =System!F41 -> 0 | F34: =System!G41 -> 0 | G34: =System!H41 -> 0 | H34: =System!J41 -> 0 | I34: 0 | J34: 0 | K34: 0 | L34: 0 | M34: 0 | N34: 0 | O34: 0 | P34: 1 | Q34: 0
A35: 21 | B35: =System!C42 -> 0 | C35: =System!D42 -> 0 | D35: =System!E42 -> 0 | E35: =System!F42 -> 0 | F35: =System!G42 -> 0 | G35: =System!H42 -> 0 | H35: =System!J42 -> 0 | I35: 0 | J35: 0 | K35: 0 | L35: 0 | M35: 0 | N35: 0 | O35: 0 | P35: 1 | Q35: 0
A36: 22 | B36: =System!C43 -> 0 | C36: =System!D43 -> 0 | D36: =System!E43 -> 0 | E36: =System!F43 -> 0 | F36: =System!G43 -> 0 | G36: =System!H43 -> 0 | H36: =System!J43 -> 0 | I36: 0 | J36: 0 | K36: 0 | L36: 0 | M36: 0 | N36: 0 | O36: 0 | P36: 1 | Q36: 0
A37: 23 | B37: =System!C44 -> 0 | C37: =System!D44 -> 0 | D37: =System!E44 -> 0 | E37: =System!F44 -> 0 | F37: =System!G44 -> 0 | G37: =System!H44 -> 0 | H37: =System!J44 -> 0 | I37: 0 | J37: 0 | K37: 0 | L37: 0 | M37: 0 | N37: 0 | O37: 0 | P37: 1 | Q37: 0
A38: 24 | B38: =System!C45 -> 0 | C38: =System!D45 -> 0 | D38: =System!E45 -> 0 | E38: =System!F45 -> 0 | F38: =System!G45 -> 0 | G38: =System!H45 -> 0 | H38: =System!J45 -> 0 | I38: 0 | J38: 0 | K38: 0 | L38: 0 | M38: 0 | N38: 0 | O38: 0 | P38: 1 | Q38: 0
A39: 25 | B39: =System!C46 -> 0 | C39: =System!D46 -> 0 | D39: =System!E46 -> 0 | E39: =System!F46 -> 0 | F39: =System!G46 -> 0 | G39: =System!H46 -> 0 | H39: =System!J46 -> 0 | I39: 0 | J39: 0 | K39: 0 | L39: 0 | M39: 0 | N39: 0 | O39: 0 | P39: 1 | Q39: 0
A40: 26 | B40: =System!C47 -> 0 | C40: =System!D47 -> 0 | D40: =System!E47 -> 0 | E40: =System!F47 -> 0 | F40: =System!G47 -> 0 | G40: =System!H47 -> 0 | H40: =System!J47 -> 0 | I40: 0 | J40: 0 | K40: 0 | L40: 0 | M40: 0 | N40: 0 | O40: 0 | P40: 1 | Q40: 0
A41: 27 | B41: =System!C48 -> 0 | C41: =System!D48 -> 0 | D41: =System!E48 -> 0 | E41: =System!F48 -> 0 | F41: =System!G48 -> 0 | G41: =System!H48 -> 0 | H41: =System!J48 -> 0 | I41: 0 | J41: 0 | K41: 0 | L41: 0 | M41: 0 | N41: 0 | O41: 0 | P41: 1 | Q41: 0
A42: 28 | B42: =System!C49 -> 0 | C42: =System!D49 -> 0 | D42: =System!E49 -> 0 | E42: =System!F49 -> 0.01 | F42: =System!G49 -> 0.2 | G42: =System!H49 -> 0.01 | H42: =System!J49 -> 6 | I42: 0 | J42: 0.005 | K42: 0.01 | L42: 2e-07 | M42: 6.222085159e-06 | N42: 0 | O42: 6.222085159e-06 | P42: 0 | Q42: 1
A43: 29 | B43: =System!C50 -> 0 | C43: =System!D50 -> 0 | D43: =System!E50 -> 0.01 | E43: =System!F50 -> 0 | F43: =System!G50 -> 0.2 | G43: =System!H50 -> 0.01 | H43: =System!J50 -> 6 | I43: 0.005 | J43: 0 | K43: 0.01 | L43: 2e-07 | M43: 2.250411689e-06 | N43: 2.250411689e-06 | O43: 0 | P43: 1 | Q43: 0
A44: 30 | B44: =System!C51 -> 0.01 | C44: =System!D51 -> 0 | D44: =System!E51 -> 0 | E44: =System!F51 -> 0.01 | F44: =System!G51 -> 0.2 | G44: =System!H51 -> 0.01 | H44: =System!J51 -> 6 | I44: 0.005 | J44: 0.005 | K44: 0.01414213562 | L44: 4e-07 | M44: 5.615390416e-06 | N44: -3.970680642e-06 | O44: 3.970680642e-06 | P44: -0.7071067812 | Q44: 0.7071067812
N46: =SUM(N15:N45) -> 162.162 | O46: =SUM(O15:O45) -> 415.17

Sheet E3
A5: Etage: | B5: 3 | O5: System: | P5: x_0 | Q5: =(Q7*(-SUMPRODUCT(a_3,yacc)+SUMPRODUCT(a_3,xacs))+(-SUMPRODUCT(a_3,yacs)+SUMPRODUCT(a_3,xass)))/Q10 -> 19.99999949
P6: y_0 | Q6: =-(-SUMPRODUCT(a_3,yacc)+SUMPRODUCT(a_3,xacs)+Q8*(-SUMPRODUCT(a_3,yacs)+SUMPRODUCT(a_3,xass)))/Q9 -> 9.9999992
A7: Totallaste - incl. bidrag fra ovenliggende etager: | G7: W_x | H7: =INDEX(Last,7-$B$5,1) -> 121.212 | I7: kN | P7: Dx | Q7: =-SUMPRODUCT(a_3,acs)/SUMPRODUCT(a_3,acc) -> 1.99999992e-08
G8: y_Wx | H8: =INDEX(Last,7-$B$5,2) -> 16 | I8: m | P8: Dy | Q8: =-SUMPRODUCT(a_3,acs)/SUMPRODUCT(a_3,ass) -> 1.020408142e-08
G9: W_y | H9: =INDEX(Last,7-$B$5,3) -> 312.48 | I9: kN | P9: Ax | Q9: =SUMPRODUCT(a_3,acc)+Q8*SUMPRODUCT(a_3,acs) -> 10.0000004
G10: x_Wy | H10: =INDEX(Last,7-$B$5,4) -> 20 | I10: m | P10: Ay | Q10: =Q7*SUMPRODUCT(a_3,acs)+SUMPRODUCT(a_3,ass) -> 19.6000004
G11: M_w | H11: =-(H8-Q6)*H7+(H10-Q5)*H9 -> -727.2719375 | I11: kNm | P11: I_w | Q11: =SUMPRODUCT(a_3,xxass)-2*Q5*SUMPRODUCT(a_3,xass)+Q5^2*SUMPRODUCT(a_3,ass)-2*SUMPRODUCT(a_3,yxacs)+2*Q6*SUMPRODUCT(a_3,xacs)+2*Q5*SUMPRODUCT(a_3,yacs)-2*Q5*Q6*SUMPRODUCT(a_3,acs)+SUMPRODUCT(a_3,yyacc)-2*Q6*SUMPRODUCT(a_3,yacc)+Q6^2*SUMPRODUCT(a_3,acc) -> 1960.00028
A14: Væg nr | B14: x1 | C14: y1 | D14: x2 | E14: y2 | F14: t | G14: a0 | H14: etager | I14: x_i | J14: y_i | K14: L_i | L14: a_i | M14: Q_i | N14: Q_ix | O14: Q_iy | P14: cos(v_i) | Q14: sin(v_i)
A15: 1 | B15: =System!C22 -> 10 | C15: =System!D22 -> 10 | D15: =System!E22 -> 15 | E15: =System!F22 -> 10 | F15: =System!G22 -> 0.2 | G15: =System!H22 -> 1 | H15: =System!J22 -> 6 | I15: =0.5*(B15+D15) -> 12.5 | J15: =0.5*(C15+E15) -> 10 | K15: =SQRT((D15-B15)^2+(E15-C15)^2) -> 5 | L15: =IF($B$5>H15,0,K15^2*G15*F15) -> 5 | M15: =L15*((P15+$Q$8*Q15)*$H$7/$Q$9+($Q$7*P15+Q15)*$H$9/$Q$10+((I15-$Q$5)*Q15-(J15-$Q$6)*P15)*$H$11/$Q$11) -> 60.60600065 | N15: =M15*P15 -> 60.60600065 | O15: =M15*Q15 -> 0 | P15: =IF(K15=0,1,(D15-B15)/K15) -> 1 | Q15: =IF(K15=0,0,(E15-C15)/K15) -> 0
A16: 2 | B16: =System!C23 -> 25 | C16: =System!D23 -> 10 | D16: =System!E23 -> 30 | E16: =System!F23 -> 10 | F16: =System!G23 -> 0.2 | G16: =System!H23 -> 1 | H16: =System!J23 -> 6 | I16: 27.5 | J16: 10 | K16: 5 | L16: =IF($B$5>H16,0,K16^2*G16*F16) -> 5 | M16: 60.60600065 | N16: 60.60600065 | O16: 0 | P16: 1 | Q16: =IF(K16=0,0,(E16-C16)/K16) -> 0
A17: 3 | B17: =System!C24 -> 10 | C17: =System!D24 -> 15 | D17: =System!E24 -> 10 | E17: =System!F24 -> 22 | F17: =System!G24 -> 0.2 | G17: =System!H24 -> 1 | H17: =System!J24 -> 6 | I17: 10 | J17: 18.5 | K17: 7 | L17: 9.8 | M17: 192.6035879 | N17: 0 | O17: 192.6035879 | P17: 0 | Q17: 1
A18: 4 | B18: =System!C25 -> 30 | C18: =System!D25 -> 15 | D18: =System!E25 -> 30 | E18: =System!F25 -> 22 | F18: =System!G25 -> 0.2 | G18: =System!H25 -> 1 | H18: =System!J25 -> 6 | I18: 30 | J18: 18.5 | K18: 7 | L18: 9.8 | M18: 119.8764045 | N18: 0 | O18: 119.8764045 | P18: 0 | Q18: 1
A19: 5 | B19: =System!C26 -> 0 | C19: =System!D26 -> 0 | D19: =System!E26 -> 0 | E19: =System!F26 -> 0 | F19: =System!G26 -> 0 | G19: =System!H26 -> 0 | H19: =System!J26 -> 0 | I19: 0 | J19: 0 | K19: 0 | L19: 0 | M19: 0 | N19: 0 | O19: 0 | P19: 1 | Q19: 0
A20: 6 | B20: =System!C27 -> 0 | C20: =System!D27 -> 0 | D20: =System!E27 -> 0 | E20: =System!F27 -> 0 | F20: =System!G27 -> 0 | G20: =System!H27 -> 0 | H20: =System!J27 -> 0 | I20: 0 | J20: 0 | K20: 0 | L20: 0 | M20: 0 | N20: 0 | O20: 0 | P20: 1 | Q20: 0
A21: 7 | B21: =System!C28 -> 0 | C21: =System!D28 -> 0 | D21: =System!E28 -> 0 | E21: =System!F28 -> 0 | F21: =System!G28 -> 0 | G21: =System!H28 -> 0 | H21: =System!J28 -> 0 | I21: 0 | J21: 0 | K21: 0 | L21: 0 | M21: 0 | N21: 0 | O21: 0 | P21: 1 | Q21: 0
A22: 8 | B22: =System!C29 -> 0 | C22: =System!D29 -> 0 | D22: =System!E29 -> 0 | E22: =System!F29 -> 0 | F22: =System!G29 -> 0 | G22: =System!H29 -> 0 | H22: =System!J29 -> 0 | I22: 0 | J22: 0 | K22: 0 | L22: 0 | M22: 0 | N22: 0 | O22: 0 | P22: 1 | Q22: 0
A23: 9 | B23: =System!C30 -> 0 | C23: =System!D30 -> 0 | D23: =System!E30 -> 0 | E23: =System!F30 -> 0 | F23: =System!G30 -> 0 | G23: =System!H30 -> 0 | H23: =System!J30 -> 0 | I23: 0 | J23: 0 | K23: 0 | L23: 0 | M23: 0 | N23: 0 | O23: 0 | P23: 1 | Q23: 0
A24: 10 | B24: =System!C31 -> 0 | C24: =System!D31 -> 0 | D24: =System!E31 -> 0 | E24: =System!F31 -> 0 | F24: =System!G31 -> 0 | G24: =System!H31 -> 0 | H24: =System!J31 -> 0 | I24: 0 | J24: 0 | K24: 0 | L24: 0 | M24: 0 | N24: 0 | O24: 0 | P24: 1 | Q24: 0
A25: 11 | B25: =System!C32 -> 0 | C25: =System!D32 -> 0 | D25: =System!E32 -> 0 | E25: =System!F32 -> 0 | F25: =System!G32 -> 0 | G25: =System!H32 -> 0 | H25: =System!J32 -> 0 | I25: 0 | J25: 0 | K25: 0 | L25: 0 | M25: 0 | N25: 0 | O25: 0 | P25: 1 | Q25: 0
A26: 12 | B26: =System!C33 -> 0 | C26: =System!D33 -> 0 | D26: =System!E33 -> 0 | E26: =System!F33 -> 0 | F26: =System!G33 -> 0 | G26: =System!H33 -> 0 | H26: =System!J33 -> 0 | I26: 0 | J26: 0 | K26: 0 | L26: 0 | M26: 0 | N26: 0 | O26: 0 | P26: 1 | Q26: 0
A27: 13 | B27: =System!C34 -> 0 | C27: =System!D34 -> 0 | D27: =System!E34 -> 0 | E27: =System!F34 -> 0 | F27: =System!G34 -> 0 | G27: =System!H34 -> 0 | H27: =System!J34 -> 0 | I27: 0 | J27: 0 | K27: 0 | L27: 0 | M27: 0 | N27: 0 | O27: 0 | P27: 1 | Q27: 0
A28: 14 | B28: =System!C35 -> 0 | C28: =System!D35 -> 0 | D28: =System!E35 -> 0 | E28: =System!F35 -> 0 | F28: =System!G35 -> 0 | G28: =System!H35 -> 0 | H28: =System!J35 -> 0 | I28: 0 | J28: 0 | K28: 0 | L28: 0 | M28: 0 | N28: 0 | O28: 0 | P28: 1 | Q28: 0
A29: 15 | B29: =System!C36 -> 0 | C29: =System!D36 -> 0 | D29: =System!E36 -> 0 | E29: =System!F36 -> 0 | F29: =System!G36 -> 0 | G29: =System!H36 -> 0 | H29: =System!J36 -> 0 | I29: 0 | J29: 0 | K29: 0 | L29: 0 | M29: 0 | N29: 0 | O29: 0 | P29: 1 | Q29: 0
A30: 16 | B30: =System!C37 -> 0 | C30: =System!D37 -> 0 | D30: =System!E37 -> 0 | E30: =System!F37 -> 0 | F30: =System!G37 -> 0 | G30: =System!H37 -> 0 | H30: =System!J37 -> 0 | I30: 0 | J30: 0 | K30: 0 | L30: 0 | M30: 0 | N30: 0 | O30: 0 | P30: 1 | Q30: 0
A31: 17 | B31: =System!C38 -> 0 | C31: =System!D38 -> 0 | D31: =System!E38 -> 0 | E31: =System!F38 -> 0 | F31: =System!G38 -> 0 | G31: =System!H38 -> 0 | H31: =System!J38 -> 0 | I31: 0 | J31: 0 | K31: 0 | L31: 0 | M31: 0 | N31: 0 | O31: 0 | P31: 1 | Q31: 0
A32: 18 | B32: =System!C39 -> 0 | C32: =System!D39 -> 0 | D32: =System!E39 -> 0 | E32: =System!F39 -> 0 | F32: =System!G39 -> 0 | G32: =System!H39 -> 0 | H32: =System!J39 -> 0 | I32: 0 | J32: 0 | K32: 0 | L32: 0 | M32: 0 | N32: 0 | O32: 0 | P32: 1 | Q32: 0
A33: 19 | B33: =System!C40 -> 0 | C33: =System!D40 -> 0 | D33: =System!E40 -> 0 | E33: =System!F40 -> 0 | F33: =System!G40 -> 0 | G33: =System!H40 -> 0 | H33: =System!J40 -> 0 | I33: 0 | J33: 0 | K33: 0 | L33: 0 | M33: 0 | N33: 0 | O33: 0 | P33: 1 | Q33: 0
A34: 20 | B34: =System!C41 -> 0 | C34: =System!D41 -> 0 | D34: =System!E41 -> 0 | E34: =System!F41 -> 0 | F34: =System!G41 -> 0 | G34: =System!H41 -> 0 | H34: =System!J41 -> 0 | I34: 0 | J34: 0 | K34: 0 | L34: 0 | M34: 0 | N34: 0 | O34: 0 | P34: 1 | Q34: 0
A35: 21 | B35: =System!C42 -> 0 | C35: =System!D42 -> 0 | D35: =System!E42 -> 0 | E35: =System!F42 -> 0 | F35: =System!G42 -> 0 | G35: =System!H42 -> 0 | H35: =System!J42 -> 0 | I35: 0 | J35: 0 | K35: 0 | L35: 0 | M35: 0 | N35: 0 | O35: 0 | P35: 1 | Q35: 0
A36: 22 | B36: =System!C43 -> 0 | C36: =System!D43 -> 0 | D36: =System!E43 -> 0 | E36: =System!F43 -> 0 | F36: =System!G43 -> 0 | G36: =System!H43 -> 0 | H36: =System!J43 -> 0 | I36: 0 | J36: 0 | K36: 0 | L36: 0 | M36: 0 | N36: 0 | O36: 0 | P36: 1 | Q36: 0
A37: 23 | B37: =System!C44 -> 0 | C37: =System!D44 -> 0 | D37: =System!E44 -> 0 | E37: =System!F44 -> 0 | F37: =System!G44 -> 0 | G37: =System!H44 -> 0 | H37: =System!J44 -> 0 | I37: 0 | J37: 0 | K37: 0 | L37: 0 | M37: 0 | N37: 0 | O37: 0 | P37: 1 | Q37: 0
A38: 24 | B38: =System!C45 -> 0 | C38: =System!D45 -> 0 | D38: =System!E45 -> 0 | E38: =System!F45 -> 0 | F38: =System!G45 -> 0 | G38: =System!H45 -> 0 | H38: =System!J45 -> 0 | I38: 0 | J38: 0 | K38: 0 | L38: 0 | M38: 0 | N38: 0 | O38: 0 | P38: 1 | Q38: 0
A39: 25 | B39: =System!C46 -> 0 | C39: =System!D46 -> 0 | D39: =System!E46 -> 0 | E39: =System!F46 -> 0 | F39: =System!G46 -> 0 | G39: =System!H46 -> 0 | H39: =System!J46 -> 0 | I39: 0 | J39: 0 | K39: 0 | L39: 0 | M39: 0 | N39: 0 | O39: 0 | P39: 1 | Q39: 0
A40: 26 | B40: =System!C47 -> 0 | C40: =System!D47 -> 0 | D40: =System!E47 -> 0 | E40: =System!F47 -> 0 | F40: =System!G47 -> 0 | G40: =System!H47 -> 0 | H40: =System!J47 -> 0 | I40: 0 | J40: 0 | K40: 0 | L40: 0 | M40: 0 | N40: 0 | O40: 0 | P40: 1 | Q40: 0
A41: 27 | B41: =System!C48 -> 0 | C41: =System!D48 -> 0 | D41: =System!E48 -> 0 | E41: =System!F48 -> 0 | F41: =System!G48 -> 0 | G41: =System!H48 -> 0 | H41: =System!J48 -> 0 | I41: 0 | J41: 0 | K41: 0 | L41: 0 | M41: 0 | N41: 0 | O41: 0 | P41: 1 | Q41: 0
A42: 28 | B42: =System!C49 -> 0 | C42: =System!D49 -> 0 | D42: =System!E49 -> 0 | E42: =System!F49 -> 0.01 | F42: =System!G49 -> 0.2 | G42: =System!H49 -> 0.01 | H42: =System!J49 -> 6 | I42: 0 | J42: 0.005 | K42: 0.01 | L42: 2e-07 | M42: 4.672799582e-06 | N42: 0 | O42: 4.672799582e-06 | P42: 0 | Q42: 1
A43: 29 | B43: =System!C50 -> 0 | C43: =System!D50 -> 0 | D43: =System!E50 -> 0.01 | E43: =System!F50 -> 0 | F43: =System!G50 -> 0.2 | G43: =System!H50 -> 0.01 | H43: =System!J50 -> 6 | I43: 0.005 | J43: 0 | K43: 0.01 | L43: 2e-07 | M43: 1.68212591e-06 | N43: 1.68212591e-06 | O43: 0 | P43: 1 | Q43: 0
A44: 30 | B44: =System!C51 -> 0.01 | C44: =System!D51 -> 0 | D44: =System!E51 -> 0 | E44: =System!F51 -> 0.01 | F44: =System!G51 -> 0.2 | G44: =System!H51 -> 0.01 | H44: =System!J51 -> 6 | I44: 0.005 | J44: 0.005 | K44: 0.01414213562 | L44: 4e-07 | M44: 4.22840176e-06 | N44: -2.989931558e-06 | O44: 2.989931558e-06 | P44: -0.7071067812 | Q44: 0.7071067812
N46: =SUM(N15:N45) -> 121.212 | O46: =SUM(O15:O45) -> 312.48

Sheet E4
A5: Etage: | B5: 4 | O5: System: | P5: x_0 | Q5: =(Q7*(-SUMPRODUCT(a_4,yacc)+SUMPRODUCT(a_4,xacs))+(-SUMPRODUCT(a_4,yacs)+SUMPRODUCT(a_4,xass)))/Q10 -> 19.99999949
P6: y_0 | Q6: =-(-SUMPRODUCT(a_4,yacc)+SUMPRODUCT(a_4,xacs)+Q8*(-SUMPRODUCT(a_4,yacs)+SUMPRODUCT(a_4,xass)))/Q9 -> 9.9999992
A7: Totallaste - incl. bidrag fra ovenliggende etager: | G7: W_x | H7: =INDEX(Last,7-$B$5,1) -> 88.452 | I7: kN | P7: Dx | Q7: =-SUMPRODUCT(a_4,acs)/SUMPRODUCT(a_4,acc) -> 1.99999992e-08
G8: y_Wx | H8: =INDEX(Last,7-$B$5,2) -> 16 | I8: m | P8: Dy | Q8: =-SUMPRODUCT(a_4,acs)/SUMPRODUCT(a_4,ass) -> 1.020408142e-08
G9: W_y | H9: =INDEX(Last,7-$B$5,3) -> 228.69 | I9: kN | P9: Ax | Q9: =SUMPRODUCT(a_4,acc)+Q8*SUMPRODUCT(a_4,acs) -> 10.0000004
G10: x_Wy | H10: =INDEX(Last,7-$B$5,4) -> 20 | I10: m | P10: Ay | Q10: =Q7*SUMPRODUCT(a_4,acs)+SUMPRODUCT(a_4,ass) -> 19.6000004
G11: M_w | H11: =-(H8-Q6)*H7+(H10-Q5)*H9 -> -530.7119541 | I11: kNm | P11: I_w | Q11: =SUMPRODUCT(a_4,xxass)-2*Q5*SUMPRODUCT(a_4,xass)+Q5^2*SUMPRODUCT(a_4,ass)-2*SUMPRODUCT(a_4,yxacs)+2*Q6*SUMPRODUCT(a_4,xacs)+2*Q5*SUMPRODUCT(a_4,yacs)-2*Q5*Q6*SUMPRODUCT(a_4,acs)+SUMPRODUCT(a_4,yyacc)-2*Q6*SUMPRODUCT(a_4,yacc)+Q6^2*SUMPRODUCT(a_4,acc) -> 1960.00028
A14: Væg nr | B14: x1 | C14: y1 | D14: x2 | E14: y2 | F14: t | G14: a0 | H14: etager | I14: x_i | J14: y_i | K14: L_i | L14: a_i | M14: Q_i | N14: Q_ix | O14: Q_iy | P14: cos(v_i) | Q14: sin(v_i)
A15: 1 | B15: =System!C22 -> 10 | C15: =System!D22 -> 10 | D15: =System!E22 -> 15 | E15: =System!F22 -> 10 | F15: =System!G22 -> 0.2 | G15: =System!H22 -> 1 | H15: =System!J22 -> 6 | I15: =0.5*(B15+D15) -> 12.5 | J15: =0.5*(C15+E15) -> 10 | K15: =SQRT((D15-B15)^2+(E15-C15)^2) -> 5 | L15: =IF($B$5>H15,0,K15^2*G15*F15) -> 5 | M15: =L15*((P15+$Q$8*Q15)*$H$7/$Q$9+($Q$7*P15+Q15)*$H$9/$Q$10+((I15-$Q$5)*Q15-(J15-$Q$6)*P15)*$H$11/$Q$11) -> 44.22600048 | N15: =M15*P15 -> 44.22600048 | O15: =M15*Q15 -> 0 | P15: =IF(K15=0,1,(D15-B15)/K15) -> 1 | Q15: =IF(K15=0,0,(E15-C15)/K15) -> 0
A16: 2 | B16: =System!C23 -> 25 | C16: =System!D23 -> 10 | D16: =System!E23 -> 30 | E16: =System!F23 -> 10 | F16: =System!G23 -> 0.2 | G16: =System!H23 -> 1 | H16: =System!J23 -> 6 | I16: 27.5 | J16: 10 | K16: 5 | L16: =IF($B$5>H16,0,K16^2*G16*F16) -> 5 | M16: 44.22600048 | N16: 44.22600048 | O16: 0 | P16: 1 | Q16: =IF(K16=0,0,(E16-C16)/K16) -> 0
A17: 3 | B17: =System!C24 -> 10 | C17: =System!D24 -> 15 | D17: =System!E24 -> 10 | E17: =System!F24 -> 22 | F17: =System!G24 -> 0.2 | G17: =System!H24 -> 1 | H17: =System!J24 -> 6 | I17: 10 | J17: 18.5 | K17: 7 | L17: 9.8 | M17: 140.8805911 | N17: 0 | O17: 140.8805911 | P17: 0 | Q17: 1
A18: 4 | B18: =System!C25 -> 30 | C18: =System!D25 -> 15 | D18: =System!E25 -> 30 | E18: =System!F25 -> 22 | F18: =System!G25 -> 0.2 | G18: =System!H25 -> 1 | H18: =System!J25 -> 6 | I18: 30 | J18: 18.5 | K18: 7 | L18: 9.8 | M18: 87.80940328 | N18: 0 | O18: 87.80940328 | P18: 0 | Q18: 1
A19: 5 | B19: =System!C26 -> 0 | C19: =System!D26 -> 0 | D19: =System!E26 -> 0 | E19: =System!F26 -> 0 | F19: =System!G26 -> 0 | G19: =System!H26 -> 0 | H19: =System!J26 -> 0 | I19: 0 | J19: 0 | K19: 0 | L19: 0 | M19: 0 | N19: 0 | O19: 0 | P19: 1 | Q19: 0
A20: 6 | B20: =System!C27 -> 0 | C20: =System!D27 -> 0 | D20: =System!E27 -> 0 | E20: =System!F27 -> 0 | F20: =System!G27 -> 0 | G20: =System!H27 -> 0 | H20: =System!J27 -> 0 | I20: 0 | J20: 0 | K20: 0 | L20: 0 | M20: 0 | N20: 0 | O20: 0 | P20: 1 | Q20: 0
A21: 7 | B21: =System!C28 -> 0 | C21: =System!D28 -> 0 | D21: =System!E28 -> 0 | E21: =System!F28 -> 0 | F21: =System!G28 -> 0 | G21: =System!H28 -> 0 | H21: =System!J28 -> 0 | I21: 0 | J21: 0 | K21: 0 | L21: 0 | M21: 0 | N21: 0 | O21: 0 | P21: 1 | Q21: 0
A22: 8 | B22: =System!C29 -> 0 | C22: =System!D29 -> 0 | D22: =System!E29 -> 0 | E22: =System!F29 -> 0 | F22: =System!G29 -> 0 | G22: =System!H29 -> 0 | H22: =System!J29 -> 0 | I22: 0 | J22: 0 | K22: 0 | L22: 0 | M22: 0 | N22: 0 | O22: 0 | P22: 1 | Q22: 0
A23: 9 | B23: =System!C30 -> 0 | C23: =System!D30 -> 0 | D23: =System!E30 -> 0 | E23: =System!F30 -> 0 | F23: =System!G30 -> 0 | G23: =System!H30 -> 0 | H23: =System!J30 -> 0 | I23: 0 | J23: 0 | K23: 0 | L23: 0 | M23: 0 | N23: 0 | O23: 0 | P23: 1 | Q23: 0
A24: 10 | B24: =System!C31 -> 0 | C24: =System!D31 -> 0 | D24: =System!E31 -> 0 | E24: =System!F31 -> 0 | F24: =System!G31 -> 0 | G24: =System!H31 -> 0 | H24: =System!J31 -> 0 | I24: 0 | J24: 0 | K24: 0 | L24: 0 | M24: 0 | N24: 0 | O24: 0 | P24: 1 | Q24: 0
A25: 11 | B25: =System!C32 -> 0 | C25: =System!D32 -> 0 | D25: =System!E32 -> 0 | E25: =System!F32 -> 0 | F25: =System!G32 -> 0 | G25: =System!H32 -> 0 | H25: =System!J32 -> 0 | I25: 0 | J25: 0 | K25: 0 | L25: 0 | M25: 0 | N25: 0 | O25: 0 | P25: 1 | Q25: 0
A26: 12 | B26: =System!C33 -> 0 | C26: =System!D33 -> 0 | D26: =System!E33 -> 0 | E26: =System!F33 -> 0 | F26: =System!G33 -> 0 | G26: =System!H33 -> 0 | H26: =System!J33 -> 0 | I26: 0 | J26: 0 | K26: 0 | L26: 0 | M26: 0 | N26: 0 | O26: 0 | P26: 1 | Q26: 0
A27: 13 | B27: =System!C34 -> 0 | C27: =System!D34 -> 0 | D27: =System!E34 -> 0 | E27: =System!F34 -> 0 | F27: =System!G34 -> 0 | G27: =System!H34 -> 0 | H27: =System!J34 -> 0 | I27: 0 | J27: 0 | K27: 0 | L27: 0 | M27: 0 | N27: 0 | O27: 0 | P27: 1 | Q27: 0
